Workbook

Sheet Sheet1
A1: Date | B1: 2012-11-02 | C1: 2012-11-01 | D1: 2012-10-31 | E1: 2012-10-30 | F1: 2012-10-29 | G1: 2012-10-26 | H1: 2012-10-25 | I1: 2012-10-24 | J1: 2012-10-23 | K1: 2012-10-22 | L1: 2012-10-19 | M1: 2012-10-18 | N1: 2012-10-17 | O1: 2012-10-16 | P1: 2012-10-15 | Q1: 2012-10-12 | R1: 2012-10-11 | S1: 2012-10-10 | T1: 2012-10-09 | U1: 2012-10-08 | V1: 2012-10-05 | W1: 2012-10-04 | X1: 2012-10-03 | Y1: 2012-10-02 | Z1: 2012-10-01 | AA1: 2012-09-28 | AB1: 2012-09-27 | AC1: 2012-09-26 | AD1: 2012-09-25 | AE1: 2012-09-24
A2: Type | B2: Midpoint | C2: Midpoint | D2: Midpoint | E2: Midpoint | F2: Midpoint | G2: Midpoint | H2: Midpoint | I2: Midpoint | J2: Midpoint | K2: Midpoint | L2: Midpoint | M2: Midpoint | N2: Midpoint | O2: Midpoint | P2: Midpoint | Q2: Midpoint | R2: Midpoint | S2: Midpoint | T2: Midpoint | U2: Midpoint | V2: Midpoint | W2: Midpoint | X2: Midpoint | Y2: Midpoint | Z2: Midpoint | AA2: Midpoint | AB2: Midpoint | AC2: Midpoint | AD2: Midpoint | AE2: Midpoint
A3: Permian Basin Area
A4: El Paso, Permian | B4: 3.44 | C4: 3.44 | D4: 3.515 | E4: 3.33 | F4: 3.3 | G4: 3.41 | H4: 3.42 | I4: 3.315 | J4: 3.47 | K4: 3.395 | L4: 3.28 | M4: 3.245 | N4: 3.25 | O4: 3.305 | P4: 3.325 | Q4: 3.255 | R4: 3.215 | S4: 3.15 | T4: 3.07 | U4: 3.19 | V4: 3.195 | W4: 3.085 | X4: 3.1 | Y4: 3.115 | Z4: 2.97 | AA4: 2.94 | AB4: 2.875 | AC4: 2.84 | AD4: 2.825 | AE4: 2.7
A5: Waha | B5: 3.445 | C5: 3.435 | D5: 3.475 | E5: 3.365 | F5: 3.29 | G5: 3.39 | H5: 3.4 | I5: 3.305 | J5: 3.465 | K5: 3.37 | L5: 3.27 | M5: 3.23 | N5: 3.24 | O5: 3.275 | P5: 3.31 | Q5: 3.26 | R5: 3.195 | S5: 3.115 | T5: 3.075 | U5: 3.185 | V5: 3.165 | W5: 3.085 | X5: 3.095 | Y5: 3.095 | Z5: 2.98 | AA5: 2.94 | AB5: 2.865 | AC5: 2.825 | AD5: 2.805 | AE5: 2.73
A6: Transwestern, Permian | B6: 3.44 | C6: 3.455 | D6: 3.425 | E6: 3.345 | F6: 3.285 | G6: 3.39 | H6: 3.44 | I6: 3.315 | J6: 3.455 | K6: 3.35 | L6: 3.28 | M6: 3.265 | N6: 3.27 | O6: 3.295 | P6: 3.33 | Q6: 3.27 | R6: 3.19 | S6: 3.155 | T6: 3.09 | U6: 3.145 | V6: 3.2 | W6: 3.09 | X6: 3.09 | Y6: 3.115 | Z6: 2.95 | AA6: 2.895 | AB6: 2.815 | AC6: 2.76 | AD6: 2.755 | AE6: 2.66
A7: East Texas-North Louisiana Area
A8: Carthage Hub | B8: 3.43 | C8: 3.435 | D8: 3.355 | E8: 3.335 | F8: 3.3 | G8: 3.34 | H8: 3.37 | I8: 3.255 | J8: 3.355 | K8: 3.12 | L8: 3.045 | M8: 3.1 | N8: 3.125 | O8: 3.155 | P8: 3.22 | Q8: 3.065 | R8: 3.05 | S8: 2.975 | T8: 2.97 | U8: 3.12 | V8: 3.15 | W8: 3.09 | X8: 3.085 | Y8: 3.11 | Z8: 2.98 | AA8: 2.955 | AB8: 2.875 | AC8: 2.79 | AD8: 2.775 | AE8: 2.675
A9: NGPL, Texok zone | B9: 3.43 | C9: 3.45 | D9: 3.425 | E9: 3.41 | F9: 3.3 | G9: 3.365 | H9: 3.41 | I9: 3.305 | J9: 3.425 | K9: 3.375 | L9: 3.275 | M9: 3.23 | N9: 3.23 | O9: 3.295 | P9: 3.29 | Q9: 3.25 | R9: 3.205 | S9: 3.145 | T9: 3.135 | U9: 3.245 | V9: 3.25 | W9: 3.175 | X9: 3.13 | Y9: 3.125 | Z9: 3.03 | AA9: 3.01 | AB9: 2.92 | AC9: 2.845 | AD9: 2.835 | AE9: 2.74
A10: Tx. Eastern, ETX | B10: 3.375 | C10: 3.345 | D10: 3.345 | E10: 3.325 | F10: 3.23 | G10: 3.345 | H10: 3.39 | I10: 3.315 | J10: 3.425 | K10: 3.325 | L10: 3.26 | M10: 3.225 | N10: 3.205 | O10: 3.24 | P10: 3.28 | Q10: 3.22 | R10: 3.13 | S10: 3.135 | T10: 3.1 | U10: 3.205 | V10: 3.215 | W10: 3.175 | X10: 3.1 | Y10: 3.11 | Z10: 2.97 | AA10: 2.945 | AB10: 2.885 | AC10: 2.77 | AD10: 2.745 | AE10: 2.705
A11: Tx. Gas, zone 1 | B11: 3.45 | C11: 3.47 | D11: 3.41 | E11: 3.375 | F11: 3.32 | G11: 3.35 | H11: 3.41 | I11: 3.305 | J11: 3.425 | K11: 3.38 | L11: 3.28 | M11: 3.235 | N11: 3.24 | O11: 3.29 | P11: 3.28 | Q11: 3.265 | R11: 3.215 | S11: 3.145 | T11: 3.15 | U11: 3.23 | V11: 3.205 | W11: 3.15 | X11: 3.135 | Y11: 3.135 | Z11: 3.01 | AA11: 2.975 | AB11: 2.9 | AC11: 2.81 | AD11: 2.775 | AE11: 2.7
A12: East-Houston-Katy
A13: Houston Ship Channel | B13: 3.455 | C13: 3.465 | D13: 3.385 | E13: 3.355 | F13: 3.26 | G13: 3.375 | H13: 3.4 | I13: 3.28 | J13: 3.46 | K13: 3.35 | L13: 3.21 | M13: 3.19 | N13: 3.22 | O13: 3.265 | P13: 3.28 | Q13: 3.235 | R13: 3.17 | S13: 3.1 | T13: 3.07 | U13: 3.08 | V13: 3.2 | W13: 3.13 | X13: 3.1 | Y13: 3.105 | Z13: 3.02 | AA13: 3.05 | AB13: 2.9 | AC13: 2.87 | AD13: 2.815 | AE13: 2.785
A14: Katy | B14: 3.44 | C14: 3.475 | D14: 3.39 | E14: 3.375 | F14: 3.28 | G14: 3.36 | H14: 3.41 | I14: 3.3 | J14: 3.48 | K14: 3.38 | L14: 3.26 | M14: 3.215 | N14: 3.235 | O14: 3.28 | P14: 3.31 | Q14: 3.26 | R14: 3.19 | S14: 3.11 | T14: 3.085 | U14: 3.195 | V14: 3.195 | W14: 3.125 | X14: 3.125 | Y14: 3.12 | Z14: 3.02 | AA14: 3.045 | AB14: 2.91 | AC14: 2.855 | AD14: 2.8 | AE14: 2.77
A15: South-Corpus Christi
A16: Agua Dulce Hub | B16: 3.465 | C16: 3.515 | D16: 3.43 | E16: 3.345 | F16: 3.32 | G16: 3.405 | H16: 3.425 | I16: 3.325 | J16: 3.495 | K16: 3.345 | L16: 3.315 | M16: 3.29 | N16: 3.295 | O16: 3.34 | P16: 3.36 | Q16: 3.28 | R16: 3.235 | S16: 3.16 | T16: 3.135 | U16: 3.28 | V16: 3.245 | W16: 3.17 | X16: 3.165 | Y16: 3.185 | Z16: 3.065 | AA16: 3.155 | AB16: 2.975 | AC16: 2.9 | AD16: 2.87 | AE16: 2.845
A17: NGPL, STX | B17: 3.425 | C17: 3.44 | D17: 3.405 | E17: 3.4 | F17: 3.285 | G17: 3.35 | H17: 3.42 | I17: 3.295 | J17: 3.43 | K17: 3.39 | L17: 3.265 | M17: 3.26 | N17: 3.24 | O17: 3.275 | P17: 3.315 | Q17: 3.255 | R17: 3.215 | S17: 3.14 | T17: 3.12 | U17: 3.215 | V17: 3.21 | W17: 3.155 | X17: 3.135 | Y17: 3.125 | Z17: 3 | AA17: 3.02 | AB17: 2.91 | AC17: 2.835 | AD17: 2.81 | AE17: 2.735
A18: Tennessee, zone 0 | B18: 3.42 | C18: 3.465 | D18: 3.36 | E18: 3.385 | F18: 3.28 | G18: 3.355 | H18: 3.41 | I18: 3.305 | J18: 3.42 | K18: 3.375 | L18: 3.275 | M18: 3.21 | N18: 3.235 | O18: 3.28 | P18: 3.3 | Q18: 3.255 | R18: 3.205 | S18: 3.135 | T18: 3.105 | U18: 3.23 | V18: 3.225 | W18: 3.16 | X18: 3.125 | Y18: 3.115 | Z18: 2.98 | AA18: 2.96 | AB18: 2.87 | AC18: 2.8 | AD18: 2.765 | AE18: 2.715
A19: Tx. Eastern, STX | B19: 3.33 | C19: 3.36 | D19: 3.28 | E19: 3.295 | F19: 3.22 | G19: 3.32 | H19: 3.385 | I19: 3.28 | J19: 3.42 | K19: 3.385 | L19: 3.245 | M19: 3.18 | N19: 3.2 | O19: 3.275 | P19: 3.315 | Q19: 3.235 | R19: 3.19 | S19: 3.125 | T19: 3.075 | U19: 3.21 | V19: 3.19 | W19: 3.14 | X19: 3.105 | Y19: 3.105 | Z19: 2.98 | AA19: 2.985 | AB19: 2.885 | AC19: 2.82 | AD19: 2.775 | AE19: 2.715
A20: Transco, zone 1 | B20: 3.36 | C20: 3.36 | D20: 3.315 | E20: 3.345 | F20: 3.225 | G20: 3.295 | H20: 3.395 | I20: 3.27 | J20: 3.41 | K20: 3.335 | L20: 3.235 | M20: 3.21 | N20: 3.22 | O20: 3.27 | P20: 3.265 | Q20: 3.24 | R20: 3.165 | S20: 3.12 | T20: 3.105 | U20: 3.19 | V20: 3.215 | W20: 3.17 | X20: 3.17 | Y20: 3.14 | Z20: 2.98 | AA20: 2.96 | AB20: 2.87 | AC20: 2.8 | AD20: 2.77 | AE20: 2.705
A21: Louisiana-Onshore South
A22: ANR, La. | B22: 3.46 | C22: 3.455 | D22: 3.4 | E22: 3.4 | F22: 3.31 | G22: 3.35 | H22: 3.415 | I22: 3.29 | J22: 3.41 | K22: 3.38 | L22: 3.275 | M22: 3.215 | N22: 3.235 | O22: 3.26 | P22: 3.265 | Q22: 3.25 | R22: 3.205 | S22: 3.14 | T22: 3.125 | U22: 3.195 | V22: 3.215 | W22: 3.155 | X22: 3.13 | Y22: 3.115 | Z22: 2.985 | AA22: 2.955 | AB22: 2.87 | AC22: 2.78 | AD22: 2.735 | AE22: 2.69
A23: Columbia Gulf, La. | B23: 3.44 | C23: 3.475 | D23: 3.395 | E23: 3.38 | F23: 3.31 | G23: 3.34 | H23: 3.41 | I23: 3.3 | J23: 3.4 | K23: 3.365 | L23: 3.27 | M23: 3.215 | N23: 3.22 | O23: 3.28 | P23: 3.285 | Q23: 3.24 | R23: 3.2 | S23: 3.135 | T23: 3.135 | U23: 3.21 | V23: 3.215 | W23: 3.175 | X23: 3.145 | Y23: 3.13 | Z23: 3 | AA23: 2.985 | AB23: 2.9 | AC23: 2.8 | AD23: 2.77 | AE23: 2.72
A24: Columbia Gulf, mainline | B24: 3.46 | C24: 3.47 | D24: 3.395 | E24: 3.375 | F24: 3.32 | G24: 3.36 | H24: 3.4 | I24: 3.29 | J24: 3.4 | K24: 3.355 | L24: 3.275 | M24: 3.215 | N24: 3.225 | O24: 3.285 | P24: 3.275 | Q24: 3.255 | R24: 3.21 | S24: 3.14 | T24: 3.15 | U24: 3.235 | V24: 3.215 | W24: 3.155 | X24: 3.135 | Y24: 3.13 | Z24: 3.01 | AA24: 2.975 | AB24: 2.895 | AC24: 2.805 | AD24: 2.77 | AE24: 2.72
A25: Florida Gas, zone 1 | B25: 3.52 | C25: 3.52 | D25: 3.42 | E25: 3.41 | F25: 3.375 | G25: 3.405 | H25: 3.445 | I25: 3.35 | J25: 3.49 | K25: 3.445 | L25: 3.31 | M25: 3.265 | N25: 3.28 | O25: 3.315 | P25: 3.29 | Q25: 3.24 | R25: 3.18 | S25: 3.185 | T25: 3.165 | U25: 3.26 | V25: 3.225 | W25: 3.19 | X25: 3.185 | Y25: 3.18 | Z25: 3.04 | AA25: 3.03 | AB25: 2.925 | AC25: 2.845 | AD25: 2.825 | AE25: 2.77
A26: Florida Gas, zone 2 | B26: 3.5 | C26: 3.535 | D26: 3.455 | E26: 3.43 | F26: 3.36 | G26: 3.42 | H26: 3.465 | I26: 3.35 | J26: 3.475 | K26: 3.46 | L26: 3.32 | M26: 3.255 | N26: 3.27 | O26: 3.33 | P26: 3.335 | Q26: 3.295 | R26: 3.26 | S26: 3.175 | T26: 3.19 | U26: 3.285 | V26: 3.265 | W26: 3.2 | X26: 3.185 | Y26: 3.185 | Z26: 3.055 | AA26: 3.045 | AB26: 2.955 | AC26: 2.855 | AD26: 2.82 | AE26: 2.805
A27: Florida Gas, zone 3 | B27: 3.565 | C27: 3.366 | D27: 3.535 | E27: 3.585 | F27: 3.485 | G27: 3.64 | H27: 3.39 | I27: 3.645 | J27: 3.72 | K27: 3.755 | L27: 3.315 | M27: 3.615 | N27: 3.62 | O27: 3.66 | P27: 3.62 | Q27: 3.68 | R27: 3.675 | S27: 3.51 | T27: 3.52 | U27: 3.58 | V27: 3.66 | W27: 3.57 | X27: 3.62 | Y27: 3.58 | Z27: 3.38 | AA27: 3.285 | AB27: 3.14 | AC27: 3.045 | AD27: 3.02 | AE27: 3.005
A28: Henry Hub | B28: 3.5 | C28: 3.5 | D28: 3.415 | E28: 3.405 | F28: 3.375 | G28: 3.385 | H28: 3.435 | I28: 3.34 | J28: 3.49 | K28: 3.435 | L28: 3.28 | M28: 3.24 | N28: 3.27 | O28: 3.345 | P28: 3.375 | Q28: 3.28 | R28: 3.26 | S28: 3.18 | T28: 3.175 | U28: 3.255 | V28: 3.225 | W28: 3.21 | X28: 3.21 | Y28: 3.195 | Z28: 3.085 | AA28: 3.015 | AB28: 2.92 | AC28: 2.845 | AD28: 2.82 | AE28: 2.76
A29: Southern Natural, La. | B29: 3.48 | C29: 3.555 | D29: 3.43 | E29: 3.445 | F29: 3.35 | G29: 3.405 | H29: 3.455 | I29: 3.34 | J29: 3.435 | K29: 3.385 | L29: 3.305 | M29: 3.245 | N29: 3.26 | O29: 3.3 | P29: 3.32 | Q29: 3.28 | R29: 3.24 | S29: 3.18 | T29: 3.165 | U29: 3.225 | V29: 3.265 | W29: 3.205 | X29: 3.18 | Y29: 3.18 | Z29: 3.02 | AA29: 3 | AB29: 2.915 | AC29: 2.835 | AD29: 2.815 | AE29: 2.73
A30: Tennessee, 500 Leg | B30: 3.465 | C30: 3.505 | D30: 3.42 | E30: 3.45 | F30: 3.345 | G30: 3.39 | H30: 3.45 | I30: 3.34 | J30: 3.46 | K30: 3.415 | L30: 3.32 | M30: 3.235 | N30: 3.29 | O30: 3.31 | P30: 3.365 | Q30: 3.305 | R30: 3.28 | S30: 3.195 | T30: 3.19 | U30: 3.23 | V30: 3.285 | W30: 3.205 | X30: 3.17 | Y30: 3.19 | Z30: 3.065 | AA30: 3.015 | AB30: 2.915 | AC30: 2.835 | AD30: 2.81 | AE30: 2.725
A31: Tennessee, 800 Leg | B31: 3.44 | C31: 3.485 | D31: 3.42 | E31: 3.425 | F31: 3.33 | G31: 3.38 | H31: 3.43 | I31: 3.325 | J31: 3.44 | K31: 3.4 | L31: 3.285 | M31: 3.235 | N31: 3.255 | O31: 3.305 | P31: 3.3 | Q31: 3.27 | R31: 3.195 | S31: 3.135 | T31: 3.11 | U31: 3.22 | V31: 3.24 | W31: 3.155 | X31: 3.135 | Y31: 3.12 | Z31: 3 | AA31: 2.985 | AB31: 2.895 | AC31: 2.815 | AD31: 2.78 | AE31: 2.72
A32: Tx. Eastern, WLA | B32: 3.375 | C32: 3.465 | D32: 3.345 | E32: 3.38 | F32: 3.295 | G32: 3.34 | H32: 3.43 | I32: 3.32 | J32: 3.45 | K32: 3.38 | L32: 3.245 | M32: 3.225 | N32: 3.225 | O32: 3.275 | P32: 3.315 | Q32: 3.26 | R32: 3.195 | S32: 3.125 | T32: 3.125 | U32: 3.195 | V32: 3.225 | W32: 3.18 | X32: 3.15 | Y32: 3.135 | Z32: 3.01 | AA32: 2.995 | AB32: 2.94 | AC32: 2.825 | AD32: 2.8 | AE32: 2.75
A33: Tx. Eastern, ELA | B33: 3.42 | C33: 3.455 | D33: 3.355 | E33: 3.35 | F33: 3.28 | G33: 3.35 | H33: 3.4 | I33: 3.29 | J33: 3.415 | K33: 3.365 | L33: 3.23 | M33: 3.205 | N33: 3.235 | O33: 3.285 | P33: 3.3 | Q33: 3.265 | R33: 3.2 | S33: 3.12 | T33: 3.115 | U33: 3.16 | V33: 3.225 | W33: 3.19 | X33: 3.14 | Y33: 3.135 | Z33: 2.995 | AA33: 2.97 | AB33: 2.91 | AC33: 2.82 | AD33: 2.755 | AE33: 2.735
A34: Tx. Gas, zone SL | B34: 3.44 | C34: 3.45 | D34: 3.42 | E34: 3.39 | G34: 3.375 | H34: 3.42 | I34: 3.31 | J34: 3.43 | K34: 3.36 | L34: 3.29 | M34: 3.265 | N34: 3.245 | O34: 3.3 | P34: 3.3 | Q34: 3.34 | R34: 3.21 | S34: 3.16 | T34: 3.145 | U34: 3.26 | V34: 3.235 | X34: 3.15 | Y34: 3.135 | Z34: 3 | AA34: 3 | AB34: 2.92 | AC34: 2.82 | AD34: 2.815 | AE34: 2.78
A35: Transco, zone 2 | B35: 3.44 | C35: 3.5 | D35: 3.36 | E35: 3.38 | F35: 3.285 | G35: 3.31 | H35: 3.42 | I35: 3.305 | J35: 3.415 | K35: 3.35 | L35: 3.255 | M35: 3.23 | N35: 3.22 | O35: 3.26 | P35: 3.295 | Q35: 3.27 | R35: 3.21 | S35: 3.155 | T35: 3.145 | U35: 3.24 | V35: 3.235 | W35: 3.205 | X35: 3.155 | Y35: 3.17 | Z35: 3.01 | AA35: 2.96 | AB35: 2.92 | AC35: 2.815 | AD35: 2.795 | AE35: 2.725
A36: Transco, zone 3 | B36: 3.495 | C36: 3.535 | D36: 3.4 | E36: 3.415 | F36: 3.315 | G36: 3.37 | H36: 3.435 | I36: 3.32 | J36: 3.435 | K36: 3.365 | L36: 3.295 | M36: 3.26 | N36: 3.25 | O36: 3.3 | P36: 3.315 | Q36: 3.275 | R36: 3.235 | S36: 3.17 | T36: 3.155 | U36: 3.2 | V36: 3.265 | W36: 3.205 | X36: 3.16 | Y36: 3.17 | Z36: 3.035 | AA36: 3.01 | AB36: 2.93 | AC36: 2.845 | AD36: 2.81 | AE36: 2.73
A37: Trunkline, WLA | B37: 3.465 | C37: 3.48 | D37: 3.405 | E37: 3.405 | F37: 3.315 | G37: 3.38 | H37: 3.43 | I37: 3.33 | J37: 3.42 | K37: 3.36 | L37: 3.285 | M37: 3.24 | N37: 3.235 | O37: 3.295 | P37: 3.295 | Q37: 3.26 | R37: 3.205 | S37: 3.135 | T37: 3.145 | U37: 3.255 | V37: 3.245 | W37: 3.185 | X37: 3.145 | Y37: 3.14 | Z37: 3.02 | AA37: 2.985 | AB37: 2.92 | AC37: 2.835 | AD37: 2.79 | AE37: 2.74
A38: Trunkline, ELA | B38: 3.43 | C38: 3.46 | D38: 3.395 | E38: 3.37 | F38: 3.285 | G38: 3.335 | H38: 3.42 | I38: 3.31 | J38: 3.4 | K38: 3.335 | L38: 3.24 | M38: 3.2 | N38: 3.22 | O38: 3.27 | P38: 3.305 | Q38: 3.24 | R38: 3.185 | S38: 3.125 | T38: 3.11 | U38: 3.13 | V38: 3.2 | W38: 0.175 | X38: 3.185 | Y38: 3.13 | Z38: 3.005 | AA38: 2.975 | AB38: 2.885 | AC38: 2.79 | AD38: 2.755 | AE38: 2.725
A39: Oklahoma
A40: ANR, Okla. | B40: 3.39 | C40: 3.41 | D40: 3.495 | E40: 3.47 | F40: 3.345 | G40: 3.37 | H40: 3.39 | I40: 3.265 | J40: 3.36 | K40: 3.305 | L40: 3.23 | M40: 3.195 | N40: 3.2 | O40: 3.23 | P40: 3.25 | Q40: 3.185 | R40: 3.09 | S40: 3.075 | T40: 3.045 | U40: 3.12 | V40: 3.17 | W40: 3.045 | X40: 3 | Y40: 3.02 | Z40: 2.835 | AA40: 2.88 | AB40: 2.805 | AC40: 2.71 | AD40: 2.7 | AE40: 2.62
A41: CenterPoint, East | B41: 3.365 | C41: 3.395 | D41: 3.38 | E41: 3.39 | F41: 3.27 | G41: 3.325 | H41: 3.365 | I41: 3.215 | J41: 3.335 | K41: 3.305 | L41: 3.205 | M41: 3.145 | N41: 3.15 | O41: 3.175 | P41: 3.2 | Q41: 3.175 | R41: 3.11 | S41: 3.065 | T41: 3.045 | U41: 3.13 | V41: 3.165 | W41: 3.075 | X41: 3.04 | Y41: 3.035 | Z41: 2.9 | AA41: 2.9 | AB41: 2.855 | AC41: 2.745 | AD41: 2.71 | AE41: 2.645
A42: NGPL, Midcontinent | B42: 3.395 | C42: 3.475 | D42: 3.48 | E42: 3.465 | F42: 3.355 | G42: 3.43 | H42: 3.44 | I42: 3.315 | J42: 3.4 | K42: 3.38 | L42: 3.275 | M42: 3.245 | N42: 3.24 | O42: 3.27 | P42: 3.295 | Q42: 3.255 | R42: 3.21 | S42: 3.135 | T42: 3.085 | U42: 3.21 | V42: 3.22 | W42: 3.105 | X42: 3.085 | Y42: 3.07 | Z42: 2.925 | AA42: 2.915 | AB42: 2.84 | AC42: 2.77 | AD42: 2.78 | AE42: 2.675
A43: Oneok, Okla. | B43: 3.295 | C43: 3.435 | D43: 3.415 | E43: 3.385 | F43: 3.215 | G43: 3.265 | H43: 3.335 | I43: 3.18 | J43: 3.26 | K43: 3.17 | L43: 3.125 | M43: 3.06 | N43: 3.075 | O43: 3.13 | P43: 3.14 | Q43: 3.105 | R43: 3.06 | S43: 2.95 | T43: 2.99 | U43: 3.065 | V43: 3.13 | W43: 3.03 | X43: 3.01 | Y43: 3.01 | Z43: 2.865 | AA43: 2.925 | AB43: 2.875 | AC43: 2.785 | AD43: 2.755 | AE43: 2.625
A44: Panhandle, Tx.-Okla. | B44: 3.405 | C44: 3.45 | D44: 3.465 | E44: 3.41 | F44: 3.305 | G44: 3.345 | H44: 3.335 | I44: 3.195 | J44: 3.33 | K44: 3.295 | L44: 3.205 | M44: 3.155 | N44: 3.145 | O44: 3.22 | P44: 3.225 | Q44: 3.165 | R44: 3.16 | S44: 3.065 | T44: 3.055 | U44: 3.155 | V44: 3.14 | W44: 3 | X44: 2.985 | Y44: 2.97 | Z44: 2.905 | AA44: 2.845 | AB44: 2.775 | AC44: 2.715 | AD44: 2.705 | AE44: 2.635
A45: Southern Star | B45: 3.265 | C45: 3.33 | D45: 3.43 | E45: 3.375 | F45: 3.265 | G45: 3.375 | H45: 3.365 | I45: 3.19 | J45: 3.3 | K45: 3.28 | L45: 3.085 | M45: 3.185 | N45: 3.145 | O45: 3.145 | P45: 3.215 | Q45: 3.115 | R45: 3.04 | S45: 3 | T45: 2.955 | U45: 3.12 | V45: 3.15 | W45: 3.025 | X45: 2.955 | Y45: 2.945 | Z45: 2.745 | AA45: 2.82 | AB45: 2.73 | AC45: 2.68 | AD45: 2.645 | AE45: 2.605
A46: New Mexico-San Juan Basin
A47: El Paso, Bondad | B47: 3.43 | C47: 3.42 | D47: 3.455 | E47: 3.28 | F47: 3.315 | G47: 3.425 | H47: 3.42 | I47: 3.31 | J47: 3.45 | K47: 3.365 | L47: 3.28 | M47: 3.24 | N47: 3.245 | O47: 3.3 | P47: 3.31 | Q47: 3.255 | R47: 3.215 | S47: 3.155 | T47: 3.07 | U47: 3.165 | V47: 3.175 | W47: 3.08 | X47: 3.09 | Y47: 3.09 | Z47: 2.945 | AA47: 2.925 | AB47: 2.865 | AC47: 2.82 | AD47: 2.77 | AE47: 2.69
A48: El Paso, San Juan | B48: 3.435 | C48: 3.42 | D48: 3.525 | E48: 3.31 | F48: 3.31 | G48: 3.43 | H48: 3.43 | I48: 3.305 | J48: 3.46 | K48: 3.41 | L48: 3.285 | M48: 3.255 | N48: 3.255 | O48: 3.315 | P48: 3.335 | Q48: 3.255 | R48: 3.21 | S48: 3.155 | T48: 3.06 | U48: 3.185 | V48: 3.175 | W48: 3.075 | X48: 3.1 | Y48: 3.095 | Z48: 2.975 | AA48: 2.94 | AB48: 2.865 | AC48: 2.82 | AD48: 2.8 | AE48: 2.695
A49: Transwestern, San Juan | B49: 3.505 | C49: 3.475 | D49: 3.525 | E49: 3.295 | F49: 3.325 | G49: 3.44 | H49: 3.435 | I49: 3.31 | J49: 3.45 | K49: 3.43 | L49: 3.28 | M49: 3.26 | N49: 3.255 | O49: 3.305 | P49: 3.33 | Q49: 3.28 | R49: 3.215 | S49: 3.16 | T49: 3.06 | U49: 3.21 | V49: 3.18 | W49: 3.08 | X49: 3.1 | Y49: 3.09 | Z49: 2.98 | AA49: 2.94 | AB49: 2.86 | AC49: 2.81 | AD49: 2.795 | AE49: 2.68
A50: Rockies
A51: CIG, Rockies | B51: 3.405 | C51: 3.41 | D51: 3.475 | E51: 3.39 | F51: 3.365 | G51: 3.465 | H51: 3.485 | I51: 3.29 | J51: 3.37 | K51: 3.33 | L51: 3.285 | M51: 3.265 | N51: 3.22 | O51: 3.24 | P51: 3.3 | Q51: 3.215 | R51: 3.145 | S51: 3.145 | T51: 3.08 | U51: 3.21 | V51: 3.185 | W51: 3.07 | X51: 2.985 | Y51: 3.01 | Z51: 2.89 | AA51: 2.81 | AB51: 2.75 | AC51: 2.71 | AD51: 2.68 | AE51: 2.605
A52: Kern River, Opal | B52: 3.54 | C52: 3.505 | D52: 3.53 | E52: 3.39 | F52: 3.425 | G52: 3.505 | H52: 3.54 | I52: 3.4 | J52: 3.53 | K52: 3.535 | L52: 3.39 | M52: 3.34 | N52: 3.315 | O52: 3.4 | P52: 3.475 | Q52: 3.36 | R52: 3.285 | S52: 3.215 | T52: 3.14 | U52: 3.235 | V52: 3.225 | W52: 3.135 | X52: 3.11 | Y52: 3.1 | Z52: 3.025 | AA52: 2.945 | AB52: 2.865 | AC52: 2.81 | AD52: 2.75 | AE52: 2.71
A53: Stanfield, Ore. | B53: 3.495 | C53: 3.495 | D53: 3.565 | E53: 3.505 | F53: 3.48 | G53: 3.57 | H53: 3.61 | I53: 3.48 | J53: 3.575 | K53: 3.545 | L53: 3.44 | M53: 3.37 | N53: 3.335 | O53: 3.35 | P53: 3.47 | Q53: 3.165 | R53: 3.32 | S53: 3.215 | T53: 3.11 | U53: 3.2 | V53: 3.265 | W53: 3.175 | X53: 3.06 | Y53: 3.07 | Z53: 2.815 | AA53: 2.875 | AB53: 2.83 | AC53: 2.77 | AD53: 2.705 | AE53: 2.67
A54: Questar, Rockies | B54: 3.34 | C54: 3.3 | D54: 3.2 | E54: 3.2 | F54: 3.295 | G54: 3.38 | H54: 3.38 | I54: 3.265 | J54: 3.38 | K54: 3.4 | L54: 3.28 | M54: 3.225 | N54: 3.21 | O54: 3.24 | P54: 3.285 | Q54: 3.31 | R54: 3.18 | S54: 3.085 | T54: 3.06 | U54: 3.18 | V54: 3.13 | W54: 3.03 | X54: 3.02 | Y54: 2.99 | Z54: 2.92 | AA54: 2.855 | AB54: 2.775 | AC54: 2.735 | AD54: 2.675 | AE54: 2.595
A55: Cheyenne Hub | B55: 3.48 | C55: 3.465 | D55: 3.52 | E55: 3.425 | F55: 3.385 | G55: 3.465 | H55: 3.5 | I55: 3.3 | J55: 3.38 | K55: 3.33 | L55: 3.315 | M55: 3.295 | N55: 3.22 | O55: 3.245 | P55: 3.315 | Q55: 3.245 | R55: 3.195 | S55: 3.145 | T55: 3.085 | U55: 3.23 | V55: 3.185 | W55: 3.08 | X55: 3.02 | Y55: 3.035 | Z55: 2.925 | AA55: 2.83 | AB55: 2.765 | AC55: 2.725 | AD55: 2.71 | AE55: 2.63
A56: NW, Wyo. Pool | B56: 3.5 | C56: 3.47 | D56: 3.505 | E56: 3.365 | F56: 3.42 | G56: 3.5 | H56: 3.555 | I56: 3.38 | J56: 3.515 | K56: 3.505 | L56: 3.365 | M56: 3.31 | N56: 3.265 | O56: 3.355 | P56: 3.405 | Q56: 3.345 | R56: 3.235 | S56: 3.17 | T56: 3.075 | U56: 3.17 | V56: 3.19 | W56: 3.065 | X56: 3.09 | Y56: 3.035 | Z56: 2.975 | AA56: 2.885 | AB56: 2.815 | AC56: 2.765 | AD56: 2.695 | AE56: 2.64
A57: NW, s. of Green River | B57: 3.45 | C57: 3.425 | D57: 3.455 | E57: 3.36 | F57: 3.34 | G57: 3.445 | H57: 3.455 | I57: 3.345 | J57: 3.43 | K57: 3.385 | L57: 3.305 | M57: 3.285 | N57: 3.245 | O57: 3.3 | P57: 3.34 | Q57: 3.31 | R57: 3.225 | S57: 3.165 | T57: 3.065 | U57: 3.16 | V57: 3.17 | W57: 3.075 | X57: 3.035 | Y57: 3.065 | Z57: 2.87 | AA57: 2.85 | AB57: 2.795 | AC57: 2.75 | AD57: 2.685 | AE57: 2.615
A58: White River Hub | B58: 3.435 | C58: 3.41 | D58: 3.455 | E58: 3.41 | F58: 3.335 | G58: 3.425 | H58: 3.445 | I58: 3.305 | J58: 3.41 | K58: 3.355 | L58: 3.315 | M58: 3.295 | N58: 3.245 | O58: 3.275 | P58: 3.325 | Q58: 3.305 | R58: 3.235 | S58: 3.14 | T58: 3.095 | U58: 3.165 | V58: 3.2 | W58: 3.06 | X58: 3.07 | Y58: 3.06 | Z58: 2.95 | AA58: 2.87 | AB58: 2.82 | AC58: 2.775 | AD58: 2.685 | AE58: 2.675
A59: Canadian Gas
A60: Iroquois, receipts | B60: 4.245 | C60: 4.295 | D60: 4.035 | E60: 3.94 | F60: 3.795 | G60: 4.01 | H60: 4.0545 | I60: 3.83 | J60: 3.825 | K60: 3.735 | L60: 3.83 | M60: 3.94 | N60: 4.285 | O60: 3.98 | P60: 3.815 | Q60: 3.98 | R60: 3.74 | S60: 3.605 | T60: 3.51 | U60: 3.65 | V60: 3.655 | W60: 3.66 | X60: 3.685 | Y60: 3.68 | Z60: 3.385 | AA60: 3.33 | AB60: 3.285 | AC60: 3.135 | AD60: 3.135 | AE60: 3.07
A61: Niagara | B61: 0 | D61: 3.48 | E61: 3.575 | G61: -- | I61: -- | J61: -- | K61: -- | P61: 3.45 | R61: 3.46 | S61: 3.4 | T61: 3.35 | V61: -- | X61: -- | Y61: -- | Z61: -- | AA61: -- | AB61: -- | AC61: -- | AD61: -- | AE61: --
A62: NW, Can. bdr. (Sumas) | B62: 3.445 | C62: 3.75 | D62: 3.46 | E62: 3.555 | F62: 3.58 | G62: 3.725 | H62: 3.83 | I62: 3.72 | J62: 3.815 | K62: 3.64 | L62: 3.45 | M62: 3.47 | N62: 3.37 | O62: 3.345 | P62: 3.445 | Q62: 3.415 | R62: 3.28 | S62: 3.18 | T62: 3.145 | U62: 3.145 | V62: 3.19 | W62: 3.075 | X62: 3.005 | Y62: 3.015 | Z62: 2.69 | AA62: 2.83 | AB62: 2.79 | AC62: 2.615 | AD62: 2.655 | AE62: 2.605
A63: TCPL Alberta, AECO-C* | B63: 0 | C63: C3.150 | D63: C3.180 | E63: C3.195 | F63: C3.115 | G63: C3.165 | H63: c3.195 | I63: C3.115 | J63: C3.180 | K63: C3.150 | L63: C3.015 | M63: C2.895 | N63: C2.890 | O63: C2.9 | P63: C2.950 | Q63: C2955 | R63: C2.845 | S63: C2.73 | T63: C2.640 | U63: C2.69 | V63: C2.825 | W63: C2.710 | X63: C2.450 | Y63: C2.330 | Z63: C2.050 | AA63: C2.350 | AB63: C2.350 | AC63: C2.265 | AD63: C2.210 | AE63: 2.195
A64: Emerson, Viking GL | B64: 3.815 | C64: 3.85 | D64: 3.87 | E64: 3.795 | F64: 3.635 | G64: 3.645 | H64: 3.66 | I64: 3.475 | J64: 3.55 | K64: 3.47 | L64: 3.5 | M64: 3.505 | N64: 3.485 | O64: 3.16 | P64: 3.45 | Q64: 3.535 | R64: 3.44 | S64: 3.305 | T64: 3.25 | U64: 3.27 | V64: 3.435 | W64: 3.4 | X64: 3.21 | Y64: 3.1 | Z64: 2.885 | AA64: 3.045 | AB64: 2.91 | AC64: 2.795 | AD64: 2.765 | AE64: 2.77
A65: Dawn, Ontario | B65: 3.975 | C65: 4.06 | D65: 3.975 | E65: 3.905 | F65: 3.74 | G65: 3.75 | H65: 3.775 | I65: 3.595 | J65: 3.66 | K65: 3.59 | L65: 3.585 | M65: 3.625 | N65: 3.62 | O65: 3.58 | P65: 3.6 | Q65: 3.75 | R65: 3.55 | S65: 3.4 | T65: 3.35 | U65: 3.375 | V65: 3.5 | W65: 3.48 | X65: 3.42 | Y65: 3.405 | Z65: 3.245 | AA65: 3.24 | AB65: 3.12 | AC65: 3.005 | AD65: 3.01 | AE65: 3.005
A66: GTN, Kingsgate | B66: 3.45 | C66: 3.495 | D66: 3.46 | E66: 3.485 | F66: 3.435 | G66: 3.54 | H66: 3.55 | I66: 3.45 | J66: 3.53 | K66: 3.49 | L66: 3.395 | M66: 3.33 | N66: 3.295 | O66: 3.315 | P66: 3.44 | Q66: 3.43 | R66: 3.295 | S66: 3.19 | T66: 3.07 | U66: 3.155 | V66: 3.225 | W66: 3.13 | X66: 3.015 | Y66: 3.05 | Z66: 2.81 | AA66: 2.82 | AB66: 2.79 | AC66: 2.705 | AD66: 2.67 | AE66: 2.625
A67: Westcoast, station 2* | B67: 0 | C67: C2.81 | D67: C2.850 | E67: C2.950 | F67: C2.965 | G67: C3.015 | H67: C3.125 | I67: C3.045 | J67: C3.075 | K67: C2.995 | L67: C2.985 | M67: C2.855 | N67: C2.845 | O67: C2.86 | P67: C2.945 | Q67: C2.94 | R67: C2.845 | S67: C2.695 | T67: C2.590 | U67: C2.59 | V67: C2.815 | W67: C2.385 | X67: C2.300 | Y67: C2.260 | Z67: C1.970 | AA67: C2.160 | AB67: C2.130 | AC67: C2.070 | AD67: C2.165 | AE67: 2.195
A68: Appalachia
A69: Dominion, North Point | B69: 3.575 | C69: 3.53 | D69: 3.48 | E69: 3.455 | F69: 3.4 | G69: 3.425 | H69: 3.475 | I69: 3.335 | J69: 3.49 | K69: 3.39 | L69: 3.34 | M69: 3.31 | N69: 3.34 | O69: 3.36 | P69: 3.38 | R69: 3.32 | S69: 3.2 | T69: 3.2 | U69: 3.29 | V69: 3.26 | W69: 3.21 | X69: 3.16 | Y69: 3.16 | Z69: 3.02 | AA69: 3.025 | AB69: -- | AC69: 2.865 | AD69: 2.82 | AE69: 2.77
A70: Dominion, South Point | B70: 3.575 | C70: 3.51 | D70: 3.43 | E70: 3.415 | F70: 3.4 | G70: 3.425 | H70: 3.46 | I70: 3.34 | J70: 3.495 | K70: 3.46 | L70: 3.36 | M70: 3.3 | N70: 3.3 | O70: 3.365 | P70: 3.4 | Q70: 3.32 | R70: 3.265 | S70: 3.19 | T70: 3.19 | U70: 3.295 | V70: 3.225 | W70: 3.195 | X70: 3.165 | Y70: 3.165 | Z70: 3.05 | AA70: 3.025 | AB70: 2.935 | AC70: 2.84 | AD70: 2.815 | AE70: 2.74
A71: Leidy Hub | B71: 3.605 | C71: 3.57 | D71: 3.375 | E71: 3.475 | F71: 3.385 | G71: 3.475 | H71: 3.515 | I71: 3.4 | J71: 3.51 | K71: 3.4 | L71: 3.415 | M71: 3.37 | N71: 3.375 | O71: 3.385 | P71: 3.365 | Q71: 3.39 | R71: 3.325 | S71: 3.28 | T71: 3.24 | U71: 3.31 | V71: 3.35 | W71: 3.285 | X71: 3.24 | Y71: 3.24 | Z71: 3.115 | AA71: 3.06 | AB71: 3.04 | AC71: 2.955 | AD71: 2.905 | AE71: 2.8
A72: Columbia Gas, App. | B72: 3.565 | C72: 3.54 | D72: 3.465 | E72: 3.46 | F72: 3.395 | G72: 3.43 | H72: 3.465 | I72: 3.36 | J72: 3.47 | K72: 3.43 | L72: 3.365 | M72: 3.3 | N72: 3.29 | O72: 3.36 | P72: 3.35 | Q72: 3.335 | R72: 3.3 | S72: 3.225 | T72: 3.23 | U72: 3.325 | V72: 3.285 | W72: 3.23 | X72: 3.215 | Y72: 3.205 | Z72: 3.105 | AA72: 3.035 | AB72: 2.955 | AC72: 2.87 | AD72: 2.85 | AE72: 2.775
A73: Lebanon Hub | B73: 3.615 | C73: 3.625 | D73: 3.585 | E73: 3.475 | F73: 3.49 | G73: 3.555 | H73: 3.565 | I73: 3.41 | J73: 3.52 | K73: 3.45 | L73: 3.44 | M73: 3.405 | N73: 3.37 | O73: 3.41 | P73: 3.385 | Q73: 3.43 | R73: 3.35 | S73: 3.305 | T73: 3.245 | U73: 3.325 | V73: 3.35 | W73: 3.26 | X73: 3.215 | Y73: 3.205 | Z73: 3.105 | AA73: 3.045 | AB73: 2.97 | AC73: 2.885 | AD73: 2.86 | AE73: 2.755
A74: REX, Clarington Ohio | B74: 3.63 | C74: 3.625 | D74: 3.535 | E74: 3.49 | F74: 3.455 | G74: 3.54 | H74: 3.55 | I74: 3.425 | J74: 3.52 | K74: 3.495 | L74: 3.455 | M74: 3.405 | N74: 3.37 | O74: 3.43 | P74: 3.46 | Q74: 3.445 | R74: 3.375 | S74: 3.29 | T74: 3.235 | U74: 3.335 | V74: 3.35 | W74: 3.27 | X74: 3.215 | Y74: 3.22 | Z74: 3.135 | AA74: 3.04 | AB74: 2.97 | AC74: 2.89 | AD74: 2.855 | AE74: 2.77
A75: Tennessee, zone 4-Ohio | B75: 0 | D75: -- | G75: -- | I75: -- | J75: -- | K75: -- | N75: 3.38 | O75: 3.415 | Q75: 3.465 | R75: 3.39 | U75: 3.355 | V75: 3.37 | W75: 3.23 | X75: 3.23 | Y75: 3.23 | Z75: 3.11 | AA75: 3.045 | AB75: 2.975 | AC75: 2.895 | AD75: 2.875 | AE75: 2.79
A77: Tennessee, zone 4-300 leg | B77: 3.315 | C77: 3.325 | D77: 3.215 | E77: 3.29 | F77: 3.295 | G77: 3.355 | H77: 3.375 | I77: 3.28 | J77: 3.405 | K77: 3.33 | L77: 3.295 | M77: 3.25 | N77: 3.255 | O77: 3.31 | P77: 3.31 | Q77: 3.31 | R77: 3.22 | S77: 2.995 | T77: 2.955 | U77: 3.09 | V77: 3.085 | W77: 2.98 | X77: 2.86 | Y77: 2.7 | Z77: 2.84 | AA77: 2.795 | AB77: 2.635 | AC77: 2.44 | AD77: 2.59 | AE77: 2.345
A78: Texas Eastern, M-2 receipts | B78: 3.5 | C78: 3.48 | D78: 3.335 | E78: 3.39 | F78: 3.245 | G78: 3.385 | H78: 3.44 | I78: 3.33 | J78: 3.445 | K78: 3.325 | L78: 3.305 | M78: 3.25 | N78: 3.27 | O78: 3.295 | P78: 3.27 | Q78: 3.32 | R78: 3.265 | S78: 3.215 | T78: 3.205 | U78: 3.255 | V78: 3.29 | W78: 3.245 | X78: 3.21 | Y78: 3.195 | Z78: 3.035
A80: Millennium, East receipts | B80: 3.505 | C80: 3.48 | D80: 3.43 | E80: 3.415 | F80: 3.41 | G80: 3.44 | H80: 3.5 | I80: 3.38 | J80: 3.48 | K80: 3.45 | L80: 3.37 | M80: 3.34 | N80: 3.365 | O80: 3.41 | P80: 3.41 | Q80: 3.415 | R80: 3.335 | S80: 3.085 | T80: 2.935 | U80: 3.08 | V80: 3.115 | W80: 2.905 | X80: 2.735 | Y80: 2.835 | Z80: 2.97
A81: Mississippi-Alabama
A82: Tx. Eastern, M-1 30-in. | B82: 3.445 | C82: 3.455 | D82: 3.41 | E82: 3.405 | F82: 3.275 | G82: 3.36 | H82: 3.415 | I82: 3.315 | J82: 3.435 | K82: 3.345 | L82: 3.25 | M82: 3.225 | N82: 3.235 | O82: 3.255 | P82: 3.285 | Q82: 3.27 | R82: 3.2 | S82: 3.175 | T82: 3.135 | U82: 3.23 | V82: 3.25 | W82: 3.19 | X82: 3.155 | Y82: 3.155 | Z82: 2.975 | AA82: 2.96 | AB82: 2.895 | AC82: 2.81 | AD82: 2.75 | AE82: 2.66
A83: Transco, zone 4 | B83: 3.525 | C83: 3.565 | D83: 3.4 | E83: 3.435 | F83: 3.345 | G83: 3.385 | H83: 3.45 | I83: 3.34 | J83: 3.45 | K83: 3.4 | L83: 3.325 | M83: 3.255 | N83: 3.275 | O83: 3.32 | P83: 3.355 | Q83: 3.29 | R83: 3.26 | S83: 3.2 | T83: 3.18 | U83: 3.27 | V83: 3.28 | W83: 3.225 | X83: 3.185 | Y83: 3.195 | Z83: 3.05 | AA83: 3.01 | AB83: 2.945 | AC83: 2.87 | AD83: 2.84 | AE83: 2.735
A84: Others
A85: Algonquin, receipts | B85: 0 | C85: 3.61 | D85: -- | G85: -- | H85: 3.6 | I85: 3.495 | J85: 3.6 | K85: 3.5 | L85: 3.47 | N85: 3.4 | O85: 3.46 | Q85: 3.48 | S85: 3.35 | T85: 3.36 | U85: 3.475 | V85: 3.42 | X85: 3.36 | Y85: 3.35 | Z85: 3.165 | AA85: -- | AB85: 3.07 | AC85: 2.99 | AD85: 2.94 | AE85: --
A86: El Paso, South Mainline | B86: 3.9 | C86: 3.735 | D86: 3.69 | E86: 3.505 | F86: 3.445 | G86: 3.625 | H86: 3.63 | I86: 3.55 | J86: 3.63 | K86: 3.58 | L86: 3.55 | M86: 3.685 | N86: 3.67 | O86: 3.695 | P86: 3.63 | Q86: 3.555 | R86: 3.425 | S86: 3.5 | T86: 3.41 | U86: 3.39 | V86: 3.55 | W86: 3.51 | X86: 3.595 | Y86: 3.645 | Z86: 3.47 | AA86: 3.26 | AB86: 3.21 | AC86: 3.205 | AD86: 3.165 | AE86: 2.99
A87: SoCal Gas | B87: 3.79 | C87: 3.695 | D87: 3.645 | E87: 3.45 | F87: 3.47 | G87: 3.61 | H87: 3.615 | I87: 3.545 | J87: 3.65 | K87: 3.595 | L87: 3.545 | M87: 3.63 | N87: 3.61 | O87: 3.69 | P87: 3.325 | Q87: 3.535 | R87: 3.415 | S87: 3.49 | T87: 3.39 | U87: 3.385 | V87: 3.52 | W87: 3.495 | X87: 3.58 | Y87: 3.615 | Z87: 3.45 | AA87: 3.255 | AB87: 3.21 | AC87: 3.175 | AD87: 3.125 | AE87: 2.975
A88: PG&E, South | B88: 3.735 | D88: 3.62 | E88: 3.505 | F88: 3.46 | G88: 3.575 | H88: 3.595 | I88: 3.53 | J88: 3.625 | K88: 3.48 | L88: 3.53 | M88: 3.6 | N88: 3.585 | O88: 6.64 | P88: 3.615 | Q88: 3.555 | R88: 3.44 | S88: 3.475 | T88: 3.4 | U88: 3.35 | V88: 3.54 | W88: 3.545 | X88: 3.59 | Y88: 3.595 | Z88: 3.475 | AA88: 3.26 | AB88: 3.21 | AC88: 3.175 | AD88: 3.095 | AE88: 2.98
A89: PG&E, Malin | B89: 3.56 | C89: 3.56 | D89: 3.59 | E89: 3.505 | F89: 3.475 | G89: 3.565 | H89: 3.605 | I89: 3.475 | J89: 3.575 | K89: 3.535 | L89: 3.465 | M89: 3.4 | N89: 3.36 | O89: 3.43 | P89: 3.52 | Q89: 3.5 | R89: 3.365 | S89: 3.255 | T89: 3.165 | U89: 3.25 | V89: 3.255 | W89: 3.155 | X89: 3.125 | Y89: 3.11 | Z89: 3.04 | AA89: 2.965 | AB89: 2.89 | AC89: 2.84 | AD89: 2.785 | AE89: 2.71
A90: Alliance, into interstates | B90: 3.84 | C90: 3.975 | D90: 3.97 | E90: 3.855 | F90: 3.655 | G90: 3.69 | H90: 3.625 | I90: 3.405 | J90: 3.535 | K90: 3.49 | L90: 3.53 | M90: 3.46 | N90: 3.37 | O90: 3.43 | P90: 3.485 | Q90: 3.49 | R90: 3.425 | S90: 3.365 | T90: 3.28 | U90: 3.34 | V90: 3.43 | W90: 3.33 | X90: 3.23 | Y90: 3.23 | Z90: 3.24 | AA90: 3.095 | AB90: 2.985 | AC90: 2.895 | AD90: 2.925 | AE90: 2.85
A91: ANR, ML 7 | B91: 3.865 | C91: 3.96 | D91: 3.975 | E91: 3.85 | F91: 3.685 | G91: 3.685 | H91: 3.665 | I91: 3.45 | J91: 3.55 | K91: 3.5 | L91: 3.525 | M91: 3.51 | N91: 3.46 | O91: 3.485 | P91: 3.51 | Q91: 3.525 | R91: 3.455 | S91: 3.375 | T91: 3.32 | U91: 3.4 | V91: 3.455 | W91: 3.41 | X91: 3.285 | Y91: 3.275 | Z91: 3.155 | AA91: 3.095 | AB91: 3.01 | AC91: 2.955 | AD91: 2.96 | AE91: 2.85
A92: NGPL, Amarillo receipt | B92: 3.665 | C92: 3.675 | D92: 3.8 | E92: 3.69 | F92: 3.56 | G92: 3.595 | H92: 3.605 | I92: 3.38 | J92: 3.465 | K92: 3.39 | L92: 3.44 | M92: 3.41 | N92: 3.35 | O92: 3.385 | P92: 3.38 | Q92: 3.41 | R92: 3.3 | S92: 3.26 | T92: 3.205 | U92: 3.31 | V92: 3.325 | W92: 3.235 | X92: 3.14 | Y92: 3.13 | Z92: 2.945 | AA92: 2.98 | AB92: 2.905 | AC92: 2.825 | AD92: 2.85 | AE92: 2.81
A93: Northern, Ventura | B93: 3.725 | C93: 3.825 | D93: 3.89 | E93: 3.815 | F93: 3.62 | G93: 3.675 | H93: 3.605 | I93: 3.35 | J93: 3.475 | K93: 3.485 | L93: 3.495 | M93: 3.415 | N93: 3.345 | O93: 3.39 | P93: 3.45 | Q93: 3.415 | R93: 3.38 | S93: 3.325 | T93: 3.285 | U93: 3.365 | V93: 3.415 | W93: 3.29 | X93: 3.2 | Y93: 3.135 | Z93: 3.11 | AA93: 3.06 | AB93: 2.915 | AC93: 2.86 | AD93: 2.895 | AE93: 2.89
A94: Northern, demarc | B94: 3.745 | C94: 3.83 | D94: 3.85 | E94: 3.725 | F94: 3.615 | G94: 3.67 | H94: 3.61 | I94: 3.365 | J94: 3.485 | K94: 3.48 | L94: 3.495 | M94: 3.415 | N94: 3.34 | O94: 3.385 | P94: 3.45 | Q94: 3.44 | R94: 3.365 | S94: 3.32 | T94: 3.28 | U94: 3.35 | V94: 3.425 | W94: 3.295 | X94: 3.205 | Y94: 3.155 | Z94: 3.065 | AA94: 3.055 | AB94: 2.925 | AC94: 2.865 | AD94: 2.895 | AE94: 2.87
A95: Dracut, Mass. | B95: 4.2 | C95: 4 | D95: 3.55 | E95: 3.65 | F95: 3.75 | G95: 3.8 | H95: 3.75 | I95: 3.65 | J95: 3.65 | K95: 3.6 | L95: 3.65 | M95: 3.85 | N95: 3.9 | O95: 3.85 | P95: 3.6 | Q95: 3.7 | R95: 3.5 | S95: 3.42 | T95: 3.42 | U95: 3.6 | V95: 3.33 | W95: 3.53 | X95: 3.51 | Y95: 3.53 | Z95: 3.2 | AA95: 3.1 | AB95: 3.05 | AC95: 3.05 | AD95: 2.97 | AE95: 3
A96: Tx. Eastern, M-1 24-in. | B96: 3.455 | C96: 3.48 | D96: 3.49 | G96: 3.39 | I96: -- | J96: 3.43 | K96: 3.38 | L96: 3.33 | N96: 3.24 | O96: 3.28 | P96: 3.4 | R96: 3.22 | T96: 3.165 | U96: 3.32 | V96: -- | W96: 3.17 | X96: 3.18 | Y96: -- | Z96: 3.03 | AA96: -- | AB96: 2.92 | AC96: 2.85 | AD96: -- | AE96: 2.66
A97: Northern Bdr., Ventura TP | B97: 3.75 | C97: 3.825 | D97: 3.9 | E97: 3.815 | F97: 3.4 | G97: 3.66 | H97: 3.61 | I97: 3.35 | J97: 3.475 | K97: 3.445 | L97: 3.495 | M97: 3.415 | N97: 3.3355 | O97: 3.39 | P97: 3.445 | Q97: 3.425 | R97: 3.375 | S97: 3.355 | T97: 3.275 | U97: 3.33 | V97: 3.405 | W97: 3.29 | X97: 3.22 | Y97: 3.17 | Z97: 3.06 | AA97: 3.05 | AB97: 2.925 | AC97: 2.865 | AD97: 2.915 | AE97: 2.84
A98: Trunkline, zone 1A | B98: 3.445 | C98: 3.48 | D98: 3.41 | E98: 3.4 | F98: 3.31 | G98: 3.36 | H98: 3.415 | I98: 3.295 | J98: 3.41 | K98: 3.345 | L98: 3.285 | M98: 3.22 | N98: 3.235 | O98: 3.285 | P98: 3.275 | Q98: 3.25 | R98: 3.205 | S98: 3.14 | T98: 3.14 | U98: 3.225 | V98: 3.225 | W98: 3.165 | X98: 3.135 | Y98: 3.12 | Z98: 3.02 | AA98: 2.97 | AB98: 2.9 | AC98: 2.81 | AD98: 2.77 | AE98: 2.72
A99: Citygates
A100: Chicago city-gates | B100: 3.9 | C100: 3.96 | D100: 3.995 | E100: 3.845 | F100: 3.68 | G100: 3.68 | H100: 3.63 | I100: 3.41 | J100: 3.53 | K100: 3.53 | L100: 3.565 | M100: 3.425 | N100: 3.375 | O100: 3.485 | P100: 3.51 | Q100: 3.46 | R100: 3.425 | S100: 3.385 | T100: 3.29 | U100: 3.41 | V100: 3.435 | W100: 3.32 | X100: 3.26 | Y100: 3.24 | Z100: 3.205 | AA100: 3.115 | AB100: 2.99 | AC100: 2.955 | AD100: 2.96 | AE100: 2.915
A101: Consumers city-gate | B101: 3.835 | C101: 3.91 | D101: 3.855 | E101: 3.79 | F101: 3.615 | G101: 3.67 | H101: 3.695 | I101: 3.46 | J101: 3.575 | K101: 3.5 | L101: 3.51 | M101: 3.485 | N101: 3.45 | O101: 3.485 | P101: 3.525 | Q101: 3.515 | R101: 3.445 | S101: 3.355 | T101: 3.29 | U101: 3.385 | V101: 3.44 | W101: 3.39 | X101: 3.3 | Y101: 3.295 | Z101: 3.165 | AA101: 3.11 | AB101: 3.045 | AC101: 2.965 | AD101: 2.96 | AE101: 2.9
A102: Mich Con city-gate | B102: 3.89 | C102: 3.955 | D102: 3.855 | E102: 3.79 | F102: 3.62 | G102: 3.655 | H102: 3.67 | I102: 3.46 | J102: 3.565 | K102: 3.495 | L102: 3.54 | M102: 3.495 | N102: 3.46 | O102: 3.49 | P102: 3.525 | Q102: 3.515 | R102: 3.43 | S102: 3.34 | T102: 3.28 | U102: 3.375 | V102: 3.435 | W102: 3.37 | X102: 3.295 | Y102: 3.285 | Z102: 3.175 | AA102: 3.115 | AB102: 3.025 | AC102: 2.935 | AD102: 2.94 | AE102: 2.885
A103: PG&E city-gate | B103: 3.91 | C103: 3.935 | D103: 3.945 | E103: 3.92 | F103: 3.86 | G103: 3.925 | H103: 4.01 | I103: 4.005 | J103: 4.145 | K103: 4.15 | L103: 4.02 | M103: 4 | N103: 3.99 | O103: 4.055 | P103: 4.06 | Q103: 4 | R103: 3.925 | S103: 3.875 | T103: 3.83 | U103: 3.835 | V103: 3.865 | W103: 3.855 | X103: 3.88 | Y103: 3.895 | Z103: 3.7 | AA103: 3.61 | AB103: 3.48 | AC103: 3.435 | AD103: 3.375 | AE103: 3.29
A104: Florida city-gates | B104: 3.83 | D104: 3.86 | E104: 3.9 | F104: 3.92 | G104: -- | I104: -- | J104: -- | L104: 3.95 | M104: 3.93 | N104: 3.915 | P104: 4.05 | Q104: 3.995 | S104: 3.775 | U104: 3.85 | V104: 3.91 | W104: 3.91 | X104: 3.975 | Y104: 4.025 | Z104: -- | AA104: -- | AB104: 3.53 | AC104: 3.4 | AD104: -- | AE104: --
A105: Algonquin, city-gates | B105: 4.345 | C105: 4.15 | D105: 3.565 | E105: 3.615 | F105: 3.6255 | G105: 3.885 | H105: 3.89 | I105: 3.71 | J105: 3.765 | K105: 3.68 | L105: 3.805 | M105: 3.865 | N105: 4.43 | O105: 3.865 | P105: 3.735 | Q105: 4.01 | R105: 3.605 | S105: 3.585 | T105: 3.555 | U105: 3.655 | V105: 3.64 | W105: 3.59 | X105: 3.535 | Y105: 3.605 | Z105: 3.325 | AA105: 3.185 | AB105: 3.18 | AC105: 3.115 | AD105: 3.06 | AE105: 3.485
A106: Tennessee, zone 6 del. | B106: 4.45 | C106: 4.41 | D106: 3.765 | E106: 3.73 | F106: 3.74 | G106: 3.98 | H106: 3.995 | I106: 3.82 | J106: 3.83 | K106: 3.715 | L106: 3.845 | M106: 3.63 | N106: 4.47 | O106: 4.075 | P106: 3.72 | Q106: 4.105 | R106: 3.74 | S106: 3.6 | T106: 3.55 | U106: 3.83 | V106: 3.63 | W106: 3.56 | X106: 3.515 | Y106: 3.55 | Z106: 3.38 | AA106: 3.24 | AB106: 3.225 | AC106: 3.12 | AD106: 3.085 | AE106: 3.125
A107: Iroquois, zone 2 | B107: 4.25 | C107: 4.27 | D107: 3.99 | E107: 3.915 | F107: 3.75 | G107: 4.025 | H107: 4.01 | I107: 3.8 | J107: 3.83 | K107: 3.755 | L107: 3.89 | M107: 3.93 | N107: 4.395 | O107: 4 | P107: 3.795 | Q107: 3.945 | R107: 3.735 | S107: 3.575 | T107: 3.525 | U107: 3.675 | V107: 3.67 | W107: 3.66 | X107: 3.72 | Y107: 3.695 | Z107: 3.38 | AA107: 3.33 | AB107: 3.28 | AC107: 3.165 | AD107: 3.16 | AE107: 3.065
A108: Tx. Eastern, M-3 | B108: 3.685 | C108: 3.67 | D108: 3.515 | E108: 3.585 | F108: 3.135 | G108: 3.59 | H108: 3.64 | I108: 3.52 | J108: 3.645 | K108: 3.5 | L108: 3.49 | M108: 3.45 | N108: 3.465 | O108: 3.485 | P108: 3.455 | Q108: 3.505 | R108: 3.44 | S108: 3.415 | T108: 3.385 | U108: 3.465 | V108: 3.485 | W108: 3.42 | X108: 3.4 | Y108: 3.39 | Z108: 3.19 | AA108: 3.1 | AB108: 3.1 | AC108: 3.01 | AD108: 2.955 | AE108: 2.785
A109: Transco, zone 5 del. | B109: 3.665 | C109: 3.745 | D109: 3.495 | E109: 3.575 | F109: 3.45 | G109: 3.52 | H109: 3.59 | I109: 3.48 | J109: 3.58 | K109: 3.51 | L109: 3.455 | M109: 3.385 | N109: 3.41 | O109: 3.445 | P109: 3.46 | Q109: 3.43 | R109: 3.395 | S109: 3.335 | T109: 3.315 | U109: 3.38 | V109: 3.425 | W109: 3.375 | X109: 3.33 | Y109: 3.315 | Z109: 3.17 | AA109: 3.12 | AB109: 3.065 | AC109: 2.985 | AD109: 2.945 | AE109: 2.83
A110: Transco, zone 6 non-N.Y. | B110: 3.71 | C110: 3.725 | D110: 3.515 | E110: 3.575 | F110: 3.44 | G110: 3.535 | H110: 3.595 | I110: 3.475 | J110: 3.585 | K110: 3.465 | L110: 3.445 | M110: 3.395 | N110: 3.415 | O110: 3.455 | P110: 3.425 | Q110: 3.445 | R110: 3.405 | S110: 3.345 | T110: 3.315 | U110: 3.42 | V110: 3.425 | W110: 3.365 | X110: 3.335 | Y110: 3.32 | Z110: 3.18 | AA110: 3.085 | AB110: 3.085 | AC110: 2.99 | AD110: 2.95 | AE110: 2.825
A111: Transco, zone 6 N.Y. | B111: 3.71 | C111: 3.735 | D111: 3.48 | E111: 3.565 | F111: 3.44 | G111: 3.55 | H111: 3.595 | I111: 3.49 | J111: 3.615 | K111: 3.485 | L111: 3.475 | M111: 3.42 | N111: 3.445 | O111: 3.48 | P111: 3.46 | Q111: 3.515 | R111: 3.465 | S111: 3.4 | T111: 3.365 | U111: 3.45 | V111: 3.475 | W111: 3.415 | X111: 3.385 | Y111: 3.37 | Z111: 3.185 | AA111: 3.1 | AB111: 3.065 | AC111: 2.985 | AD111: 2.925 | AE111: 2.83
A112: Kern River, delivered | B112: 3.77 | C112: 3.675 | D112: 3.675 | E112: 3.49 | F112: 3.52 | G112: 3.62 | H112: 3.645 | I112: 3.57 | J112: 3.655 | K112: 3.62 | L112: 3.55 | M112: 3.66 | N112: 3.62 | O112: 3.675 | P112: 3.62 | Q112: 3.545 | R112: 3.445 | S112: 3.5 | T112: 3.395 | U112: 3.38 | V112: 3.55 | W112: 3.52 | X112: 3.595 | Y112: 3.62 | Z112: 3.475 | AA112: 3.27 | AB112: 3.21 | AC112: 3.165 | AD112: 3.12 | AE112: 2.955
A113: SoCal Gas, city-gate | B113: 3.89 | C113: 3.79 | D113: 3.775 | E113: 3.55 | F113: 3.605 | G113: 3.735 | H113: 3.72 | I113: 3.69 | J113: 3.8 | K113: 3.62 | L113: 3.68 | M113: 3.76 | N113: 3.76 | O113: 3.815 | P113: 3.745 | Q113: 3.665 | R113: 3.53 | S113: 3.615 | T113: 3.515 | U113: 3.505 | V113: 3.635 | W113: 3.615 | X113: 3.695 | Y113: 3.75 | Z113: 3.555 | AA113: 3.37 | AB113: 3.315 | AC113: 3.275 | AD113: 3.235 | AE113: 3.07
A114: *NOTE: Price in C$ per gj; C$1=US$1.0062
A115: Volume in 000 MMBtu/day
A116: More Market Data >>
A117: News | B117: Show | D117: Show | G117: Show | I117: Show | J117: Show | K117: Show
A120: Supply Types
A121: Active Peakshaver
A122: Satellite Peakshaver
A123: Production Plant
A124: Nitrogen Rejection Unit
A125: Import Terminal
A126: Helium Plant
A127: Biofuel Landfill LNG
A129: Regions
A130: South
A131: West
A132: Northeast
A133: Midwest

Sheet Sheet2
D1: !! | M1: !! | Q1: !! | R1: !! | U1: !! | V1: !! | X1: ** | AB1: !! | AJ1: !! | AK1: !! | AP1: !! | BF1: ** | BL1: !! | BN1: !! | CK1: **
D2: !! | M2: !! | Q2: !! | R2: !! | U2: !! | V2: !! | X2: =X1 -> ** | AB2: !! | AJ2: !! | AK2: !! | AP2: !! | BF2: =BF1 -> ** | BL2: !! | BN2: !! | CK2: =CK1 -> **
B3: ANR Pipeline | E3: Center | F3: Colorado | G3: Columbia | H3: Columbia Gulf | J3: Dominion | K3: El Paso | M3: !! | N3: Florida Gas Transmission | Q3: !! | R3: !! | S3: Kern | T3: Millenium | U3: !! | V3: !! | W3: Nat Gas Pipeline of America | AA3: Northern Border | AB3: !! | AC3: Northern Natural | AE3: Northwest Pipeline | AG3: Oneok | AH3: Panhandle | AI3: Questar | AJ3: !! | AK3: !! | AL3: Southern Natural | AM3: Southern Star | AN3: Tenessee Gas | AT3: Texas Eastern | AZ3: Texas Gas Transmission | BB3: Transcontinental | BF3: =BF2 -> ** | BG3: Transwestern Pipeline | BI3: Trunkline Gas Co. | BL3: !! | BM3: Northeast | BY3: Upper Midwest | CE3: South Louisiana | CF3: East Texas | CH3: West Texas | CI3: Rocky/Northwest | CK3: =CK2 -> ** | CL3: California
A5: First of Month | B5: ANR LO | C5: ANR LO | D5: CNG APP | E5: CPE East | F5: CIG ROCK | G5: CGT APP | H5: CGUL LO | I5: CGUL MN | J5: DOM APP | K5: PASO PB | L5: PASO SJB | M5: EPGT TEX | N5: FGT Z1 | O5: FGT Z2 | P5: FGT Z3 | Q5: GSP LO | R5: GSP TEX | S5: KRGT WY | T5: East R | U5: MRT ML | V5: MRT WL | W5: NGPA MZ | X5: NGPA LOU | Y5: NGPA TX | Z5: NGPA SX | AA5: NOR BOR | AB5: MNAY TOK | AC5: NNAT D | AD5: NNAT V | AE5: NW P RM | AF5: NWP CB | AG5: ONEOK | AH5: PANHAN | AI5: QUEST | AJ5: REGT EAST | AK5: REGT WEST | AL5: S NAT LO | AM5: SSTAR | AN5: TEN L 5 | AO5: TEN L 8 | AP5: TEN LAOFF | AQ5: TEN TX | AR5: TEN OH | AS5: TEN Z | AT5: TEX E M1 | AU5: M-2 | AV5: TEX E ELO | AW5: TEXE WLO | AX5: TEX E ETX | AY5: TEX E STX | AZ5: TEXGT 1 | BA5: TEXGT SL | BB5: TGP 1 | BC5: TGP 2 | BD5: TGP 3 | BE5: TGP4 | BF5: TRNS PERM | BG5: TEX W P | BH5: TEX W SJ | BI5: TRUNK FZ | BJ5: TRUNK L | BK5: TRUNK 1 | BL5: WGPC TOK | BM5: NE TX E | BN5: NE Z6 | BO5: NE Z6 NY | BP5: NE Z6 OT | BQ5: NE IRO R | BR5: NE IRO 2 | BS5: NE ALG | BT5: NE TE Z6 | BU5: NE NIAG | BV5: NE LEIDY | BW5: NE LEB H | BX5: NE R EXP | BY5: UM CHIC | BZ5: UM CONE | CA5: UM MICH | CB5: UM VIK | CC5: UM ML7 | CD5: UM ONT | CE5: SO LO HH | CF5: E TX SHIP | CG5: E TX KATY | CH5: WAHA TX | CI5: R/NW CH | CJ5: TCPL ALB | CK5: R/NW ORE | CL5: CAL ORE | CM5: CAL CITG | CN5: CAL SOU | CO5: CAL SCGC | CP5: CAL SOC | CQ5: REPORT NATL AVG | CR5: CALC'D AVG
A6: 2012-11-01 | B6: 3.4 | C6: 3.3 | D6: NA | E6: 3.32 | F6: 3.35 | G6: 3.5 | H6: 3.43 | I6: 3.41 | J6: 3.46 | K6: 3.32 | L6: 3.31 | M6: NA | N6: 3.79 | O6: 3.78 | P6: 3.79 | Q6: NA | R6: NA | S6: 3.46 | T6: 3.48 | U6: NA | V6: NA | W6: 3.37 | X6: NA | Y6: 3.4 | Z6: 3.41 | AA6: NA | AB6: NA | AC6: 3.55 | AD6: 3.56 | AE6: 3.4 | AF6: 3.94 | AG6: 3.3 | AH6: 3.29 | AI6: 3.28 | AJ6: NA | AK6: NA | AL6: 3.46 | AM6: 3.26 | AN6: 3.44 | AO6: 3.37 | AP6: NA | AQ6: 3.34 | AR6: NA | AS6: 3.34 | AT6: 3.43 | AU6: 3.48 | AV6: 3.43 | AW6: 3.42 | AX6: 3.33 | AY6: 3.37 | AZ6: 3.41 | BA6: 3.45 | BB6: 3.41 | BC6: 3.45 | BD6: 3.47 | BE6: 3.47 | BF6: NA | BG6: 3.23 | BH6: 3.33 | BI6: NA | BJ6: 3.43 | BK6: 3.42 | BL6: NA | BM6: 3.37 | BN6: NA | BO6: 3.77 | BP6: 3.69 | BQ6: 4.47 | BR6: 4.5 | BS6: 4.55 | BT6: 4.6 | BU6: NA | BV6: 3.48 | BW6: 3.56 | BX6: 3.55 | BY6: 3.68 | BZ6: 3.68 | CA6: 3.72 | CB6: 3.75 | CC6: 3.46 | CD6: 4 | CE6: 3.47 | CF6: 3.37 | CG6: 3.35 | CH6: 3.35 | CI6: 3.39 | CJ6: 3.12 | CK6: NA | CL6: 3.53 | CM6: 3.88 | CN6: NA | CO6: 3.6 | CP6: 3.78 | CQ6: 3.42
A7: 2012-10-01 | B7: 2.95 | C7: 2.71 | D7: NA | E7: 2.82 | F7: 2.72 | G7: 3.01 | H7: 2.97 | I7: 2.93 | J7: 2.96 | K7: 2.87 | L7: 2.76 | M7: NA | N7: 3.02 | O7: 3.01 | P7: 3.14 | Q7: NA | R7: NA | S7: 2.82 | T7: 2.83 | U7: NA | V7: NA | W7: 2.77 | X7: NA | Y7: 2.96 | Z7: 2.97 | AA7: NA | AB7: NA | AC7: 3.01 | AD7: 3 | AE7: 2.76 | AF7: 2.91 | AG7: 2.7 | AH7: 2.76 | AI7: 2.69 | AJ7: NA | AK7: NA | AL7: 3.02 | AM7: 2.42 | AN7: 3 | AO7: 2.63 | AP7: NA | AQ7: 2.84 | AR7: NA | AS7: 2.49 | AT7: 2.95 | AU7: 2.94 | AV7: 3.03 | AW7: 2.98 | AX7: 2.94 | AY7: 2.91 | AZ7: 2.93 | BA7: 2.95 | BB7: 2.93 | BC7: 2.98 | BD7: 3.02 | BE7: 2.97 | BF7: NA | BG7: 2.71 | BH7: 2.81 | BI7: NA | BJ7: 2.97 | BK7: 2.93 | BL7: NA | BM7: 3.14 | BN7: NA | BO7: 3.15 | BP7: 3.12 | BQ7: 3.54 | BR7: 3.52 | BS7: 3.5 | BT7: 3.52 | BU7: 3.57 | BV7: 3.03 | BW7: 3.05 | BX7: 3.05 | BY7: 3.16 | BZ7: 3.16 | CA7: 3.18 | CB7: 3.16 | CC7: 3.16 | CD7: 3.35 | CE7: 3.06 | CF7: 2.97 | CG7: 2.87 | CH7: 2.79 | CI7: 2.73 | CJ7: 2.43 | CK7: NA | CL7: 2.9 | CM7: 3.49 | CN7: NA | CO7: 3.19 | CP7: 3.26 | CQ7: 2.89
A8: 2012-09-01 | B8: 2.55 | C8: 2.44 | D8: NA | E8: 2.53 | F8: 2.39 | G8: 2.58 | H8: 2.56 | I8: 2.55 | J8: 2.52 | K8: 2.53 | L8: 2.48 | M8: NA | N8: 2.63 | O8: 2.62 | P8: 2.81 | Q8: NA | R8: NA | S8: 2.51 | T8: begin | U8: NA | V8: NA | W8: 2.47 | X8: NA | Y8: 2.56 | Z8: 2.56 | AA8: 2.62 | AB8: NA | AC8: 2.65 | AD8: 2.65 | AE8: 2.45 | AF8: 2.44 | AG8: 2.45 | AH8: 2.44 | AI8: 2.4 | AJ8: NA | AK8: NA | AL8: 2.62 | AM8: 2.43 | AN8: 2.59 | AO8: 2.56 | AP8: NA | AQ8: 2.54 | AR8: NA | AS8: 2.22 | AT8: 2.55 | AU8: Begins | AV8: 2.57 | AW8: 2.59 | AX8: 2.48 | AY8: 2.51 | AZ8: 2.54 | BA8: NA | BB8: 2.53 | BC8: 2.59 | BD8: 2.58 | BE8: 2.59 | BF8: NA | BG8: 2.47 | BH8: 2.51 | BI8: NA | BJ8: 2.58 | BK8: 2.55 | BL8: NA | BM8: 2.71 | BN8: NA | BO8: 2.72 | BP8: 2.7 | BQ8: 3.06 | BR8: 3.06 | BS8: 3.04 | BT8: 3.03 | BU8: NA | BV8: 2.61 | BW8: 2.6 | BX8: 2.6 | BY8: 2.76 | BZ8: 2.75 | CA8: 2.77 | CB8: 2.74 | CC8: 2.8 | CD8: 2.93 | CE8: 2.63 | CF8: 2.62 | CG8: 2.6 | CH8: 2.57 | CI8: 2.43 | CJ8: 1.98 | CK8: NA | CL8: 2.56 | CM8: 2.9 | CN8: NA | CO8: 2.79 | CP8: 2.89 | CQ8: 2.54
A9: 2012-08-01 | B9: 2.95 | C9: 2.94 | D9: NA | E9: 3.01 | F9: 2.81 | G9: 3.01 | H9: 3.13 | I9: 2.96 | J9: 2.99 | K9: 2.97 | L9: 2.83 | M9: NA | N9: 3.01 | O9: 3.01 | P9: 3.32 | Q9: NA | R9: NA | S9: 2.85 | U9: NA | V9: NA | W9: 2.97 | X9: NA | Y9: 3.02 | Z9: 2.96 | AA9: 3.05 | AB9: NA | AC9: 3.07 | AD9: 3.04 | AE9: 2.8 | AF9: 2.74 | AG9: 2.94 | AH9: 2.94 | AI9: 2.68 | AJ9: NA | AK9: NA | AL9: 3 | AM9: 2.95 | AN9: 2.98 | AO9: 3.01 | AP9: NA | AQ9: 2.99 | AR9: 3.01 | AS9: 1.34 | AT9: 2.99 | AV9: 2.97 | AW9: 2.99 | AX9: 2.87 | AY9: 2.93 | AZ9: 2.95 | BA9: 3.09 | BB9: 2.96 | BC9: 3 | BD9: 3.05 | BE9: 3.02 | BF9: NA | BG9: 2.92 | BH9: 2.86 | BI9: NA | BJ9: 2.97 | BK9: 2.95 | BL9: NA | BM9: 3.2 | BN9: NA | BO9: 3.24 | BP9: 3.19 | BQ9: 3.46 | BR9: 3.48 | BS9: 3.55 | BT9: 3.56 | BU9: NA | BV9: 3.08 | BW9: 3 | BX9: 3 | BY9: 3.17 | BZ9: 3.11 | CA9: 3.17 | CB9: 3.05 | CC9: 3.12 | CD9: 3.21 | CE9: 3.01 | CF9: 3.12 | CG9: 3.06 | CH9: 2.98 | CI9: 2.87 | CJ9: 2.38 | CK9: NA | CL9: 2.89 | CM9: 3.11 | CN9: 3.02 | CO9: 3.04 | CP9: 3.16 | CQ9: 2.93
A10: 2012-07-12 | B10: 2.68 | C10: 2.6 | D10: NA | E10: 2.61 | F10: 2.44 | G10: 2.75 | H10: 2.72 | I10: 2.7 | J10: 2.74 | K10: 2.61 | L10: 2.49 | M10: NA | N10: 2.78 | O10: 2.78 | P10: 3.05 | Q10: NA | R10: NA | S10: 2.49 | U10: NA | V10: NA | W10: 2.61 | X10: NA | Y10: 2.68 | Z10: 2.68 | AA10: 2.66 | AB10: NA | AC10: 2.68 | AD10: 2.67 | AE10: 2.44 | AF10: 2.44 | AG10: 2.62 | AH10: 2.62 | AI10: 2.47 | AJ10: NA | AK10: NA | AL10: 2.77 | AM10: 2.58 | AN10: 2.72 | AO10: 2.7 | AP10: NA | AQ10: 2.69 | AR10: NA | AS10: 1.99 | AT10: 2.74 | AV10: 2.74 | AW10: 2.74 | AX10: NA | AY10: 2.65 | AZ10: 2.69 | BA10: 2.7 | BB10: 2.72 | BC10: 2.77 | BD10: 2.76 | BE10: 2.78 | BF10: NA | BG10: 2.52 | BH10: 2.56 | BI10: NA | BJ10: 2.73 | BK10: 2.71 | BL10: NA | BM10: 2.94 | BN10: NA | BO10: 3.07 | BP10: 2.98 | BQ10: 3.22 | BR10: 3.25 | BS10: 3.42 | BT10: 3.58 | BU10: NA | BV10: 2.87 | BW10: 2.74 | BX10: 2.75 | BY10: 2.79 | BZ10: 2.82 | CA10: 2.8 | CB10: 2.78 | CC10: 2.81 | CD10: 2.92 | CE10: 2.77 | CF10: 2.77 | CG10: 2.73 | CH10: 2.66 | CI10: 2.55 | CJ10: 2.07 | CK10: NA | CL10: 2.49 | CM10: 3 | CN10: 2.8 | CO10: 2.88 | CP10: 2.96 | CQ10: 2.65
A11: 2012-06-01 | B11: 2.36 | C11: 2.39 | D11: NA | E11: 2.4 | F11: 2.26 | G11: 2.43 | H11: 2.37 | I11: 2.36 | J11: 2.44 | K11: 2.47 | L11: 2.36 | M11: NA | N11: 2.46 | O11: 2.43 | P11: 2.63 | Q11: NA | R11: NA | S11: 2.36 | U11: NA | V11: NA | W11: 2.46 | X11: NA | Y11: 2.42 | Z11: 2.34 | AA11: 2.58 | AB11: NA | AC11: 2.48 | AD11: 2.51 | AE11: 2.32 | AF11: 2.35 | AG11: 2.4 | AH11: 2.41 | AI11: 2.21 | AJ11: NA | AK11: NA | AL11: 2.41 | AM11: 2.39 | AN11: 2.39 | AO11: 2.45 | AP11: NA | AQ11: 2.4 | AR11: NA | AS11: 1.95 | AT11: 2.37 | AV11: 2.38 | AW11: 2.34 | AX11: 2.29 | AY11: 2.28 | AZ11: 2.36 | BA11: 2.39 | BB11: 2.35 | BC11: 2.41 | BD11: 2.41 | BE11: 2.42 | BF11: NA | BG11: 2.41 | BH11: 2.47 | BI11: NA | BJ11: 2.39 | BK11: 2.36 | BL11: NA | BM11: 2.59 | BN11: NA | BO11: 2.71 | BP11: 2.57 | BQ11: 2.75 | BR11: 2.8 | BS11: 2.79 | BT11: 2.82 | BU11: NA | BV11: 2.52 | BW11: 2.44 | BX11: 2.44 | BY11: 2.59 | BZ11: 2.52 | CA11: 2.54 | CB11: 2.44 | CC11: 2.64 | CD11: 2.59 | CE11: 2.42 | CF11: 2.44 | CG11: 2.63 | CH11: 2.59 | CI11: 2.35 | CJ11: 2.02 | CK11: NA | CL11: 2.41 | CM11: 2.81 | CN11: 2.53 | CO11: 2.64 | CP11: 2.78 | CQ11: rc
A12: 2012-05-01 | B12: 1.99 | C12: 1.85 | D12: NA | E12: 1.93 | F12: 1.75 | G12: 2.07 | H12: 1.98 | I12: 1.98 | J12: 2.07 | K12: 1.93 | L12: 1.83 | M12: NA | N12: 2.04 | O12: 2.04 | P12: 2.19 | Q12: NA | R12: NA | S12: 1.87 | U12: NA | V12: NA | W12: 1.87 | X12: NA | Y12: 1.98 | Z12: 1.96 | AA12: 2 | AB12: NA | AC12: 1.97 | AD12: 1.97 | AE12: 1.82 | AF12: 1.82 | AG12: 1.86 | AH12: 1.87 | AI12: 1.75 | AJ12: NA | AK12: NA | AL12: 2.02 | AM12: 1.8 | AN12: 2.01 | AO12: 1.98 | AP12: NA | AQ12: 1.95 | AR12: NA | AS12: 1.93 | AT12: 1.99 | AV12: 1.99 | AW12: 2.01 | AX12: 1.88 | AY12: 1.93 | AZ12: 1.98 | BA12: 2 | BB12: 1.97 | BC12: 2.01 | BD12: 2.03 | BE12: 2.04 | BF12: =BF11 -> NA | BG12: 1.83 | BH12: 1.89 | BI12: NA | BJ12: 2.01 | BK12: 1.98 | BL12: NA | BM12: 2.19 | BN12: NA | BO12: 2.21 | BP12: 2.17 | BQ12: 2.42 | BR12: 2.4 | BS12: 2.32 | BT12: 2.32 | BU12: NA | BV12: 2.12 | BW12: 2.07 | BX12: 2.07 | BY12: 2.09 | BZ12: 2.19 | CA12: 2.17 | CB12: 2.09 | CC12: 2.23 | CD12: 2.32 | CE12: 2.03 | CF12: 1.96 | CG12: 1.94 | CH12: 1.9 | CI12: 1.83 | CJ12: 1.58 | CK12: NA | CL12: 1.88 | CM12: 2.34 | CN12: 2.11 | CO12: 2.17 | CP12: 2.27 | CQ12: 1.95
A13: 2012-04-01 | B13: 2.08 | C13: 1.96 | D13: NA | E13: 2.01 | F13: 1.84 | G13: 2.19 | H13: 2.13 | I13: 2.1 | J13: 2.2 | K13: 1.98 | L13: 1.9 | M13: NA | N13: 2.18 | O13: 2.19 | P13: 2.35 | Q13: NA | R13: NA | S13: 1.95 | U13: NA | V13: NA | W13: 1.97 | X13: NA | Y13: 2.07 | Z13: 2.07 | AA13: 2.02 | AB13: NA | AC13: 2.01 | AD13: 2.02 | AE13: 1.9 | AF13: 1.96 | AG13: 1.96 | AH13: 1.95 | AI13: 1.85 | AJ13: NA | AK13: NA | AL13: 2.16 | AM13: 1.87 | AN13: 2.14 | AO13: 2.13 | AP13: NA | AQ13: 2.08 | AR13: NA | AS13: 1.92 | AT13: 2.12 | AV13: 2.11 | AW13: 2.13 | AX13: 2.03 | AY13: 2.05 | AZ13: 2.09 | BA13: 2.14 | BB13: 2.11 | BC13: 2.14 | BD13: 2.16 | BE13: 2.17 | BF13: NA | BG13: 1.94 | BH13: 1.91 | BI13: NA | BJ13: 2.14 | BK13: 2.12 | BL13: NA | BM13: 2.33 | BN13: NA | BO13: 2.36 | BP13: 2.3 | BQ13: 2.61 | BR13: 2.61 | BS13: 2.48 | BT13: 2.49 | BU13: 2.62 | BV13: 2.25 | BW13: 2.19 | BX13: 2.19 | BY13: 2.16 | BZ13: 2.31 | CA13: 2.33 | CB13: 2.18 | CC13: 2.24 | CD13: 2.44 | CE13: 2.19 | CF13: 2.11 | CG13: 2.12 | CH13: 2.02 | CI13: 1.88 | CJ13: 1.65 | CK13: NA | CL13: 2.03 | CM13: 2.5 | CN13: NA | CO13: 2.36 | CP13: 2.46 | CQ13: 2.06
A14: 2012-03-01 | B14: 2.4 | C14: 2.36 | D14: NA | E14: 2.29 | F14: 2.37 | G14: 2.45 | H14: 2.41 | I14: 2.4 | J14: 2.47 | K14: 2.4 | L14: 2.39 | M14: NA | N14: 2.44 | O14: 2.45 | P14: 2.48 | Q14: NA | R14: NA | S14: 2.41 | U14: NA | V14: NA | W14: 2.41 | X14: NA | Y14: 2.43 | Z14: 2.37 | AA14: 2.34 | AB14: NA | AC14: 2.48 | AD14: 2.48 | AE14: 2.4 | AF14: 2.47 | AG14: 2.34 | AH14: 2.38 | AI14: 2.3 | AJ14: NA | AK14: NA | AL14: 2.44 | AM14: 2.3 | AN14: 2.44 | AO14: 2.45 | AP14: NA | AQ14: 2.4 | AR14: 2.54 | AS14: 2.32 | AT14: 2.42 | AV14: 2.43 | AW14: 2.41 | AX14: 2.33 | AY14: 2.33 | AZ14: 2.39 | BA14: 2.41 | BB14: 2.39 | BC14: 2.43 | BD14: 2.44 | BE14: 2.46 | BF14: NA | BG14: 2.38 | BH14: 2.47 | BI14: NA | BJ14: 2.36 | BK14: 2.41 | BL14: NA | BM14: 2.68 | BN14: NA | BO14: 2.79 | BP14: 2.66 | BQ14: 3.07 | BR14: 3.07 | BS14: 3.05 | BT14: 3.06 | BU14: 2.87 | BV14: 2.53 | BW14: 2.48 | BX14: 2.49 | BY14: 2.59 | BZ14: 2.59 | CA14: 2.62 | CB14: 2.49 | CC14: 2.72 | CD14: 2.85 | CE14: 2.41 | CF14: 2.35 | CG14: 2.49 | CH14: 2.42 | CI14: 2.4 | CJ14: 1.9 | CK14: NA | CL14: 2.45 | CM14: 2.82 | CN14: 2.56 | CO14: 2.6 | CP14: 2.73 | CQ14: 2.41
A15: 2012-02-01 | B15: 2.62 | C15: 2.59 | D15: NA | E15: 2.53 | F15: 2.51 | G15: 2.66 | H15: 2.65 | I15: 2.63 | J15: 2.64 | K15: 2.55 | L15: 2.51 | M15: NA | N15: 2.65 | O15: 2.69 | P15: 2.72 | Q15: NA | R15: NA | S15: 2.58 | U15: NA | V15: NA | W15: 2.56 | X15: NA | Y15: 2.61 | Z15: 2.53 | AA15: 2.74 | AB15: NA | AC15: 2.69 | AD15: 2.71 | AE15: 2.54 | AF15: 2.78 | AG15: 2.54 | AH15: 2.55 | AI15: 2.6 | AJ15: NA | AK15: NA | AL15: 2.69 | AM15: 2.52 | AN15: 2.69 | AO15: 2.62 | AP15: NA | AQ15: 2.55 | AR15: NA | AS15: 2.62 | AT15: 2.69 | AV15: 2.61 | AW15: 2.56 | AX15: 2.55 | AY15: 2.56 | AZ15: 2.63 | BA15: NA | BB15: 2.63 | BC15: 2.68 | BD15: 2.7 | BE15: 2.7 | BF15: NA | BG15: 2.51 | BH15: 2.57 | BI15: NA | BJ15: 2.65 | BK15: 2.64 | BL15: NA | BM15: 3.13 | BN15: NA | BO15: 4.69 | BP15: 3.18 | BQ15: 4.09 | BR15: 4.7 | BS15: 4.97 | BT15: 5.01 | BU15: 3.23 | BV15: 2.79 | BW15: 2.74 | BX15: 2.76 | BY15: 2.77 | BZ15: 2.85 | CA15: 2.86 | CB15: 2.91 | CC15: 2.88 | CD15: 3.09 | CE15: 2.68 | CF15: 2.57 | CG15: 2.59 | CH15: 2.6 | CI15: 2.56 | CJ15: 2.24 | CK15: NA | CL15: 2.71 | CM15: 3.04 | CN15: 2.93 | CO15: 2.89 | CP15: 2.98 | CQ15: 2.62
A16: 2012-01-01 | B16: 3 | C16: 2.97 | D16: NA | E16: 2.97 | F16: 2.98 | G16: 3.11 | H16: NA | I16: 3.01 | J16: 3.16 | K16: 3.07 | L16: 3.08 | M16: NA | N16: 3.1 | O16: 3.1 | P16: 3.14 | Q16: NA | R16: NA | S16: 3.1 | U16: NA | V16: NA | W16: 3.01 | X16: NA | Y16: 3.05 | Z16: 3.01 | AA16: 3.14 | AB16: NA | AC16: 3.17 | AD16: 3.15 | AE16: 3.08 | AF16: 3.47 | AG16: 3.04 | AH16: 2.99 | AI16: 3.09 | AJ16: NA | AK16: NA | AL16: 3.09 | AM16: 3.02 | AN16: 3.09 | AO16: 3.06 | AP16: NA | AQ16: 3.03 | AR16: 3.22 | AS16: NA | AT16: 3.07 | AV16: 3.05 | AW16: 3.04 | AX16: 2.93 | AY16: 2.95 | AZ16: 3.01 | BA16: 3.02 | BB16: 3.04 | BC16: 3.06 | BD16: 3.09 | BE16: 3.11 | BF16: NA | BG16: 3.07 | BH16: 3.17 | BI16: NA | BJ16: 3.04 | BK16: 3.03 | BL16: NA | BM16: 4.04 | BN16: NA | BO16: 5.22 | BP16: 4.19 | BQ16: 4.63 | BR16: 5.27 | BS16: 5.28 | BT16: 5.44 | BU16: 3.65 | BV16: 3.25 | BW16: 3.17 | BX16: 3.23 | BY16: 3.31 | BZ16: 3.25 | CA16: 3.27 | CB16: 3.25 | CC16: 3.3 | CD16: 3.47 | CE16: 3.08 | CF16: 3.04 | CG16: 3.09 | CH16: 3.04 | CI16: 3.02 | CJ16: 2.65 | CK16: NA | CL16: 3.16 | CM16: 3.41 | CN16: 3.31 | CO16: 3.38 | CP16: 3.46 | CQ16: 3.07
A17: 2011-12-01 | B17: 3.3 | C17: 3.33 | D17: NA | E17: 3.24 | F17: 3.33 | G17: 3.41 | H17: 3.3 | I17: 3.29 | J17: 3.53 | K17: 3.29 | L17: 3.28 | M17: NA | N17: 3.34 | O17: 3.36 | P17: 3.42 | Q17: NA | R17: NA | S17: 3.42 | U17: NA | V17: NA | W17: 3.35 | X17: 3.39 | Y17: 3.34 | Z17: 3.3 | AA17: 3.55 | AB17: NA | AC17: 3.61 | AD17: 3.57 | AE17: 3.38 | AF17: 3.93 | AG17: 3.39 | AH17: 3.36 | AI17: 3.33 | AJ17: NA | AK17: NA | AL17: 3.36 | AM17: 3.26 | AN17: 3.36 | AO17: 3.33 | AP17: NA | AQ17: 3.29 | AR17: 3.56 | AS17: NA | AT17: 3.37 | AV17: 3.32 | AW17: 3.31 | AX17: 3.25 | AY17: 3.25 | AZ17: 3.29 | BA17: 3.4 | BB17: 3.29 | BC17: 3.32 | BD17: 3.36 | BE17: 3.38 | BF17: NA | BG17: 3.3 | BH17: 3.33 | BI17: NA | BJ17: 3.33 | BK17: 3.29 | BL17: NA | BM17: 4.68 | BN17: NA | BO17: 5.84 | BP17: 4.7 | BQ17: 4.86 | BR17: 5.9 | BS17: 5.95 | BT17: 5.98 | BU17: 3.96 | BV17: 3.65 | BW17: 3.53 | BX17: 3.59 | BY17: 3.72 | BZ17: 3.58 | CA17: 3.62 | CB17: 3.5 | CC17: 3.69 | CD17: 3.87 | CE17: 3.36 | CF17: 3.28 | CG17: 3.3 | CH17: 3.34 | CI17: 3.38 | CJ17: 3.11 | CK17: NA | CL17: 3.53 | CM17: 3.86 | CN17: 3.57 | CO17: 3.67 | CP17: 3.75 | CQ17: 3.37
A18: 2011-11-01 | B18: 3.45 | C18: 3.42 | D18: NA | E18: 3.32 | F18: 3.41 | G18: 3.56 | H18: 3.46 | I18: 3.46 | J18: 3.61 | K18: 3.41 | L18: 3.38 | M18: NA | N18: 3.49 | O18: 3.5 | P18: 3.57 | Q18: NA | R18: NA | S18: 3.45 | U18: NA | V18: NA | W18: 3.48 | X18: NA | Y18: 3.48 | Z18: 3.42 | AA18: 3.61 | AB18: NA | AC18: 3.68 | AD18: 3.69 | AE18: 3.44 | AF18: 3.66 | AG18: 3.45 | AH18: 3.41 | AI18: 3.52 | AJ18: NA | AK18: NA | AL18: 3.38 | AM18: 3.49 | AN18: 3.33 | AO18: 3.49 | AP18: NA | AQ18: 3.5 | AR18: 3.42 | AS18: 3.62 | AT18: 3.49 | AV18: 3.45 | AW18: 3.45 | AX18: 3.33 | AY18: 3.35 | AZ18: 3.44 | BA18: 3.51 | BB18: 3.43 | BC18: 3.46 | BD18: 3.49 | BE18: 3.5 | BF18: NA | BG18: 3.39 | BH18: 3.42 | BI18: NA | BJ18: 3.47 | BK18: 3.44 | BL18: NA | BM18: 3.83 | BN18: NA | BO18: 4.05 | BP18: 3.87 | BQ18: 4.4 | BR18: 4.41 | BS18: 4.26 | BT18: 4.28 | BU18: 4.06 | BV18: 3.76 | BW18: 3.6 | BX18: 3.3 | BY18: 3.83 | BZ18: 3.73 | CA18: 3.84 | CB18: 3.64 | CC18: 3.81 | CD18: 4 | CE18: 3.51 | CF18: 3.45 | CG18: 3.46 | CH18: 3.46 | CI18: 3.48 | CJ18: 3.19 | CK18: NA | CL18: 3.51 | CM18: 3.88 | CN18: 3.56 | CO18: 3.59 | CP18: 3.71 | CQ18: 3.47
A19: 2011-10-01 | B19: 3.69 | C19: 3.67 | D19: NA | E19: 3.58 | F19: 3.56 | G19: 3.77 | H19: 3.72 | I19: 3.67 | J19: 3.84 | K19: 3.6 | L19: 3.52 | M19: NA | N19: 3.74 | O19: 3.76 | P19: 3.84 | Q19: NA | R19: NA | S19: 3.62 | U19: NA | V19: NA | W19: 3.66 | X19: NA | Y19: 3.68 | Z19: 3.67 | AA19: 3.81 | AB19: NA | AC19: 3.82 | AD19: 3.82 | AE19: 3.59 | AF19: 3.7 | AG19: 3.66 | AH19: 3.66 | AI19: 3.55 | AJ19: NA | AK19: NA | AL19: 3.74 | AM19: 3.59 | AN19: 3.7 | AO19: 3.71 | AP19: NA | AQ19: 3.67 | AR19: 3.85 | AS19: NA | AT19: 3.72 | AV19: 3.7 | AW19: 3.71 | AX19: 3.6 | AY19: 3.59 | AZ19: 3.65 | BA19: 3.69 | BB19: 3.71 | BC19: 3.73 | BD19: 3.73 | BE19: 3.74 | BF19: NA | BG19: 3.58 | BH19: 3.61 | BI19: NA | BJ19: 3.71 | BK19: 3.68 | BL19: NA | BM19: 3.98 | BN19: NA | BO19: 4.06 | BP19: 4 | BQ19: 4.2 | BR19: 4.3 | BS19: 4.14 | BT19: 4.17 | BU19: 4.09 | BV19: 3.94 | BW19: 3.83 | BX19: 3.83 | BY19: 3.92 | BZ19: 3.97 | CA19: 4 | CB19: 3.7 | CC19: 3.99 | CD19: 4.1 | CE19: 3.76 | CF19: 3.73 | CG19: 3.72 | CH19: 3.67 | CI19: 3.62 | CJ19: 3.45 | CK19: NA | CL19: 3.76 | CM19: 4.15 | CN19: 3.93 | CO19: 3.94 | CP19: 4.06 | CQ19: 3.69
A20: 2011-09-01 | B20: 3.81 | C20: 3.79 | D20: NA | E20: 3.76 | F20: 3.7 | G20: 3.9 | H20: 3.83 | I20: 3.81 | J20: 3.9 | K20: 3.8 | L20: 3.74 | M20: NA | N20: 3.86 | O20: 3.87 | P20: 3.96 | Q20: NA | R20: NA | S20: 3.72 | U20: NA | V20: NA | W20: 3.81 | X20: 3.87 | Y20: 3.83 | Z20: 3.79 | AA20: 3.91 | AB20: NA | AC20: 3.92 | AD20: 3.9 | AE20: 3.7 | AF20: 3.72 | AG20: 3.78 | AH20: 3.74 | AI20: 3.61 | AJ20: NA | AK20: NA | AL20: 3.85 | AM20: 3.71 | AN20: 3.84 | AO20: 3.83 | AP20: NA | AQ20: 3.81 | AR20: 3.94 | AS20: NA | AT20: 3.83 | AV20: 3.85 | AW20: 3.83 | AX20: 3.71 | AY20: 3.77 | AZ20: 3.8 | BA20: 3.92 | BB20: 3.83 | BC20: 3.84 | BD20: 3.87 | BE20: 3.88 | BF20: NA | BG20: 3.79 | BH20: 3.77 | BI20: NA | BJ20: 3.82 | BK20: 3.81 | BL20: NA | BM20: 4.08 | BN20: NA | BO20: 4.12 | BP20: 4.09 | BQ20: 4.28 | BR20: 4.31 | BS20: 4.2 | BT20: 4.19 | BU20: 4.16 | BV20: 4.04 | BW20: 3.92 | BX20: 3.91 | BY20: 3.96 | BZ20: 4.05 | CA20: 4.1 | CB20: 3.79 | CC20: 4.05 | CD20: 4.18 | CE20: 3.85 | CF20: 3.95 | CG20: 3.89 | CH20: 3.9 | CI20: 3.76 | CJ20: 3.46 | CK20: NA | CL20: 3.79 | CM20: 4.18 | CN20: 4.02 | CO20: 4.07 | CP20: 4.06 | CQ20: 3.82
A21: 2011-08-01 | B21: 4.31 | C21: 4.25 | D21: NA | E21: 4.25 | F21: 4.08 | G21: 4.45 | H21: 4.35 | I21: 4.32 | J21: 4.49 | K21: 4.27 | L21: 4.13 | M21: NA | N21: 4.38 | O21: 4.39 | P21: 4.49 | Q21: NA | R21: NA | S21: 4.07 | U21: NA | V21: NA | W21: 4.24 | X21: 4.39 | Y21: 4.3 | Z21: 4.27 | AA21: 4.4 | AB21: NA | AC21: 4.41 | AD21: 4.37 | AE21: 4.06 | AF21: 3.97 | AG21: 4.21 | AH21: 4.22 | AI21: 4.04 | AJ21: NA | AK21: NA | AL21: 4.37 | AM21: 4.21 | AN21: 4.34 | AO21: 4.35 | AP21: NA | AQ21: 4.26 | AR21: 4.5 | AS21: NA | AT21: 4.38 | AV21: 4.32 | AW21: 4.33 | AX21: 4.21 | AY21: 4.24 | AZ21: 4.29 | BA21: 4.32 | BB21: 4.33 | BC21: 4.35 | BD21: 4.38 | BE21: 4.38 | BF21: NA | BG21: 4.19 | BH21: 4.18 | BI21: NA | BJ21: 4.35 | BK21: 4.32 | BL21: NA | BM21: 4.67 | BN21: NA | BO21: 5.1 | BP21: 4.72 | BQ21: 4.94 | BR21: 5.03 | BS21: 4.91 | BT21: 4.89 | BU21: 4.71 | BV21: 4.67 | BW21: 4.46 | BX21: 4.48 | BY21: 4.49 | BZ21: 4.54 | CA21: 4.55 | CB21: 4.2 | CC21: 4.56 | CD21: 4.65 | CE21: 4.38 | CF21: 4.38 | CG21: 4.35 | CH21: 4.35 | CI21: 4.12 | CJ21: 3.36 | CK21: NA | CL21: 4.41 | CM21: 4.55 | CN21: NA | CO21: 4.47 | CP21: 4.51 | CQ21: 4.29
A22: 2011-07-01 | B22: 4.31 | C22: 4.22 | D22: NA | E22: 4.14 | F22: 3.96 | G22: 4.48 | H22: 4.33 | I22: 4.3 | J22: 4.49 | K22: 4.21 | L22: 4.09 | M22: NA | N22: 4.36 | O22: 4.38 | P22: 4.49 | Q22: NA | R22: NA | S22: 3.97 | U22: NA | V22: NA | W22: 4.16 | X22: NA | Y22: 4.24 | Z22: 4.29 | AA22: 4.26 | AB22: NA | AC22: 4.29 | AD22: 4.29 | AE22: 3.95 | AF22: 4 | AG22: 4.2 | AH22: 4.14 | AI22: 3.88 | AJ22: NA | AK22: NA | AL22: 4.37 | AM22: 4.1 | AN22: 4.36 | AO22: 4.35 | AP22: NA | AQ22: 4.25 | AR22: 4.49 | AS22: NA | AT22: 4.37 | AV22: 4.32 | AW22: 4.32 | AX22: 4.23 | AY22: 4.22 | AZ22: 4.27 | BA22: 4.31 | BB22: 4.35 | BC22: 4.35 | BD22: 4.37 | BE22: 4.39 | BF22: NA | BG22: 4.11 | BH22: 4.13 | BI22: NA | BJ22: 4.33 | BK22: 4.3 | BL22: NA | BM22: 4.69 | BN22: NA | BO22: 4.8 | BP22: 4.74 | BQ22: 4.86 | BR22: 4.94 | BS22: 4.82 | BT22: 4.78 | BU22: 4.66 | BV22: 4.48 | BW22: 4.47 | BX22: 4.38 | BY22: 4.38 | BZ22: 4.55 | CA22: 4.5 | CB22: NA | CC22: 4.56 | CD22: 4.65 | CE22: 4.36 | CF22: 4.37 | CG22: 4.3 | CH22: 4.23 | CI22: 4.1 | CJ22: 3.6 | CK22: NA | CL22: 4.24 | CM22: 4.59 | CN22: 4.44 | CO22: 4.48 | CP22: 4.53 | CQ22: 4.25
A23: 2011-06-01 | B23: 4.27 | C23: 4.21 | D23: NA | E23: 4.17 | F23: 3.99 | G23: 4.46 | H23: 4.29 | I23: 4.26 | J23: 4.48 | K23: 4.15 | L23: 4.04 | M23: NA | N23: 4.3 | O23: 4.34 | P23: 4.43 | Q23: NA | R23: NA | S23: 3.99 | U23: NA | V23: NA | W23: 4.17 | X23: 4.33 | Y23: 4.24 | Z23: 4.26 | AA23: 4.35 | AB23: NA | AC23: 4.3 | AD23: 4.29 | AE23: 3.98 | AF23: 4.03 | AG23: 4.12 | AH23: 4.12 | AI23: 3.93 | AJ23: NA | AK23: NA | AL23: 4.34 | AM23: 4.11 | AN23: 4.33 | AO23: 4.29 | AP23: NA | AQ23: 4.23 | AR23: 4.48 | AS23: NA | AT23: 4.34 | AV23: 4.29 | AW23: 4.27 | AX23: 4.19 | AY23: 4.18 | AZ23: 4.25 | BA23: 4.37 | BB23: 4.29 | BC23: 4.31 | BD23: 4.34 | BE23: 4.35 | BF23: NA | BG23: 4.1 | BH23: 4.09 | BI23: NA | BJ23: 4.29 | BK23: 4.27 | BL23: NA | BM23: 4.62 | BN23: NA | BO23: 4.67 | BP23: 4.64 | BQ23: 4.89 | BR23: 4.91 | BS23: 4.7 | BT23: 4.73 | BU23: 4.68 | BV23: NA | BW23: 4.46 | BX23: 4.48 | BY23: 4.38 | BZ23: 4.56 | CA23: 4.58 | CB23: NA | CC23: 4.49 | CD23: 4.69 | CE23: 4.33 | CF23: 4.28 | CG23: 4.29 | CH23: 4.26 | CI23: 4.09 | CJ23: 3.78 | CK23: NA | CL23: 4.22 | CM23: 4.55 | CN23: 4.29 | CO23: 4.31 | CP23: 4.34 | CQ23: 4.24
A24: 2011-05-01 | B24: 4.33 | C24: 4.14 | D24: NA | E24: 4.15 | F24: 3.97 | G24: 4.5 | H24: 4.34 | I24: 4.29 | J24: 4.56 | K24: 4.11 | L24: 4.03 | M24: NA | N24: 4.35 | O24: 4.41 | P24: 4.47 | Q24: NA | R24: NA | S24: 3.99 | U24: NA | V24: NA | W24: 4.14 | X24: NA | Y24: 4.26 | Z24: 4.28 | AA24: 4.31 | AB24: NA | AC24: 4.3 | AD24: 4.3 | AE24: 3.99 | AF24: 3.99 | AG24: 4.15 | AH24: 4.12 | AI24: NA | AJ24: NA | AK24: NA | AL24: 4.4 | AM24: 4.11 | AN24: 4.34 | AO24: 4.38 | AP24: NA | AQ24: 4.24 | AR24: 4.54 | AS24: NA | AT24: 4.39 | AV24: 4.33 | AW24: 4.33 | AX24: 4.18 | AY24: 4.3 | AZ24: 4.29 | BA24: 4.29 | BB24: 4.32 | BC24: 4.35 | BD24: 4.39 | BE24: 4.4 | BF24: NA | BG24: 4.09 | BH24: 4.07 | BI24: NA | BJ24: 4.34 | BK24: 4.3 | BL24: NA | BM24: 4.67 | BN24: NA | BO24: 4.7 | BP24: 4.69 | BQ24: 4.9 | BR24: 4.91 | BS24: 4.76 | BT24: 4.77 | BU24: 4.74 | BV24: NA | BW24: 4.51 | BX24: 4.51 | BY24: 4.49 | BZ24: 4.59 | CA24: 4.65 | CB24: NA | CC24: 4.64 | CD24: 4.76 | CE24: 4.38 | CF24: 4.33 | CG24: 4.33 | CH24: 4.24 | CI24: 4.1 | CJ24: 3.62 | CK24: NA | CL24: 4.15 | CM24: 4.46 | CN24: 4.27 | CO24: 4.3 | CP24: 4.36 | CQ24: 4.26
A25: 2011-04-01 | B25: 4.2 | C25: 4.13 | D25: NA | E25: 4.09 | F25: 3.97 | G25: 4.36 | H25: 4.21 | I25: 4.18 | J25: 4.46 | K25: 4.08 | L25: 3.97 | M25: NA | N25: 4.22 | O25: 4.29 | P25: 4.29 | Q25: NA | R25: NA | S25: 3.98 | U25: NA | V25: NA | W25: 4.15 | X25: NA | Y25: 4.21 | Z25: 4.13 | AA25: 4.39 | AB25: NA | AC25: 4.32 | AD25: 4.33 | AE25: 3.97 | AF25: 4.04 | AG25: 4.13 | AH25: 4.12 | AI25: NA | AJ25: NA | AK25: NA | AL25: 4.25 | AM25: 4.14 | AN25: 4.19 | AO25: 4.21 | AP25: NA | AQ25: 4.13 | AR25: 4.43 | AS25: NA | AT25: 4.25 | AV25: 4.2 | AW25: 4.19 | AX25: 4.09 | AY25: 4.11 | AZ25: 4.18 | BA25: 4.2 | BB25: 4.19 | BC25: 4.21 | BD25: 4.25 | BE25: 4.25 | BF25: NA | BG25: 4.04 | BH25: 4.06 | BI25: NA | BJ25: 4.21 | BK25: 4.18 | BL25: NA | BM25: 4.58 | BN25: NA | BO25: 4.76 | BP25: 4.62 | BQ25: 4.92 | BR25: 4.9 | BS25: 4.84 | BT25: 4.79 | BU25: 4.77 | BV25: NA | BW25: 4.4 | BX25: 4.41 | BY25: 4.4 | BZ25: 4.46 | CA25: 4.56 | CB25: NA | CC25: 4.52 | CD25: 4.74 | CE25: 4.24 | CF25: 4.27 | CG25: 4.26 | CH25: 4.18 | CI25: 4.06 | CJ25: 3.66 | CK25: NA | CL25: 4.23 | CM25: 4.53 | CN25: 4.19 | CO25: 4.23 | CP25: 4.3 | CQ25: 4.18
A26: 2011-03-01 | B26: 3.74 | C26: 3.64 | D26: NA | E26: 3.61 | F26: 3.6 | G26: 3.9 | H26: 3.75 | I26: 3.72 | J26: 3.93 | K26: 3.73 | L26: 3.66 | M26: NA | N26: 3.77 | O26: 3.78 | P26: 3.81 | Q26: NA | R26: NA | S26: 3.62 | U26: NA | V26: NA | W26: 3.67 | X26: NA | Y26: 3.71 | Z26: 3.68 | AA26: NA | AB26: NA | AC26: 3.92 | AD26: 3.88 | AE26: 3.61 | AF26: 3.82 | AG26: 3.66 | AH26: 3.63 | AI26: 3.54 | AJ26: NA | AK26: NA | AL26: 3.8 | AM26: 3.63 | AN26: 3.74 | AO26: 3.73 | AP26: NA | AQ26: 3.73 | AR26: 3.9 | AS26: NA | AT26: 3.8 | AV26: 3.76 | AW26: 3.73 | AX26: 3.64 | AY26: 3.71 | AZ26: 3.73 | BA26: 3.73 | BB26: 3.74 | BC26: 3.75 | BD26: 3.8 | BE26: 3.78 | BF26: NA | BG26: 3.65 | BH26: 3.73 | BI26: NA | BJ26: 3.75 | BK26: 3.73 | BL26: NA | BM26: 4.28 | BN26: NA | BO26: 4.66 | BP26: 4.38 | BQ26: 4.93 | BR26: 4.95 | BS26: 4.72 | BT26: 4.7 | BU26: 4.38 | BV26: NA | BW26: 4.89 | BX26: 3.9 | BY26: 3.95 | BZ26: 3.99 | CA26: 4.03 | CB26: NA | CC26: 4.09 | CD26: 4.3 | CE26: 3.79 | CF26: 3.77 | CG26: 3.77 | CH26: 3.7 | CI26: 3.63 | CJ26: 3.31 | CK26: NA | CL26: 3.81 | CM26: 4.08 | CN26: 3.83 | CO26: 3.83 | CP26: 3.86 | CQ26: 3.73
A27: 2011-02-01 | B27: 4.26 | C27: 4.25 | D27: NA | E27: 4.21 | F27: 4.09 | G27: 4.47 | H27: 4.28 | I27: 4.26 | J27: 4.52 | K27: 4.16 | L27: 4.08 | M27: NA | N27: 4.29 | O27: 4.31 | P27: 4.35 | Q27: NA | R27: NA | S27: 4.08 | U27: NA | V27: NA | W27: 4.21 | X27: NA | Y27: 4.32 | Z27: 4.21 | AA27: 4.45 | AB27: NA | AC27: 4.51 | AD27: 4.5 | AE27: 4.08 | AF27: 4.11 | AG27: 4.31 | AH27: 4.23 | AI27: 4.09 | AJ27: NA | AK27: NA | AL27: 4.35 | AM27: 4.24 | AN27: 4.32 | AO27: 4.33 | AP27: NA | AQ27: 4.26 | AR27: 4.48 | AS27: NA | AT27: 4.34 | AV27: 4.3 | AW27: 4.24 | AX27: 4.133 | AY27: 4.16 | AZ27: 4.27 | BA27: 4.26 | BB27: 4.25 | BC27: 4.28 | BD27: 4.6 | BE27: 4.35 | BF27: NA | BG27: 4.13 | BH27: 4.14 | BI27: NA | BJ27: 4.28 | BK27: 4.26 | BL27: NA | BM27: 6.88 | BN27: NA | BO27: 7.85 | BP27: 7.39 | BQ27: 5.41 | BR27: 7.6 | BS27: 7.42 | BT27: 7.32 | BU27: 4.93 | BV27: NA | BW27: 4.47 | BX27: 4.47 | BY27: 4.63 | BZ27: 4.51 | CA27: 4.52 | CB27: NA | CC27: 4.57 | CD27: 4.74 | CE27: 4.32 | CF27: 4.3 | CG27: 4.29 | CH27: 4.22 | CI27: 4.17 | CJ27: 3.6 | CK27: NA | CL27: 4.17 | CM27: 4.34 | CN27: 4.21 | CO27: 4.23 | CP27: 4.27 | CQ27: 4.27
A28: 2011-01-01 | B28: 4.19 | C28: 3.97 | D28: NA | E28: 3.96 | F28: 3.79 | G28: 4.38 | H28: 4.19 | I28: 4.18 | J28: 4.57 | K28: 3.88 | L28: 3.86 | M28: NA | N28: 4.19 | O28: 4.24 | P28: 4.26 | Q28: NA | R28: NA | S28: 3.82 | U28: NA | V28: NA | W28: 3.96 | X28: NA | Y28: 4.03 | Z28: 4.09 | AA28: 4.26 | AB28: NA | AC28: 4.24 | AD28: 4.25 | AE28: 3.82 | AF28: 4.19 | AG28: 4.1 | AH28: 3.93 | AI28: 3.77 | AJ28: NA | AK28: NA | AL28: 4.27 | AM28: 3.88 | AN28: 4.22 | AO28: 4.2 | AP28: NA | AQ28: 4.18 | AR28: 4.42 | AS28: NA | AT28: 4.27 | AV28: 4.19 | AW28: 4.15 | AX28: 4.07 | AY28: 4.07 | AZ28: 4.18 | BA28: 4.17 | BB28: 4.17 | BC28: 4.22 | BD28: 4.27 | BE28: 4.23 | BF28: NA | BG28: 3.83 | BH28: 3.91 | BI28: NA | BJ28: 4.2 | BK28: 4.19 | BL28: NA | BM28: 7.03 | BN28: NA | BO28: 8.77 | BP28: 7.51 | BQ28: 5.51 | BR28: 7.47 | BS28: 7.45 | BT28: 7.4 | BU28: 4.94 | BV28: NA | BW28: 4.42 | BX28: 4.43 | BY28: 4.4 | BZ28: 4.45 | CA28: 4.4 | CB28: NA | CC28: 4.55 | CD28: 4.69 | CE28: 4.22 | CF28: 4.1 | CG28: 4.01 | CH28: 3.91 | CI28: 3.89 | CJ28: 3.57 | CK28: NA | CL28: 4.06 | CM28: 4.26 | CN28: 4.2 | CO28: 4.05 | CP28: 4.1 | CQ28: 4.11
A29: 2010-12-01 | B29: 4.22 | C29: 4.09 | D29: NA | E29: 4.06 | F29: 3.99 | G29: 4.41 | H29: 4.24 | I29: 4.21 | J29: 4.48 | K29: 4.14 | L29: 4.12 | M29: NA | N29: 4.24 | O29: 4.23 | P29: 4.28 | Q29: NA | R29: NA | S29: 4 | U29: NA | V29: NA | W29: 4.11 | X29: NA | Y29: 4.15 | Z29: 4.12 | AA29: 4.54 | AB29: NA | AC29: 4.46 | AD29: 4.447 | AE29: 4 | AF29: 4.98 | AG29: 4.18 | AH29: 4.1 | AI29: 3.9 | AJ29: NA | AK29: NA | AL29: 4.29 | AM29: 4.04 | AN29: 4.24 | AO29: 4.23 | AP29: NA | AQ29: 4.22 | AR29: 4.47 | AS29: NA | AT29: 4.31 | AV29: 4.24 | AW29: 4.16 | AX29: 4.14 | AY29: 4.09 | AZ29: 4.19 | BA29: 4.21 | BB29: 4.24 | BC29: 4.25 | BD29: 4.3 | BE29: 4.29 | BF29: NA | BG29: 4.13 | BH29: 4.14 | BI29: NA | BJ29: 4.23 | BK29: 4.23 | BL29: NA | BM29: 5.13 | BN29: NA | BO29: 5.72 | BP29: 5.24 | BQ29: 5.59 | BR29: 6.04 | BS29: 6 | BT29: 6.06 | BU29: 5.04 | BV29: NA | BW29: 4.43 | BX29: 4.44 | BY29: 4.51 | BZ29: 4.45 | CA29: 4.52 | CB29: NA | CC29: 4.55 | CD29: 4.82 | CE29: 4.27 | CF29: 4.22 | CG29: 4.18 | CH29: 4.16 | CI29: 4.06 | CJ29: 3.76 | CK29: NA | CL29: 4.32 | CM29: 4.64 | CN29: 4.27 | CO29: 4.29 | CP29: 4.32 | CQ29: 4.22
A30: 2010-11-01 | B30: 3.25 | C30: 3.03 | D30: NA | E30: 2.95 | F30: 2.88 | G30: 3.36 | H30: 3.24 | I30: 3.23 | J30: 3.42 | K30: 2.99 | L30: 2.98 | M30: NA | N30: 3.33 | O30: 3.28 | P30: 3.29 | Q30: NA | R30: NA | S30: 2.93 | U30: NA | V30: NA | W30: 3.03 | X30: NA | Y30: 3.18 | Z30: 3.19 | AA30: 3.51 | AB30: NA | AC30: 3.42 | AD30: 3.51 | AE30: 2.92 | AF30: 3.75 | AG30: 3.06 | AH30: 3.03 | AI30: 2.98 | AJ30: NA | AK30: NA | AL30: 3.31 | AM30: 2.97 | AN30: 3.25 | AO30: 3.22 | AP30: NA | AQ30: 3.23 | AR30: 3.42 | AS30: NA | AT30: 3.31 | AV30: 3.28 | AW30: 3.24 | AX30: 3.12 | AY30: 3.14 | AZ30: 3.22 | BA30: 3.24 | BB30: 3.27 | BC30: 3.3 | BD30: 3.35 | BE30: 3.29 | BF30: NA | BG30: 2.93 | BH30: 3.01 | BI30: NA | BJ30: 3.24 | BK30: 3.24 | BL30: NA | BM30: 3.62 | BN30: NA | BO30: 3.67 | BP30: 3.64 | BQ30: 3.9 | BR30: 3.91 | BS30: 3.73 | BT30: 3.72 | BU30: 3.8 | BV30: NA | BW30: 3.38 | BX30: 3.38 | BY30: 3.44 | BZ30: 3.38 | CA30: 3.5 | CB30: NA | CC30: 3.5 | CD30: 3.76 | CE30: 3.29 | CF30: 3.25 | CG30: 3.25 | CH30: 3.09 | CI30: 2.95 | CJ30: 3.16 | CK30: NA | CL30: 3.54 | CM30: 3.96 | CN30: 3.15 | CO30: 3.12 | CP30: 3.18 | CQ30: 3.2
A31: 2010-10-01 | B31: 3.78 | C31: 3.55 | D31: NA | E31: 3.58 | F31: 3.39 | G31: 3.91 | H31: 3.78 | I31: 3.76 | J31: 3.91 | K31: 3.61 | L31: 3.56 | M31: NA | N31: 3.82 | O31: 3.84 | P31: 3.88 | Q31: NA | R31: NA | S31: 3.41 | U31: NA | V31: NA | W31: 3.59 | X31: NA | Y31: 3.7 | Z31: 3.76 | AA31: 3.9 | AB31: NA | AC31: 3.83 | AD31: 3.84 | AE31: 3.4 | AF31: 3.66 | AG31: 3.57 | AH31: 3.55 | AI31: 3.28 | AJ31: NA | AK31: NA | AL31: 3.83 | AM31: 3.49 | AN31: 3.78 | AO31: 3.77 | AP31: NA | AQ31: 3.75 | AR31: 3.95 | AS31: NA | AT31: 3.83 | AV31: 3.77 | AW31: 3.67 | AX31: 3.65 | AY31: 3.72 | AZ31: 3.77 | BA31: 3.8 | BB31: 3.8 | BC31: 3.82 | BD31: 3.82 | BE31: 3.52 | BF31: =BF25 -> NA | BG31: 3.62 | BH31: 3.78 | BI31: NA | BJ31: 3.77 | BK31: 4.11 | BL31: NA | BM31: 4.12 | BN31: NA | BO31: 4.1 | BP31: 4.29 | BQ31: 4.29 | BR31: 4.16 | BS31: 4.15 | BT31: 4.23 | BU31: 4.89 | BV31: NA | BW31: 3.89 | BX31: 3.9 | BY31: 3.93 | BZ31: 3.9 | CA31: 4.01 | CB31: NA | CC31: 4.04 | CD31: 4.2 | CE31: 3.84 | CF31: 3.86 | CG31: 3.78 | CH31: 3.71 | CI31: 3.42 | CJ31: 3.36 | CK31: NA | CL31: 3.72 | CM31: 4.1 | CN31: 3.8 | CO31: 3.8 | CP31: 3.79 | CQ31: 3.71
A32: 2010-09-01 | B32: 3.59 | C32: 3.31 | D32: NA | E32: 3.45 | F32: 2.66 | G32: 3.7 | H32: 3.6 | I32: 3.59 | J32: 3.7 | K32: 3.36 | L32: 3.22 | M32: NA | N32: 3.65 | O32: 3.66 | P32: 3.74 | Q32: NA | R32: NA | S32: 2.69 | U32: NA | V32: NA | W32: 3.34 | X32: NA | Y32: 3.58 | Z32: 3.58 | AA32: 3.66 | AB32: NA | AC32: 3.62 | AD32: 3.58 | AE32: 2.69 | AF32: 3.11 | AG32: 3.32 | AH32: 3.3 | AI32: 2.57 | AJ32: NA | AK32: NA | AL32: 3.68 | AM32: 3.26 | AN32: 3.59 | AO32: 3.57 | AP32: NA | AQ32: 3.57 | AR32: 3.75 | AS32: NA | AT32: 3.62 | AV32: 3.62 | AW32: 3.556 | AX32: 3.45 | AY32: 3.49 | AZ32: 3.57 | BA32: 3.65 | BB32: 3.6 | BC32: 3.6 | BD32: 3.63 | BE32: 3.64 | BF32: =BF33 -> NA | BG32: 3.27 | BH32: 3.24 | BI32: NA | BJ32: 3.59 | BK32: 3.59 | BL32: NA | BM32: 3.91 | BN32: NA | BO32: 3.91 | BP32: 3.9 | BQ32: 4.04 | BR32: 4.05 | BS32: 3.96 | BT32: 3.93 | BU32: 3.91 | BV32: NA | BW32: 3.69 | BX32: 3.79 | BY32: 3.79 | BZ32: 3.75 | CA32: 3.83 | CB32: NA | CC32: 3.8 | CD32: 3.96 | CE32: 3.64 | CF32: 3.7 | CG32: 3.81 | CH32: 3.46 | CI32: 2.72 | CJ32: 3.01 | CK32: NA | CL32: 3.35 | CM32: 3.63 | CN32: 3.45 | CO32: 3.49 | CP32: 3.52 | CQ32: 3.45
A33: 2010-08-01 | B33: 4.73 | C33: 4.27 | D33: NA | E33: 4.4 | F33: 3.77 | G33: 4.91 | H33: 4.73 | I33: 4.73 | J33: 4.94 | K33: 4.2 | L33: 4.07 | M33: NA | N33: 4.77 | O33: 4.79 | P33: 4.87 | Q33: NA | R33: NA | S33: 3.78 | U33: NA | V33: NA | W33: 4.26 | X33: NA | Y33: 4.51 | Z33: 4.65 | AA33: 4.46 | AB33: NA | AC33: 4.56 | AD33: 4.54 | AE33: 3.78 | AF33: 3.8 | AG33: 4.29 | AH33: 4.27 | AI33: 3.6 | AJ33: NA | AK33: NA | AL33: 4.81 | AM33: 4.37 | AN33: 4.74 | AO33: 4.7 | AP33: NA | AQ33: 4.71 | AR33: 4.93 | AS33: NA | AT33: 4.8 | AV33: 4.78 | AW33: 4.7 | AX33: 4.6 | AY33: 4.62 | AZ33: 4.72 | BA33: 4.74 | BB33: 4.74 | BC33: 4.75 | BD33: 4.78 | BE33: 4.8 | BF33: NA | BG33: 4.15 | BH33: 4.08 | BI33: NA | BJ33: 4.73 | BK33: 4.73 | BL33: NA | BM33: 5.15 | BN33: NA | BO33: 5.19 | BP33: 5.15 | BQ33: 5.22 | BR33: 5.27 | BS33: 5.19 | BT33: 5.18 | BU33: .5.07 | BV33: NA | BW33: 4.89 | BX33: 4.9 | BY33: 4.63 | BZ33: 4.85 | CA33: 4.83 | CB33: NA | CC33: 4.91 | CD33: 5.01 | CE33: 4.78 | CF33: 4.59 | CG33: 4.52 | CH33: 4.31 | CI33: 3.86 | CJ33: 3.5 | CK33: NA | CL33: 4.08 | CM33: 4.44 | CN33: 4.26 | CO33: 4.32 | CP33: 4.33 | CQ33: 4.5
A34: 2010-07-01 | B34: 4.65 | C34: 4.44 | D34: NA | E34: 4.57 | F34: 4.07 | G34: 4.85 | H34: 4.67 | I34: 4.65 | J34: 4.87 | K34: 4.51 | L34: 4.28 | M34: NA | N34: 4.71 | O34: 4.73 | P34: 4.81 | Q34: NA | R34: NA | S34: 4.08 | U34: NA | V34: NA | W34: 4.44 | X34: NA | Y34: 4.58 | Z34: 4.62 | AA34: 4.65 | AB34: NA | AC34: 4.62 | AD34: 4.63 | AE34: 4.08 | AF34: 4.06 | AG34: 4.58 | AH34: 4.45 | AI34: 3.91 | AJ34: NA | AK34: NA | AL34: 4.74 | AM34: 4.4 | AN34: 4.68 | AO34: 4.68 | AP34: NA | AQ34: 4.75 | AR34: NA | AS34: NA | AT34: 4.69 | AV34: 4.64 | AW34: 4.54 | AX34: 4.54 | AY34: 4.54 | AZ34: 4.62 | BA34: 4.68 | BB34: 4.69 | BC34: 4.71 | BD34: 4.71 | BE34: 4.74 | BF34: 4.37 | BG34: NA | BH34: NA | BI34: NA | BJ34: 4.68 | BK34: 4.68 | BL34: NA | BM34: 5.09 | BN34: NA | BO34: 5.12 | BP34: 5.09 | BQ34: 5.13 | BR34: 5.17 | BS34: 5.12 | BT34: 5.09 | BU34: 4.98 | BV34: NA | BW34: 4.84 | BX34: NA | BY34: 4.72 | BZ34: 4.78 | CA34: 4.85 | CB34: NA | CC34: 4.91 | CD34: 4.99 | CE34: 4.73 | CF34: 4.69 | CG34: 4.71 | CH34: 4.62 | CI34: 4.14 | CJ34: 3.75 | CK34: NA | CL34: 4.26 | CM34: 4.64 | CN34: 4.52 | CO34: 4.56 | CP34: 4.56 | CQ34: 4.56
A35: 2010-06-01 | B35: 4.12 | C35: 3.89 | D35: NA | E35: 3.9 | F35: 3.59 | G35: 4.31 | H35: 4.13 | I35: 4.12 | J35: 4.35 | K35: 3.78 | L35: 3.69 | M35: NA | N35: 4.15 | O35: 4.17 | P35: 4.23 | Q35: NA | R35: NA | S35: 3.61 | U35: NA | V35: NA | W35: 3.83 | X35: NA | Y35: 3.97 | Z35: 4.07 | AA35: 3.98 | AB35: NA | AC35: 4.03 | AD35: 4.09 | AE35: 3.61 | AF35: 3.75 | AG35: 3.96 | AH35: 3.88 | AI35: 3.5 | AJ35: NA | AK35: NA | AL35: 4.19 | AM35: 3.92 | AN35: 4.15 | AO35: 4.1 | AP35: NA | AQ35: 4.1 | AR35: NA | AS35: NA | AT35: 4.19 | AV35: 4.18 | AW35: 4.1 | AX35: 3.98 | AY35: 4.04 | AZ35: 4.12 | BA35: 4.19 | BB35: 4.13 | BC35: 4.15 | BD35: 4.17 | BE35: 4.18 | BF35: 3.74 | BG35: NA | BH35: NA | BI35: NA | BJ35: 4.11 | BK35: 4.13 | BL35: NA | BM35: 4.51 | BN35: NA | BO35: 4.53 | BP35: 4.5 | BQ35: 4.61 | BR35: 4.64 | BS35: 4.56 | BT35: 4.53 | BU35: 4.54 | BV35: NA | BW35: 4.29 | BX35: NA | BY35: 4.12 | BZ35: 4.25 | CA35: 4.31 | CB35: NA | CC35: 4.34 | CD35: 4.51 | CE35: 4.16 | CF35: 4.05 | CG35: 4.03 | CH35: 3.95 | CI35: 3.67 | CJ35: 3.71 | CK35: NA | CL35: 3.86 | CM35: 4.28 | CN35: 3.85 | CO35: 3.93 | CP35: 4.02 | CQ35: 4.01
A36: 2010-05-01 | B36: 4.12 | C36: 3.91 | D36: NA | E36: 3.97 | F36: 3.67 | G36: 4.4 | H36: 4.2 | I36: 4.22 | J36: 4.46 | K36: 3.94 | L36: 3.8 | M36: NA | N36: 4.28 | O36: 4.25 | P36: 4.3 | Q36: NA | R36: NA | S36: 3.72 | U36: NA | V36: NA | W36: 3.92 | X36: NA | Y36: 4.1 | Z36: 4.09 | AA36: 4.13 | AB36: NA | AC36: 4.16 | AD36: 4.12 | AE36: 3.72 | AF36: 3.97 | AG36: 3.95 | AH36: 3.9 | AI36: 3.62 | AJ36: NA | AK36: NA | AL36: 4.26 | AM36: 3.87 | AN36: 4.21 | AO36: 4.21 | AP36: NA | AQ36: 4.2 | AR36: NA | AS36: NA | AT36: 4.29 | AV36: 4.23 | AW36: 4.2 | AX36: 4.05 | AY36: 4.02 | AZ36: 4.1 | BA36: 4.24 | BB36: 4.24 | BC36: 4.19 | BD36: 4.22 | BE36: 4.25 | BF36: 3.93 | BG36: NA | BH36: NA | BI36: NA | BJ36: 4.2 | BK36: 4.23 | BL36: NA | BM36: 4.59 | BN36: NA | BO36: 4.6 | BP36: 4.58 | BQ36: 4.7 | BR36: 4.71 | BS36: 4.63 | BT36: 4.62 | BU36: 4.63 | BV36: NA | BW36: 4.38 | BX36: NA | BY36: 4.29 | BZ36: 4.36 | CA36: 4.4 | CB36: NA | CC36: 4.43 | CD36: 4.64 | CE36: 4.27 | CF36: 4.15 | CG36: 4.2 | CH36: 4.1 | CI36: 3.82 | CJ36: 3.63 | CK36: NA | CL36: 4.12 | CM36: 4.53 | CN36: 4.04 | CO36: 4.05 | CP36: 4.12 | CQ36: 4.09
A37: 2010-04-01 | B37: 3.81 | C37: 3.77 | D37: NA | E37: 3.7 | F37: 3.57 | G37: 3.99 | H37: 3.8 | I37: 3.8 | J37: 4.03 | K37: 3.83 | L37: 3.77 | M37: NA | N37: 3.84 | O37: 3.86 | P37: 3.88 | Q37: NA | R37: NA | S37: 3.65 | U37: NA | V37: NA | W37: 3.7 | X37: NA | Y37: 3.79 | Z37: 3.76 | AA37: 3.99 | AB37: NA | AC37: 3.96 | AD37: 3.93 | AE37: 3.64 | AF37: 3.98 | AG37: 3.83 | AH37: 3.78 | AI37: 3.56 | AJ37: NA | AK37: NA | AL37: 3.84 | AM37: 3.72 | AN37: 3.8 | AO37: 3.79 | AP37: NA | AQ37: 3.77 | AR37: NA | AS37: NA | AT37: 3.85 | AV37: 3.84 | AW37: 3.78 | AX37: 3.65 | AY37: 3.7 | AZ37: 3.8 | BA37: 3.84 | BB37: 3.8 | BC37: 3.82 | BD37: 3.82 | BE37: 3.83 | BF37: 3.77 | BG37: NA | BH37: NA | BI37: NA | BJ37: 3.8 | BK37: 3.8 | BL37: NA | BM37: 4.16 | BN37: NA | BO37: 4.19 | BP37: 4.17 | BQ37: 4.22 | BR37: 4.27 | BS37: 4.24 | BT37: 4.21 | BU37: 4.18 | BV37: NA | BW37: 3.96 | BX37: NA | BY37: 4 | BZ37: 4.01 | CA37: 4.06 | CB37: NA | CC37: 4.08 | CD37: 4.2 | CE37: 3.84 | CF37: 3.92 | CG37: 3.9 | CH37: 3.88 | CI37: 3.65 | CJ37: 3.54 | CK37: NA | CL37: 4.06 | CM37: 4.46 | CN37: 4.01 | CO37: 4.05 | CP37: 4.12 | CQ37: 3.8
A38: 2010-03-01 | B38: 4.78 | C38: 4.69 | D38: NA | E38: 4.66 | F38: 4.56 | G38: 5 | H38: 4.78 | I38: 4.78 | J38: 5.1 | K38: 4.67 | L38: 4.64 | M38: NA | N38: 4.79 | O38: 4.81 | P38: 4.85 | Q38: NA | R38: NA | S38: 4.58 | U38: NA | V38: NA | W38: 4.67 | X38: NA | Y38: 4.67 | Z38: 4.66 | AA38: 5.05 | AB38: NA | AC38: 4.99 | AD38: 5 | AE38: 4.57 | AF38: 4.78 | AG38: 4.74 | AH38: 4.66 | AI38: 4.47 | AJ38: NA | AK38: NA | AL38: 4.83 | AM38: 4.7 | AN38: 4.73 | AO38: 4.72 | AP38: NA | AQ38: 4.7 | AR38: NA | AS38: NA | AT38: 4.85 | AV38: 4.79 | AW38: 4.74 | AX38: 4.58 | AY38: 4.66 | AZ38: 4.74 | BA38: 4.79 | BB38: 4.75 | BC38: 4.78 | BD38: 4.82 | BE38: 4.81 | BF38: 4.62 | BG38: NA | BH38: NA | BI38: NA | BJ38: 4.78 | BK38: 4.78 | BL38: NA | BM38: 5.27 | BN38: NA | BO38: 5.39 | BP38: 5.28 | BQ38: 5.3 | BR38: 5.41 | BS38: 5.35 | BT38: 5.34 | BU38: 5.16 | BV38: NA | BW38: 4.97 | BX38: NA | BY38: 5.02 | BZ38: 4.98 | CA38: 5.02 | CB38: NA | CC38: 5.06 | CD38: 5.13 | CE38: 4.81 | CF38: 4.77 | CG38: 4.78 | CH38: 4.71 | CI38: 4.64 | CJ38: 4.56 | CK38: NA | CL38: 4.85 | CM38: 5.15 | CN38: 4.81 | CO38: 4.86 | CP38: 4.88 | CQ38: 4.75
A39: 2010-02-01 | B39: 5.27 | C39: 5.39 | D39: NA | E39: 5.33 | F39: 5.32 | G39: 5.53 | H39: 5.26 | I39: 5.28 | J39: 5.57 | K39: 5.35 | L39: 5.32 | M39: NA | N39: 5.27 | O39: 5.29 | P39: 5.34 | Q39: NA | R39: NA | S39: 5.24 | U39: NA | V39: NA | W39: 5.33 | X39: 5.48 | Y39: 5.27 | Z39: 5.25 | AA39: 5.79 | AB39: NA | AC39: 5.82 | AD39: 5.86 | AE39: 5.24 | AF39: 5.51 | AG39: 5.43 | AH39: 5.35 | AI39: 5.06 | AJ39: NA | AK39: NA | AL39: 5.34 | AM39: 5.41 | AN39: 5.29 | AO39: 5.28 | AP39: NA | AQ39: 5.19 | AR39: NA | AS39: NA | AT39: 5.34 | AV39: 5.27 | AW39: 5.24 | AX39: 5.07 | AY39: 5.12 | AZ39: 5.23 | BA39: 5.26 | BB39: 5.23 | BC39: 5.27 | BD39: 5.32 | BE39: 5.32 | BF39: 5.34 | BG39: NA | BH39: NA | BI39: NA | BJ39: 5.27 | BK39: 5.28 | BL39: NA | BM39: 6.58 | BN39: NA | BO39: 7.29 | BP39: 6.57 | BQ39: 6.11 | BR39: 6.92 | BS39: 6.76 | BT39: 6.72 | BU39: 5.77 | BV39: NA | BW39: 5.5 | BX39: NA | BY39: 5.88 | BZ39: 5.51 | CA39: 5.49 | CB39: NA | CC39: 5.59 | CD39: 5.62 | CE39: 5.28 | CF39: 5.48 | CG39: 5.31 | CH39: 5.46 | CI39: 5.27 | CJ39: 5.2 | CK39: NA | CL39: 5.57 | CM39: 5.73 | CN39: 5.47 | CO39: 5.66 | CP39: 5.57 | CQ39: 5.34
A40: 2010-01-01 | B40: 5.79 | C40: 5.66 | D40: NA | E40: 5.67 | F40: 5.54 | G40: 6.05 | H40: 5.81 | I40: 5.83 | J40: 6.21 | K40: 5.75 | L40: 5.72 | M40: NA | N40: 5.82 | O40: 5.84 | P40: 5.86 | Q40: NA | R40: NA | S40: 5.62 | U40: NA | V40: NA | W40: 5.77 | X40: 5.87 | Y40: 5.69 | Z40: 5.65 | AA40: 6.2 | AB40: NA | AC40: 6.16 | AD40: 6.19 | AE40: 5.62 | AF40: 6.49 | AG40: 5.789 | AH40: 5.73 | AI40: 5.55 | AJ40: NA | AK40: NA | AL40: 5.87 | AM40: 5.79 | AN40: 5.84 | AO40: 5.89 | AP40: NA | AQ40: 5.79 | AR40: NA | AS40: NA | AT40: 5.9 | AV40: 5.82 | AW40: 5.81 | AX40: 5.59 | AY40: 5.68 | AZ40: 5.75 | BA40: 5.81 | BB40: 5.81 | BC40: 5.83 | BD40: 5.87 | BE40: 5.86 | BF40: 5.67 | BG40: NA | BH40: NA | BI40: NA | BJ40: 5.82 | BK40: 5.82 | BL40: NA | BM40: 7.43 | BN40: NA | BO40: 9.11 | BP40: 7.49 | BQ40: 6.94 | BR40: 8.47 | BS40: 8.15 | BT40: 8.19 | BU40: 6.4 | BV40: NA | BW40: 6.1 | BX40: NA | BY40: 6.18 | BZ40: 6.06 | CA40: 6.03 | CB40: NA | CC40: 6.19 | CD40: 6.26 | CE40: 5.82 | CF40: 5.83 | CG40: 5.91 | CH40: 5.71 | CI40: 5.69 | CJ40: 5.53 | CK40: NA | CL40: 5.93 | CM40: 6.37 | CN40: 5.95 | CO40: 5.98 | CP40: 6.02 | CQ40: 5.82
A41: 2009-12-01 | B41: 4.49 | C41: 4.47 | D41: NA | E41: 4.35 | F41: 4.2 | G41: 4.66 | H41: 4.47 | I41: 4.47 | J41: 4.75 | K41: 4.32 | L41: 4.28 | M41: NA | N41: 4.47 | O41: 4.5 | P41: 4.5 | Q41: NA | R41: NA | S41: 4.19 | U41: NA | V41: NA | W41: 4.29 | X41: NA | Y41: 4.35 | Z41: 4.43 | AA41: 4.91 | AB41: NA | AC41: 4.77 | AD41: 4.92 | AE41: 4.2 | AF41: 5.47 | AG41: 4.43 | AH41: 4.42 | AI41: 4.1 | AJ41: NA | AK41: NA | AL41: 4.51 | AM41: 4.38 | AN41: 4.49 | AO41: 4.46 | AP41: NA | AQ41: 4.52 | AR41: NA | AS41: NA | AT41: 4.55 | AV41: 4.49 | AW41: 4.46 | AX41: 4.23 | AY41: 4.4 | AZ41: 4.42 | BA41: 4.53 | BB41: 4.45 | BC41: 4.48 | BD41: 4.52 | BE41: 4.51 | BF41: 4.31 | BG41: NA | BH41: NA | BI41: NA | BJ41: 4.47 | BK41: 4.48 | BL41: NA | BM41: 5.37 | BN41: NA | BO41: 6.09 | BP41: 5.41 | BQ41: 5.51 | BR41: 5.83 | BS41: 5.63 | BT41: 5.63 | BU41: 5.13 | BV41: NA | BW41: 4.66 | BX41: NA | BY41: 4.75 | BZ41: 4.77 | CA41: 4.81 | CB41: NA | CC41: 4.95 | CD41: 5.04 | CE41: 4.49 | CF41: 4.57 | CG41: 4.44 | CH41: 4.38 | CI41: 4.32 | CJ41: 4.55 | CK41: NA | CL41: 4.75 | CM41: 5.09 | CN41: 4.63 | CO41: 4.67 | CP41: 4.79 | CQ41: 4.47
A42: 2009-11-01 | B42: 4.28 | C42: 4.32 | D42: NA | E42: 4.22 | F42: 4.32 | G42: 4.47 | H42: 4.26 | I42: 4.26 | J42: 4.57 | K42: 4.29 | L42: 4.26 | M42: NA | N42: NA | O42: 4.29 | P42: 4.31 | Q42: NA | R42: NA | S42: 4.32 | U42: NA | V42: NA | W42: 4.35 | X42: NA | Y42: 4.28 | Z42: 4.17 | AA42: 4.9 | AB42: NA | AC42: 4.72 | AD42: 4.81 | AE42: 4.32 | AF42: 5.22 | AG42: 4.39 | AH42: 4.32 | AI42: 4.28 | AJ42: NA | AK42: NA | AL42: 4.3 | AM42: 4.36 | AN42: 4.27 | AO42: 4.24 | AP42: NA | AQ42: 4.21 | AR42: NA | AS42: NA | AT42: 4.33 | AV42: 4.26 | AW42: 4.25 | AX42: 4 | AY42: 4.17 | AZ42: 4.21 | BA42: 4.26 | BB42: 4.22 | BC42: 4.25 | BD42: 4.29 | BE42: 4.27 | BF42: 4.33 | BG42: NA | BH42: NA | BI42: NA | BJ42: 4.27 | BK42: 4.26 | BL42: NA | BM42: 4.77 | BN42: NA | BO42: 4.91 | BP42: 4.78 | BQ42: 4.88 | BR42: 4.93 | BS42: 4.89 | BT42: 4.88 | BU42: 4.76 | BV42: NA | BW42: 4.43 | BX42: NA | BY42: 4.81 | BZ42: 4.53 | CA42: 4.58 | CB42: NA | CC42: 4.6 | CD42: 4.75 | CE42: 4.28 | CF42: 4.23 | CG42: 4.26 | CH42: 4.44 | CI42: 4.34 | CJ42: 4.51 | CK42: NA | CL42: 4.88 | CM42: 5.3 | CN42: 4.54 | CO42: 4.44 | CP42: 4.62 | CQ42: 4.34
A43: 2009-10-01 | B43: 3.67 | C43: 3.5 | D43: NA | E43: 3.47 | F43: 3.36 | G43: 3.77 | H43: 3.65 | I43: 3.66 | J43: 3.78 | K43: 3.49 | L43: 3.42 | M43: NA | N43: 3.68 | O43: 3.7 | P43: 3.75 | Q43: NA | R43: NA | S43: 3.4 | U43: NA | V43: NA | W43: 3.51 | X43: NA | Y43: 3.6 | Z43: 3.59 | AA43: 3.89 | AB43: NA | AC43: 3.76 | AD43: 3.85 | AE43: 3.4 | AF43: 3.87 | AG43: 3.5 | AH43: 3.5 | AI43: 3.3 | AJ43: NA | AK43: NA | AL43: 3.71 | AM43: 3.49 | AN43: 3.65 | AO43: 3.63 | AP43: NA | AQ43: 3.63 | AR43: NA | AS43: NA | AT43: 3.73 | AV43: 3.68 | AW43: 3.67 | AX43: 3.54 | AY43: 3.57 | AZ43: 3.6 | BA43: 3.65 | BB43: 3.63 | BC43: 3.66 | BD43: 3.67 | BE43: 3.66 | BF43: 3.45 | BG43: NA | BH43: NA | BI43: NA | BJ43: 3.67 | BK43: 3.66 | BL43: NA | BM43: 3.99 | BN43: NA | BO43: 4.02 | BP43: 3.97 | BQ43: 3.93 | BR43: 4.02 | BS43: 4.02 | BT43: 4.02 | BU43: 3.89 | BV43: NA | BW43: 3.69 | BX43: NA | BY43: 3.87 | BZ43: 3.77 | CA43: 3.8 | CB43: NA | CC43: 3.8 | CD43: 3.84 | CE43: 3.72 | CF43: 3.68 | CG43: 3.66 | CH43: 3.53 | CI43: 3.5 | CJ43: 3.62 | CK43: NA | CL43: 3.72 | CM43: 4.08 | CN43: 3.67 | CO43: 3.72 | CP43: 3.8 | CQ43: 3.61
A44: 2009-09-01 | B44: 2.78 | C44: 2.5 | D44: NA | E44: 2.44 | F44: 2.39 | G44: 2.91 | H44: 2.77 | I44: 2.79 | J44: 2.93 | K44: 2.55 | L44: 2.47 | M44: NA | N44: 2.81 | O44: 2.74 | P44: 2.88 | Q44: NA | R44: NA | S44: 2.4 | U44: NA | V44: NA | W44: 2.51 | X44: 2.74 | Y44: 2.62 | Z44: 2.71 | AA44: NA | AB44: NA | AC44: 2.67 | AD44: 2.6 | AE44: 2.4 | AF44: 2.46 | AG44: 2.42 | AH44: 2.46 | AI44: 2.39 | AJ44: NA | AK44: NA | AL44: 2.81 | AM44: 2.47 | AN44: 2.73 | AO44: 2.75 | AP44: NA | AQ44: 2.64 | AR44: NA | AS44: NA | AT44: 2.87 | AV44: 2.78 | AW44: 2.76 | AX44: 2.66 | AY44: 2.65 | AZ44: 2.74 | BA44: 2.77 | BB44: 2.76 | BC44: 2.78 | BD44: 2.81 | BE44: 2.78 | BF44: 2.49 | BG44: NA | BH44: NA | BI44: NA | BJ44: 2.77 | BK44: 2.77 | BL44: NA | BM44: 3.07 | BN44: NA | BO44: 3.1 | BP44: 3.07 | BQ44: 3.04 | BR44: 3.11 | BS44: 3.1 | BT44: 3.11 | BU44: 3.01 | BV44: NA | BW44: 2.79 | BX44: NA | BY44: 2.79 | BZ44: 2.85 | CA44: 2.84 | CB44: NA | CC44: 2.89 | CD44: 2.94 | CE44: 2.84 | CF44: 2.69 | CG44: 2.77 | CH44: 2.6 | CI44: 2.4 | CJ44: 2.25 | CK44: NA | CL44: 2.54 | CM44: 2.92 | CN44: 2.64 | CO44: 2.62 | CP44: 2.69 | CQ44: 2.66
A45: 2009-08-01 | B45: 3.32 | C45: 3.11 | D45: NA | E45: 3.22 | F45: 2.97 | G45: 3.48 | H45: 3.33 | I45: 3.33 | J45: 3.57 | K45: 3.22 | L45: 3.18 | M45: NA | N45: 3.34 | O45: 3.42 | P45: 3.48 | Q45: NA | R45: NA | S45: 2.99 | U45: NA | V45: NA | W45: 3.16 | X45: 3.25 | Y45: 3.3 | Z45: 3.24 | AA45: 3.3 | AB45: NA | AC45: 3.34 | AD45: 3.35 | AE45: 2.98 | AF45: 3.01 | AG45: 3.1 | AH45: 3.12 | AI45: 2.85 | AJ45: NA | AK45: NA | AL45: 3.38 | AM45: 3.05 | AN45: 3.31 | AO45: 3.29 | AP45: NA | AQ45: 3.27 | AR45: NA | AS45: NA | AT45: 3.41 | AV45: 3.34 | AW45: 3.33 | AX45: 3.17 | AY45: 3.27 | AZ45: 3.29 | BA45: 3.37 | BB45: 3.34 | BC45: 3.33 | BD45: 3.37 | BE45: 3.36 | BF45: 3.2 | BG45: NA | BH45: NA | BI45: NA | BJ45: 3.31 | BK45: 3.31 | BL45: NA | BM45: 3.68 | BN45: NA | BO45: 3.76 | BP45: 3.68 | BQ45: 3.59 | BR45: 3.73 | BS45: 3.72 | BT45: 3.73 | BU45: 3.55 | BV45: NA | BW45: 3.29 | BX45: NA | BY45: 3.5 | BZ45: 3.41 | CA45: 3.45 | CB45: NA | CC45: 3.47 | CD45: 3.49 | CE45: 3.37 | CF45: 3.41 | CG45: 3.54 | CH45: 3.3 | CI45: 2.97 | CJ45: 2.82 | CK45: NA | CL45: 3.16 | CM45: 3.64 | CN45: 3.36 | CO45: 3.34 | CP45: 3.39 | CQ45: 3.26
A46: 2009-07-01 | B46: 3.89 | C46: 3.23 | D46: NA | E46: 3.27 | F46: 2.65 | G46: 4.1 | H46: 3.92 | I46: 3.92 | J46: 4.18 | K46: 3.18 | L46: 2.98 | M46: NA | N46: 3.92 | O46: 3.98 | P46: 4.13 | Q46: NA | R46: NA | S46: 2.69 | U46: NA | V46: NA | W46: 3.21 | X46: 3.84 | Y46: 3.45 | Z46: 3.8 | AA46: 3.49 | AB46: NA | AC46: 3.36 | AD46: 3.36 | AE46: 2.69 | AF46: 2.69 | AG46: 3.26 | AH46: 3.15 | AI46: 2.61 | AJ46: NA | AK46: NA | AL46: 3.96 | AM46: 3.17 | AN46: 3.88 | AO46: 3.88 | AP46: NA | AQ46: 3.78 | AR46: NA | AS46: NA | AT46: 4.01 | AV46: 3.96 | AW46: 3.92 | AX46: 3.65 | AY46: 3.79 | AZ46: 3.82 | BA46: 3.88 | BB46: 3.91 | BC46: 3.94 | BD46: 3.99 | BE46: 4.04 | BF46: 3.16 | BG46: NA | BH46: NA | BI46: NA | BJ46: 3.86 | BK46: 3.87 | BL46: NA | BM46: 4.33 | BN46: NA | BO46: 4.46 | BP46: 4.33 | BQ46: 4.22 | BR46: 4.38 | BS46: 4.35 | BT46: 4.35 | BU46: 4.16 | BV46: NA | BW46: 3.89 | BX46: NA | BY46: 3.56 | BZ46: 3.96 | CA46: 3.97 | CB46: NA | CC46: 4.02 | CD46: 4.07 | CE46: 3.96 | CF46: 3.85 | CG46: 3.75 | CH46: 3.39 | CI46: 2.76 | CJ46: 3.16 | CK46: NA | CL46: 3.07 | CM46: 3.42 | CN46: 3.28 | CO46: 3.27 | CP46: 3.27 | CQ46: 3.58
A47: 2009-06-01 | B47: 3.5 | C47: 2.71 | D47: NA | E47: 2.76 | F47: 2.48 | G47: 3.66 | H47: 3.5 | I47: 3.5 | J47: 3.78 | K47: 2.87 | L47: 2.65 | M47: NA | N47: 3.5 | O47: 3.55 | P47: 3.62 | Q47: NA | R47: NA | S47: 2.48 | U47: NA | V47: NA | W47: 2.72 | X47: 3.43 | Y47: 3.19 | Z47: 3.42 | AA47: NA | AB47: NA | AC47: 2.96 | AD47: 3.05 | AE47: 2.48 | AF47: 2.88 | AG47: 2.73 | AH47: 2.67 | AI47: 2.4 | AJ47: NA | AK47: NA | AL47: 3.62 | AM47: 2.69 | AN47: 3.5 | AO47: 3.46 | AP47: NA | AQ47: 3.47 | AR47: NA | AS47: NA | AT47: 3.58 | AV47: 3.52 | AW47: 3.5 | AX47: 3.25 | AY47: 3.4 | AZ47: 3.49 | BA47: 3.55 | BB47: 3.53 | BC47: 3.51 | BD47: 3.6 | BE47: 3.59 | BF47: 2.8 | BG47: NA | BH47: NA | BI47: NA | BJ47: 3.5 | BK47: NA | BL47: NA | BM47: 3.91 | BN47: NA | BO47: 4.01 | BP47: 3.93 | BQ47: 3.91 | BR47: 4.03 | BS47: 3.96 | BT47: 3.98 | BU47: 3.86 | BV47: NA | BW47: NA | BX47: NA | BY47: 3.41 | BZ47: 3.62 | CA47: 3.76 | CB47: NA | CC47: 3.76 | CD47: 3.82 | CE47: 3.54 | CF47: 3.48 | CG47: 3.45 | CH47: 2.91 | CI47: 2.54 | CJ47: 3 | CK47: NA | CL47: 2.99 | CM47: 3.41 | CN47: 3.07 | CO47: 3.02 | CP47: 3.09 | CQ47: 3.21
A48: 2009-05-01 | B48: 3.34 | C48: 2.63 | D48: NA | E48: 2.71 | F48: 2.3 | G48: 3.58 | H48: 3.29 | I48: 3.29 | J48: 3.65 | K48: 2.68 | L48: 2.5 | M48: NA | N48: 3.28 | O48: 3.34 | P48: 3.41 | Q48: NA | R48: NA | S48: 2.3 | U48: NA | V48: NA | W48: 2.64 | X48: 3.12 | Y48: 3 | Z48: 3.13 | AA48: NA | AB48: NA | AC48: 2.82 | AD48: 2.89 | AE48: 2.3 | AF48: 2.74 | AG48: 2.73 | AH48: 2.58 | AI48: 2.46 | AJ48: NA | AK48: NA | AL48: 3.35 | AM48: 2.66 | AN48: 3.28 | AO48: 3.29 | AP48: NA | AQ48: 3.13 | AR48: NA | AS48: NA | AT48: 3.38 | AV48: 3.3 | AW48: 3.29 | AX48: 3.05 | AY48: 3.1 | AZ48: 3.24 | BA48: 3.3 | BB48: 3.28 | BC48: 3.33 | BD48: 3.39 | BE48: 3.43 | BF48: 2.63 | BG48: NA | BH48: NA | BI48: NA | BJ48: 3.29 | BK48: NA | BL48: NA | BM48: 3.71 | BN48: NA | BO48: 3.82 | BP48: 3.77 | BQ48: 3.81 | BR48: 3.89 | BS48: 3.8 | BT48: 3.84 | BU48: 3.75 | BV48: NA | BW48: NA | BX48: NA | BY48: 3.12 | BZ48: 3.52 | CA48: 3.56 | CB48: NA | CC48: 3.59 | CD48: 3.7 | CE48: 3.33 | CF48: 3.19 | CG48: 3.16 | CH48: 2.77 | CI48: 2.41 | CJ48: 3.08 | CK48: NA | CL48: 2.85 | CM48: 3.22 | CN48: 2.84 | CO48: 2.82 | CP48: 2.87 | CQ48: 3.023
A49: 2009-04-01 | B49: 3.6 | C49: 2.57 | D49: NA | E49: 2.64 | F49: 2.31 | G49: 3.87 | H49: 3.58 | I49: 3.58 | J49: 3.94 | K49: 2.72 | L49: 2.62 | M49: NA | N49: 3.52 | O49: 3.64 | P49: 3.65 | Q49: NA | R49: NA | S49: 2.33 | U49: NA | V49: NA | W49: 2.67 | X49: 3.33 | Y49: 3.09 | Z49: 3.31 | AA49: NA | AB49: NA | AC49: 2.95 | AD49: 3.52 | AE49: 2.33 | AF49: 3.59 | AG49: 2.74 | AH49: 2.52 | AI49: 2.28 | AJ49: NA | AK49: NA | AL49: 3.6 | AM49: 2.59 | AN49: 3.59 | AO49: 3.53 | AP49: NA | AQ49: 3.29 | AR49: NA | AS49: NA | AT49: 3.61 | AV49: 3.58 | AW49: 3.53 | AX49: 2.99 | AY49: 3.25 | AZ49: 3.53 | BA49: 3.54 | BB49: 3.41 | BC49: 3.56 | BD49: 3.62 | BE49: 3.6 | BF49: 2.77 | BG49: NA | BH49: NA | BI49: NA | BJ49: 3.55 | BK49: NA | BL49: NA | BM49: 4.02 | BN49: NA | BO49: 4.16 | BP49: 4.04 | BQ49: 4.07 | BR49: 4.17 | BS49: 4.13 | BT49: 4.15 | BU49: 4.01 | BV49: NA | BW49: NA | BX49: NA | BY49: 3.52 | BZ49: 3.83 | CA49: 3.89 | CB49: NA | CC49: 3.92 | CD49: 3.96 | CE49: 3.65 | CF49: 3.65 | CG49: 3.47 | CH49: 2.91 | CI49: 2.4 | CJ49: 3.71 | CK49: NA | CL49: 3.63 | CM49: 3.99 | CN49: 3.31 | CO49: 3.2 | CP49: 3.24 | CQ49: 3.2
A50: 2009-03-01 | B50: 4.08 | C50: 2.61 | D50: NA | E50: 2.63 | F50: 2.47 | G50: 4.32 | H50: 4.03 | I50: 4.07 | J50: 4.44 | K50: 2.74 | L50: 2.69 | M50: NA | N50: 3.89 | O50: 4.07 | P50: 4.12 | Q50: NA | R50: NA | S50: 2.51 | U50: NA | V50: NA | W50: 2.59 | X50: 3.71 | Y50: 3.26 | Z50: 3.58 | AA50: NA | AB50: NA | AC50: 3.02 | AD50: 3.96 | AE50: 2.5 | AF50: 3.83 | AG50: 2.64 | AH50: 2.56 | AI50: 2.43 | AJ50: NA | AK50: NA | AL50: 4.13 | AM50: 2.59 | AN50: 4.07 | AO50: 3.98 | AP50: NA | AQ50: 3.64 | AR50: NA | AS50: NA | AT50: 4.14 | AV50: 4.06 | AW50: 3.99 | AX50: 3.27 | AY50: 3.5 | AZ50: 3.96 | BA50: 4 | BB50: 3.66 | BC50: 3.99 | BD50: 4.12 | BE50: 4.11 | BF50: 2.72 | BG50: NA | BH50: NA | BI50: NA | BJ50: 4 | BK50: NA | BL50: NA | BM50: 4.72 | BN50: NA | BO50: 4.88 | BP50: 4.73 | BQ50: 4.69 | BR50: 4.85 | BS50: 4.81 | BT50: 4.83 | BU50: 4.6 | BV50: NA | BW50: NA | BX50: NA | BY50: 4.03 | BZ50: 4.25 | CA50: 4.26 | CB50: NA | CC50: 4.34 | CD50: 4.46 | CE50: 4.07 | CF50: 3.51 | CG50: 3.58 | CH50: 2.87 | CI50: 2.54 | CJ50: 4.21 | CK50: NA | CL50: 3.82 | CM50: 4.2 | CN50: 3.24 | CO50: 3.23 | CP50: 3.31 | CQ50: 3.48
A51: 2009-02-01 | B51: 4.56 | C51: 3.1 | D51: NA | E51: 3.03 | F51: 2.98 | G51: 4.85 | H51: 4.46 | I51: 4.5 | J51: 5.03 | K51: 3.17 | L51: 3.11 | M51: NA | N51: 4.27 | O51: 4.51 | P51: 4.52 | Q51: NA | R51: NA | S51: 3.01 | U51: NA | V51: NA | W51: 3.11 | X51: 4.14 | Y51: 3.89 | Z51: 3.94 | AA51: NA | AB51: NA | AC51: 3.56 | AD51: 4.86 | AE51: 3.01 | AF51: 4.8 | AG51: 3.09 | AH51: 3.02 | AI51: 2.87 | AJ51: NA | AK51: NA | AL51: 4.56 | AM51: 3.08 | AN51: 4.54 | AO51: 4.46 | AP51: NA | AQ51: 4.05 | AR51: NA | AS51: NA | AT51: 4.61 | AV51: 4.51 | AW51: 4.45 | AX51: 3.75 | AY51: 3.87 | AZ51: 4.46 | BA51: 4.45 | BB51: 4.04 | BC51: 4.43 | BD51: 4.53 | BE51: 4.52 | BF51: 3.16 | BG51: NA | BH51: NA | BI51: NA | BJ51: 4.45 | BK51: NA | BL51: NA | BM51: 6.41 | BN51: NA | BO51: 7.76 | BP51: 6.49 | BQ51: 5.51 | BR51: 7.43 | BS51: 7.15 | BT51: 7.16 | BU51: 5.37 | BV51: NA | BW51: NA | BX51: NA | BY51: 4.93 | BZ51: 4.85 | CA51: 4.86 | CB51: NA | CC51: 4.96 | CD51: 5.22 | CE51: 4.49 | CF51: 4.06 | CG51: 4.08 | CH51: 3.3 | CI51: 3.08 | CJ51: 4.88 | CK51: NA | CL51: 4.51 | CM51: 4.76 | CN51: 3.64 | CO51: 3.57 | CP51: 3.72 | CQ51: 3.96
A52: 2009-01-01 | B52: 6.22 | C52: 4.7 | D52: NA | E52: 4.46 | F52: 4.35 | G52: 6.44 | H52: 6.14 | I52: 6.15 | J52: 6.61 | K52: 4.81 | L52: 4.83 | M52: NA | N52: 5.97 | O52: 6.15 | P52: 6.17 | Q52: NA | R52: NA | S52: 4.44 | U52: NA | V52: NA | W52: 4.66 | X52: NA | Y52: 5.3 | Z52: 5.58 | AA52: NA | AB52: NA | AC52: 5.18 | AD52: 6.17 | AE52: 4.43 | AF52: 6.89 | AG52: 4.61 | AH52: 4.57 | AI52: 4.21 | AJ52: NA | AK52: NA | AL52: 6.21 | AM52: 4.74 | AN52: 6.18 | AO52: 6.19 | AP52: NA | AQ52: 5.88 | AR52: NA | AS52: NA | AT52: 6.27 | AV52: 6.16 | AW52: 6.11 | AX52: 5.3 | AY52: 5.48 | AZ52: 6.11 | BA52: 6.06 | BB52: 5.93 | BC52: 6.09 | BD52: 6.23 | BE52: 6.22 | BF52: 4.77 | BG52: NA | BH52: NA | BI52: NA | BJ52: 6.09 | BK52: NA | BL52: NA | BM52: 8.46 | BN52: NA | BO52: 9.52 | BP52: 8.58 | BQ52: 7.16 | BR52: 9.14 | BS52: 8.98 | BT52: 9 | BU52: 6.83 | BV52: NA | BW52: NA | BX52: NA | BY52: 6.23 | BZ52: 6.45 | CA52: 6.34 | CB52: NA | CC52: 6.49 | CD52: 6.61 | CE52: 6.16 | CF52: 5.26 | CG52: 5.45 | CH52: 4.9 | CI52: 4.55 | CJ52: 6.19 | CK52: NA | CL52: 5.71 | CM52: 5.98 | CN52: 5.23 | CO52: 5.16 | CP52: 5.29 | CQ52: 5.57
A53: 2008-12-01 | B53: 6.89 | C53: 4.64 | D53: NA | E53: 4.21 | F53: 4.63 | G53: 7.13 | H53: 6.86 | I53: 6.86 | J53: 7.45 | K53: 4.86 | L53: 4.63 | M53: NA | N53: 6.69 | O53: 6.9 | P53: 7.02 | Q53: NA | R53: NA | S53: 4.46 | U53: NA | V53: NA | W53: 4.59 | X53: 6.49 | Y53: 5.95 | Z53: 6.41 | AA53: NA | AB53: NA | AC53: 4.93 | AD53: 6.68 | AE53: 4.45 | AF53: 6.66 | AG53: 4.8 | AH53: 4.43 | AI53: 4.83 | AJ53: NA | AK53: NA | AL53: 7.04 | AM53: 4.92 | AN53: 6.92 | AO53: 6.84 | AP53: NA | AQ53: 6.51 | AR53: NA | AS53: NA | AT53: 7.07 | AV53: 6.88 | AW53: 6.86 | AX53: 6.2 | AY53: 6.16 | AZ53: 6.84 | BA53: 6.84 | BB53: 6.56 | BC53: 6.85 | BD53: 7.07 | BE53: 7.03 | BF53: 4.7 | BG53: NA | BH53: NA | BI53: NA | BJ53: 6.85 | BK53: NA | BL53: NA | BM53: 8.38 | BN53: NA | BO53: 9.54 | BP53: 8.51 | BQ53: 7.68 | BR53: 9.47 | BS53: 9.19 | BT53: 9.2 | BU53: 7.52 | BV53: NA | BW53: NA | BX53: NA | BY53: 6.77 | BZ53: 7.07 | CA53: 7.02 | CB53: NA | CC53: 7.12 | CD53: 7.24 | CE53: 6.9 | CF53: 6.11 | CG53: 6.09 | CH53: 4.99 | CI53: 4.74 | CJ53: 6.83 | CK53: NA | CL53: 6.22 | CM53: 6.45 | CN53: 5.41 | CO53: 5.42 | CP53: 5.51 | CQ53: 6.05
A54: 2008-11-01 | B54: 6.5 | C54: 2.92 | D54: NA | E54: 2.61 | F54: 2.78 | G54: 6.74 | H54: 6.42 | I54: 6.42 | J54: 6.83 | K54: 3.24 | L54: 2.84 | M54: NA | N54: 6.24 | O54: 6.46 | P54: 6.47 | Q54: NA | R54: NA | S54: 2.75 | U54: NA | V54: NA | W54: 2.93 | X54: NA | Y54: 5.52 | Z54: 5.95 | AA54: NA | AB54: NA | AC54: 3.25 | AD54: 6.08 | AE54: 2.73 | AF54: 6.28 | AG54: 2.84 | AH54: 2.81 | AI54: 2.61 | AJ54: NA | AK54: NA | AL54: 6.54 | AM54: 2.85 | AN54: 6.42 | AO54: 6.39 | AP54: NA | AQ54: 6.02 | AR54: NA | AS54: NA | AT54: 6.58 | AV54: 6.43 | AW54: 6.39 | AX54: 5.66 | AY54: 5.74 | AZ54: 6.36 | BA54: 6.39 | BB54: 6.01 | BC54: 6.48 | BD54: 6.53 | BE54: 6.55 | BF54: 2.83 | BG54: NA | BH54: NA | BI54: NA | BJ54: 6.42 | BK54: NA | BL54: NA | BM54: 7.15 | BN54: NA | BO54: 7.27 | BP54: 7.14 | BQ54: 7.09 | BR54: 7.27 | BS54: 7.29 | BT54: 7.24 | BU54: 6.98 | BV54: NA | BW54: NA | BX54: NA | BY54: 6.2 | BZ54: 6.63 | CA54: 6.64 | CB54: NA | CC54: 6.72 | CD54: 6.86 | CE54: 6.47 | CF54: 5.72 | CG54: 5.81 | CH54: 3.43 | CI54: 2.89 | CJ54: 6.59 | CK54: NA | CL54: 5.79 | CM54: 6.07 | CN54: 3.72 | CO54: 3.73 | CP54: 3.91 | CQ54: 5.12
A55: 2008-10-01 | B55: 7.39 | C55: 4.16 | D55: NA | E55: 3.93 | F55: 3.41 | G55: 7.68 | H55: 7.39 | I55: 7.39 | J55: 7.6 | K55: 4.62 | L55: 4.27 | M55: NA | N55: 7.37 | O55: 7.3 | P55: 7.57 | Q55: NA | R55: NA | S55: 3.43 | U55: NA | V55: NA | W55: 4.04 | X55: NA | Y55: 6.57 | Z55: 6.89 | AA55: NA | AB55: NA | AC55: 4.55 | AD55: 6.45 | AE55: 3.42 | AF55: 6.23 | AG55: 4.21 | AH55: 4.03 | AI55: 3.36 | AJ55: NA | AK55: NA | AL55: 7.46 | AM55: 4.1 | AN55: 7.38 | AO55: 7.34 | AP55: NA | AQ55: 6.87 | AR55: NA | AS55: NA | AT55: 7.4 | AV55: 7.4 | AW55: 7.33 | AX55: 6.53 | AY55: 6.74 | AZ55: 7.19 | BA55: 7.32 | BB55: 7.03 | BC55: 7.45 | BD55: 7.51 | BE55: 7.52 | BF55: 4.32 | BG55: NA | BH55: NA | BI55: NA | BJ55: 7.34 | BK55: NA | BL55: NA | BM55: 7.9 | BN55: NA | BO55: 7.91 | BP55: 7.91 | BQ55: 7.65 | BR55: 7.91 | BS55: 7.96 | BT55: 7.87 | BU55: 7.59 | BV55: NA | BW55: NA | BX55: NA | BY55: 7.04 | BZ55: 7.5 | CA55: 7.46 | CB55: NA | CC55: 7.58 | CD55: 7.48 | CE55: 7.48 | CF55: 7.27 | CG55: 7 | CH55: 4.92 | CI55: 3.71 | CJ55: 5.76 | CK55: NA | CL55: 6.26 | CM55: 6.49 | CN55: 5.74 | CO55: 5.64 | CP55: 5.61 | CQ55: 6.1
A56: 2008-09-01 | B56: 8.32 | C56: 6.44 | D56: NA | E56: 6.14 | F56: 1.78 | G56: 8.59 | H56: 8.32 | I56: 8.34 | J56: 8.67 | K56: 6.57 | L56: 6.43 | M56: NA | N56: 8.35 | O56: 8.41 | P56: 8.61 | Q56: NA | R56: NA | S56: 1.69 | U56: NA | V56: NA | W56: 6.5 | X56: 8.12 | Y56: 7.7 | Z56: 8.11 | AA56: NA | AB56: NA | AC56: 6.84 | AD56: 7.32 | AE56: 1.68 | AF56: 6.94 | AG56: 6.37 | AH56: 6.34 | AI56: 1.77 | AJ56: NA | AK56: NA | AL56: 8.42 | AM56: 6.41 | AN56: 8.22 | AO56: 8.26 | AP56: NA | AQ56: 7.81 | AR56: NA | AS56: NA | AT56: 8.48 | AV56: 8.26 | AW56: 8.28 | AX56: 7.7 | AY56: 7.89 | AZ56: 8.12 | BA56: 8.21 | BB56: 8.22 | BC56: 8.39 | BD56: 8.45 | BE56: 8.47 | BF56: 6.41 | BG56: NA | BH56: NA | BI56: NA | BJ56: 8.31 | BK56: NA | BL56: NA | BM56: 8.9 | BN56: NA | BO56: 8.94 | BP56: 8.89 | BQ56: 8.68 | BR56: 8.91 | BS56: 8.94 | BT56: 8.9 | BU56: 8.56 | BV56: NA | BW56: NA | BX56: NA | BY56: 7.98 | BZ56: 8.39 | CA56: 8.32 | CB56: NA | CC56: 8.52 | CD56: 8.42 | CE56: 8.4 | CF56: 8.06 | CG56: 7.97 | CH56: 6.71 | CI56: 2.25 | CJ56: 6.8 | CK56: NA | CL56: 7.16 | CM56: 7.74 | CN56: 7.03 | CO56: 7.14 | CP56: NA | CQ56: 7.14
A57: 2008-08-01 | B57: 9.16 | C57: 7.68 | D57: NA | E57: 7.84 | F57: 7.03 | G57: 9.63 | H57: 9.17 | I57: 9.19 | J57: 9.87 | K57: 7.86 | L57: 7.64 | M57: NA | N57: 9.17 | O57: 9.27 | P57: 9.76 | Q57: NA | R57: NA | S57: 7.01 | U57: NA | V57: NA | W57: 7.63 | X57: 9 | Y57: 8.59 | Z57: 8.92 | AA57: NA | AB57: NA | AC57: 7.93 | AD57: 8.13 | AE57: 6.97 | AF57: 7.94 | AG57: 7.8 | AH57: 7.57 | AI57: 6.51 | AJ57: NA | AK57: NA | AL57: 9.34 | AM57: 7.75 | AN57: 9.12 | AO57: 9.11 | AP57: NA | AQ57: 8.86 | AR57: NA | AS57: NA | AT57: 9.44 | AV57: 9.18 | AW57: 9.14 | AX57: 8.79 | AY57: 8.85 | AZ57: 9.08 | BA57: 9.16 | BB57: 9.09 | BC57: 9.25 | BD57: 9.33 | BE57: 9.38 | BF57: 7.77 | BG57: NA | BH57: NA | BI57: NA | BJ57: 9.15 | BK57: NA | BL57: NA | BM57: 10.13 | BN57: NA | BO57: 10.37 | BP57: 10.13 | BQ57: NA | BR57: 10.28 | BS57: 10.24 | BT57: 10.14 | BU57: 9.63 | BV57: NA | BW57: NA | BX57: NA | BY57: 8.95 | BZ57: 9.38 | CA57: 9.41 | CB57: NA | CC57: 9.5 | CD57: 9.45 | CE57: 9.23 | CF57: 9.04 | CG57: 8.94 | CH57: 8.06 | CI57: 7.12 | CJ57: 7.45 | CK57: 8 | CL57: 8.26 | CM57: 8.71 | CN57: 8.28 | CO57: 8.45 | CP57: NA | CQ57: 8.56
A58: 2008-07-01 | B58: 13.08 | C58: 11.3 | D58: NA | E58: 11.24 | F58: 8.89 | G58: 13.54 | H58: 13.09 | I58: 13.07 | J58: 13.73 | K58: 11.61 | L58: 11.36 | M58: NA | N58: 13.04 | O58: 13.15 | P58: 13.97 | Q58: NA | R58: NA | S58: 9.01 | U58: NA | V58: NA | W58: 11.21 | X58: 12.9 | Y58: 12.36 | Z58: 12.77 | AA58: NA | AB58: NA | AC58: 11.66 | AD58: 11.85 | AE58: 9 | AF58: 11.69 | AG58: 11.35 | AH58: 11.07 | AI58: 8.45 | AJ58: NA | AK58: NA | AL58: 13.29 | AM58: 11.2 | AN58: 13.06 | AO58: 13.01 | AP58: NA | AQ58: 12.82 | AR58: NA | AS58: NA | AT58: 13.41 | AV58: 13.08 | AW58: 13.04 | AX58: 12.64 | AY58: 12.79 | AZ58: 13.06 | BA58: 13.07 | BB58: 12.92 | BC58: 13.13 | BD58: 13.25 | BE58: 13.29 | BF58: 11.53 | BG58: NA | BH58: NA | BI58: NA | BJ58: 13.08 | BK58: NA | BL58: NA | BM58: 14.19 | BN58: NA | BO58: 14.34 | BP58: 14.16 | BQ58: NA | BR58: 14.22 | BS58: 14.23 | BT58: 14.04 | BU58: 13.64 | BV58: NA | BW58: NA | BX58: NA | BY58: 12.91 | BZ58: 13.35 | CA58: 13.3 | CB58: NA | CC58: 13.34 | CD58: 13.51 | CE58: 13.11 | CF58: 12.84 | CG58: 12.56 | CH58: 11.81 | CI58: 8.68 | CJ58: 11.04 | CK58: 12.1 | CL58: 12.17 | CM58: 12.58 | CN58: 12.07 | CO58: 12.28 | CP58: NA | CQ58: 12.18
A59: 2008-06-01 | B59: 11.9 | C59: 9.68 | D59: NA | E59: 9.96 | F59: 8.68 | G59: 12.36 | H59: 11.85 | I59: 11.88 | J59: 12.51 | K59: 10.03 | L59: 9.85 | M59: NA | N59: 11.84 | O59: 11.97 | P59: 12.35 | Q59: NA | R59: NA | S59: 8.86 | U59: NA | V59: NA | W59: 9.84 | X59: 11.72 | Y59: 11.48 | Z59: 11.57 | AA59: NA | AB59: NA | AC59: 10.17 | AD59: 10.34 | AE59: 8.84 | AF59: 10.77 | AG59: 10.05 | AH59: 9.65 | AI59: 8.91 | AJ59: NA | AK59: NA | AL59: 11.92 | AM59: 9.78 | AN59: 11.88 | AO59: 11.83 | AP59: NA | AQ59: 11.48 | AR59: NA | AS59: NA | AT59: 12.11 | AV59: 11.88 | AW59: 11.82 | AX59: 11.16 | AY59: 11.47 | AZ59: 11.69 | BA59: 11.77 | BB59: 11.75 | BC59: 11.94 | BD59: 12.01 | BE59: 12.05 | BF59: 10.24 | BG59: NA | BH59: NA | BI59: NA | BJ59: 11.9 | BK59: NA | BL59: NA | BM59: 12.73 | BN59: NA | BO59: 12.77 | BP59: 12.71 | BQ59: NA | BR59: 12.77 | BS59: 12.79 | BT59: 12.74 | BU59: 12.33 | BV59: NA | BW59: NA | BX59: NA | BY59: 11.85 | BZ59: 12.14 | CA59: 12.21 | CB59: NA | CC59: 12.27 | CD59: 12.2 | CE59: 11.93 | CF59: 11.66 | CG59: 11.64 | CH59: 10.43 | CI59: 9.01 | CJ59: 9.7 | CK59: 10.61 | CL59: 10.92 | CM59: 11.31 | CN59: 10.38 | CO59: 10.45 | CP59: NA | CQ59: 11.04
A60: 2008-05-01 | B60: 11.28 | C60: 9.56 | D60: NA | E60: 9.47 | F60: 8.94 | G60: 11.8 | H60: 11.23 | I60: 11.24 | J60: 11.84 | K60: 9.82 | L60: 9.43 | M60: NA | N60: 11.22 | O60: 11.3 | P60: 11.5 | Q60: NA | R60: NA | S60: 8.95 | U60: NA | V60: NA | W60: 9.5 | X60: 11.07 | Y60: 10.61 | Z60: 10.98 | AA60: NA | AB60: NA | AC60: 9.92 | AD60: 10.3 | AE60: 8.93 | AF60: 10.17 | AG60: 9.48 | AH60: 9.4 | AI60: 8.87 | AJ60: NA | AK60: NA | AL60: 11.27 | AM60: 9.67 | AN60: 11.25 | AO60: 11.2 | AP60: NA | AQ60: 10.83 | AR60: NA | AS60: NA | AT60: 11.44 | AV60: 11.21 | AW60: 11.2 | AX60: 10.75 | AY60: 10.9 | AZ60: 11.03 | BA60: 11.24 | BB60: 11.07 | BC60: 11.29 | BD60: 11.32 | BE60: 11.37 | BF60: 9.84 | BG60: NA | BH60: NA | BI60: NA | BJ60: 11.23 | BK60: NA | BL60: NA | BM60: 12.01 | BN60: NA | BO60: 12.03 | BP60: 11.99 | BQ60: NA | BR60: 12.08 | BS60: 12.1 | BT60: 12.07 | BU60: 11.86 | BV60: NA | BW60: NA | BX60: NA | BY60: 10.89 | BZ60: 11.4 | CA60: 11.53 | CB60: NA | CC60: 11.68 | CD60: 11.73 | CE60: 11.29 | CF60: 10.83 | CG60: 10.94 | CH60: 10.08 | CI60: 9.07 | CJ60: 9.54 | CK60: 10.09 | CL60: 10.43 | CM60: 10.85 | CN60: 10.37 | CO60: 10.32 | CP60: NA | CQ60: 10.56
A61: 2008-04-01 | B61: 9.55 | C61: 8.27 | D61: NA | E61: 8.34 | F61: 7.81 | G61: 10.07 | H61: 9.53 | I61: 9.55 | J61: 10.14 | K61: 8.46 | L61: 8.28 | M61: NA | N61: 9.48 | O61: 9.59 | P61: 9.69 | Q61: NA | R61: NA | S61: 7.91 | U61: NA | V61: NA | W61: 8.24 | X61: 9.49 | Y61: 9.12 | Z61: 9.3 | AA61: NA | AB61: NA | AC61: 8.68 | AD61: 9.14 | AE61: 7.9 | AF61: 8.81 | AG61: 8.45 | AH61: 8.23 | AI61: 7.75 | AJ61: NA | AK61: NA | AL61: 9.63 | AM61: 8.27 | AN61: 9.53 | AO61: 9.49 | AP61: NA | AQ61: 9.26 | AR61: NA | AS61: NA | AT61: 9.7 | AV61: 9.53 | AW61: 9.48 | AX61: 9.11 | AY61: 9.21 | AZ61: 9.53 | BA61: 9.53 | BB61: 9.35 | BC61: 9.58 | BD61: 9.65 | BE61: 9.65 | BF61: 8.45 | BG61: NA | BH61: NA | BI61: NA | BJ61: 9.57 | BK61: NA | BL61: NA | BM61: 10.3 | BN61: NA | BO61: 10.4 | BP61: 10.3 | BQ61: NA | BR61: 10.36 | BS61: 10.38 | BT61: 10.32 | BU61: 10.1 | BV61: NA | BW61: NA | BX61: NA | BY61: 9.6 | BZ61: 9.87 | CA61: 9.84 | CB61: NA | CC61: 9.96 | CD61: 9.98 | CE61: 9.59 | CF61: 9.25 | CG61: 9.27 | CH61: 8.65 | CI61: 7.96 | CJ61: 8.37 | CK61: NA | CL61: 8.86 | CM61: 9.33 | CN61: 8.76 | CO61: 8.79 | CP61: NA | CQ61: 9.06
A62: 2008-03-01 | B62: 9.01 | C62: 7.96 | D62: NA | E62: 8.05 | F62: 7.81 | G62: 9.38 | H62: 8.89 | I62: 8.89 | J62: 9.45 | K62: 8.2 | L62: 8.09 | M62: NA | N62: 8.87 | O62: 8.94 | P62: 9.11 | Q62: NA | R62: NA | S62: 7.95 | U62: NA | V62: NA | W62: 7.96 | X62: 8.81 | Y62: 8.67 | Z62: 8.56 | AA62: NA | AB62: NA | AC62: 8.54 | AD62: 9.04 | AE62: 7.94 | AF62: 8.46 | AG62: 8.16 | AH62: 8.01 | AI62: 7.72 | AJ62: NA | AK62: NA | AL62: 9.02 | AM62: 8.05 | AN62: 8.91 | AO62: 8.88 | AP62: NA | AQ62: 8.64 | AR62: NA | AS62: NA | AT62: 9.1 | AV62: 8.92 | AW62: 8.84 | AX62: 8.46 | AY62: 8.55 | AZ62: 8.9 | BA62: 8.99 | BB62: 8.74 | BC62: 9.01 | BD62: 9.09 | BE62: 9.12 | BF62: 8.18 | BG62: NA | BH62: NA | BI62: NA | BJ62: 8.91 | BK62: NA | BL62: NA | BM62: 9.89 | BN62: NA | BO62: 10.31 | BP62: 9.98 | BQ62: NA | BR62: 10.29 | BS62: 10.25 | BT62: 10.1 | BU62: 9.46 | BV62: NA | BW62: NA | BX62: NA | BY62: 9.36 | BZ62: 9.32 | CA62: 9.35 | CB62: NA | CC62: 9.24 | CD62: 9.29 | CE62: 8.96 | CF62: 8.73 | CG62: 8.9 | CH62: 8.36 | CI62: 7.82 | CJ62: 7.69 | CK62: 8.61 | CL62: 8.55 | CM62: 9 | CN62: 8.45 | CO62: 8.5 | CP62: NA | CQ62: 8.61
A63: 2008-02-01 | B63: 7.99 | C63: 7.28 | D63: NA | E63: 7.35 | F63: 7.09 | G63: 8.29 | H63: 7.98 | I63: 7.96 | J63: 8.53 | K63: 7.32 | L63: 7.28 | M63: NA | N63: 7.96 | O63: 8.02 | P63: 8.33 | Q63: NA | R63: NA | S63: 7.12 | U63: NA | V63: NA | W63: 7.27 | X63: 7.78 | Y63: 7.61 | Z63: 7.75 | AA63: NA | AB63: NA | AC63: 7.77 | AD63: 7.99 | AE63: 7.11 | AF63: 8.57 | AG63: 7.36 | AH63: 7.26 | AI63: 7.15 | AJ63: NA | AK63: NA | AL63: 8.23 | AM63: 7.34 | AN63: 8.06 | AO63: 7.96 | AP63: NA | AQ63: 7.84 | AR63: NA | AS63: NA | AT63: 8.21 | AV63: 8.06 | AW63: 7.98 | AX63: 7.66 | AY63: 7.74 | AZ63: 7.95 | BA63: 7.98 | BB63: 7.84 | BC63: 8.05 | BD63: 8.31 | BE63: 8.51 | BF63: 7.32 | BG63: NA | BH63: NA | BI63: NA | BJ63: 8 | BK63: NA | BL63: NA | BM63: 10.21 | BN63: NA | BO63: 12.64 | BP63: 10.66 | BQ63: NA | BR63: 12.48 | BS63: 12.14 | BT63: 10.98 | BU63: 8.63 | BV63: NA | BW63: NA | BX63: NA | BY63: 8.12 | BZ63: 8.17 | CA63: 8.09 | CB63: NA | CC63: 8.22 | CD63: 8.29 | CE63: 8.01 | CF63: 7.74 | CG63: 7.77 | CH63: 7.47 | CI63: 7.19 | CJ63: 6.99 | CK63: 7.68 | CL63: 7.68 | CM63: 7.99 | CN63: 7.69 | CO63: 7.6 | CP63: NA | CQ63: 7.78
A64: 2008-01-01 | B64: 7.16 | C64: 6.2 | D64: NA | E64: 6.19 | F64: 5.98 | G64: 7.42 | H64: 7.15 | I64: 7.13 | J64: 7.73 | K64: 6.38 | L64: 6.38 | M64: NA | N64: 7.06 | O64: 7.18 | P64: 7.45 | Q64: NA | R64: NA | S64: 6.02 | U64: NA | V64: NA | W64: 6.17 | X64: 6.96 | Y64: 6.69 | Z64: 6.77 | AA64: NA | AB64: NA | AC64: 6.62 | AD64: 7.16 | AE64: 6.02 | AF64: 7.48 | AG64: 6.36 | AH64: 6.21 | AI64: 5.89 | AJ64: NA | AK64: NA | AL64: 7.26 | AM64: 6.2 | AN64: 7.16 | AO64: 7.12 | AP64: NA | AQ64: 6.87 | AR64: NA | AS64: NA | AT64: 7.38 | AV64: 7.21 | AW64: 7.1 | AX64: 6.83 | AY64: 6.86 | AZ64: 7.11 | BA64: 7.14 | BB64: 6.94 | BC64: 7.2 | BD64: 7.35 | BE64: 7.62 | BF64: 6.38 | BG64: NA | BH64: NA | BI64: NA | BJ64: 7.18 | BK64: NA | BL64: NA | BM64: 9.13 | BN64: NA | BO64: 13.18 | BP64: 9.28 | BQ64: NA | BR64: 12.32 | BS64: 12.01 | BT64: 11.29 | BU64: 8.24 | BV64: NA | BW64: NA | BX64: NA | BY64: 7.28 | BZ64: 7.42 | CA64: 7.41 | CB64: NA | CC64: 7.5 | CD64: 7.66 | CE64: 7.13 | CF64: 6.73 | CG64: 6.86 | CH64: 6.45 | CI64: 6.14 | CJ64: 6 | CK64: NA | CL64: 6.77 | CM64: 7.11 | CN64: 6.72 | CO64: 6.73 | CP64: NA | CQ64: 6.83
A65: 2007-12-01 | B65: 7.39 | C65: 6.23 | D65: NA | E65: 6.15 | F65: 6.02 | G65: 7.46 | H65: 7.16 | I65: 7.16 | J65: 7.69 | K65: 6.6 | L65: 6.5 | M65: NA | N65: 7.06 | O65: 7.22 | P65: 7.48 | Q65: NA | R65: NA | S65: 6.05 | U65: NA | V65: NA | W65: 6.19 | X65: 6.95 | Y65: 6.7 | Z65: 6.62 | AA65: NA | AB65: NA | AC65: 6.99 | AD65: 7.78 | AE65: 6.04 | AF65: 8.12 | AG65: 6.38 | AH65: 6.22 | AI65: 5.85 | AJ65: NA | AK65: NA | AL65: 7.25 | AM65: 6.18 | AN65: 7.14 | AO65: 7.12 | AP65: NA | AQ65: 6.65 | AR65: NA | AS65: NA | AT65: 7.36 | AV65: 7.17 | AW65: 7.11 | AX65: 6.51 | AY65: 6.56 | AZ65: 7.12 | BA65: 7.19 | BB65: 6.66 | BC65: 7.23 | BD65: 7.36 | BE65: 7.56 | BF65: 6.64 | BG65: NA | BH65: NA | BI65: NA | BJ65: 7.25 | BK65: NA | BL65: NA | BM65: 8.3 | BN65: NA | BO65: 8.85 | BP65: 8.37 | BQ65: NA | BR65: 8.88 | BS65: 8.89 | BT65: 8.54 | BU65: 7.86 | BV65: NA | BW65: NA | BX65: NA | BY65: 7.78 | BZ65: 7.44 | CA65: 7.47 | CB65: NA | CC65: 7.47 | CD65: 7.55 | CE65: 7.21 | CF65: 6.87 | CG65: 6.82 | CH65: 6..67 | CI65: 6.26 | CJ65: 6.21 | CK65: 7.23 | CL65: 7.25 | CM65: 7.66 | CN65: 6.95 | CO65: 6.96 | CP65: NA | CQ65: 6.87
A66: 2007-11-01 | B66: 7.21 | C66: 6.18 | D66: NA | E66: 6.26 | F66: 3.61 | G66: 7.55 | H66: 7.19 | I66: 7.19 | J66: 7.59 | K66: 6.24 | L66: 6.06 | M66: NA | N66: 7.22 | O66: 7.28 | P66: 7.5 | Q66: NA | R66: NA | S66: 3.16 | U66: NA | V66: NA | W66: 6.21 | X66: 7.02 | Y66: 6.75 | Z66: 6.88 | AA66: NA | AB66: NA | AC66: 6.85 | AD66: 7.06 | AE66: 3.15 | AF66: 7.45 | AG66: 6.42 | AH66: 6.18 | AI66: 3.53 | AJ66: NA | AK66: NA | AL66: 7.29 | AM66: 6.23 | AN66: 7.16 | AO66: 7.16 | AP66: NA | AQ66: 7.05 | AR66: NA | AS66: NA | AT66: 7.38 | AV66: 7.2 | AW66: 7.16 | AX66: 6.88 | AY66: 6.88 | AZ66: 7.14 | BA66: 7.14 | BB66: 7.05 | BC66: 7.3 | BD66: 7.39 | BE66: 7.45 | BF66: 6.27 | BG66: NA | BH66: NA | BI66: NA | BJ66: 7.23 | BK66: NA | BL66: NA | BM66: 7.85 | BN66: NA | BO66: 7.9 | BP66: 7.85 | BQ66: NA | BR66: 7.94 | BS66: 7.97 | BT66: 7.92 | BU66: 7.76 | BV66: NA | BW66: NA | BX66: NA | BY66: 7.27 | BZ66: 7.5 | CA66: 7.43 | CB66: NA | CC66: 7.5 | CD66: 7.64 | CE66: 7.27 | CF66: 6.92 | CG66: 6.89 | CH66: 6.36 | CI66: 3.82 | CJ66: 5.99 | CK66: 6.88 | CL66: 6.86 | CM66: 7.31 | CN66: 6.44 | CO66: 6.43 | CP66: NA | CQ66: 6.58
A67: 2007-10-01 | B67: 6.35 | C67: 5.42 | D67: NA | E67: 5.43 | F67: 1.11 | G67: 6.61 | H67: 6.33 | I67: 6.32 | J67: 6.57 | K67: 5.34 | L67: 5.12 | M67: NA | N67: 6.34 | O67: 6.45 | P67: 6.78 | Q67: NA | R67: NA | S67: 1.22 | U67: NA | V67: NA | W67: 5.43 | X67: 6.17 | Y67: 5.85 | Z67: 6.15 | AA67: NA | AB67: NA | AC67: 5.78 | AD67: 5.82 | AE67: 1.2 | AF67: 5.85 | AG67: 5.43 | AH67: 5.32 | AI67: 1.36 | AJ67: NA | AK67: NA | AL67: 6.43 | AM67: 5.34 | AN67: 6.29 | AO67: 6.29 | AP67: NA | AQ67: 6.25 | AR67: NA | AS67: NA | AT67: 6.5 | AV67: 6.34 | AW67: 6.31 | AX67: 6.06 | AY67: 6.07 | AZ67: 6.25 | BA67: 6.31 | BB67: 6.29 | BC67: 6.42 | BD67: 6.5 | BE67: 6.58 | BF67: 5.3 | BG67: NA | BH67: NA | BI67: NA | BJ67: 6.39 | BK67: NA | BL67: NA | BM67: 6.85 | BN67: NA | BO67: 6.87 | BP67: 6.84 | BQ67: NA | BR67: 6.88 | BS67: 6.9 | BT67: 6.87 | BU67: 6.61 | BV67: NA | BW67: NA | BX67: NA | BY67: 6.2 | BZ67: 6.44 | CA67: 6.33 | CB67: NA | CC67: 6.53 | CD67: 6.47 | CE67: 6.43 | CF67: 6.13 | CG67: 6.06 | CH67: 5.44 | CI67: 1.21 | CJ67: 5.04 | CK67: 5.72 | CL67: 5.69 | CM67: 6.14 | CN67: 5.6 | CO67: 5.58 | CP67: NA | CQ67: 5.55
A68: 2007-09-01 | B68: 5.39 | C68: 4.79 | D68: NA | E68: 4.91 | F68: 2.13 | G68: 5.57 | H68: 5.34 | I68: 5.34 | J68: 5.61 | K68: 4.77 | L68: 4.59 | M68: NA | N68: 5.35 | O68: 5.45 | P68: 6.38 | Q68: NA | R68: NA | S68: 2.09 | U68: NA | V68: NA | W68: 4.73 | X68: 5.18 | Y68: 4.99 | Z68: 5.16 | AA68: NA | AB68: NA | AC68: 5 | AD68: 5.03 | AE68: 2.09 | AF68: 4.81 | AG68: 4.88 | AH68: 4.73 | AI68: 2 | AJ68: NA | AK68: NA | AL68: 5.48 | AM68: 4.75 | AN68: 5.38 | AO68: 5.31 | AP68: NA | AQ68: 5.24 | AR68: NA | AS68: NA | AT68: 5.57 | AV68: 5.4 | AW68: 5.33 | AX68: 5.15 | AY68: 5.16 | AZ68: 5.3 | BA68: 5.32 | BB68: 5.24 | BC68: 5.45 | BD68: 5.57 | BE68: 5.67 | BF68: 4.74 | BG68: NA | BH68: NA | BI68: NA | BJ68: 5.4 | BK68: NA | BL68: NA | BM68: 5.84 | BN68: NA | BO68: 5.87 | BP68: 5.84 | BQ68: NA | BR68: 5.88 | BS68: 5.88 | BT68: 5.83 | BU68: 5.64 | BV68: NA | BW68: NA | BX68: NA | BY68: 5.25 | BZ68: 5.48 | CA68: 5.44 | CB68: NA | CC68: 5.52 | CD68: 5.52 | CE68: 5.43 | CF68: 5.23 | CG68: 5.26 | CH68: 4.91 | CI68: NA | CJ68: 4.32 | CK68: 5.04 | CL68: 4.91 | CM68: 5.37 | CN68: 4.93 | CO68: 5 | CP68: NA | CQ68: 4.94
A69: 2007-08-01 | B69: 6.04 | C69: 5.29 | D69: NA | E69: 5.3 | F69: 3.43 | G69: 6.34 | H69: 6.01 | I69: 6.01 | J69: 6.43 | K69: 5.3 | L69: 4.99 | M69: NA | N69: 6.02 | O69: 6.13 | P69: 6.81 | Q69: NA | R69: NA | S69: 3.37 | U69: NA | V69: NA | W69: 5.29 | X69: 5.86 | Y69: 5.54 | Z69: 5.8 | AA69: NA | AB69: NA | AC69: 5.6 | AD69: 5.6 | AE69: 3.37 | AF69: 5.22 | AG69: 5.44 | AH69: 5.26 | AI69: 2.78 | AJ69: NA | AK69: NA | AL69: 6.13 | AM69: 5.22 | AN69: 6.01 | AO69: 5.98 | AP69: NA | AQ69: 5.91 | AR69: NA | AS69: NA | AT69: 6.26 | AV69: 6.04 | AW69: 6.01 | AX69: 5.78 | AY69: 5.84 | AZ69: 5.99 | BA69: 6 | BB69: 5.92 | BC69: 6.13 | BD69: 6.2 | BE69: 6.3 | BF69: 5.26 | BG69: NA | BH69: NA | BI69: NA | BJ69: 6.05 | BK69: NA | BL69: NA | BM69: 6.78 | BN69: NA | BO69: 6.9 | BP69: 6.76 | BQ69: NA | BR69: 6.8 | BS69: 6.8 | BT69: 6.73 | BU69: 6.32 | BV69: NA | BW69: NA | BX69: NA | BY69: 5.85 | BZ69: 6.15 | CA69: 6.1 | CB69: NA | CC69: 6.23 | CD69: 6.25 | CE69: 6.11 | CF69: 5.64 | CG69: 5.83 | CH69: 5.48 | CI69: 3.71 | CJ69: 4.89 | CK69: NA | CL69: 5.42 | CM69: 5.82 | CN69: 5.46 | CO69: 5.49 | CP69: NA | CQ69: 5.54
A70: 2007-07-01 | B70: 6.79 | C70: 6.25 | D70: NA | E70: 6.29 | F70: 3.33 | G70: 7.37 | H70: 6.87 | I70: NA | J70: 7.31 | K70: 6.33 | L70: 6.2 | M70: NA | N70: 6.87 | O70: 6.93 | P70: 7.45 | Q70: NA | R70: NA | S70: 3.39 | U70: NA | V70: NA | W70: 6.16 | X70: 6.68 | Y70: 6.58 | Z70: 6.69 | AA70: NA | AB70: NA | AC70: 6.33 | AD70: 6.35 | AE70: 3.36 | AF70: 6.03 | AG70: 6.22 | AH70: 5.96 | AI70: 3.05 | AJ70: NA | AK70: NA | AL70: 6.96 | AM70: 6.11 | AN70: 6.9 | AO70: 6.85 | AP70: NA | AQ70: 6.8 | AR70: NA | AS70: NA | AT70: NA | AV70: 6.87 | AW70: 6.86 | AX70: 6.61 | AY70: 6.66 | AZ70: 6.76 | BA70: 6.83 | BB70: 6.83 | BC70: 6.94 | BD70: 7.08 | BE70: 7.23 | BF70: 6.36 | BG70: NA | BH70: NA | BI70: NA | BJ70: 6.87 | BK70: NA | BL70: NA | BM70: 7.64 | BN70: NA | BO70: 7.73 | BP70: 7.58 | BQ70: NA | BR70: NA | BS70: 7.67 | BT70: 7.56 | BU70: 7.04 | BV70: NA | BW70: NA | BX70: NA | BY70: 6.81 | BZ70: 6.99 | CA70: 7.01 | CB70: NA | CC70: 7.07 | CD70: 6.99 | CE70: 6.93 | CF70: 6.79 | CG70: 6.76 | CH70: 6.52 | CI70: 3.46 | CJ70: 5.72 | CK70: 6.17 | CL70: 6.4 | CM70: 6.87 | CN70: 6.47 | CO70: 6.57 | CP70: NA | CQ70: 6.31
A71: 2007-06-01 | B71: 7.56 | C71: 6.86 | D71: NA | E71: 6.9 | F71: 3.22 | G71: 8.03 | H71: 7.54 | I71: NA | J71: 8.16 | K71: 6.98 | L71: 6.83 | M71: NA | N71: 7.52 | O71: 7.61 | P71: 8 | Q71: NA | R71: NA | S71: 3.36 | U71: NA | V71: NA | W71: 6.88 | X71: 7.34 | Y71: 7.28 | Z71: 7.31 | AA71: NA | AB71: NA | AC71: 7.11 | AD71: 7.14 | AE71: 3.35 | AF71: 6.86 | AG71: 6.82 | AH71: 6.82 | AI71: 2.82 | AJ71: NA | AK71: NA | AL71: 7.63 | AM71: 6.92 | AN71: 7.64 | AO71: 7.55 | AP71: NA | AQ71: 7.48 | AR71: NA | AS71: NA | AT71: NA | AV71: 7.57 | AW71: 7.52 | AX71: 7.24 | AY71: 7.4 | AZ71: 7.55 | BA71: 7.55 | BB71: 7.52 | BC71: 7.6 | BD71: 7.73 | BE71: 7.83 | BF71: 7.01 | BG71: NA | BH71: NA | BI71: NA | BJ71: 7.57 | BK71: NA | BL71: NA | BM71: 8.25 | BN71: NA | BO71: 8.32 | BP71: 8.28 | BQ71: NA | BR71: NA | BS71: 8.33 | BT71: 8.27 | BU71: 7.97 | BV71: NA | BW71: NA | BX71: NA | BY71: 7.58 | BZ71: 7.76 | CA71: 7.78 | CB71: NA | CC71: 7.63 | CD71: 7.85 | CE71: 7.59 | CF71: 7.51 | CG71: 7.48 | CH71: 7.33 | CI71: 3.41 | CJ71: 6.65 | CK71: 6.76 | CL71: 7.01 | CM71: 7.5 | CN71: 7.16 | CO71: 7.21 | CP71: NA | CQ71: 6.92
A72: 2007-05-01 | B72: 7.54 | C72: 6.63 | D72: NA | E72: 6.79 | F72: 4.59 | G72: 7.82 | H72: 7.44 | I72: NA | J72: 8.01 | K72: 6.76 | L72: 6.63 | M72: NA | N72: 7.39 | O72: 7.52 | P72: 7.76 | Q72: NA | R72: NA | S72: 4.66 | U72: NA | V72: NA | W72: 6.65 | X72: 7.21 | Y72: 7.07 | Z72: 7.25 | AA72: NA | AB72: NA | AC72: 6.99 | AD72: 7.02 | AE72: 4.66 | AF72: 6.74 | AG72: 6.64 | AH72: 6.58 | AI72: 4.34 | AJ72: NA | AK72: NA | AL72: 7.55 | AM72: 6.64 | AN72: 7.52 | AO72: 7.42 | AP72: NA | AQ72: 7.3 | AR72: NA | AS72: NA | AT72: NA | AV72: 7.47 | AW72: 7.42 | AX72: 7.17 | AY72: 7.19 | AZ72: 7.43 | BA72: 7.42 | BB72: 7.33 | BC72: 7.5 | BD72: 7.61 | BE72: 7.68 | BF72: 6.79 | BG72: NA | BH72: NA | BI72: NA | BJ72: 7.45 | BK72: NA | BL72: NA | BM72: 8.1 | BN72: NA | BO72: 8.19 | BP72: 8.13 | BQ72: NA | BR72: NA | BS72: 8.2 | BT72: 8.13 | BU72: 7.92 | BV72: NA | BW72: NA | BX72: NA | BY72: 7.3 | BZ72: 7.71 | CA72: 7.75 | CB72: NA | CC72: 7.77 | CD72: 7.82 | CE72: 7.51 | CF72: 7.36 | CG72: 7.33 | CH72: 7.01 | CI72: 4.73 | CJ72: 7 | CK72: 6.81 | CL72: 7 | CM72: 7.45 | CN72: 7.01 | CO72: 6.98 | CP72: NA | CQ72: 6.94
A73: 2007-04-01 | B73: 7.46 | C73: 6.14 | D73: NA | E73: 6.26 | F73: 3.49 | G73: 7.92 | H73: 7.5 | I73: NA | J73: 7.96 | K73: 6.04 | L73: 5.96 | M73: NA | N73: 7.33 | O73: 7.59 | P73: 7.75 | Q73: NA | R73: NA | S73: 3.56 | U73: NA | V73: NA | W73: 6.04 | X73: 7.16 | Y73: 6.64 | Z73: 7.01 | AA73: NA | AB73: NA | AC73: 6.57 | AD73: 6.86 | AE73: 3.55 | AF73: 6.6 | AG73: 6.28 | AH73: 6.06 | AI73: 3.1 | AJ73: NA | AK73: NA | AL73: 7.59 | AM73: 6.08 | AN73: 7.48 | AO73: 7.46 | AP73: NA | AQ73: 7.04 | AR73: NA | AS73: NA | AT73: NA | AV73: 7.51 | AW73: 7.43 | AX73: 6.97 | AY73: 6.99 | AZ73: 7.3 | BA73: 7.4 | BB73: 7.1 | BC73: 7.53 | BD73: 7.64 | BE73: 7.69 | BF73: 6.05 | BG73: NA | BH73: NA | BI73: NA | BJ73: 7.51 | BK73: NA | BL73: NA | BM73: 8.14 | BN73: NA | BO73: 8.21 | BP73: 8.14 | BQ73: NA | BR73: NA | BS73: 8.2 | BT73: 8.14 | BU73: 7.94 | BV73: NA | BW73: NA | BX73: NA | BY73: 6.92 | BZ73: 7.71 | CA73: 7.69 | CB73: NA | CC73: 7.78 | CD73: 7.81 | CE73: 7.56 | CF73: 6.91 | CG73: 7 | CH73: 6.25 | CI73: 3.69 | CJ73: 7.17 | CK73: 6.52 | CL73: 6.68 | CM73: 7.08 | CN73: 6.39 | CO73: 6.34 | CP73: NA | CQ73: 6.62
A74: 2007-03-01 | B74: 7.46 | C74: 6.75 | D74: NA | E74: 6.59 | F74: 6.17 | G74: 7.75 | H74: 7.5 | I74: NA | J74: 7.94 | K74: 6.76 | L74: 6.68 | M74: NA | N74: 7.4 | O74: 7.57 | P74: 7.73 | Q74: NA | R74: NA | S74: 6.13 | U74: NA | V74: NA | W74: 6.67 | X74: 7.25 | Y74: 6.97 | Z74: 7.01 | AA74: NA | AB74: NA | AC74: 7.19 | AD74: 7.48 | AE74: 6.12 | AF74: 7.15 | AG74: 6.79 | AH74: 6.65 | AI74: 5.79 | AJ74: NA | AK74: NA | AL74: 7.62 | AM74: 6.67 | AN74: 7.56 | AO74: 7.44 | AP74: NA | AQ74: 6.99 | AR74: NA | AS74: NA | AT74: NA | AV74: 7.48 | AW74: 7.41 | AX74: 6.94 | AY74: 6.95 | AZ74: 7.4 | BA74: 7.45 | BB74: 7.09 | BC74: 7.52 | BD74: 7.68 | BE74: 7.76 | BF74: 6.71 | BG74: NA | BH74: NA | BI74: NA | BJ74: 7.53 | BK74: NA | BL74: NA | BM74: 8.2 | BN74: NA | BO74: 8.4 | BP74: 8.14 | BQ74: NA | BR74: NA | BS74: 8.3 | BT74: 8.23 | BU74: 7.92 | BV74: NA | BW74: NA | BX74: NA | BY74: 7.54 | BZ74: 7.65 | CA74: 7.68 | CB74: NA | CC74: 7.73 | CD74: 7.72 | CE74: 7.55 | CF74: 7.01 | CG74: 7 | CH74: 6.84 | CI74: NA | CJ74: 7.45 | CK74: 7.11 | CL74: 7.11 | CM74: 7.57 | CN74: 7.07 | CO74: 7.08 | CP74: NA | CQ74: 7.12
A75: 2007-02-01 | B75: 6.85 | C75: 6.62 | D75: NA | E75: 6.46 | F75: 6.41 | G75: 7.06 | H75: 6.86 | I75: NA | J75: 7.26 | K75: 6.55 | L75: 6.49 | M75: NA | N75: 6.85 | O75: 6.93 | P75: 7.08 | Q75: NA | R75: NA | S75: 6.36 | U75: NA | V75: NA | W75: 6.58 | X75: 6.66 | Y75: 6.63 | Z75: 6.56 | AA75: NA | AB75: NA | AC75: 6.93 | AD75: 7.11 | AE75: 6.34 | AF75: 6.98 | AG75: 6.67 | AH75: 6.62 | AI75: 6 | AJ75: NA | AK75: NA | AL75: 6.97 | AM75: 7.01 | AN75: 6.914 | AO75: 6.84 | AP75: NA | AQ75: 6.57 | AR75: NA | AS75: NA | AT75: NA | AV75: 6.85 | AW75: 6.93 | AX75: 6.53 | AY75: 6.53 | AZ75: 6.82 | BA75: 6.89 | BB75: 6.6 | BC75: 6.9 | BD75: 7.11 | BE75: 7.21 | BF75: 6.5 | BG75: NA | BH75: NA | BI75: NA | BJ75: 6.95 | BK75: NA | BL75: NA | BM75: 8.3 | BN75: NA | BO75: 10.35 | BP75: 8.31 | BQ75: NA | BR75: NA | BS75: 9.73 | BT75: 9.55 | BU75: 7.14 | BV75: NA | BW75: NA | BX75: NA | BY75: 7.1 | BZ75: 6.87 | CA75: 6.88 | CB75: NA | CC75: 7.06 | CD75: 6.95 | CE75: 6.93 | CF75: 6.86 | CG75: 6.63 | CH75: 6.6 | CI75: 6.44 | CJ75: 7.21 | CK75: NA | CL75: 6.74 | CM75: 7.15 | CN75: 6.73 | CO75: 6.86 | CP75: NA | CQ75: 6.75
A76: 2007-01-01 | B76: 5.76 | C76: 5.55 | D76: NA | E76: 5.51 | F76: 4.17 | G76: 6.01 | H76: 5.77 | I76: NA | J76: 6.11 | K76: 5.66 | L76: 5.62 | M76: NA | N76: 5.61 | O76: 5.86 | P76: 6.02 | Q76: NA | R76: NA | S76: 4.16 | U76: NA | V76: NA | W76: 5.55 | X76: 5.39 | Y76: 5.38 | Z76: 5.14 | AA76: NA | AB76: NA | AC76: 6.1 | AD76: 6.63 | AE76: 4.16 | AF76: 6.41 | AG76: 5.49 | AH76: 5.52 | AI76: 3.71 | AJ76: NA | AK76: NA | AL76: 5.92 | AM76: 5.5 | AN76: 5.83 | AO76: 5.72 | AP76: NA | AQ76: 5.28 | AR76: NA | AS76: NA | AT76: NA | AV76: 5.78 | AW76: 5.69 | AX76: 5.56 | AY76: 5.18 | AZ76: 5.71 | BA76: 5.7 | BB76: 5.43 | BC76: 5.79 | BD76: 6 | BE76: 6.17 | BF76: 5.79 | BG76: NA | BH76: NA | BI76: NA | BJ76: 5.81 | BK76: NA | BL76: NA | BM76: 6.91 | BN76: NA | BO76: 7.48 | BP76: 6.85 | BQ76: NA | BR76: NA | BS76: 7.69 | BT76: 7.28 | BU76: 6.37 | BV76: NA | BW76: NA | BX76: NA | BY76: 6.4 | BZ76: 5.97 | CA76: 5.98 | CB76: NA | CC76: 6.04 | CD76: 6.08 | CE76: 5.84 | CF76: 5.74 | CG76: 5.44 | CH76: 5.72 | CI76: 5.3 | CJ76: 5.95 | CK76: NA | CL76: 6.13 | CM76: 6.46 | CN76: 5.96 | CO76: 6.06 | CP76: NA | CQ76: 5.57
A77: 2006-12-01 | B77: 8.14 | C77: 6.66 | D77: NA | E77: 6.74 | F77: 5.63 | G77: 8.53 | H77: 8.27 | I77: NA | J77: 8.7 | K77: 6.65 | L77: 6.45 | M77: NA | N77: 8 | O77: 8.33 | P77: 8.53 | Q77: NA | R77: NA | S77: 5.71 | U77: NA | V77: NA | W77: 6.61 | X77: NA | Y77: 7.17 | Z77: 7.48 | AA77: NA | AB77: NA | AC77: 7.19 | AD77: 7.92 | AE77: 5.7 | AF77: 7.86 | AG77: 6.79 | AH77: 6.6 | AI77: 5.54 | AJ77: NA | AK77: NA | AL77: 8.37 | AM77: 6.71 | AN77: 8.28 | AO77: 8.24 | AP77: NA | AQ77: 7.52 | AR77: NA | AS77: NA | AT77: NA | AV77: 8.24 | AW77: 8.17 | AX77: 7.46 | AY77: 7.38 | AZ77: 8.17 | BA77: 8.08 | BB77: 7.51 | BC77: 8.29 | BD77: 8.54 | BE77: 8.62 | BF77: 6.78 | BG77: NA | BH77: NA | BI77: NA | BJ77: 8.19 | BK77: NA | BL77: NA | BM77: 9.33 | BN77: NA | BO77: 9.75 | BP77: 9.39 | BQ77: NA | BR77: NA | BS77: 9.65 | BT77: 9.67 | BU77: 8.71 | BV77: NA | BW77: NA | BX77: NA | BY77: 8.14 | BZ77: 8.41 | CA77: 8.35 | CB77: NA | CC77: 8.54 | CD77: 8.49 | CE77: 8.33 | CF77: 7.07 | CG77: 7.35 | CH77: 6.65 | CI77: 6.54 | CJ77: 7.77 | CK77: 7.43 | CL77: 7.21 | CM77: 7.57 | CN77: 6.92 | CO77: 6.81 | CP77: NA | CQ77: 7.47
A78: 2006-11-01 | B78: 7.12 | C78: 6.7 | D78: NA | E78: 6.49 | F78: 5.99 | G78: 7.38 | H78: 7.11 | I78: NA | J78: 7.48 | K78: 6.52 | L78: 6.39 | M78: NA | N78: 7.02 | O78: 7.17 | P78: 7.32 | Q78: NA | R78: NA | S78: 6.06 | U78: NA | V78: NA | W78: 6.62 | X78: 6.9 | Y78: 6.89 | Z78: 6.78 | AA78: NA | AB78: NA | AC78: 7.08 | AD78: 7.4 | AE78: 6.05 | AF78: 7.3 | AG78: 6.66 | AH78: 6.47 | AI78: 5.8 | AJ78: NA | AK78: NA | AL78: 7.16 | AM78: 6.37 | AN78: 7.12 | AO78: 7.08 | AP78: NA | AQ78: 6.75 | AR78: NA | AS78: NA | AT78: NA | AV78: 7.08 | AW78: 7.06 | AX78: 6.76 | AY78: 6.73 | AZ78: 6.96 | BA78: 7.01 | BB78: 6.87 | BC78: 7.13 | BD78: 7.35 | BE78: 7.39 | BF78: 6.38 | BG78: NA | BH78: NA | BI78: NA | BJ78: 7.14 | BK78: NA | BL78: NA | BM78: 7.77 | BN78: NA | BO78: 7.83 | BP78: 7.79 | BQ78: NA | BR78: NA | BS78: 7.86 | BT78: 7.8 | BU78: 7.58 | BV78: NA | BW78: NA | BX78: NA | BY78: 7.5 | BZ78: 7.44 | CA78: 7.45 | CB78: NA | CC78: 7.42 | CD78: 7.4 | CE78: 7.16 | CF78: 6.83 | CG78: 7.03 | CH78: 6.52 | CI78: 6.55 | CJ78: 7.04 | CK78: 7.16 | CL78: 7.07 | CM78: 7.27 | CN78: 6.92 | CO78: 6.64 | CP78: NA | CQ78: 6.85
A79: 2006-10-01 | B79: 4.06 | C79: 3.54 | D79: NA | E79: 3.63 | F79: 2.66 | G79: 4.33 | H79: 4.11 | I79: NA | J79: 4.23 | K79: 3.57 | L79: 3.43 | M79: NA | N79: 4.08 | O79: 4.2 | P79: 4.42 | Q79: NA | R79: NA | S79: 2.65 | U79: NA | V79: NA | W79: 3.51 | X79: NA | Y79: 3.92 | Z79: 3.88 | AA79: NA | AB79: NA | AC79: 3.9 | AD79: 4.05 | AE79: 2.65 | AF79: 3.91 | AG79: 3.52 | AH79: 3.54 | AI79: 2.42 | AJ79: NA | AK79: NA | AL79: 4.18 | AM79: 3.49 | AN79: 4.06 | AO79: 4.04 | AP79: NA | AQ79: 3.94 | AR79: NA | AS79: NA | AT79: NA | AV79: 4.11 | AW79: 4.02 | AX79: 3.78 | AY79: 3.83 | AZ79: 4.03 | BA79: 4.01 | BB79: 3.99 | BC79: 4.16 | BD79: 4.23 | BE79: 4.29 | BF79: 3.53 | BG79: NA | BH79: NA | BI79: NA | BJ79: 4.14 | BK79: NA | BL79: NA | BM79: 4.54 | BN79: NA | BO79: 4.54 | BP79: 4.52 | BQ79: NA | BR79: NA | BS79: 4.6 | BT79: 4.56 | BU79: 4.36 | BV79: NA | BW79: NA | BX79: NA | BY79: 4.25 | BZ79: 4.21 | CA79: 4.2 | CB79: NA | CC79: 4.27 | CD79: 4.27 | CE79: 4.2 | CF79: 4 | CG79: 3.97 | CH79: 3.73 | CI79: 3.16 | CJ79: 3.8 | CK79: 3.83 | CL79: 3.94 | CM79: 4.23 | CN79: 3.84 | CO79: 3.93 | CP79: NA | CQ79: 3.8
A80: 2006-09-01 | B80: 6.59 | C80: 5.73 | D80: NA | E80: 6.11 | F80: 4.92 | G80: 7.05 | H80: 6.75 | I80: NA | J80: 7.03 | K80: 6.26 | L80: 5.78 | M80: NA | N80: 6.66 | O80: 6.86 | P80: 7.52 | Q80: NA | R80: NA | S80: 5.13 | U80: NA | V80: NA | W80: 5.98 | X80: NA | Y80: 6.34 | Z80: 6.38 | AA80: NA | AB80: NA | AC80: 6.5 | AD80: 5.9 | AE80: 5.1 | AF80: 5.55 | AG80: 6 | AH80: 5.9 | AI80: 4.12 | AJ80: NA | AK80: NA | AL80: 6.86 | AM80: 5.72 | AN80: 6.84 | AO80: 6.76 | AP80: NA | AQ80: 6.53 | AR80: NA | AS80: NA | AT80: NA | AV80: 6.79 | AW80: 6.7 | AX80: 6.38 | AY80: 6.42 | AZ80: 6.57 | BA80: 6.33 | BB80: 6.62 | BC80: 6.81 | BD80: 7.03 | BE80: 7.15 | BF80: 5.63 | BG80: NA | BH80: NA | BI80: NA | BJ80: 6.75 | BK80: NA | BL80: NA | BM80: 7.39 | BN80: NA | BO80: 7.44 | BP80: 7.34 | BQ80: NA | BR80: NA | BS80: 7.39 | BT80: 7.4 | BU80: 6.94 | BV80: NA | BW80: NA | BX80: NA | BY80: 6.41 | BZ80: 6.75 | CA80: 6.62 | CB80: NA | CC80: 6.94 | CD80: 6.75 | CE80: 6.82 | CF80: 6.37 | CG80: 6.63 | CH80: 6.12 | CI80: 5.27 | CJ80: 5.48 | CK80: 6.02 | CL80: 6.12 | CM80: 6.78 | CN80: 5.95 | CO80: 6.2 | CP80: NA | CQ80: 6.29
A81: 2006-08-01 | B81: 6.91 | C81: 6.15 | D81: NA | E81: 6.47 | F81: 5.77 | G81: 7.23 | H81: 6.97 | I81: NA | J81: 7.4 | K81: 6.19 | L81: 5.97 | M81: NA | N81: 6.91 | O81: 7.09 | P81: 7.49 | Q81: NA | R81: NA | S81: 5.81 | U81: NA | V81: NA | W81: 6.23 | X81: 6.79 | Y81: 6.46 | Z81: 6.68 | AA81: NA | AB81: NA | AC81: 6.34 | AD81: 6.38 | AE81: 5.8 | AF81: 5.91 | AG81: 6.21 | AH81: 6.14 | AI81: 5.5 | AJ81: NA | AK81: NA | AL81: 7.12 | AM81: NA | AN81: 7.07 | AO81: 6.99 | AP81: NA | AQ81: 6.85 | AR81: NA | AS81: NA | AT81: NA | AV81: 6.98 | AW81: 6.95 | AX81: 6.71 | AY81: 6.74 | AZ81: 6.93 | BA81: 6.87 | BB81: 6.88 | BC81: 7.09 | BD81: 7.29 | BE81: 7.4 | BF81: 6.02 | BG81: NA | BH81: NA | BI81: NA | BJ81: 6.96 | BK81: NA | BL81: NA | BM81: 7.71 | BN81: NA | BO81: 7.83 | BP81: 7.75 | BQ81: NA | BR81: NA | BS81: 7.73 | BT81: 7.7 | BU81: 7.06 | BV81: NA | BW81: NA | BX81: NA | BY81: 6.69 | BZ81: 6.95 | CA81: 6.91 | CB81: NA | CC81: 7.07 | CD81: 6.94 | CE81: 7.04 | CF81: 6.36 | CG81: 6.84 | CH81: 6.28 | CI81: 6.05 | CJ81: 6.29 | CK81: 6.22 | CL81: 6.28 | CM81: 6.75 | CN81: 6.46 | CO81: 6.54 | CP81: NA | CQ81: 6.63
A82: 2006-07-01 | B82: 5.77 | C82: 5.17 | D82: NA | E82: 5.31 | F82: 4.98 | G82: 6.05 | H82: 5.79 | I82: NA | J82: 6.2 | K82: 5.35 | L82: 5.08 | M82: NA | N82: 5.75 | O82: 5.94 | P82: 6.04 | Q82: NA | R82: NA | S82: 4.98 | U82: NA | V82: NA | W82: 5.22 | X82: NA | Y82: 5.56 | Z82: 5.54 | AA82: NA | AB82: NA | AC82: 5.4 | AD82: 5.44 | AE82: 4.98 | AF82: 5.09 | AG82: 5.29 | AH82: 5.17 | AI82: 4.75 | AJ82: NA | AK82: NA | AL82: 5.87 | AM82: 5.26 | AN82: 5.84 | AO82: 5.78 | AP82: NA | AQ82: 5.67 | AR82: NA | AS82: NA | AT82: NA | AV82: 5.79 | AW82: 5.75 | AX82: 5.62 | AY82: 5.55 | AZ82: 5.77 | BA82: 5.8 | BB82: 5.72 | BC82: 5.9 | BD82: 6.01 | BE82: 6.19 | BF82: 5.12 | BG82: NA | BH82: NA | BI82: NA | BJ82: 5.79 | BK82: NA | BL82: NA | BM82: 6.43 | BN82: NA | BO82: 6.5 | BP82: 6.41 | BQ82: NA | BR82: NA | BS82: 6.51 | BT82: 6.44 | BU82: 5.9 | BV82: NA | BW82: NA | BX82: NA | BY82: 5.72 | BZ82: 5.81 | CA82: 5.71 | CB82: NA | CC82: 5.93 | CD82: 5.78 | CE82: 5.89 | CF82: 5.69 | CG82: 5.7 | CH82: 5.44 | CI82: 5.18 | CJ82: 5.2 | CK82: 5.17 | CL82: 5.29 | CM82: 5.67 | CN82: 5.35 | CO82: 5.49 | CP82: NA | CQ82: 5.56
A83: 2006-06-01 | B83: 5.88 | C83: 5.08 | D83: NA | E83: 5.24 | F83: 4.77 | G83: 6.15 | H83: 5.87 | I83: NA | J83: 6.25 | K83: 5.07 | L83: 4.76 | M83: NA | N83: 5.81 | O83: 5.96 | P83: 6.2 | Q83: NA | R83: NA | S83: 4.8 | U83: NA | V83: NA | W83: 5.09 | X83: 5.66 | Y83: 5.54 | Z83: 5.69 | AA83: NA | AB83: NA | AC83: 5.33 | AD83: 5.35 | AE83: 4.79 | AF83: 4.91 | AG83: 5.14 | AH83: 5.07 | AI83: 4.53 | AJ83: NA | AK83: NA | AL83: 5.91 | AM83: 5.02 | AN83: 5.82 | AO83: 5.82 | AP83: NA | AQ83: 5.76 | AR83: NA | AS83: NA | AT83: NA | AV83: 5.83 | AW83: 5.81 | AX83: 5.56 | AY83: 5.63 | AZ83: 5.79 | BA83: 5.84 | BB83: 5.77 | BC83: 5.92 | BD83: 6.06 | BE83: 6.21 | BF83: 4.89 | BG83: NA | BH83: NA | BI83: NA | BJ83: 5.86 | BK83: NA | BL83: NA | BM83: 6.44 | BN83: NA | BO83: 6.49 | BP83: 6.45 | BQ83: NA | BR83: NA | BS83: 6.49 | BT83: 6.46 | BU83: 6.2 | BV83: NA | BW83: NA | BX83: NA | BY83: 5.75 | BZ83: 6.05 | CA83: 6.08 | CB83: NA | CC83: 6.12 | CD83: 6.13 | CE83: 5.93 | CF83: 5.74 | CG83: 5.74 | CH83: 5.23 | CI83: 4.82 | CJ83: 5.17 | CK83: 4.98 | CL83: 5.07 | CM83: 5.42 | CN83: 5.04 | CO83: 5.08 | CP83: NA | CQ83: 5.51
A84: 2006-05-01 | B84: 7.12 | C84: 5.78 | D84: NA | E84: 5.93 | F84: 5.61 | G84: 7.51 | H84: 7.12 | I84: NA | J84: 7.5 | K84: 5.88 | L84: 5.69 | M84: NA | N84: 7.09 | O84: 7.22 | P84: 7.37 | Q84: NA | R84: NA | S84: 5.72 | U84: NA | V84: NA | W84: 5.81 | X84: 6.94 | Y84: 6.43 | Z84: 6.53 | AA84: NA | AB84: NA | AC84: 6.04 | AD84: 6.29 | AE84: 5.71 | AF84: 5.89 | AG84: 5.9 | AH84: 5.77 | AI84: 5.39 | AJ84: NA | AK84: NA | AL84: 7.18 | AM84: 5.73 | AN84: 7.09 | AO84: 7.07 | AP84: NA | AQ84: 6.82 | AR84: NA | AS84: NA | AT84: NA | AV84: 7.08 | AW84: 7 | AX84: 6.65 | AY84: 6.66 | AZ84: 6.98 | BA84: 7.09 | BB84: 6.95 | BC84: 7.2 | BD84: 7.26 | BE84: 7.36 | BF84: 5.75 | BG84: NA | BH84: NA | BI84: NA | BJ84: 7.14 | BK84: NA | BL84: NA | BM84: 7.68 | BN84: NA | BO84: 7.7 | BP84: 7.67 | BQ84: NA | BR84: NA | BS84: 7.72 | BT84: 7.69 | BU84: 7.4 | BV84: NA | BW84: NA | BX84: NA | BY84: 6.66 | BZ84: 7.33 | CA84: 7.32 | CB84: NA | CC84: 7.39 | CD84: 7.29 | CE84: 7.22 | CF84: 6.88 | CG84: 6.85 | CH84: 6 | CI84: 5.68 | CJ84: 6.02 | CK84: 6.08 | CL84: 6.09 | CM84: 6.41 | CN84: 6 | CO84: 5.99 | CP84: NA | CQ84: 6.56
A85: 2006-04-01 | B85: 7.06 | C85: 5.83 | D85: NA | E85: 5.89 | F85: 5.58 | G85: 7.61 | H85: 7.18 | I85: NA | J85: 7.61 | K85: 5.7 | L85: 5.57 | M85: NA | N85: 7.12 | O85: 7.24 | P85: 7.34 | Q85: NA | R85: NA | S85: 5.57 | U85: NA | V85: NA | W85: 5.81 | X85: 6.87 | Y85: 6.29 | Z85: 6.62 | AA85: NA | AB85: NA | AC85: 6.1 | AD85: 6.2 | AE85: 5.57 | AF85: 5.81 | AG85: 5.79 | AH85: 5.81 | AI85: 5.32 | AJ85: NA | AK85: NA | AL85: 7.21 | AM85: 5.82 | AN85: 7.15 | AO85: 7.12 | AP85: NA | AQ85: 6.86 | AR85: NA | AS85: NA | AT85: NA | AV85: 7.13 | AW85: 7.03 | AX85: 6.57 | AY85: 6.64 | AZ85: 7.03 | BA85: 7.03 | BB85: 6.82 | BC85: 7.22 | BD85: 7.29 | BE85: 7.31 | BF85: 5.67 | BG85: NA | BH85: NA | BI85: NA | BJ85: 7.12 | BK85: NA | BL85: NA | BM85: 7.71 | BN85: NA | BO85: 7.76 | BP85: 7.72 | BQ85: NA | BR85: NA | BS85: 7.73 | BT85: 7.72 | BU85: 7.25 | BV85: NA | BW85: NA | BX85: NA | BY85: 6.57 | BZ85: 7.15 | CA85: 7.13 | CB85: NA | CC85: 7.28 | CD85: 7.11 | CE85: 7.25 | CF85: 6.82 | CG85: 6.8 | CH85: 5.79 | CI85: 5.84 | CJ85: 6.44 | CK85: 5.88 | CL85: 5.89 | CM85: 6.26 | CN85: 5.87 | CO85: 5.89 | CP85: NA | CQ85: 6.54
A86: 2006-03-01 | B86: 6.94 | C86: 6.23 | D86: NA | E86: 6.28 | F86: 6.14 | G86: 7.44 | H86: 7.08 | I86: NA | J86: 7.53 | K86: 6.06 | L86: 6.1 | M86: NA | N86: 6.94 | O86: 7.11 | P86: 7.24 | Q86: NA | R86: NA | S86: 6.11 | U86: NA | V86: NA | W86: 6.17 | X86: 6.77 | Y86: 6.55 | Z86: 6.64 | AA86: NA | AB86: NA | AC86: 6.54 | AD86: 6.75 | AE86: 6.08 | AF86: 6.39 | AG86: 6.22 | AH86: 6.2 | AI86: 5.81 | AJ86: NA | AK86: NA | AL86: 7.12 | AM86: 6.27 | AN86: 7.03 | AO86: 6.98 | AP86: NA | AQ86: 6.77 | AR86: NA | AS86: NA | AT86: NA | AV86: 6.97 | AW86: 6.86 | AX86: 6.7 | AY86: 6.53 | AZ86: 6.96 | BA86: 6.99 | BB86: 6.71 | BC86: 7.09 | BD86: 7.19 | BE86: 7.41 | BF86: 6.11 | BG86: NA | BH86: NA | BI86: NA | BJ86: 6.99 | BK86: NA | BL86: NA | BM86: 7.76 | BN86: NA | BO86: 7.87 | BP86: 7.73 | BQ86: NA | BR86: NA | BS86: 7.92 | BT86: 7.87 | BU86: 7.41 | BV86: NA | BW86: NA | BX86: NA | BY86: 6.86 | BZ86: 7.27 | CA86: 7.21 | CB86: NA | CC86: 7.29 | CD86: 7.24 | CE86: 7.13 | CF86: 6.66 | CG86: NA | CH86: 6.21 | CI86: 6.22 | CJ86: 6.48 | CK86: 6.39 | CL86: 6.4 | CM86: 6.77 | CN86: 6.25 | CO86: 6.45 | CP86: NA | CQ86: 6.67
A87: 2006-02-01 | B87: 8.12 | C87: 6.81 | D87: NA | E87: 6.98 | F87: 6.65 | G87: 8.71 | H87: 8.38 | I87: NA | J87: 8.7 | K87: 6.75 | L87: 6.69 | M87: NA | N87: 8.26 | O87: 8.36 | P87: 8.55 | Q87: NA | R87: NA | S87: 6.73 | U87: NA | V87: NA | W87: 6.86 | X87: 7.95 | Y87: 7.18 | Z87: 7.23 | AA87: NA | AB87: NA | AC87: 7.24 | AD87: 7.58 | AE87: 6.69 | AF87: 7.12 | AG87: 6.76 | AH87: 6.76 | AI87: 6.39 | AJ87: NA | AK87: NA | AL87: 8.45 | AM87: 6.87 | AN87: 8.32 | AO87: 8.24 | AP87: NA | AQ87: 7.24 | AR87: NA | AS87: NA | AT87: NA | AV87: 8.27 | AW87: 8.14 | AX87: 7.27 | AY87: 6.97 | AZ87: 8.19 | BA87: 8.11 | BB87: 7.12 | BC87: 8.35 | BD87: 8.64 | BE87: 8.71 | BF87: 6.59 | BG87: NA | BH87: NA | BI87: NA | BJ87: 8.25 | BK87: NA | BL87: NA | BM87: 9.3 | BN87: NA | BO87: 9.77 | BP87: 9.29 | BQ87: NA | BR87: NA | BS87: 9.76 | BT87: 9.8 | BU87: 8.64 | BV87: NA | BW87: NA | BX87: NA | BY87: 7.91 | BZ87: 8.33 | CA87: 8.26 | CB87: NA | CC87: 8.52 | CD87: 8.5 | CE87: 8.46 | CF87: 7.23 | CG87: 7.3 | CH87: 6.81 | CI87: 6.67 | CJ87: 7.58 | CK87: 6.9 | CL87: 7.13 | CM87: 7.3 | CN87: 7.07 | CO87: 7.05 | CP87: NA | CQ87: 7.56
A88: 2006-01-01 | B88: 11.15 | C88: 8.72 | D88: NA | E88: 8.78 | F88: 8.84 | G88: 11.77 | H88: 11.46 | I88: NA | J88: 11.93 | K88: 8.66 | L88: 8.7 | M88: NA | N88: 11.28 | O88: 11.45 | P88: 11.75 | Q88: NA | R88: NA | S88: 8.87 | U88: NA | V88: NA | W88: 8.7 | X88: NA | Y88: 8.7 | Z88: 8.65 | AA88: NA | AB88: NA | AC88: 9.01 | AD88: 9.9 | AE88: 8.8 | AF88: 9.66 | AG88: 8.61 | AH88: 8.76 | AI88: 8.78 | AJ88: NA | AK88: NA | AL88: 11.67 | AM88: 8.64 | AN88: 11.48 | AO88: 11.38 | AP88: NA | AQ88: 8.81 | AR88: NA | AS88: NA | AT88: NA | AV88: 11.38 | AW88: 11.18 | AX88: 9.33 | AY88: 8.59 | AZ88: 11.02 | BA88: 11.61 | BB88: 8.63 | BC88: 11.39 | BD88: 11.79 | BE88: 12 | BF88: 8.36 | BG88: NA | BH88: NA | BI88: NA | BJ88: NA | BK88: NA | BL88: NA | BM88: 13.45 | BN88: NA | BO88: 15.23 | BP88: 13.24 | BQ88: NA | BR88: NA | BS88: 15.36 | BT88: 14.85 | BU88: 11.48 | BV88: NA | BW88: NA | BX88: NA | BY88: 10.68 | BZ88: 10.83 | CA88: 10.64 | CB88: NA | CC88: 11.25 | CD88: 10.75 | CE88: 11.45 | CF88: 8.68 | CG88: 8.97 | CH88: 8.58 | CI88: 8.57 | CJ88: 9.88 | CK88: 9.04 | CL88: 9.43 | CM88: 9.9 | CN88: 9 | CO88: 9.38 | CP88: NA | CQ88: 9.95
A89: 2005-12-01 | B89: 10.95 | C89: 8.52 | D89: NA | E89: 8.18 | F89: 8.61 | G89: 11.65 | H89: 11.21 | I89: NA | J89: 11.78 | K89: 8.45 | L89: 8.44 | M89: NA | N89: 11.08 | O89: 11.21 | P89: 11.36 | Q89: NA | R89: NA | S89: 8.63 | U89: NA | V89: NA | W89: 8.46 | X89: NA | Y89: 8.38 | Z89: 8.2 | AA89: NA | AB89: NA | AC89: 8.96 | AD89: 9.77 | AE89: 8.59 | AF89: 9.6 | AG89: 8.75 | AH89: 8.58 | AI89: 8.46 | AJ89: NA | AK89: NA | AL89: 11.36 | AM89: 8.84 | AN89: 11.24 | AO89: 11.24 | AP89: NA | AQ89: 8.18 | AR89: NA | AS89: NA | AT89: NA | AV89: 11.18 | AW89: 11.09 | AX89: 8.63 | AY89: 8.18 | AZ89: 11.08 | BA89: 11.08 | BB89: 8.42 | BC89: NA | BD89: 11.35 | BE89: 11.42 | BF89: 8.1 | BG89: NA | BH89: NA | BI89: NA | BJ89: NA | BK89: NA | BL89: NA | BM89: 12.67 | BN89: NA | BO89: 13.29 | BP89: 12.62 | BQ89: NA | BR89: NA | BS89: 13.08 | BT89: 12.93 | BU89: 10.96 | BV89: NA | BW89: NA | BX89: NA | BY89: 10.38 | BZ89: 10.45 | CA89: 10.36 | CB89: NA | CC89: 11.44 | CD89: 10.37 | CE89: 11.21 | CF89: 7.88 | CG89: NA | CH89: 8.42 | CI89: 8.5 | CJ89: 10.14 | CK89: 9.24 | CL89: 9.45 | CM89: 10 | CN89: 9.01 | CO89: 9.19 | CP89: NA | CQ89: 9.69
A90: 2005-11-01 | B90: 13.74 | C90: 10.89 | D90: NA | E90: 11.11 | F90: 10.75 | G90: 14.5 | H90: 13.97 | I90: NA | J90: 14.51 | K90: 10.75 | L90: 10.82 | M90: NA | N90: 13.78 | O90: 13.91 | P90: 14.23 | Q90: NA | R90: NA | S90: 10.74 | U90: NA | V90: NA | W90: 10.81 | X90: 13.65 | Y90: 11.72 | Z90: 11.7 | AA90: NA | AB90: NA | AC90: 11.13 | AD90: 12.18 | AE90: 10.69 | AF90: 11.11 | AG90: 10.8 | AH90: 10.87 | AI90: 10.21 | AJ90: NA | AK90: NA | AL90: 14.01 | AM90: 10.59 | AN90: 13.88 | AO90: 13.93 | AP90: NA | AQ90: 11.59 | AR90: NA | AS90: NA | AT90: NA | AV90: 14.1 | AW90: 13.87 | AX90: 12.05 | AY90: 11.63 | AZ90: 13.67 | BA90: 13.82 | BB90: 12.19 | BC90: 12.26 | BD90: 14.23 | BE90: 14.02 | BF90: 10.8 | BG90: NA | BH90: NA | BI90: NA | BJ90: 13.79 | BK90: NA | BL90: NA | BM90: 15.27 | BN90: NA | BO90: 15.23 | BP90: 15.21 | BQ90: NA | BR90: NA | BS90: 15.19 | BT90: 15.28 | BU90: 13.55 | BV90: NA | BW90: NA | BX90: NA | BY90: 12.88 | BZ90: 13.39 | CA90: 13.27 | CB90: NA | CC90: 14.02 | CD90: 13.31 | CE90: 13.85 | CF90: 10.92 | CG90: 12.26 | CH90: 11.4 | CI90: NA | CJ90: 11.58 | CK90: 10.98 | CL90: 11.17 | CM90: 11.27 | CN90: 11.31 | CO90: 11.57 | CP90: NA | CQ90: 12.42
A91: 2005-10-01 | B91: 13.84 | C91: 10.44 | D91: NA | E91: 11.92 | F91: 9.87 | G91: 14.73 | H91: 12.81 | I91: NA | J91: 14.67 | K91: 9.8 | L91: 9.52 | M91: NA | N91: 14.25 | O91: 14.1 | P91: NA | Q91: NA | R91: NA | S91: 9.77 | U91: NA | V91: NA | W91: 10.11 | X91: NA | Y91: 11.73 | Z91: 12.83 | AA91: NA | AB91: NA | AC91: 10.7 | AD91: 10.78 | AE91: 9.52 | AF91: 9.77 | AG91: 10.03 | AH91: 10.19 | AI91: 9.48 | AJ91: NA | AK91: NA | AL91: NA | AM91: NA | AN91: 13.82 | AO91: NA | AP91: NA | AQ91: 12.56 | AR91: NA | AS91: NA | AT91: NA | AV91: NA | AW91: NA | AX91: 12.6 | AY91: 12.59 | AZ91: 13.91 | BA91: 13.98 | BB91: 12.94 | BC91: NA | BD91: 14.41 | BE91: NA | BF91: 9.64 | BG91: NA | BH91: NA | BI91: NA | BJ91: 13.88 | BK91: NA | BL91: NA | BM91: 14.94 | BN91: NA | BO91: 14.97 | BP91: 14.98 | BQ91: NA | BR91: NA | BS91: 14.9 | BT91: 14.82 | BU91: 13.97 | BV91: NA | BW91: NA | BX91: NA | BY91: 12.27 | BZ91: 13.98 | CA91: 13.73 | CB91: NA | CC91: 14.18 | CD91: 13.93 | CE91: 13.93 | CF91: 10.46 | CG91: 11.75 | CH91: 9.9 | CI91: NA | CJ91: 11.57 | CK91: 9.79 | CL91: 9.97 | CM91: 10.78 | CN91: 9.95 | CO91: 10.23 | CP91: NA | CQ91: 11.91
A92: 2005-09-01 | B92: 10.82 | C92: 8.67 | D92: NA | E92: 9.19 | F92: 7.84 | G92: 11.29 | H92: 10.81 | I92: NA | J92: 11.14 | K92: 8.61 | L92: 8.03 | M92: NA | N92: 10.81 | O92: 10.73 | P92: 11.17 | Q92: NA | R92: NA | S92: 8.15 | U92: NA | V92: NA | W92: 8.77 | X92: 10.67 | Y92: 9.38 | Z92: 10.2 | AA92: NA | AB92: NA | AC92: 8.88 | AD92: 9.29 | AE92: 8.02 | AF92: 7.92 | AG92: 8.68 | AH92: 8.51 | AI92: 7.64 | AJ92: NA | AK92: NA | AL92: 10.83 | AM92: 8.5 | AN92: 10.74 | AO92: 10.51 | AP92: NA | AQ92: 10.23 | AR92: NA | AS92: NA | AT92: NA | AV92: 10.63 | AW92: 10.65 | AX92: 10.29 | AY92: 10.22 | AZ92: 10.85 | BA92: 10.09 | BB92: 10.47 | BC92: 10.81 | BD92: 10.86 | BE92: NA | BF92: 8.07 | BG92: NA | BH92: NA | BI92: NA | BJ92: 10.74 | BK92: NA | BL92: NA | BM92: 11.34 | BN92: NA | BO92: 11.4 | BP92: 11.36 | BQ92: NA | BR92: NA | BS92: 11.36 | BT92: 11.33 | BU92: 10.85 | BV92: NA | BW92: NA | BX92: NA | BY92: 9.65 | BZ92: 10.66 | CA92: 10.21 | CB92: NA | CC92: 10.86 | CD92: 10.64 | CE92: 10.97 | CF92: 9.72 | CG92: 9.69 | CH92: 8.62 | CI92: 8.8 | CJ92: 9.71 | CK92: 7.95 | CL92: 8.42 | CM92: 8.84 | CN92: 8.63 | CO92: 8.3 | CP92: NA | CQ92: 9.72
A93: 2005-08-01 | B93: 7.51 | C93: 6.75 | D93: NA | E93: 7.24 | F93: 5.96 | G93: 7.93 | H93: 7.62 | I93: NA | J93: 7.95 | K93: 6.76 | L93: 5.97 | M93: NA | N93: 7.62 | O93: 7.7 | P93: 7.82 | Q93: NA | R93: NA | S93: 6.06 | U93: NA | V93: NA | W93: 6.81 | X93: 7.53 | Y93: 7.33 | Z93: 7.18 | AA93: NA | AB93: NA | AC93: 6.94 | AD93: 6.89 | AE93: 5.98 | AF93: 5.99 | AG93: 6.87 | AH93: 6.7 | AI93: 5.75 | AJ93: NA | AK93: NA | AL93: 7.65 | AM93: 6.6 | AN93: 7.55 | AO93: 7.55 | AP93: NA | AQ93: 7.49 | AR93: NA | AS93: NA | AT93: NA | AV93: 7.6 | AW93: 7.54 | AX93: 7.43 | AY93: 7.38 | AZ93: 7.6 | BA93: 7.52 | BB93: 7.35 | BC93: 7.66 | BD93: 7.76 | BE93: 7.8 | BF93: 6.27 | BG93: NA | BH93: NA | BI93: NA | BJ93: 7.61 | BK93: NA | BL93: NA | BM93: 8.21 | BN93: NA | BO93: 8.3 | BP93: 8.23 | BQ93: NA | BR93: NA | BS93: 8.23 | BT93: 8.2 | BU93: 7.76 | BV93: NA | BW93: NA | BX93: NA | BY93: 7.2 | BZ93: 7.72 | CA93: 7.51 | CB93: NA | CC93: 7.75 | CD93: 7.68 | CE93: 7.65 | CF93: 7.39 | CG93: 7.37 | CH93: 6.91 | CI93: NA | CJ93: 7.01 | CK93: 6.05 | CL93: 6.23 | CM93: 6.51 | CN93: 6.24 | CO93: 6.36 | CP93: NA | CQ93: 7.16
A94: 2005-07-01 | B94: 7.05 | C94: 6.53 | D94: NA | E94: 6.79 | F94: 6.19 | G94: 7.26 | H94: 6.94 | I94: NA | J94: 7.31 | K94: 6.71 | L94: 6.05 | M94: NA | N94: 6.94 | O94: 7.01 | P94: 7.09 | Q94: NA | R94: NA | S94: 6.17 | U94: NA | V94: NA | W94: 6.54 | X94: 6.83 | Y94: 6.9 | Z94: 6.8 | AA94: NA | AB94: NA | AC94: 6.53 | AD94: 6.51 | AE94: 6.12 | AF94: 6.05 | AG94: 6.8 | AH94: 6.58 | AI94: 5.74 | AJ94: NA | AK94: NA | AL94: 7 | AM94: 6.44 | AN94: 6.88 | AO94: 6.9 | AP94: NA | AQ94: 6.84 | AR94: NA | AS94: NA | AT94: NA | AV94: 6.93 | AW94: 6.86 | AX94: 6.78 | AY94: 6.7 | AZ94: 6.93 | BA94: 6.98 | BB94: 6.86 | BC94: 6.98 | BD94: 7.05 | BE94: 7.09 | BF94: 6.23 | BG94: NA | BH94: NA | BI94: NA | BJ94: 6.95 | BK94: NA | BL94: NA | BM94: 7.52 | BN94: NA | BO94: 7.58 | BP94: 7.49 | BQ94: NA | BR94: NA | BS94: 7.56 | BT94: 7.57 | BU94: 7.09 | BV94: NA | BW94: NA | BX94: NA | BY94: 7.15 | BZ94: 7.08 | CA94: 7.09 | CB94: NA | CC94: 7.14 | CD94: 7.06 | CE94: 6.98 | CF94: 6.88 | CG94: 6.85 | CH94: 6.66 | CI94: 6.3 | CJ94: 6.9 | CK94: NA | CL94: 6.27 | CM94: 6.61 | CN94: 6.33 | CO94: 6.43 | CP94: NA | CQ94: 6.73
A95: 2005-06-01 | B95: 6.09 | C95: 5.8 | D95: NA | E95: 5.8 | F95: 5.48 | G95: 6.43 | H95: 6.15 | I95: NA | J95: 6.45 | K95: 5.66 | L95: 5.38 | M95: NA | N95: 6.09 | O95: 6.14 | P95: 6.19 | Q95: NA | R95: NA | S95: 5.46 | U95: NA | V95: NA | W95: 5.75 | X95: 6.01 | Y95: 6.15 | Z95: 5.96 | AA95: NA | AB95: NA | AC95: 5.87 | AD95: 5.86 | AE95: 5.4 | AF95: 5.52 | AG95: 5.61 | AH95: 5.81 | AI95: 5.24 | AJ95: NA | AK95: NA | AL95: 6.12 | AM95: 5.88 | AN95: 6.04 | AO95: 6.02 | AP95: NA | AQ95: 6.07 | AR95: NA | AS95: NA | AT95: NA | AV95: 6.07 | AW95: 6.01 | AX95: 5.88 | AY95: 5.86 | AZ95: 6.07 | BA95: 6.1 | BB95: 5.99 | BC95: 6.12 | BD95: 6.18 | BE95: 6.2 | BF95: 5.55 | BG95: NA | BH95: NA | BI95: NA | BJ95: 6.09 | BK95: NA | BL95: NA | BM95: 6.59 | BN95: NA | BO95: 6.6 | BP95: 6.58 | BQ95: NA | BR95: NA | BS95: 6.63 | BT95: 6.65 | BU95: 6.37 | BV95: NA | BW95: NA | BX95: NA | BY95: 6.31 | BZ95: 6.29 | CA95: 6.37 | CB95: NA | CC95: 6.33 | CD95: 6.33 | CE95: 6.13 | CF95: 6.21 | CG95: 6.14 | CH95: 5.71 | CI95: NA | CJ95: 6.44 | CK95: NA | CL95: 5.6 | CM95: 6 | CN95: 5.64 | CO95: 5.65 | CP95: NA | CQ95: 5.92
A96: 2005-05-01 | B96: 6.78 | C96: 6.46 | D96: NA | E96: 6.46 | F96: 6.12 | G96: 7.11 | H96: 6.72 | I96: NA | J96: 7.11 | K96: 6.27 | L96: 6.3 | M96: NA | N96: 6.67 | O96: 6.75 | P96: 6.77 | Q96: NA | R96: NA | S96: 6.32 | U96: NA | V96: NA | W96: 6.37 | X96: 6.56 | Y96: 6.56 | Z96: 6.46 | AA96: NA | AB96: NA | AC96: 6.54 | AD96: 6.73 | AE96: 6.3 | AF96: 6.35 | AG96: 6.47 | AH96: 6.41 | AI96: 6.04 | AJ96: NA | AK96: NA | AL96: 6.74 | AM96: 6.54 | AN96: 6.66 | AO96: 6.65 | AP96: NA | AQ96: 6.47 | AR96: NA | AS96: NA | AT96: NA | AV96: 6.7 | AW96: 6.58 | AX96: 6.52 | AY96: 6.4 | AZ96: 6.7 | BA96: 6.78 | BB96: 6.47 | BC96: 6.73 | BD96: 6.83 | BE96: 6.82 | BF96: 6.27 | BG96: NA | BH96: NA | BI96: NA | BJ96: 6.76 | BK96: NA | BL96: NA | BM96: 7.26 | BN96: NA | BO96: 7.27 | BP96: 7.25 | BQ96: NA | BR96: NA | BS96: 7.3 | BT96: 7.31 | BU96: 7.08 | BV96: NA | BW96: NA | BX96: NA | BY96: 6.96 | BZ96: 7.01 | CA96: 7.03 | CB96: NA | CC96: 7.02 | CD96: 7.03 | CE96: 6.77 | CF96: 6.5 | CG96: 6.48 | CH96: 6.314 | CI96: NA | CJ96: 7.14 | CK96: NA | CL96: 6.47 | CM96: 7.06 | CN96: 6.49 | CO96: 6.61 | CP96: NA | CQ96: 6.56
A97: 2005-04-01 | B97: 7.24 | C97: 6.6 | D97: NA | E97: 6.81 | F97: 6.28 | G97: 7.67 | H97: 7.29 | I97: NA | J97: 7.74 | K97: 6.37 | L97: 6.21 | M97: NA | N97: 7.2 | O97: 7.33 | P97: 7.38 | Q97: NA | R97: NA | S97: 6.36 | U97: NA | V97: NA | W97: 6.63 | X97: 7.19 | Y97: 6.96 | Z97: 7.04 | AA97: NA | AB97: NA | AC97: 6.78 | AD97: 6.83 | AE97: 6.3 | AF97: 6.41 | AG97: 6.67 | AH97: 6.58 | AI97: 6.02 | AJ97: NA | AK97: NA | AL97: 7.31 | AM97: 6.6 | AN97: 7.28 | AO97: 7.23 | AP97: NA | AQ97: 7.08 | AR97: NA | AS97: NA | AT97: NA | AV97: 7.27 | AW97: 7.18 | AX97: 7.14 | AY97: 7.05 | AZ97: 7.26 | BA97: 7.28 | BB97: 7.13 | BC97: 7.33 | BD97: 7.36 | BE97: 7.39 | BF97: 6.39 | BG97: NA | BH97: NA | BI97: NA | BJ97: 7.27 | BK97: NA | BL97: NA | BM97: 7.91 | BN97: NA | BO97: 7.92 | BP97: 7.86 | BQ97: NA | BR97: NA | BS97: 7.91 | BT97: 7.88 | BU97: 7.71 | BV97: NA | BW97: NA | BX97: NA | BY97: 7.13 | BZ97: 7.55 | CA97: 7.59 | CB97: NA | CC97: 7.62 | CD97: 7.66 | CE97: 7.33 | CF97: 7.01 | CG97: 7 | CH97: 6.53 | CI97: 6.49 | CJ97: 7.27 | CK97: NA | CL97: 6.64 | CM97: 7.14 | CN97: 6.6 | CO97: 6.74 | CP97: NA | CQ97: 6.95
A98: 2005-03-01 | B98: 6.22 | C98: 5.55 | D98: NA | E98: 5.87 | F98: 5.28 | G98: 6.57 | H98: 6.25 | I98: NA | J98: 6.64 | K98: 5.54 | L98: 5.21 | M98: NA | N98: 6.23 | O98: 6.3 | P98: 6.32 | Q98: NA | R98: NA | S98: 5.37 | U98: NA | V98: NA | W98: 5.53 | X98: 6.15 | Y98: 5.79 | Z98: 5.94 | AA98: NA | AB98: NA | AC98: 5.72 | AD98: 5.81 | AE98: 5.32 | AF98: 5.5 | AG98: 5.74 | AH98: 5.63 | AI98: 5.38 | AJ98: NA | AK98: NA | AL98: 6.31 | AM98: 5.7 | AN98: 6.23 | AO98: 6.22 | AP98: NA | AQ98: 5.95 | AR98: NA | AS98: NA | AT98: NA | AV98: 6.25 | AW98: 6.16 | AX98: 5.97 | AY98: 5.91 | AZ98: 6.21 | BA98: 6.22 | BB98: 5.96 | BC98: 6.31 | BD98: 6.33 | BE98: 6.36 | BF98: 5.44 | BG98: NA | BH98: NA | BI98: NA | BJ98: 6.26 | BK98: NA | BL98: NA | BM98: 6.97 | BN98: NA | BO98: 7.03 | BP98: 6.94 | BQ98: NA | BR98: NA | BS98: 7.08 | BT98: 7.09 | BU98: 6.72 | BV98: NA | BW98: NA | BX98: NA | BY98: 6.15 | BZ98: 6.48 | CA98: 6.47 | CB98: NA | CC98: 6.51 | CD98: 6.61 | CE98: 6.3 | CF98: 5.98 | CG98: 5.99 | CH98: 5.55 | CI98: 5.84 | CJ98: 6.39 | CK98: 5.63 | CL98: 5.55 | CM98: 6.05 | CN98: 5.58 | CO98: 5.64 | CP98: NA | CQ98: 5.94
A99: 2005-02-01 | B99: 6.24 | C99: 5.77 | D99: NA | E99: 5.76 | F99: 5.47 | G99: 6.56 | H99: 6.26 | I99: NA | J99: 6.63 | K99: 5.53 | L99: 5.43 | M99: NA | N99: 6.16 | O99: 6.3 | P99: 6.37 | Q99: NA | R99: NA | S99: 5.53 | U99: NA | V99: NA | W99: 5.66 | X99: 6.12 | Y99: 5.79 | Z99: 5.71 | AA99: NA | AB99: NA | AC99: 5.99 | AD99: 6.08 | AE99: 5.5 | AF99: 5.6 | AG99: 5.75 | AH99: 5.78 | AI99: 5.32 | AJ99: NA | AK99: NA | AL99: 6.32 | AM99: 5.73 | AN99: 6.28 | AO99: 6.22 | AP99: NA | AQ99: 5.72 | AR99: NA | AS99: NA | AT99: NA | AV99: 6.25 | AW99: 6.2 | AX99: 5.81 | AY99: 5.7 | AZ99: 6.21 | BA99: 6.24 | BB99: 5.78 | BC99: 6.28 | BD99: 6.4 | BE99: 6.45 | BF99: 5.55 | BG99: NA | BH99: NA | BI99: NA | BJ99: 6.23 | BK99: NA | BL99: NA | BM99: 8.07 | BN99: NA | BO99: 9.98 | BP99: 7.56 | BQ99: NA | BR99: NA | BS99: 9.29 | BT99: 9.36 | BU99: 6.63 | BV99: NA | BW99: NA | BX99: NA | BY99: 6.35 | BZ99: 6.37 | CA99: 6.37 | CB99: NA | CC99: 6.44 | CD99: 6.38 | CE99: 6.29 | CF99: 5.74 | CG99: 5.75 | CH99: 5.57 | CI99: 5.63 | CJ99: 6.3 | CK99: NA | CL99: 5.69 | CM99: 6.13 | CN99: 5.73 | CO99: 5.74 | CP99: NA | CQ99: 5.95
A100: 2005-01-01 | B100: 6.14 | C100: 5.83 | D100: NA | E100: 5.69 | F100: 5.59 | G100: 6.47 | H100: 6.18 | I100: NA | J100: 6.58 | K100: 5.58 | L100: 5.67 | M100: NA | N100: 6.08 | O100: 6.22 | P100: 6.33 | Q100: NA | R100: NA | S100: 5.79 | U100: NA | V100: NA | W100: 5.74 | X100: 6.12 | Y100: 5.77 | Z100: 5.67 | AA100: NA | AB100: NA | AC100: 5.91 | AD100: 6.06 | AE100: 5.77 | AF100: 5.94 | AG100: 5.66 | AH100: 5.85 | AI100: 5.47 | AJ100: NA | AK100: NA | AL100: 6.18 | AM100: 5.76 | AN100: 6.2 | AO100: 6.17 | AP100: NA | AQ100: 5.7 | AR100: NA | AS100: NA | AT100: NA | AV100: 6.17 | AW100: 6.11 | AX100: 5.79 | AY100: 5.7 | AZ100: 6.13 | BA100: 6.17 | BB100: 5.81 | BC100: 6.23 | BD100: 6.32 | BE100: 6.35 | BF100: 5.6 | BG100: NA | BH100: NA | BI100: NA | BJ100: 6.18 | BK100: NA | BL100: NA | BM100: 8.51 | BN100: NA | BO100: 10.03 | BP100: 7.96 | BQ100: NA | BR100: NA | BS100: NA | BT100: NA | BU100: 6.67 | BV100: NA | BW100: NA | BX100: NA | BY100: 6.23 | BZ100: 6.26 | CA100: 6.12 | CB100: NA | CC100: 6.36 | CD100: 6.27 | CE100: 6.21 | CF100: 5.75 | CG100: 5.71 | CH100: 5.61 | CI100: 5.7 | CJ100: 6.12 | CK100: NA | CL100: 5.82 | CM100: 6.33 | CN100: NA | CO100: 6 | CP100: NA | CQ100: 5.95
A101: 2004-12-01 | B101: 7.79 | C101: 6.21 | D101: NA | E101: 7.05 | F101: 6.2 | G101: 8.18 | H101: 7.93 | I101: NA | J101: 8.13 | K101: 6.17 | L101: 5.95 | M101: NA | N101: 7.91 | O101: 7.97 | P101: 7.98 | Q101: NA | R101: NA | S101: 6.15 | U101: NA | V101: NA | W101: 6.18 | X101: 7.86 | Y101: 7.11 | Z101: 7.07 | AA101: NA | AB101: NA | AC101: 6.56 | AD101: 6.9 | AE101: 6.13 | AF101: 6.23 | AG101: 6.47 | AH101: 6.26 | AI101: 5.91 | AJ101: NA | AK101: NA | AL101: 7.74 | AM101: 6.2 | AN101: 7.88 | AO101: 7.87 | AP101: NA | AQ101: 7.5 | AR101: NA | AS101: NA | AT101: NA | AV101: 7.9 | AW101: 7.88 | AX101: 7.58 | AY101: 7.44 | AZ101: 7.91 | BA101: 7.91 | BB101: 7.66 | BC101: 7.94 | BD101: 7.99 | BE101: 8.02 | BF101: 6.01 | BG101: NA | BH101: NA | BI101: NA | BJ101: 7.77 | BK101: NA | BL101: NA | BM101: 8.88 | BN101: NA | BO101: 9.02 | BP101: 8.82 | BQ101: NA | BR101: NA | BS101: 9.16 | BT101: 8.99 | BU101: 8.44 | BV101: NA | BW101: NA | BX101: NA | BY101: 7.28 | BZ101: 7.97 | CA101: 7.81 | CB101: NA | CC101: 8.06 | CD101: 8.2 | CE101: 7.78 | CF101: 6.33 | CG101: 6.29 | CH101: 6.07 | CI101: NA | CJ101: 6.84 | CK101: NA | CL101: 6.25 | CM101: 6.77 | CN101: 6.33 | CO101: 6.42 | CP101: NA | CQ101: 7.17
A102: 2004-11-01 | B102: 7.55 | C102: 7 | D102: NA | E102: 7.06 | F102: 6.98 | G102: 7.89 | H102: 7.62 | I102: NA | J102: 8.04 | K102: 6.94 | L102: 6.9 | M102: NA | N102: 7.56 | O102: 7.64 | P102: 7.66 | Q102: NA | R102: NA | S102: 7.11 | U102: NA | V102: NA | W102: 6.92 | X102: 7.53 | Y102: 7.41 | Z102: 7.38 | AA102: NA | AB102: NA | AC102: 7.39 | AD102: 7.64 | AE102: 7.06 | AF102: 7.27 | AG102: 7.04 | AH102: 7.12 | AI102: 6.55 | AJ102: NA | AK102: NA | AL102: 7.6 | AM102: NA | AN102: 7.54 | AO102: 7.52 | AP102: NA | AQ102: 7.3 | AR102: NA | AS102: NA | AT102: NA | AV102: 7.56 | AW102: 7.54 | AX102: 7.34 | AY102: 7.27 | AZ102: 7.56 | BA102: 7.6 | BB102: 7.35 | BC102: 7.61 | BD102: 7.67 | BE102: 7.69 | BF102: 6.94 | BG102: NA | BH102: NA | BI102: NA | BJ102: 7.57 | BK102: NA | BL102: NA | BM102: 8.23 | BN102: NA | BO102: 8.2 | BP102: 8.19 | BQ102: NA | BR102: NA | BS102: 8.3 | BT102: 8.28 | BU102: 8.09 | BV102: NA | BW102: NA | BX102: NA | BY102: 8.06 | BZ102: 8.08 | CA102: 8.11 | CB102: NA | CC102: 7.92 | CD102: 7.96 | CE102: 7.63 | CF102: 7.32 | CG102: 7.28 | CH102: 6.91 | CI102: 7.08 | CJ102: 8.18 | CK102: NA | CL102: 7.25 | CM102: 7.68 | CN102: 7.31 | CO102: 7.23 | CP102: NA | CQ102: 7.36
A103: 2004-10-01 | B103: 5.38 | C103: 4.79 | D103: NA | E103: 5.32 | F103: 4.42 | G103: 6.06 | H103: 5.71 | I103: NA | J103: 5.96 | K103: 4.59 | L103: 4.47 | M103: NA | N103: 5.67 | O103: 5.75 | P103: 5.8 | Q103: NA | R103: NA | S103: 4.52 | U103: NA | V103: NA | W103: 4.83 | X103: 5.82 | Y103: 5.41 | Z103: 5.44 | AA103: NA | AB103: NA | AC103: 5.14 | AD103: 4.94 | AE103: 4.48 | AF103: 4.65 | AG103: 4.7 | AH103: 4.8 | AI103: 4.42 | AJ103: NA | AK103: NA | AL103: 5.67 | AM103: 4.76 | AN103: 5.64 | AO103: 5.62 | AP103: NA | AQ103: 5.52 | AR103: NA | AS103: NA | AT103: NA | AV103: 5.69 | AW103: 5.93 | AX103: 5.56 | AY103: 5.48 | AZ103: 5.6 | BA103: 5.61 | BB103: 5.59 | BC103: 5.73 | BD103: 5.8 | BE103: 5.78 | BF103: 4.5 | BG103: NA | BH103: NA | BI103: NA | BJ103: 5.48 | BK103: NA | BL103: NA | BM103: 6.12 | BN103: NA | BO103: 6.14 | BP103: 6.11 | BQ103: NA | BR103: NA | BS103: 6.13 | BT103: 6.14 | BU103: 5.9 | BV103: NA | BW103: NA | BX103: NA | BY103: 5.46 | BZ103: 5.8 | CA103: 5.82 | CB103: NA | CC103: 5.9 | CD103: 5.86 | CE103: 5.79 | CF103: 5.11 | CG103: 5.09 | CH103: 4.77 | CI103: NA | CJ103: 5.72 | CK103: NA | CL103: 4.69 | CM103: 5.1 | CN103: 4.72 | CO103: 4.76 | CP103: NA | CQ103: 5.29
A104: 2004-09-01 | B104: 5.02 | C104: 4.77 | D104: NA | E104: 4.84 | F104: 4.5 | G104: 5.33 | H104: 5.04 | I104: NA | J104: 5.32 | K104: 4.72 | L104: 4.56 | M104: NA | N104: 5.03 | O104: 5.1 | P104: 5.11 | Q104: NA | R104: NA | S104: 4.58 | U104: NA | V104: NA | W104: 4.77 | X104: 5.01 | Y104: 4.95 | Z104: 4.98 | AA104: NA | AB104: NA | AC104: 4.87 | AD104: 4.88 | AE104: 4.56 | AF104: 4.56 | AG104: 4.7 | AH104: 4.77 | AI104: 4.39 | AJ104: NA | AK104: NA | AL104: 5.05 | AM104: 4.8 | AN104: 4.96 | AO104: 4.97 | AP104: NA | AQ104: 4.93 | AR104: NA | AS104: NA | AT104: NA | AV104: 5.02 | AW104: 5.01 | AX104: 4.88 | AY104: 4.83 | AZ104: 5.03 | BA104: 5.08 | BB104: 4.94 | BC104: 5.07 | BD104: 5.12 | BE104: 5.12 | BF104: 4.64 | BG104: NA | BH104: NA | BI104: NA | BJ104: 5.02 | BK104: NA | BL104: NA | BM104: 5.45 | BN104: NA | BO104: 5.45 | BP104: 5.44 | BQ104: NA | BR104: NA | BS104: 5.46 | BT104: 5.46 | BU104: 5.29 | BV104: NA | BW104: NA | BX104: NA | BY104: 5.2 | BZ104: 5.21 | CA104: 5.27 | CB104: NA | CC104: 5.28 | CD104: 5.26 | CE104: 5.08 | CF104: 5.1 | CG104: 5.08 | CH104: 4.83 | CI104: 4.54 | CJ104: 5.5 | CK104: 4.65 | CL104: 4.74 | CM104: 5.14 | CN104: NA | CO104: 4.89 | CP104: NA | CQ104: 4.9
A105: 2004-08-01 | B105: 5.96 | C105: 5.75 | D105: NA | E105: 5.86 | F105: 5.28 | G105: 6.28 | H105: 5.98 | I105: NA | J105: 6.3 | K105: 5.68 | L105: 5.39 | M105: NA | N105: 6 | O105: 6.07 | P105: 6.1 | Q105: NA | R105: NA | S105: 5.39 | U105: NA | V105: NA | W105: 5.69 | X105: 5.93 | Y105: 5.89 | Z105: 5.9 | AA105: NA | AB105: NA | AC105: 5.75 | AD105: 5.76 | AE105: 5.35 | AF105: 5.34 | AG105: 5.62 | AH105: 5.68 | AI105: 5.22 | AJ105: NA | AK105: NA | AL105: 6 | AM105: 5.71 | AN105: 5.93 | AO105: 5.94 | AP105: NA | AQ105: 5.9 | AR105: NA | AS105: NA | AT105: NA | AV105: 5.95 | AW105: 5.96 | AX105: NA | AY105: 5.9 | AZ105: 6.01 | BA105: 6 | BB105: 5.91 | BC105: NA | BD105: 6.07 | BE105: 6.1 | BF105: 5.61 | BG105: NA | BH105: NA | BI105: NA | BJ105: 5.93 | BK105: NA | BL105: NA | BM105: 6.51 | BN105: NA | BO105: 6.53 | BP105: 6.48 | BQ105: NA | BR105: NA | BS105: 6.49 | BT105: 6.53 | BU105: 6.3 | BV105: NA | BW105: NA | BX105: NA | BY105: 5.97 | BZ105: 6.19 | CA105: 6.19 | CB105: NA | CC105: 6.23 | CD105: 6.25 | CE105: 6.04 | CF105: 5.94 | CG105: 5.9 | CH105: 5.74 | CI105: 5.42 | CJ105: 6.67 | CK105: 5.47 | CL105: 5.64 | CM105: 6.09 | CN105: 5.79 | CO105: 5.81 | CP105: NA | CQ105: 5.82
A106: 2004-07-01 | B106: 6.1 | C106: 5.88 | D106: NA | E106: NA | F106: 5.27 | G106: 6.42 | H106: 6.15 | I106: NA | J106: 6.47 | K106: 5.94 | L106: 5.49 | M106: NA | N106: 6.11 | O106: 6.17 | P106: 6.2 | Q106: NA | R106: NA | S106: 5.37 | U106: 6.13 | V106: 6.04 | W106: 5.82 | X106: 6.06 | Y106: 6.03 | Z106: 6.08 | AA106: NA | AB106: NA | AC106: 5.91 | AD106: 5.88 | AE106: 5.33 | AF106: 5.2 | AG106: 5.75 | AH106: 5.91 | AI106: 5.2 | AJ106: 6 | AK106: 5.8 | AL106: 6.16 | AM106: NA | AN106: 6.08 | AO106: 6.06 | AP106: NA | AQ106: 6.02 | AR106: NA | AS106: NA | AT106: NA | AV106: 6.11 | AW106: 6.09 | AX106: NA | AY106: 5.94 | AZ106: 6.11 | BA106: 6.25 | BB106: 6.02 | BC106: NA | BD106: 6.2 | BE106: 6.23 | BF106: 5.67 | BG106: NA | BH106: NA | BI106: NA | BJ106: 6.11 | BK106: NA | BL106: 5.85 | BM106: 6.69 | BN106: NA | BO106: 6.74 | BP106: 6.62 | BQ106: NA | BR106: NA | BS106: 6.7 | BT106: 6.74 | BU106: 6.33 | BV106: NA | BW106: NA | BX106: NA | BY106: 6.36 | BZ106: 6.27 | CA106: 6.26 | CB106: NA | CC106: 6.31 | CD106: 6.27 | CE106: 6.14 | CF106: 6 | CG106: 5.98 | CH106: 5.98 | CI106: 5.4 | CJ106: 6.46 | CK106: 5.43 | CL106: 5.55 | CM106: 5.93 | CN106: 5.8 | CO106: 5.84 | CP106: NA | CQ106: 5.94
A107: 2004-06-01 | B107: 6.63 | C107: 6.21 | D107: NA | E107: NA | F107: 5.61 | G107: 6.96 | H107: 6.64 | I107: NA | J107: 7.09 | K107: 6.19 | L107: 5.71 | M107: NA | N107: 6.64 | O107: 6.71 | P107: 6.73 | Q107: 6.54 | R107: NA | S107: 5.66 | U107: 6.67 | V107: 6.58 | W107: 6.11 | X107: 6.61 | Y107: 6.49 | Z107: 6.51 | AA107: NA | AB107: NA | AC107: 6.13 | AD107: 6.17 | AE107: 5.65 | AF107: 5.58 | AG107: 6.19 | AH107: 6.1 | AI107: 5.52 | AJ107: 6.47 | AK107: 6.18 | AL107: 6.66 | AM107: NA | AN107: 6.61 | AO107: 6.6 | AP107: NA | AQ107: 6.53 | AR107: NA | AS107: NA | AT107: NA | AV107: 6.64 | AW107: 6.63 | AX107: NA | AY107: 6.51 | AZ107: 6.62 | BA107: 6.66 | BB107: 6.56 | BC107: 6.7 | BD107: 6.72 | BE107: 6.75 | BF107: 6.09 | BG107: NA | BH107: NA | BI107: NA | BJ107: 6.59 | BK107: 6.56 | BL107: 6.09 | BM107: 7.25 | BN107: NA | BO107: 7.29 | BP107: 7.24 | BQ107: NA | BR107: NA | BS107: 7.28 | BT107: 7.25 | BU107: 6.96 | BV107: NA | BW107: NA | BX107: NA | BY107: 6.63 | BZ107: 6.87 | CA107: 6.89 | CB107: NA | CC107: 6.93 | CD107: 6.88 | CE107: 6.68 | CF107: 6.56 | CG107: 6.58 | CH107: 6.3 | CI107: 5.72 | CJ107: 7.06 | CK107: NA | CL107: 5.88 | CM107: 6.33 | CN107: 6.03 | CO107: 6.33 | CP107: NA | CQ107: 6.39
A108: 2004-05-01 | B108: 5.88 | C108: 5.45 | D108: NA | E108: NA | F108: 4.94 | G108: 6.19 | H108: 5.88 | I108: NA | J108: 6.35 | K108: 5.32 | L108: 5.06 | M108: NA | N108: 5.88 | O108: 5.95 | P108: 5.93 | Q108: NA | R108: NA | S108: 5.09 | U108: 5.91 | V108: 5.83 | W108: 5.38 | X108: 5.8 | Y108: 5.72 | Z108: 5.73 | AA108: NA | AB108: NA | AC108: 5.41 | AD108: 5.37 | AE108: 5.04 | AF108: 5.02 | AG108: 5.38 | AH108: 5.43 | AI108: 4.89 | AJ108: 5.7 | AK108: 5.5 | AL108: 5.89 | AM108: NA | AN108: 5.86 | AO108: 5.86 | AP108: NA | AQ108: 5.79 | AR108: NA | AS108: NA | AT108: NA | AV108: 5.89 | AW108: 5.88 | AX108: 5.8 | AY108: 5.77 | AZ108: 5.9 | BA108: 5.91 | BB108: 5.8 | BC108: 5.94 | BD108: 5.95 | BE108: 5.99 | BF108: 5.27 | BG108: NA | BH108: NA | BI108: NA | BJ108: 5.84 | BK108: NA | BL108: NA | BM108: 6.44 | BN108: NA | BO108: 6.41 | BP108: 6.4 | BQ108: NA | BR108: NA | BS108: 6.46 | BT108: 6.44 | BU108: 6.25 | BV108: NA | BW108: NA | BX108: NA | BY108: 5.85 | BZ108: 6.1 | CA108: 6.14 | CB108: NA | CC108: 6.21 | CD108: 6.24 | CE108: 5.94 | CF108: 5.8 | CG108: 5.77 | CH108: 5.24 | CI108: 5 | CJ108: 6.52 | CK108: 5.25 | CL108: 5.24 | CM108: 5.8 | CN108: 5.38 | CO108: 5.52 | CP108: NA | CQ108: 5.65
A109: 2004-04-01 | B109: 5.31 | C109: 5.01 | D109: NA | E109: NA | F109: 4.17 | G109: 5.63 | H109: 5.33 | I109: NA | J109: 5.7 | K109: 4.67 | L109: 4.46 | M109: NA | N109: 5.32 | O109: 5.37 | P109: 5.39 | Q109: NA | R109: NA | S109: 4.45 | U109: 5.35 | V109: 5.28 | W109: 4.89 | X109: 5.3 | Y109: 5.21 | Z109: 5.19 | AA109: NA | AB109: NA | AC109: 5.02 | AD109: 5.06 | AE109: 4.44 | AF109: 4.51 | AG109: 4.94 | AH109: 4.97 | AI109: 4.19 | AJ109: 5.17 | AK109: 4.99 | AL109: 5.32 | AM109: NA | AN109: 5.27 | AO109: 5.28 | AP109: NA | AQ109: 5.19 | AR109: NA | AS109: NA | AT109: NA | AV109: 5.32 | AW109: 5.3 | AX109: 5.21 | AY109: 5.15 | AZ109: 5.36 | BA109: 5.34 | BB109: 5.21 | BC109: 5.34 | BD109: 5.38 | BE109: 5.41 | BF109: 4.67 | BG109: NA | BH109: NA | BI109: NA | BJ109: 5.3 | BK109: NA | BL109: 4.92 | BM109: 6.44 | BN109: NA | BO109: 6.41 | BP109: 6.4 | BQ109: NA | BR109: NA | BS109: 6.46 | BT109: 6.44 | BU109: 6.25 | BV109: NA | BW109: NA | BX109: NA | BY109: 5.85 | BZ109: 6.1 | CA109: 6.14 | CB109: NA | CC109: 6.21 | CD109: 6.24 | CE109: 5.94 | CF109: 5.8 | CG109: 5.77 | CH109: 5.24 | CI109: 5 | CJ109: 6.52 | CK109: 5.25 | CL109: 5.24 | CM109: 5.8 | CN109: 5.38 | CO109: 5.52 | CP109: NA | CQ109: 5.65
A110: 2004-03-01 | B110: 5.12 | C110: 4.81 | D110: NA | E110: NA | F110: 4.4 | G110: 5.4 | H110: 5.16 | I110: NA | J110: 5.49 | K110: 4.53 | L110: 4.4 | M110: NA | N110: 5.11 | O110: 5.15 | P110: 5.16 | Q110: 5.1 | R110: NA | S110: 4.47 | U110: 5.12 | V110: NA | W110: 4.64 | X110: 5.06 | Y110: 4.89 | Z110: 4.86 | AA110: NA | AB110: NA | AC110: 4.84 | AD110: 4.91 | AE110: 4.46 | AF110: 4.42 | AG110: 4.67 | AH110: 4.69 | AI110: 4.33 | AJ110: 4.9 | AK110: 4.69 | AL110: 5.12 | AM110: NA | AN110: 5.08 | AO110: 5.07 | AP110: NA | AQ110: 4.84 | AR110: NA | AS110: NA | AT110: NA | AV110: 5.11 | AW110: 5.09 | AX110: 4.93 | AY110: 4.84 | AZ110: 5.12 | BA110: 5.13 | BB110: 4.85 | BC110: 5.16 | BD110: 5.19 | BE110: 5.21 | BF110: 4.52 | BG110: NA | BH110: NA | BI110: NA | BJ110: 5.09 | BK110: NA | BL110: 4.66 | BM110: 5.88 | BN110: NA | BO110: 5.85 | BP110: 5.81 | BQ110: NA | BR110: NA | BS110: 5.93 | BT110: 5.85 | BU110: 5.69 | BV110: NA | BW110: NA | BX110: NA | BY110: 5.4 | BZ110: 5.58 | CA110: 5.55 | CB110: NA | CC110: 5.61 | CD110: 5.67 | CE110: 5.37 | CF110: 5.29 | CG110: 5.27 | CH110: 4.78 | CI110: 4.24 | CJ110: 5.77 | CK110: NA | CL110: 4.76 | CM110: 5.2 | CN110: 4.86 | CO110: 4.88 | CP110: NA | CQ110: 5.08
A111: 2004-02-01 | B111: 5.72 | C111: 5.44 | D111: NA | E111: NA | F111: 5.12 | G111: 6.03 | H111: 5.75 | I111: NA | J111: 6.51 | K111: 5.13 | L111: 5.01 | M111: NA | N111: 5.72 | O111: 5.78 | P111: 5.8 | Q111: 5.35 | R111: NA | S111: 5.13 | U111: 5.77 | V111: 5.68 | W111: 5.19 | X111: 5.71 | Y111: 5.34 | Z111: 5.34 | AA111: NA | AB111: NA | AC111: 5.52 | AD111: 5.77 | AE111: 5.12 | AF111: 5.2 | AG111: 5.23 | AH111: 5.27 | AI111: 4.92 | AJ111: 5.41 | AK111: 5.22 | AL111: 5.75 | AM111: NA | AN111: 5.7 | AO111: 5.69 | AP111: NA | AQ111: 5.32 | AR111: NA | AS111: NA | AT111: NA | AV111: 5.75 | AW111: 5.75 | AX111: 5.46 | AY111: 5.32 | AZ111: 5.74 | BA111: 5.75 | BB111: 5.35 | BC111: 5.8 | BD111: 5.83 | BE111: 5.91 | BF111: 5.06 | BG111: NA | BH111: NA | BI111: NA | BJ111: 5.79 | BK111: NA | BL111: 5.26 | BM111: 5.79 | BN111: NA | BO111: 5.84 | BP111: 5.71 | BQ111: NA | BR111: NA | BS111: 5.87 | BT111: NA | BU111: 5.54 | BV111: NA | BW111: NA | BX111: NA | BY111: 5.17 | BZ111: 5.32 | CA111: 5.33 | CB111: NA | CC111: NA | CD111: 5.39 | CE111: 5.15 | CF111: 4.88 | CG111: 4.89 | CH111: 4.62 | CI111: 4.46 | CJ111: 5.63 | CK111: 4.56 | CL111: 4.62 | CM111: 4.99 | CN111: NA | CO111: 4.74 | CP111: NA | CQ111: 4.89
A112: 2004-01-01 | B112: 6.1 | C112: 5.79 | D112: NA | E112: NA | F112: 5.09 | G112: 6.34 | H112: 6.13 | I112: NA | J112: 6.54 | K112: 5.4 | L112: 5.13 | M112: NA | N112: 6.1 | O112: 6.17 | P112: 6.19 | Q112: NA | R112: NA | S112: 5.26 | U112: 6.16 | V112: 6.07 | W112: 5.59 | X112: 6.09 | Y112: 5.79 | Z112: 5.87 | AA112: NA | AB112: 5.98 | AC112: 6.03 | AD112: 6.15 | AE112: 5.25 | AF112: 5.2 | AG112: 5.65 | AH112: 5.62 | AI112: 5.1 | AJ112: 5.82 | AK112: 5.69 | AL112: 6.16 | AM112: NA | AN112: 6.16 | AO112: 6.07 | AP112: NA | AQ112: 5.83 | AR112: NA | AS112: NA | AT112: NA | AV112: 6.12 | AW112: 6.14 | AX112: 6.03 | AY112: 5.84 | AZ112: 6.13 | BA112: 6.12 | BB112: 5.88 | BC112: 6.17 | BD112: 6.21 | BE112: 6.34 | BF112: 5.42 | BG112: NA | BH112: NA | BI112: NA | BJ112: 6.02 | BK112: NA | BL112: 5.68 | BM112: 9.08 | BN112: NA | BO112: 10.84 | BP112: 8.3 | BQ112: NA | BR112: NA | BS112: 11.34 | BT112: 10.07 | BU112: 6.7 | BV112: NA | BW112: NA | BX112: NA | BY112: 5.92 | BZ112: 5.96 | CA112: 5.85 | CB112: NA | CC112: 6 | CD112: 6.04 | CE112: 5.77 | CF112: 5.33 | CG112: 5.22 | CH112: 5.14 | CI112: 5.13 | CJ112: 6.32 | CK112: NA | CL112: 5.25 | CM112: 5.51 | CN112: 5.27 | CO112: 5.29 | CP112: NA | CQ112: 5.5
A113: 2003-12-01 | B113: 4.8 | C113: 4.68 | D113: NA | E113: NA | F113: 4.44 | G113: 5.07 | H113: 4.82 | I113: NA | J113: 5.34 | K113: 4.36 | L113: 4.23 | M113: NA | N113: 4.8 | O113: 4.86 | P113: 4.86 | Q113: 4.69 | R113: NA | S113: 4.4 | U113: 4.6 | V113: NA | W113: 4.47 | X113: 4.79 | Y113: 4.72 | Z113: 4.58 | AA113: NA | AB113: NA | AC113: 4.73 | AD113: 4.8 | AE113: 4.39 | AF113: 4.5 | AG113: 4.39 | AH113: 4.5 | AI113: 4.49 | AJ113: 4.42 | AK113: 4.31 | AL113: 4.82 | AM113: NA | AN113: 4.82 | AO113: 4.79 | AP113: NA | AQ113: 4.68 | AR113: NA | AS113: NA | AT113: NA | AV113: 4.83 | AW113: 4.85 | AX113: 4.74 | AY113: 4.65 | AZ113: 4.83 | BA113: 4.81 | BB113: 4.7 | BC113: NA | BD113: 4.89 | BE113: 4.91 | BF113: 4.33 | BG113: NA | BH113: NA | BI113: NA | BJ113: 4.679 | BK113: NA | BL113: 4.38 | BM113: 7.76 | BN113: NA | BO113: 7.96 | BP113: 7.54 | BQ113: NA | BR113: NA | BS113: 8.72 | BT113: 7.8 | BU113: 6.51 | BV113: NA | BW113: NA | BX113: NA | BY113: 6.31 | BZ113: 6.23 | CA113: 6.12 | CB113: NA | CC113: 6.4 | CD113: 6.31 | CE113: 6.15 | CF113: 5.71 | CG113: 5.72 | CH113: 5.51 | CI113: NA | CJ113: 6.28 | CK113: 5.25 | CL113: 5.29 | CM113: 5.59 | CN113: 5.4 | CO113: 5.46 | CP113: NA | CQ113: 5.87
A114: 2003-11-01 | B114: 4.41 | C114: 4.21 | D114: NA | E114: NA | F114: 3.87 | G114: 4.68 | H114: 4.42 | I114: NA | J114: 4.94 | K114: 4.07 | L114: 3.96 | M114: 4.3 | N114: 4.42 | O114: 4.46 | P114: 4.46 | Q114: NA | R114: NA | S114: 4.08 | U114: 4.44 | V114: NA | W114: 4.24 | X114: 4.4 | Y114: 4.33 | Z114: 4.3 | AA114: NA | AB114: NA | AC114: 4.38 | AD114: 4.42 | AE114: 4.06 | AF114: 4.08 | AG114: 4.19 | AH114: 4.24 | AI114: 3.91 | AJ114: 4.35 | AK114: 4.16 | AL114: 4.41 | AM114: NA | AN114: 4.38 | AO114: 4.38 | AP114: NA | AQ114: 4.28 | AR114: NA | AS114: NA | AT114: NA | AV114: 4.41 | AW114: 4.4 | AX114: 4.34 | AY114: 4.27 | AZ114: 4.42 | BA114: 4.42 | BB114: 4.31 | BC114: 4.46 | BD114: 4.5 | BE114: NA | BF114: 4.04 | BG114: NA | BH114: NA | BI114: NA | BJ114: 4.4 | BK114: 4.3 | BL114: 4.18 | BM114: 5.7 | BN114: NA | BO114: 5.8 | BP114: 5.67 | BQ114: NA | BR114: NA | BS114: 6.07 | BT114: 5.92 | BU114: 5.37 | BV114: NA | BW114: NA | BX114: NA | BY114: 4.93 | BZ114: 5.1 | CA114: 5.03 | CB114: NA | CC114: 5.19 | CD114: 5.23 | CE114: 4.86 | CF114: 4.69 | CG114: 4.72 | CH114: 4.36 | CI114: NA | CJ114: 5.29 | CK114: NA | CL114: 4.51 | CM114: 4.82 | CN114: 4.61 | CO114: 4.55 | CP114: NA | CQ114: 4.67
A115: 2003-10-01 | B115: 4.38 | C115: 4.31 | D115: NA | E115: NA | F115: 4.01 | G115: 4.66 | H115: 4.41 | I115: NA | J115: 4.78 | K115: 4.14 | L115: 3.95 | M115: 4.25 | N115: 4.39 | O115: 4.41 | P115: 4.43 | Q115: 4.38 | R115: NA | S115: 4.13 | U115: NA | V115: NA | W115: 4.3 | X115: 4.36 | Y115: 4.48 | Z115: 4.31 | AA115: NA | AB115: NA | AC115: 4.45 | AD115: 4.43 | AE115: 4.12 | AF115: 4.14 | AG115: 4.22 | AH115: 4.34 | AI115: 4 | AJ115: 4.4 | AK115: 4.31 | AL115: 4.38 | AM115: NA | AN115: 4.33 | AO115: 4.32 | AP115: NA | AQ115: 4.28 | AR115: NA | AS115: NA | AT115: NA | AV115: 4.37 | AW115: 4.36 | AX115: 4.32 | AY115: 4.24 | AZ115: 4.4 | BA115: 4.39 | BB115: 4.27 | BC115: 4.4 | BD115: 4.45 | BE115: 4.51 | BF115: 4.09 | BG115: NA | BH115: NA | BI115: NA | BJ115: 4.5 | BK115: 4.26 | BL115: 4.29 | BM115: 5.05 | BN115: NA | BO115: 5.01 | BP115: 4.98 | BQ115: NA | BR115: NA | BS115: 5.12 | BT115: 5.03 | BU115: 4.97 | BV115: NA | BW115: NA | BX115: NA | BY115: 4.66 | BZ115: 4.76 | CA115: 4.75 | CB115: NA | CC115: 4.8 | CD115: 4.83 | CE115: 4.45 | CF115: 4.29 | CG115: 4.3 | CH115: 4.12 | CI115: 4 | CJ115: 4.97 | CK115: 4.17 | CL115: 4.2 | CM115: 4.54 | CN115: 4.3 | CO115: 4.28 | CP115: NA | CQ115: 4.3
A116: 2003-09-01 | B116: 4.87 | C116: 4.76 | D116: NA | E116: NA | F116: 4.31 | G116: 5.13 | H116: 4.89 | I116: NA | J116: 5.21 | K116: 4.77 | L116: 4.44 | M116: 4.77 | N116: 4.89 | O116: 4.93 | P116: 4.97 | Q116: NA | R116: NA | S116: 4.45 | U116: 4.95 | V116: 4.88 | W116: 4.79 | X116: 4.88 | Y116: 4.85 | Z116: 4.79 | AA116: NA | AB116: NA | AC116: 4.93 | AD116: 4.86 | AE116: 4.44 | AF116: 4.36 | AG116: 4.75 | AH116: 4.83 | AI116: 4.29 | AJ116: 4.86 | AK116: NA | AL116: 4.88 | AM116: NA | AN116: 4.81 | AO116: 4.81 | AP116: NA | AQ116: 4.79 | AR116: NA | AS116: NA | AT116: NA | AV116: 4.87 | AW116: 4.88 | AX116: 4.82 | AY116: 4.73 | AZ116: 4.86 | BA116: 4.89 | BB116: 4.77 | BC116: 4.93 | BD116: 4.97 | BE116: 4.98 | BF116: 4.58 | BG116: NA | BH116: NA | BI116: NA | BJ116: 4.84 | BK116: NA | BL116: 4.77 | BM116: 4.95 | BN116: NA | BO116: 4.89 | BP116: 4.83 | BQ116: NA | BR116: NA | BS116: 4.87 | BT116: NA | BU116: 4.7 | BV116: NA | BW116: NA | BX116: NA | BY116: 4.63 | BZ116: 4.63 | CA116: 4.72 | CB116: NA | CC116: 4.68 | CD116: 4.66 | CE116: 4.44 | CF116: 4.26 | CG116: 4.28 | CH116: 4.19 | CI116: NA | CJ116: 5.3 | CK116: 4.26 | CL116: 4.3 | CM116: 4.71 | CN116: 4.35 | CO116: 4.35 | CP116: NA | CQ116: 4.32
A117: 2003-08-01 | B117: 4.61 | C117: 4.57 | D117: NA | E117: NA | F117: 3.95 | G117: 4.94 | H117: 4.64 | I117: NA | J117: 4.97 | K117: 4.47 | L117: 4.03 | M117: 4.53 | N117: 4.65 | O117: 4.72 | P117: 4.74 | Q117: NA | R117: NA | S117: 4.02 | U117: 4.68 | V117: 4.63 | W117: 4.47 | X117: 4.65 | Y117: 4.62 | Z117: 4.55 | AA117: NA | AB117: NA | AC117: 4.56 | AD117: 4.54 | AE117: 4.01 | AF117: 3.93 | AG117: 4.53 | AH117: 4.55 | AI117: 3.87 | AJ117: 4.64 | AK117: 4.56 | AL117: 4.62 | AM117: NA | AN117: 4.54 | AO117: 4.58 | AP117: NA | AQ117: 4.55 | AR117: NA | AS117: NA | AT117: NA | AV117: 4.63 | AW117: 4.63 | AX117: NA | AY117: 4.49 | AZ117: 4.65 | BA117: 4.63 | BB117: 4.52 | BC117: 4.67 | BD117: 4.73 | BE117: 4.74 | BF117: 4.41 | BG117: NA | BH117: NA | BI117: NA | BJ117: 4.58 | BK117: NA | BL117: 4.57 | BM117: 5.13 | BN117: NA | BO117: 5.08 | BP117: 5.08 | BQ117: NA | BR117: NA | BS117: 5.15 | BT117: 5.12 | BU117: 4.92 | BV117: NA | BW117: NA | BX117: NA | BY117: 4.69 | BZ117: 4.83 | CA117: 4.84 | CB117: NA | CC117: 4.87 | CD117: 4.86 | CE117: 4.69 | CF117: 4.66 | CG117: 4.65 | CH117: 4.53 | CI117: 4.04 | CJ117: 5.25 | CK117: NA | CL117: 4.26 | CM117: 4.64 | CN117: 4.47 | CO117: 4.55 | CP117: NA | CQ117: 4.52
A118: 2003-07-01 | B118: 5.23 | C118: 5.16 | D118: NA | E118: NA | F118: 4.61 | G118: 5.59 | H118: 5.33 | I118: NA | J118: 5.72 | K118: 5.18 | L118: 4.7 | M118: NA | N118: NA | O118: 5.3 | P118: 5.33 | Q118: NA | R118: NA | S118: 4.67 | U118: NA | V118: NA | W118: 5.02 | X118: NA | Y118: 5.21 | Z118: NA | AA118: NA | AB118: NA | AC118: 5.17 | AD118: 5.29 | AE118: 4.67 | AF118: 4.65 | AG118: 5.14 | AH118: 5.18 | AI118: 4.52 | AJ118: 5.19 | AK118: NA | AL118: 5.37 | AM118: NA | AN118: 5.19 | AO118: 5.19 | AP118: NA | AQ118: 5.13 | AR118: NA | AS118: NA | AT118: NA | AV118: 5.23 | AW118: 5.23 | AX118: 5.18 | AY118: 5.12 | AZ118: 5.27 | BA118: 5.27 | BB118: 5.12 | BC118: 5.29 | BD118: 5.33 | BE118: 5.35 | BF118: 5.04 | BG118: NA | BH118: NA | BI118: NA | BJ118: 5.18 | BK118: NA | BL118: 5.17 | BM118: 5.88 | BN118: NA | BO118: 5.87 | BP118: 5.83 | BQ118: NA | BR118: NA | BS118: 5.86 | BT118: 5.84 | BU118: 5.59 | BV118: NA | BW118: NA | BX118: NA | BY118: 5.48 | BZ118: 5.56 | CA118: 5.64 | CB118: NA | CC118: 5.61 | CD118: 5.56 | CE118: 5.3 | CF118: 5.36 | CG118: 5.29 | CH118: 5.21 | CI118: 4.69 | CJ118: 6.01 | CK118: 4.96 | CL118: 4.97 | CM118: 5.49 | CN118: 5.04 | CO118: 5.35 | CP118: NA | CQ118: 5.14
A119: 2003-06-01 | B119: 5.88 | C119: 5.59 | D119: NA | E119: NA | F119: 4.87 | G119: 6.31 | H119: 5.92 | I119: NA | J119: 6.36 | K119: 5.48 | L119: 5.03 | M119: NA | N119: 5.87 | O119: 5.97 | P119: 6 | Q119: 5.7 | R119: NA | S119: 4.98 | U119: 5.94 | V119: 5.88 | W119: 5.49 | X119: 5.86 | Y119: 5.8 | Z119: 5.76 | AA119: NA | AB119: 5.41 | AC119: 5.56 | AD119: 5.53 | AE119: 4.96 | AF119: 4.87 | AG119: 5.45 | AH119: 5.58 | AI119: 4.78 | AJ119: 5.77 | AK119: 5.53 | AL119: 5.87 | AM119: NA | AN119: 5.85 | AO119: 5.86 | AP119: NA | AQ119: 5.79 | AR119: NA | AS119: NA | AT119: NA | AV119: 5.88 | AW119: 5.86 | AX119: 5.82 | AY119: 5.76 | AZ119: 5.92 | BA119: 5.9 | BB119: 5.77 | BC119: 5.95 | BD119: 6 | BE119: 6 | BF119: 5.36 | BG119: NA | BH119: NA | BI119: NA | BJ119: 5.85 | BK119: NA | BL119: 5.52 | BM119: 6.49 | BN119: NA | BO119: 6.48 | BP119: 6.47 | BQ119: NA | BR119: NA | BS119: 6.47 | BT119: 6.42 | BU119: 6.23 | BV119: NA | BW119: NA | BX119: NA | BY119: 5.91 | BZ119: 6.16 | CA119: 6.17 | CB119: NA | CC119: 6.25 | CD119: 6.21 | CE119: 5.95 | CF119: 5.87 | CG119: 5.96 | CH119: 5.59 | CI119: NA | CJ119: 6.72 | CK119: 5.1 | CL119: 5.27 | CM119: 5.75 | CN119: 5.5 | CO119: 5.71 | CP119: NA | CQ119: 5.69
A120: 2003-05-01 | B120: 5.07 | C120: 4.91 | D120: NA | E120: NA | F120: 3.85 | G120: 5.53 | H120: 5.11 | I120: NA | J120: 5.6 | K120: 4.79 | L120: 4.03 | M120: NA | N120: 5 | O120: 5.14 | P120: 5.16 | Q120: 4.89 | R120: NA | S120: 4.28 | U120: 5.11 | V120: 4.95 | W120: 4.74 | X120: 5.03 | Y120: 4.96 | Z120: 4.93 | AA120: NA | AB120: 4.72 | AC120: 4.82 | AD120: 4.85 | AE120: 4.28 | AF120: 4.58 | AG120: 4.88 | AH120: 4.81 | AI120: 4 | AJ120: 4.97 | AK120: 4.9 | AL120: 5.07 | AM120: NA | AN120: 5.01 | AO120: 5.04 | AP120: NA | AQ120: 4.91 | AR120: NA | AS120: NA | AT120: NA | AV120: 5.06 | AW120: 5.04 | AX120: 4.97 | AY120: 4.89 | AZ120: 5.1 | BA120: 5.1 | BB120: 4.91 | BC120: 5.12 | BD120: 5.17 | BE120: 5.17 | BF120: 4.77 | BG120: NA | BH120: NA | BI120: NA | BJ120: 5.05 | BK120: NA | BL120: 4.83 | BM120: 5.66 | BN120: NA | BO120: 5.7 | BP120: 5.63 | BQ120: NA | BR120: NA | BS120: 5.69 | BT120: 5.59 | BU120: 5.46 | BV120: NA | BW120: NA | BX120: NA | BY120: 5.12 | BZ120: 5.39 | CA120: 5.4 | CB120: NA | CC120: 5.45 | CD120: 5.42 | CE120: 5.12 | CF120: 4.99 | CG120: 4.95 | CH120: 4.92 | CI120: 3.95 | CJ120: 6.34 | CK120: 4.77 | CL120: 4.82 | CM120: 5.05 | CN120: 4.81 | CO120: 4.96 | CP120: NA | CQ120: 4.88
A121: 2003-04-01 | B121: 5.07 | C121: 4.8 | D121: NA | E121: NA | F121: 3.21 | G121: 5.43 | H121: 5.12 | I121: NA | J121: 5.54 | K121: 4.54 | L121: 3.71 | M121: NA | N121: 4.87 | O121: 5.15 | P121: 5.18 | Q121: 4.93 | R121: NA | S121: 3.26 | U121: 5.14 | V121: 5.06 | W121: 4.7 | X121: 5.04 | Y121: 4.87 | Z121: 4.87 | AA121: NA | AB121: 4.62 | AC121: 4.8 | AD121: 4.8 | AE121: 3.27 | AF121: 4.29 | AG121: 4.6 | AH121: 4.64 | AI121: 3.19 | AJ121: 4.88 | AK121: 4.69 | AL121: 5.05 | AM121: NA | AN121: 5.04 | AO121: 5.06 | AP121: NA | AQ121: 4.92 | AR121: NA | AS121: NA | AT121: NA | AV121: 5.07 | AW121: 5.06 | AX121: 5.02 | AY121: 4.85 | AZ121: 5.07 | BA121: 5.12 | BB121: 4.94 | BC121: 5.16 | BD121: 5.19 | BE121: 5.21 | BF121: 4.57 | BG121: NA | BH121: NA | BI121: NA | BJ121: 5.06 | BK121: 4.86 | BL121: 4.63 | BM121: 5.67 | BN121: NA | BO121: 5.69 | BP121: 5.67 | BQ121: NA | BR121: NA | BS121: 5.7 | BT121: 5.66 | BU121: 5.45 | BV121: NA | BW121: NA | BX121: NA | BY121: 5.23 | BZ121: 5.35 | CA121: 5.37 | CB121: NA | CC121: 5.45 | CD121: 5.39 | CE121: 5.14 | CF121: 4.93 | CG121: 4.88 | CH121: 4.68 | CI121: 3.29 | CJ121: 6.29 | CK121: 4.48 | CL121: 4.59 | CM121: 4.98 | CN121: 4.68 | CO121: 4.91 | CP121: NA | CQ121: 4.75
A122: 2003-03-01 | B122: 9.11 | C122: 8.67 | D122: NA | E122: NA | F122: 5.01 | G122: 9.39 | H122: 9.14 | I122: NA | J122: 11.2 | K122: 7.71 | L122: 5.91 | M122: 8.47 | N122: 9.07 | O122: 9.16 | P122: 9.13 | Q122: 8.87 | R122: NA | S122: 5.01 | U122: 9.1 | V122: 8.85 | W122: 8.64 | X122: NA | Y122: 8.81 | Z122: 8.79 | AA122: NA | AB122: 8.59 | AC122: 8.75 | AD122: 8.77 | AE122: 5.02 | AF122: 7.32 | AG122: NA | AH122: 8.55 | AI122: 5 | AJ122: NA | AK122: NA | AL122: 9.12 | AM122: NA | AN122: 9.06 | AO122: 9.07 | AP122: NA | AQ122: 8.89 | AR122: NA | AS122: NA | AT122: NA | AV122: 9.15 | AW122: 9.12 | AX122: 9 | AY122: 8.94 | AZ122: 9.12 | BA122: 9.12 | BB122: 8.94 | BC122: 9.2 | BD122: 9.22 | BE122: 9.21 | BF122: 7.81 | BG122: NA | BH122: NA | BI122: NA | BJ122: 9.04 | BK122: NA | BL122: NA | BM122: 11.6 | BN122: NA | BO122: 11.99 | BP122: 11.73 | BQ122: NA | BR122: NA | BS122: 11.35 | BT122: 11.35 | BU122: 10.11 | BV122: NA | BW122: NA | BX122: NA | BY122: 9.25 | BZ122: 9.66 | CA122: 9.65 | CB122: NA | CC122: 9.68 | CD122: 9.78 | CE122: 9.11 | CF122: 8.79 | CG122: 8.72 | CH122: 7.88 | CI122: 5.1 | CJ122: 10.81 | CK122: 7.53 | CL122: 7.53 | CM122: 7.4 | CN122: 6.9 | CO122: 6.89 | CP122: NA | CQ122: 8.53
A123: 2003-02-01 | B123: 5.61 | C123: 5.13 | D123: NA | E123: NA | F123: 3.2 | G123: 5.95 | H123: 5.65 | I123: NA | J123: 6.36 | K123: 4.92 | L123: 4.58 | M123: NA | N123: 5.62 | O123: 5.68 | P123: 5.67 | Q123: 5.48 | R123: NA | S123: 3.14 | U123: 5.63 | V123: 5.53 | W123: 5.05 | X123: 5.53 | Y123: 5.39 | Z123: 5.37 | AA123: NA | AB123: 5.1 | AC123: 5.23 | AD123: 5.28 | AE123: 3.14 | AF123: 4.76 | AG123: 5.12 | AH123: 5.07 | AI123: 3.05 | AJ123: 5.35 | AK123: 5.2 | AL123: 5.62 | AM123: NA | AN123: 5.58 | AO123: 5.59 | AP123: NA | AQ123: 5.42 | AR123: NA | AS123: NA | AT123: NA | AV123: 5.63 | AW123: 5.63 | AX123: 5.45 | AY123: 5.47 | AZ123: 5.61 | BA123: 5.63 | BB123: 5.44 | BC123: 5.67 | BD123: 5.75 | BE123: 5.79 | BF123: 4.93 | BG123: NA | BH123: NA | BI123: NA | BJ123: 5.52 | BK123: 5.47 | BL123: 5.12 | BM123: 7.16 | BN123: NA | BO123: 7.71 | BP123: 7.35 | BQ123: NA | BR123: NA | BS123: 7.93 | BT123: 7.81 | BU123: 5.98 | BV123: NA | BW123: NA | BX123: NA | BY123: 5.56 | BZ123: 5.7 | CA123: 5.65 | CB123: NA | CC123: 5.79 | CD123: 5.73 | CE123: 5.66 | CF123: 5.44 | CG123: 5.4 | CH123: 5.03 | CI123: 3.28 | CJ123: 6.97 | CK123: NA | CL123: 4.89 | CM123: 5.16 | CN123: NA | CO123: 4.92 | CP123: NA | CQ123: 5.26
A124: 2003-01-01 | B124: 4.9 | C124: 4.63 | D124: NA | E124: NA | F124: 3.14 | G124: 5.12 | H124: 4.93 | I124: NA | J124: 5.33 | K124: 4.63 | L124: 4.47 | M124: NA | N124: 4.8 | O124: 4.93 | P124: 4.98 | Q124: 4.75 | R124: NA | S124: 3.08 | U124: 4.85 | V124: 4.82 | W124: 4.61 | X124: 4.75 | Y124: 4.71 | Z124: 4.69 | AA124: NA | AB124: 4.52 | AC124: 4.66 | AD124: 4.56 | AE124: 3.07 | AF124: 4.44 | AG124: 4.58 | AH124: 4.58 | AI124: 3.08 | AJ124: 4.6 | AK124: 4.57 | AL124: 4.89 | AM124: NA | AN124: 4.82 | AO124: 4.81 | AP124: NA | AQ124: 4.73 | AR124: NA | AS124: NA | AT124: NA | AV124: 4.91 | AW124: 4.87 | AX124: 4.68 | AY124: 4.67 | AZ124: 4.9 | BA124: 4.92 | BB124: 4.72 | BC124: 4.9 | BD124: 5.02 | BE124: 5.04 | BF124: 4.58 | BG124: NA | BH124: NA | BI124: NA | BJ124: 4.78 | BK124: NA | BL124: 4.62 | BM124: 6.11 | BN124: NA | BO124: 6.84 | BP124: 6.43 | BQ124: NA | BR124: NA | BS124: 6.62 | BT124: 6.29 | BU124: 5.3 | BV124: NA | BW124: NA | BX124: NA | BY124: 4.98 | BZ124: 4.99 | CA124: 4.94 | CB124: NA | CC124: 5.06 | CD124: 5.05 | CE124: 4.96 | CF124: 4.76 | CG124: 4.73 | CH124: 4.65 | CI124: 3.2 | CJ124: 6 | CK124: NA | CL124: 4.44 | CM124: 4.89 | CN124: NA | CO124: 4.6 | CP124: NA | CQ124: 4.64
A125: 2002-12-01 | B125: 4.1 | C125: 4.02 | D125: NA | E125: NA | F125: 3.33 | G125: 4.32 | H125: 4.12 | I125: NA | J125: 4.44 | K125: 3.91 | L125: 3.64 | M125: NA | N125: 4.09 | O125: 4.13 | P125: 4.15 | Q125: 3.95 | R125: NA | S125: 3.3 | U125: 4.16 | V125: 4.06 | W125: 3.98 | X125: 4.08 | Y125: 4.06 | Z125: 4.05 | AA125: NA | AB125: NA | AC125: 4.1 | AD125: 4.11 | AE125: 3.3 | AF125: 3.96 | AG125: 3.96 | AH125: 3.97 | AI125: 3.29 | AJ125: 3.96 | AK125: 3.93 | AL125: 4.1 | AM125: NA | AN125: 4.07 | AO125: 4.06 | AP125: NA | AQ125: 4.01 | AR125: NA | AS125: NA | AT125: NA | AV125: 4.08 | AW125: 4.07 | AX125: 4.05 | AY125: 4.04 | AZ125: 4.11 | BA125: 4.12 | BB125: 4.05 | BC125: 4.15 | BD125: 4.21 | BE125: 4.24 | BF125: 3.94 | BG125: NA | BH125: NA | BI125: NA | BJ125: 4.06 | BK125: 4.03 | BL125: 3.98 | BM125: 4.92 | BN125: NA | BO125: 5.2 | BP125: 4.96 | BQ125: NA | BR125: NA | BS125: 5.1 | BT125: 5 | BU125: 4.44 | BV125: NA | BW125: NA | BX125: NA | BY125: 4.25 | BZ125: 4.22 | CA125: 4.22 | CB125: NA | CC125: 4.3 | CD125: 4.3 | CE125: 4.13 | CF125: 4.05 | CG125: 4 | CH125: 3.97 | CI125: 3.4 | CJ125: 5.59 | CK125: 3.93 | CL125: 4.06 | CM125: 4.11 | CN125: NA | CO125: 4.04 | CP125: NA | CQ125: 4.01
A126: 2002-11-01 | B126: 4.1 | C126: 4.07 | D126: NA | E126: NA | F126: 2.93 | G126: 4.38 | H126: 4.11 | I126: NA | J126: 4.43 | K126: 3.88 | L126: 3.35 | M126: NA | N126: 4.11 | O126: 4.15 | P126: 4.16 | Q126: 3.97 | R126: NA | S126: 2.99 | U126: 4.14 | V126: 4.05 | W126: 4.03 | X126: 4.08 | Y126: 4.07 | Z126: 4.07 | AA126: NA | AB126: 3.96 | AC126: 4.13 | AD126: 4.14 | AE126: 2.99 | AF126: 3.92 | AG126: 4.03 | AH126: 4.05 | AI126: 2.78 | AJ126: 4.02 | AK126: 4 | AL126: 4.09 | AM126: NA | AN126: 4.05 | AO126: 4.05 | AP126: NA | AQ126: 4.02 | AR126: NA | AS126: NA | AT126: NA | AV126: 4.07 | AW126: 4.05 | AX126: 4.05 | AY126: 4.04 | AZ126: 4.11 | BA126: 4.11 | BB126: 4.07 | BC126: 4.12 | BD126: 4.19 | BE126: 4.2 | BF126: 3.86 | BG126: NA | BH126: NA | BI126: NA | BJ126: 4.08 | BK126: 4.06 | BL126: 4.06 | BM126: 4.74 | BN126: NA | BO126: 4.87 | BP126: 4.73 | BQ126: NA | BR126: NA | BS126: 4.73 | BT126: 4.69 | BU126: 4.45 | BV126: NA | BW126: NA | BX126: NA | BY126: 4.27 | BZ126: 4.3 | CA126: 4.29 | CB126: NA | CC126: 4.33 | CD126: 4.35 | CE126: 4.13 | CF126: 4.08 | CG126: 4.04 | CH126: 3.94 | CI126: 3.1 | CJ126: 5.56 | CK126: 3.96 | CL126: 4.06 | CM126: 4.09 | CN126: 3.97 | CO126: 4.09 | CP126: NA | CQ126: 3.97
A127: 2002-10-01 | B127: 3.6 | C127: 3.33 | D127: NA | E127: NA | F127: 1.2 | G127: 3.88 | H127: 3.67 | I127: NA | J127: 3.82 | K127: 3.27 | L127: 2.34 | M127: 3.58 | N127: 3.63 | O127: 3.71 | P127: 3.69 | Q127: 3.38 | R127: NA | S127: 1.31 | U127: 3.75 | V127: 3.6 | W127: 3.31 | X127: 3.6 | Y127: 3.58 | Z127: 3.57 | AA127: NA | AB127: 3.12 | AC127: 3.44 | AD127: 3.45 | AE127: 1.31 | AF127: 3.06 | AG127: 3.34 | AH127: 3.34 | AI127: 1.17 | AJ127: 3.51 | AK127: 3.38 | AL127: 3.66 | AM127: NA | AN127: 3.64 | AO127: 3.64 | AP127: NA | AQ127: 3.56 | AR127: NA | AS127: NA | AT127: NA | AV127: 3.61 | AW127: 3.59 | AX127: 3.58 | AY127: 3.56 | AZ127: 3.67 | BA127: 3.74 | BB127: 3.61 | BC127: 6.67 | BD127: 3.73 | BE127: 3.7 | BF127: 3.15 | BG127: NA | BH127: NA | BI127: NA | BJ127: 3.59 | BK127: 3.58 | BL127: 3.32 | BM127: 4.06 | BN127: 4.13 | BO127: 4.15 | BP127: 4.01 | BQ127: NA | BR127: NA | BS127: 4.03 | BT127: 3.99 | BU127: 3.76 | BV127: NA | BW127: NA | BX127: NA | BY127: 3.67 | BZ127: 3.73 | CA127: 3.74 | CB127: NA | CC127: 3.78 | CD127: 3.72 | CE127: 3.72 | CF127: 3.64 | CG127: 3.58 | CH127: 3.39 | CI127: 1.36 | CJ127: 4.54 | CK127: 3.13 | CL127: 3.32 | CM127: 3.38 | CN127: 3.23 | CO127: 3.32 | CP127: NA | CQ127: 3.34
A128: 2002-09-01 | B128: 3.18 | C128: 2.98 | D128: NA | E128: NA | F128: 1.09 | G128: 3.79 | H128: 3.25 | I128: NA | J128: 3.38 | K128: 3.05 | L128: 2.3 | M128: 3.03 | N128: 3.21 | O128: 3.29 | P128: 3.27 | Q128: 3.12 | R128: NA | S128: 1.2 | U128: 3.3 | V128: 3.17 | W128: 2.95 | X128: 3.18 | Y128: 3.18 | Z128: 3.17 | AA128: NA | AB128: 2.83 | AC128: 3.04 | AD128: 3 | AE128: 1.2 | AF128: 2.54 | AG128: 2.99 | AH128: 2.97 | AI128: 1.09 | AJ128: 3.18 | AK128: 3.03 | AL128: 3.23 | AM128: NA | AN128: 3.18 | AO128: 3.19 | AP128: NA | AQ128: 3.17 | AR128: NA | AS128: NA | AT128: NA | AV128: 3.18 | AW128: 3.17 | AX128: 3.15 | AY128: 3.14 | AZ128: 3.26 | BA128: 3.25 | BB128: 3.22 | BC128: 3.25 | BD128: 3.29 | BE128: 3.3 | BF128: 3.29 | BG128: NA | BH128: NA | BI128: NA | BJ128: 3.17 | BK128: NA | BL128: 2.98 | BM128: 3.59 | BN128: 3.64 | BO128: 3.65 | BP128: 3.59 | BQ128: NA | BR128: NA | BS128: 3.57 | BT128: 3.56 | BU128: 3.3 | BV128: NA | BW128: NA | BX128: NA | BY128: 3.2 | BZ128: 3.27 | CA128: 3.28 | CB128: NA | CC128: 3.32 | CD128: 3.26 | CE128: 3.27 | CF128: 3.31 | CG128: 3.26 | CH128: 3.19 | CI128: 1.13 | CJ128: 3.47 | CK128: 2.63 | CL128: 2.93 | CM128: 3.14 | CN128: 3.01 | CO128: 3.1 | CP128: NA | CQ128: 2.98
A129: 2002-08-01 | B129: 2.9 | C129: 3.77 | D129: NA | E129: NA | F129: 1.59 | G129: 3.12 | H129: 2.94 | I129: NA | J129: 3.13 | K129: 2.72 | L129: 2.46 | M129: 2.69 | N129: 2.94 | O129: 3 | P129: 2.96 | Q129: 2.79 | R129: NA | S129: 1.59 | U129: 2.69 | V129: 2.89 | W129: 2.73 | X129: 2.88 | Y129: 2.89 | Z129: 2.84 | AA129: NA | AB129: 2.61 | AC129: 2.79 | AD129: 2.79 | AE129: 1.59 | AF129: 1.87 | AG129: 2.77 | AH129: 2.7 | AI129: 1.47 | AJ129: 2.87 | AK129: 2.83 | AL129: 2.9 | AM129: NA | AN129: 2.87 | AO129: 2.87 | AP129: NA | AQ129: 2.85 | AR129: NA | AS129: NA | AT129: NA | AV129: 2.88 | AW129: 2.88 | AX129: 2.85 | AY129: 2.83 | AZ129: 2.96 | BA129: 2.93 | BB129: 2.9 | BC129: 2.95 | BD129: 3 | BE129: 3.01 | BF129: 2.69 | BG129: NA | BH129: NA | BI129: NA | BJ129: 2.84 | BK129: 2.82 | BL129: 2.84 | BM129: 3.3 | BN129: 3.53 | BO129: 3.58 | BP129: 3.29 | BQ129: NA | BR129: NA | BS129: 3.3 | BT129: 3.26 | BU129: 2.93 | BV129: NA | BW129: NA | BX129: NA | BY129: 2.91 | BZ129: 2.95 | CA129: 2.93 | CB129: NA | CC129: 3.04 | CD129: 2.88 | CE129: 2.95 | CF129: 2.97 | CG129: 2.93 | CH129: 2.81 | CI129: 1.63 | CJ129: 2.78 | CK129: 2.02 | CL129: 2.47 | CM129: 2.74 | CN129: 2.63 | CO129: 2.92 | CP129: NA | CQ129: 2.74
A130: 2002-07-01 | B130: 3.17 | C130: 3.07 | D130: NA | E130: NA | F130: 1.2 | G130: 3.44 | H130: 3.25 | I130: NA | J130: 3.47 | K130: 3.16 | L130: 2.7 | M130: 2.96 | N130: 3.25 | O130: 3.29 | P130: 3.29 | Q130: 3.13 | R130: NA | S130: 1.26 | U130: 3.27 | V130: 3.21 | W130: 3 | X130: 3.18 | Y130: 3.16 | Z130: 3.16 | AA130: NA | AB130: NA | AC130: 3.03 | AD130: 3.03 | AE130: 1.26 | AF130: 1.9 | AG130: 3.02 | AH130: 3 | AI130: 1.23 | AJ130: 3.14 | AK130: 3.07 | AL130: 3.22 | AM130: NA | AN130: 3.18 | AO130: 3.16 | AP130: NA | AQ130: 3.15 | AR130: NA | AS130: NA | AT130: NA | AV130: 3.18 | AW130: 3.15 | AX130: 3.15 | AY130: 3.13 | AZ130: 3.26 | BA130: 3.24 | BB130: 3.19 | BC130: 3.24 | BD130: 3.29 | BE130: 3.3 | BF130: NA | BG130: NA | BH130: NA | BI130: NA | BJ130: 3.13 | BK130: 3.16 | BL130: 3.08 | BM130: 3.68 | BN130: 3.72 | BO130: 3.78 | BP130: 3.57 | BQ130: NA | BR130: NA | BS130: 3.6 | BT130: 3.54 | BU130: 3.32 | BV130: NA | BW130: NA | BX130: NA | BY130: 3.27 | BZ130: 3.3 | CA130: 3.31 | CB130: NA | CC130: 3.34 | CD130: 3.24 | CE130: 3.26 | CF130: 3.3 | CG130: 3.25 | CH130: 3.3 | CI130: 1.29 | CJ130: 2.79 | CK130: 2.26 | CL130: 2.62 | CM130: 2.89 | CN130: 2.8 | CO130: 3.3 | CP130: NA | CQ130: 2.98 | CR130: 3.06
A131: 2002-06-01 | B131: 3.3 | C131: 3.07 | D131: NA | E131: NA | F131: 1.56 | G131: 3.54 | H131: 3.36 | I131: NA | J131: 3.55 | K131: 2.86 | L131: 2.12 | M131: 3.01 | N131: 3.36 | O131: 3.42 | P131: 3.37 | Q131: 3.25 | R131: 3.18 | S131: 1.6 | U131: NA | V131: NA | W131: 3.04 | X131: 3.27 | Y131: 3.25 | Z131: 3.22 | AA131: NA | AB131: 2.9 | AC131: 3.11 | AD131: 3.11 | AE131: 1.6 | AF131: 2.42 | AG131: 3.05 | AH131: 3.02 | AI131: 1.53 | AJ131: 3.23 | AK131: 3.16 | AL131: 3.35 | AM131: NA | AN131: NA | AO131: NA | AP131: 3.27 | AQ131: 3.23 | AR131: NA | AS131: NA | AT131: NA | AV131: 3.28 | AW131: 3.26 | AX131: 3.26 | AY131: 3.23 | AZ131: 3.37 | BA131: 3.36 | BB131: 3.35 | BC131: 3.38 | BD131: 3.44 | BE131: 3.46 | BF131: 2.85 | BG131: NA | BH131: NA | BI131: NA | BJ131: 3.2 | BK131: 3.24 | BL131: 3.08 | BM131: 3.68 | BN131: 3.7 | BO131: NA | BP131: NA | BQ131: NA | BR131: NA | BS131: NA | BT131: NA | BU131: NA | BV131: NA | BW131: NA | BX131: NA | BY131: 3.36 | BZ131: NA | CA131: 3.46 | CB131: NA | CC131: NA | CD131: NA | CE131: 3.37 | CF131: 3.37 | CG131: 3.32 | CH131: 2.94 | CI131: NA | CJ131: NA | CK131: 2.57 | CL131: 2.6 | CM131: 2.64 | CN131: 2.58 | CO131: 2.88 | CP131: NA | CQ131: NA | CR131: 3.164067797
A132: 2002-05-01 | B132: 3.26 | C132: 3.18 | D132: NA | E132: NA | F132: 2.18 | G132: 3.52 | H132: 3.34 | I132: NA | J132: 3.54 | K132: 3.12 | L132: 2.58 | M132: 3.05 | N132: 3.35 | O132: 3.4 | P132: 3.31 | Q132: 3.18 | R132: 3.09 | S132: 2.27 | U132: NA | V132: NA | W132: 3.17 | X132: 3.26 | Y132: 3.24 | Z132: 3.21 | AA132: NA | AB132: 3.1 | AC132: 3.21 | AD132: 3.17 | AE132: 2.26 | AF132: 2.81 | AG132: 3.19 | AH132: 3.18 | AI132: 2.09 | AJ132: 3.23 | AK132: 3.19 | AL132: 3.31 | AM132: NA | AN132: NA | AO132: NA | AP132: 3.26 | AQ132: 3.2 | AR132: NA | AS132: NA | AT132: NA | AV132: 3.27 | AW132: 3.25 | AX132: 3.25 | AY132: 3.21 | AZ132: 3.33 | BA132: 3.32 | BB132: 3.26 | BC132: 3.3 | BD132: 3.37 | BE132: 3.37 | BF132: 3.07 | BG132: NA | BH132: NA | BI132: NA | BJ132: 3.2 | BK132: 3.22 | BL132: 3.2 | BM132: 3.64 | BN132: 3.66 | BO132: NA | BP132: NA | BQ132: NA | BR132: NA | BS132: NA | BT132: NA | BU132: NA | BV132: NA | BW132: NA | BX132: NA | BY132: 3.4 | BZ132: NA | CA132: 3.47 | CB132: NA | CC132: NA | CD132: NA | CE132: 3.36 | CF132: 3.36 | CG132: 3.33 | CH132: 3.26 | CI132: NA | CJ132: NA | CK132: 2.82 | CL132: 2.97 | CM132: 3.11 | CN132: 3.01 | CO132: 3.22 | CP132: NA | CQ132: NA | CR132: 3.299322034
A133: 2002-04-01 | B133: 3.31 | C133: 3.29 | D133: NA | E133: NA | F133: 2.71 | G133: 3.55 | H133: 3.38 | I133: NA | J133: 3.59 | K133: 3.18 | L133: 3.1 | M133: 3.06 | N133: 3.4 | O133: 3.43 | P133: 3.38 | Q133: 3.25 | R133: 3.21 | S133: 2.86 | U133: NA | V133: NA | W133: 3.28 | X133: 3.3 | Y133: 3.31 | Z133: 3.3 | AA133: NA | AB133: 3.19 | AC133: 3.32 | AD133: 3.29 | AE133: 2.85 | AF133: 3.16 | AG133: 3.29 | AH133: 3.29 | AI133: 2.67 | AJ133: 3.31 | AK133: 3.26 | AL133: 3.36 | AM133: NA | AN133: NA | AO133: NA | AP133: 3.32 | AQ133: 3.3 | AR133: NA | AS133: NA | AT133: NA | AV133: 3.33 | AW133: 3.32 | AX133: 3.32 | AY133: 3.29 | AZ133: 3.4 | BA133: 3.4 | BB133: 3.32 | BC133: 3.39 | BD133: 3.43 | BE133: 3.43 | BF133: 3.17 | BG133: NA | BH133: NA | BI133: NA | BJ133: 3.33 | BK133: 3.28 | BL133: 3.29 | BM133: 3.72 | BN133: 3.73 | BO133: NA | BP133: NA | BQ133: NA | BR133: NA | BS133: NA | BT133: NA | BU133: NA | BV133: NA | BW133: NA | BX133: NA | BY133: 3.42 | BZ133: NA | CA133: 3.46 | CB133: NA | CC133: NA | CD133: NA | CE133: 3.4 | CF133: 3.41 | CG133: 3.36 | CH133: 3.23 | CI133: NA | CJ133: NA | CK133: 3.21 | CL133: 3.3 | CM133: 3.45 | CN133: 3.35 | CO133: 3.42 | CP133: NA | CQ133: NA | CR133: 2.300169492
A134: 2002-03-01 | B134: 2.33 | C134: 2.3 | D134: NA | E134: NA | F134: 1.85 | G134: 2.53 | H134: 2.38 | I134: NA | J134: 2.59 | K134: 2.18 | L134: 2.13 | M134: 2.04 | N134: 2.36 | O134: 2.41 | P134: 2.35 | Q134: 2.34 | R134: 2.16 | S134: 1.97 | U134: NA | V134: NA | W134: 2.28 | X134: 2.32 | Y134: 2.29 | Z134: 2.28 | AA134: NA | AB134: 2.17 | AC134: 2.34 | AD134: 2.36 | AE134: 1.97 | AF134: 2.12 | AG134: 2.29 | AH134: 2.3 | AI134: 1.85 | AJ134: 2.3 | AK134: 2.25 | AL134: 2.37 | AM134: NA | AN134: NA | AO134: NA | AP134: 2.32 | AQ134: 2.29 | AR134: NA | AS134: NA | AT134: NA | AV134: 2.32 | AW134: 2.31 | AX134: 2.31 | AY134: 2.31 | AZ134: 2.38 | BA134: 2.38 | BB134: 2.33 | BC134: 2.36 | BD134: 2.43 | BE134: 2.44 | BF134: 2.17 | BG134: NA | BH134: NA | BI134: NA | BJ134: 2.32 | BK134: 2.27 | BL134: 2.31 | BM134: 2.69 | BN134: 2.76 | BO134: NA | BP134: NA | BQ134: NA | BR134: NA | BS134: NA | BT134: NA | BU134: NA | BV134: NA | BW134: NA | BX134: NA | BY134: 2.41 | BZ134: NA | CA134: 2.45 | CB134: NA | CC134: NA | CD134: NA | CE134: 2.39 | CF134: 2.4 | CG134: 2.34 | CH134: 2.25 | CI134: NA | CJ134: NA | CK134: 2.19 | CL134: 2.25 | CM134: 2.39 | CN134: 2.25 | CO134: 2.28 | CP134: NA | CQ134: NA | CR134: 1.949322034
A135: 2002-02-01 | B135: 1.94 | C135: 1.9 | D135: NA | E135: NA | F135: 1.7 | G135: 2.14 | H135: 2.02 | I135: NA | J135: 2.2 | K135: 1.83 | L135: 1.77 | M135: 1.76 | N135: 1.97 | O135: 2.05 | P135: 1.97 | Q135: 1.91 | R135: 1.85 | S135: 1.72 | U135: NA | V135: NA | W135: 1.89 | X135: 1.94 | Y135: 1.91 | Z135: 1.89 | AA135: NA | AB135: 1.86 | AC135: 1.97 | AD135: 1.97 | AE135: 1.73 | AF135: 1.85 | AG135: 1.9 | AH135: 1.9 | AI135: 1.6 | AJ135: 1.92 | AK135: 1.87 | AL135: 1.99 | AM135: NA | AN135: NA | AO135: NA | AP135: 1.96 | AQ135: 1.9 | AR135: NA | AS135: NA | AT135: NA | AV135: 1.97 | AW135: 1.96 | AX135: 1.94 | AY135: 1.93 | AZ135: 2.03 | BA135: 2.02 | BB135: 1.96 | BC135: 1.99 | BD135: 2.06 | BE135: 2.07 | BF135: 1.84 | BG135: NA | BH135: NA | BI135: NA | BJ135: 1.93 | BK135: 1.89 | BL135: 1.9 | BM135: 2.43 | BN135: 2.58 | BO135: NA | BP135: NA | BQ135: NA | BR135: NA | BS135: NA | BT135: NA | BU135: NA | BV135: NA | BW135: NA | BX135: NA | BY135: 1.97 | BZ135: NA | CA135: 2.03 | CB135: NA | CC135: NA | CD135: NA | CE135: 2.03 | CF135: 2 | CG135: 1.94 | CH135: 1.87 | CI135: NA | CJ135: NA | CK135: 1.84 | CL135: 1.99 | CM135: 2.06 | CN135: 1.98 | CO135: 2.02 | CP135: NA | CQ135: NA | CR135: 2.594237288
A136: 2002-01-01 | B136: 2.5 | C136: 2.5 | D136: NA | E136: NA | F136: 2.26 | G136: 2.76 | H136: 2.6 | I136: NA | J136: 2.79 | K136: 2.57 | L136: 2.47 | M136: 2.32 | N136: 2.55 | O136: 2.6 | P136: 2.57 | Q136: 2.43 | R136: 2.37 | S136: 2.36 | U136: NA | V136: NA | W136: 2.49 | X136: 2.53 | Y136: 2.5 | Z136: 2.48 | AA136: NA | AB136: 2.4 | AC136: 2.58 | AD136: 2.57 | AE136: 2.35 | AF136: 2.56 | AG136: 2.51 | AH136: 2.51 | AI136: 2.19 | AJ136: 2.51 | AK136: 2.41 | AL136: 2.54 | AM136: NA | AN136: NA | AO136: NA | AP136: 2.53 | AQ136: 2.52 | AR136: NA | AS136: NA | AT136: NA | AV136: 2.53 | AW136: 2.52 | AX136: 2.5 | AY136: 2.49 | AZ136: 2.57 | BA136: 2.59 | BB136: 2.52 | BC136: 2.56 | BD136: 2.65 | BE136: 2.63 | BF136: 2.49 | BG136: NA | BH136: NA | BI136: NA | BJ136: 2.49 | BK136: 2.47 | BL136: 2.51 | BM136: 3.6 | BN136: 4.92 | BO136: NA | BP136: NA | BQ136: NA | BR136: NA | BS136: NA | BT136: NA | BU136: NA | BV136: NA | BW136: NA | BX136: NA | BY136: 2.7 | BZ136: NA | CA136: 2.72 | CB136: NA | CC136: NA | CD136: NA | CE136: 2.61 | CF136: 2.61 | CG136: 2.63 | CH136: 2.6 | CI136: NA | CJ136: NA | CK136: 2.62 | CL136: 2.6 | CM136: 2.84 | CN136: 2.64 | CO136: 2.62 | CP136: NA | CQ136: NA | CR136: 2.29559322
A137: 2001-12-01 | B137: 2.22 | C137: 2.24 | D137: NA | E137: NA | F137: 2.13 | G137: 2.42 | H137: 2.28 | I137: NA | J137: 2.42 | K137: 2.35 | L137: 2.09 | M137: 2.01 | N137: 2.18 | O137: 2.28 | P137: 2.27 | Q137: 2.19 | R137: 2.05 | S137: 2.13 | U137: NA | V137: NA | W137: 2.23 | X137: 2.24 | Y137: 2.27 | Z137: 2.18 | AA137: NA | AB137: 2.08 | AC137: 2.34 | AD137: 2.34 | AE137: 2.16 | AF137: 2.68 | AG137: 2.23 | AH137: 2.24 | AI137: 2.02 | AJ137: 2.2 | AK137: 2.12 | AL137: 2.23 | AM137: NA | AN137: NA | AO137: NA | AP137: 2.2 | AQ137: 2.16 | AR137: NA | AS137: NA | AT137: NA | AV137: 2.23 | AW137: 2.22 | AX137: 2.22 | AY137: 2.19 | AZ137: 2.27 | BA137: 2.27 | BB137: 2.21 | BC137: 2.25 | BD137: 2.3 | BE137: 2.32 | BF137: 2.29 | BG137: NA | BH137: NA | BI137: NA | BJ137: 2.23 | BK137: 2.2 | BL137: 2.24 | BM137: 2.91 | BN137: 3.12 | BO137: NA | BP137: NA | BQ137: NA | BR137: NA | BS137: NA | BT137: NA | BU137: NA | BV137: NA | BW137: NA | BX137: NA | BY137: 2.4 | BZ137: NA | CA137: 2.43 | CB137: NA | CC137: NA | CD137: NA | CE137: 2.28 | CF137: 2.3 | CG137: 2.47 | CH137: 2.37 | CI137: NA | CJ137: NA | CK137: 2.59 | CL137: 2.69 | CM137: 2.72 | CN137: 2.27 | CO137: 2.27 | CP137: NA | CQ137: NA | CR137: 3.03559322
A138: 2001-11-01 | B138: 3.07 | C138: 3.04 | D138: NA | E138: NA | F138: 2.54 | G138: 3.37 | H138: 3.15 | I138: NA | J138: 3.37 | K138: 2.79 | L138: 2.69 | M138: 2.82 | N138: 3.08 | O138: 3.14 | P138: 3.11 | Q138: 3.01 | R138: 2.9 | S138: 2.64 | U138: NA | V138: NA | W138: 3.04 | X138: 3.11 | Y138: 3.1 | Z138: 3.05 | AA138: NA | AB138: 2.94 | AC138: 3.11 | AD138: 3.07 | AE138: 2.59 | AF138: 2.78 | AG138: 3.01 | AH138: 3.05 | AI138: 2.38 | AJ138: 3.07 | AK138: 3.04 | AL138: 3.11 | AM138: NA | AN138: NA | AO138: NA | AP138: 3.08 | AQ138: 3.03 | AR138: NA | AS138: NA | AT138: NA | AV138: 3.11 | AW138: 3.08 | AX138: 3.08 | AY138: 3.05 | AZ138: 3.16 | BA138: 3.13 | BB138: 3.11 | BC138: 3.14 | BD138: 3.18 | BE138: 3.19 | BF138: 2.79 | BG138: NA | BH138: NA | BI138: NA | BJ138: 3.08 | BK138: 3.03 | BL138: 3.05 | BM138: 3.54 | BN138: 3.65 | BO138: NA | BP138: NA | BQ138: NA | BR138: NA | BS138: NA | BT138: NA | BU138: NA | BV138: NA | BW138: NA | BX138: NA | BY138: 3.23 | BZ138: NA | CA138: 3.33 | CB138: NA | CC138: NA | CD138: NA | CE138: 3.16 | CF138: 3.12 | CG138: 3.01 | CH138: 2.89 | CI138: NA | CJ138: NA | CK138: 2.84 | CL138: 2.91 | CM138: 3.07 | CN138: 2.94 | CO138: 2.95 | CP138: NA | CQ138: NA | CR138: 1.710677966
A139: 2001-10-01 | B139: 1.74 | C139: 1.73 | D139: NA | E139: NA | F139: 1.05 | G139: 2.05 | H139: 1.81 | I139: NA | J139: 2.02 | K139: 1.63 | L139: 1.34 | M139: 1.61 | N139: 1.8 | O139: 1.84 | P139: 1.77 | Q139: 1.7 | R139: 1.6 | S139: 1.23 | U139: NA | V139: NA | W139: 1.7 | X139: 1.76 | Y139: 1.73 | Z139: 1.7 | AA139: NA | AB139: 1.63 | AC139: 1.77 | AD139: 1.74 | AE139: 1.24 | AF139: 1.38 | AG139: 1.73 | AH139: 1.75 | AI139: 0.95 | AJ139: 1.75 | AK139: 1.71 | AL139: 1.76 | AM139: NA | AN139: NA | AO139: NA | AP139: 1.75 | AQ139: 1.73 | AR139: NA | AS139: NA | AT139: NA | AV139: 1.79 | AW139: 1.67 | AX139: 1.75 | AY139: 1.77 | AZ139: 1.8 | BA139: 1.82 | BB139: 1.76 | BC139: 1.78 | BD139: 1.86 | BE139: 1.86 | BF139: 1.62 | BG139: NA | BH139: NA | BI139: NA | BJ139: 1.74 | BK139: 1.73 | BL139: 1.75 | BM139: 2.12 | BN139: 2.16 | BO139: NA | BP139: NA | BQ139: NA | BR139: NA | BS139: NA | BT139: NA | BU139: NA | BV139: NA | BW139: NA | BX139: NA | BY139: 1.87 | BZ139: NA | CA139: 1.95 | CB139: NA | CC139: NA | CD139: NA | CE139: 1.86 | CF139: 1.86 | CG139: 1.83 | CH139: 1.71 | CI139: NA | CJ139: NA | CK139: 1.38 | CL139: 1.52 | CM139: 1.8 | CN139: 1.71 | CO139: 1.76 | CP139: NA | CQ139: NA | CR139: 2.272372881
A140: 2001-09-01 | B140: 2.22 | C140: 2.22 | D140: NA | E140: NA | F140: 1.98 | G140: 2.46 | H140: 2.3 | I140: NA | J140: 2.42 | K140: 2.33 | L140: 2.18 | M140: 2.03 | N140: 2.26 | O140: 2.34 | P140: 2.22 | Q140: 2.18 | R140: 2.09 | S140: 2.08 | U140: NA | V140: NA | W140: 2.19 | X140: 2.24 | Y140: 2.22 | Z140: 2.21 | AA140: NA | AB140: 2.09 | AC140: 2.27 | AD140: 2.26 | AE140: 2.09 | AF140: 2.08 | AG140: 2.22 | AH140: 2.24 | AI140: 1.88 | AJ140: 2.23 | AK140: 2.2 | AL140: 2.31 | AM140: NA | AN140: NA | AO140: NA | AP140: 2.22 | AQ140: 2.21 | AR140: NA | AS140: NA | AT140: NA | AV140: 2.23 | AW140: 2.21 | AX140: 2.21 | AY140: 2.19 | AZ140: 2.28 | BA140: 2.27 | BB140: 2.21 | BC140: 2.25 | BD140: 2.33 | BE140: 2.33 | BF140: 2.34 | BG140: NA | BH140: NA | BI140: NA | BJ140: 2.24 | BK140: 2.21 | BL140: 2.24 | BM140: 2.57 | BN140: 2.6 | BO140: NA | BP140: NA | BQ140: NA | BR140: NA | BS140: NA | BT140: NA | BU140: NA | BV140: NA | BW140: NA | BX140: NA | BY140: 2.34 | BZ140: NA | CA140: 2.42 | CB140: NA | CC140: NA | CD140: NA | CE140: 2.34 | CF140: 2.39 | CG140: 2.37 | CH140: 2.32 | CI140: NA | CJ140: NA | CK140: 2.31 | CL140: 2.45 | CM140: 2.71 | CN140: 2.58 | CO140: 2.66 | CP140: NA | CQ140: NA | CR140: 3.033050847
A141: 2001-08-01 | B141: 3.07 | C141: 3.08 | D141: NA | E141: NA | F141: 2.03 | G141: 3.35 | H141: 3.16 | I141: NA | J141: 3.33 | K141: 3.09 | L141: 2.46 | M141: 2.98 | N141: 2.11 | O141: 3.18 | P141: 3.12 | Q141: 3.03 | R141: 2.98 | S141: 2.27 | U141: NA | V141: NA | W141: 3.04 | X141: 3.1 | Y141: 3.09 | Z141: 3.03 | AA141: NA | AB141: 2.91 | AC141: 3.09 | AD141: 3.09 | AE141: 2.27 | AF141: 2.42 | AG141: 3.08 | AH141: 3.08 | AI141: 1.99 | AJ141: 3.11 | AK141: 3.08 | AL141: 3.13 | AM141: NA | AN141: NA | AO141: NA | AP141: 3.09 | AQ141: 3.07 | AR141: NA | AS141: NA | AT141: NA | AV141: 3.1 | AW141: 3.07 | AX141: 3.06 | AY141: 3.04 | AZ141: 3.15 | BA141: 3.16 | BB141: 3.1 | BC141: 3.13 | BD141: 3.19 | BE141: 3.12 | BF141: 3.06 | BG141: NA | BH141: NA | BI141: NA | BJ141: 3.09 | BK141: 3.06 | BL141: 3.1 | BM141: 3.5 | BN141: 3.63 | BO141: NA | BP141: NA | BQ141: NA | BR141: NA | BS141: NA | BT141: NA | BU141: NA | BV141: NA | BW141: NA | BX141: NA | BY141: 3.2 | BZ141: NA | CA141: 3.25 | CB141: NA | CC141: NA | CD141: NA | CE141: 3.19 | CF141: 3.24 | CG141: 3.19 | CH141: 3.08 | CI141: NA | CJ141: NA | CK141: 2.53 | CL141: 3.14 | CM141: 3.63 | CN141: 3.28 | CO141: 3.75 | CP141: NA | CQ141: NA | CR141: 3.065423729
A142: 2001-07-01 | B142: 3.07 | C142: 3.04 | D142: NA | E142: NA | F142: 1.75 | G142: 3.34 | H142: 3.16 | I142: NA | J142: 3.38 | K142: 3.21 | L142: 2.34 | M142: 2.99 | N142: 3.11 | O142: 3.19 | P142: 3.12 | Q142: 3.02 | R142: 2.95 | S142: 2.03 | U142: NA | V142: NA | W142: 3 | X142: 3.1 | Y142: 3.09 | Z142: 3.08 | AA142: NA | AB142: 2.89 | AC142: 3.04 | AD142: 3.01 | AE142: 2.03 | AF142: 2.67 | AG142: 3.01 | AH142: 3.05 | AI142: 1.74 | AJ142: 3.07 | AK142: 3.04 | AL142: 3.13 | AM142: NA | AN142: NA | AO142: NA | AP142: 3.09 | AQ142: 3.11 | AR142: NA | AS142: NA | AT142: NA | AV142: 3.11 | AW142: 3.07 | AX142: 3.07 | AY142: 3.05 | AZ142: 3.14 | BA142: 3.16 | BB142: 3.09 | BC142: 3.12 | BD142: 3.19 | BE142: 3.2 | BF142: 3.14 | BG142: NA | BH142: NA | BI142: NA | BJ142: 3.03 | BK142: 3.1 | BL142: 3.05 | BM142: 3.5 | BN142: 3.62 | BO142: NA | BP142: NA | BQ142: NA | BR142: NA | BS142: NA | BT142: NA | BU142: NA | BV142: NA | BW142: NA | BX142: NA | BY142: 3.2 | BZ142: NA | CA142: 3.33 | CB142: NA | CC142: NA | CD142: NA | CE142: 3.16 | CF142: 3.26 | CG142: 3.19 | CH142: 3.28 | CI142: NA | CJ142: NA | CK142: 2.72 | CL142: 3.27 | CM142: 3.91 | CN142: 3.29 | CO142: 4.76 | CP142: NA | CQ142: NA | CR142: 3.94220339
A143: 2001-06-01 | B143: 3.64 | C143: 3.62 | D143: NA | E143: NA | F143: 2.43 | G143: 3.93 | H143: 3.72 | I143: NA | J143: 3.95 | K143: 3.82 | L143: 3.14 | M143: 3.51 | N143: 3.71 | O143: 3.73 | P143: 3.68 | Q143: 3.58 | R143: 3.49 | S143: 2.61 | U143: NA | V143: NA | W143: 3.6 | X143: 3.65 | Y143: 3.66 | Z143: 3.61 | AA143: NA | AB143: 3.49 | AC143: 3.65 | AD143: 3.64 | AE143: 2.61 | AF143: 3.96 | AG143: 3.63 | AH143: 3.65 | AI143: 2.42 | AJ143: 3.64 | AK143: 3.6 | AL143: 3.7 | AM143: NA | AN143: NA | AO143: NA | AP143: 3.62 | AQ143: 3.61 | AR143: NA | AS143: NA | AT143: NA | AV143: 3.65 | AW143: 3.62 | AX143: 3.61 | AY143: 3.58 | AZ143: 3.71 | BA143: 3.72 | BB143: 3.64 | BC143: 3.68 | BD143: 3.74 | BE143: 3.76 | BF143: 3.84 | BG143: NA | BH143: NA | BI143: NA | BJ143: 3.57 | BK143: 3.63 | BL143: 3.66 | BM143: 4.08 | BN143: 4.13 | BO143: NA | BP143: NA | BQ143: NA | BR143: NA | BS143: NA | BT143: NA | BU143: NA | BV143: NA | BW143: NA | BX143: NA | BY143: 3.86 | BZ143: NA | CA143: 3.95 | CB143: NA | CC143: NA | CD143: NA | CE143: 3.73 | CF143: 3.78 | CG143: 3.73 | CH143: 3.73 | CI143: NA | CJ143: NA | CK143: 3.89 | CL143: 5.81 | CM143: 9.98 | CN143: 6.5 | CO143: 11.71 | CP143: NA | CQ143: NA | CR143: 5.297457627
A144: 2001-05-01 | B144: 4.77 | C144: 4.78 | D144: NA | E144: NA | F144: 3.91 | G144: 5.12 | H144: 4.88 | I144: NA | J144: 5.19 | K144: 4.91 | L144: 4.23 | M144: 4.66 | N144: 4.81 | O144: 4.86 | P144: 4.82 | Q144: 4.72 | R144: 4.65 | S144: 4.11 | U144: NA | V144: NA | W144: 4.76 | X144: 4.79 | Y144: 4.78 | Z144: 4.77 | AA144: NA | AB144: 4.68 | AC144: 4.81 | AD144: 4.81 | AE144: 4.1 | AF144: 5.17 | AG144: 4.79 | AH144: 4.82 | AI144: 3.87 | AJ144: 4.8 | AK144: 4.75 | AL144: 4.84 | AM144: NA | AN144: NA | AO144: NA | AP144: 4.79 | AQ144: 4.76 | AR144: NA | AS144: NA | AT144: NA | AV144: 4.79 | AW144: 4.77 | AX144: 4.73 | AY144: 4.7 | AZ144: 4.85 | BA144: 4.86 | BB144: 4.79 | BC144: 4.8 | BD144: 4.88 | BE144: 4.92 | BF144: 4.9 | BG144: NA | BH144: NA | BI144: NA | BJ144: 4.71 | BK144: 4.74 | BL144: 4.82 | BM144: 5.29 | BN144: 5.33 | BO144: NA | BP144: NA | BQ144: NA | BR144: NA | BS144: NA | BT144: NA | BU144: NA | BV144: NA | BW144: NA | BX144: NA | BY144: 5.05 | BZ144: NA | CA144: 5.13 | CB144: NA | CC144: NA | CD144: NA | CE144: 4.87 | CF144: 4.91 | CG144: 4.88 | CH144: 4.82 | CI144: NA | CJ144: NA | CK144: 5.24 | CL144: 9.98 | CM144: 12.4 | CN144: 11.91 | CO144: 14.97 | CP144: NA | CQ144: NA | CR144: 5.545932203
A145: 2001-04-01 | B145: 5.29 | C145: 5.33 | D145: NA | E145: NA | F145: 4.49 | G145: 5.62 | H145: 5.36 | I145: NA | J145: 5.73 | K145: 5.31 | L145: 4.65 | M145: 5.08 | N145: 5.32 | O145: 5.35 | P145: 5.31 | Q145: 5.23 | R145: 5.14 | S145: 4.57 | U145: NA | V145: NA | W145: 5.28 | X145: 5.3 | Y145: 5.31 | Z145: 5.25 | AA145: NA | AB145: 5.26 | AC145: 5.4 | AD145: 5.42 | AE145: 4.57 | AF145: 5.37 | AG145: 5.3 | AH145: 5.31 | AI145: 4.5 | AJ145: 5.3 | AK145: 5.28 | AL145: 5.33 | AM145: NA | AN145: NA | AO145: NA | AP145: 5.28 | AQ145: 5.25 | AR145: NA | AS145: NA | AT145: NA | AV145: 5.28 | AW145: 5.23 | AX145: 5.21 | AY145: 5.16 | AZ145: 5.37 | BA145: 5.35 | BB145: 5.3 | BC145: 5.34 | BD145: 5.38 | BE145: 5.4 | BF145: 5.24 | BG145: NA | BH145: NA | BI145: NA | BJ145: 5.29 | BK145: 5.19 | BL145: 5.34 | BM145: 5.82 | BN145: 5.86 | BO145: NA | BP145: NA | BQ145: NA | BR145: NA | BS145: NA | BT145: NA | BU145: NA | BV145: NA | BW145: NA | BX145: NA | BY145: 5.62 | BZ145: NA | CA145: 5.65 | CB145: NA | CC145: NA | CD145: NA | CE145: 5.35 | CF145: 5.37 | CG145: 5.34 | CH145: 5.3 | CI145: NA | CJ145: NA | CK145: 5.38 | CL145: 7.4 | CM145: 9.41 | CN145: 7.63 | CO145: 12.51 | CP145: NA | CQ145: NA | CR145: 5.296896552
A146: 2001-03-01 | B146: 4.9 | C146: 4.99 | D146: NA | E146: NA | F146: 4.72 | G146: 5.29 | H146: 5.02 | I146: NA | J146: 5.39 | K146: 5.12 | L146: 4.83 | M146: 4.78 | N146: 4.97 | O146: 5.01 | P146: 4.96 | Q146: 4.87 | R146: 4.74 | S146: 4.86 | U146: NA | V146: NA | W146: 4.97 | X146: 4.9 | Y146: 4.88 | Z146: 4.84 | AA146: NA | AB146: 4.98 | AC146: 5.15 | AD146: 5.17 | AE146: 4.88 | AF146: 5.21 | AG146: 4.98 | AH146: 5.01 | AI146: 4.79 | AJ146: 4.92 | AK146: 4.87 | AL146: 4.98 | AM146: NA | AN146: NA | AO146: NA | AP146: 4.91 | AQ146: 4.86 | AR146: NA | AS146: NA | AT146: NA | AV146: 4.92 | AW146: 4.91 | AX146: 4.79 | AY146: 4.71 | AZ146: 4.97 | BA146: 5.01 | BB146: 4.92 | BC146: 4.98 | BD146: 5.03 | BE146: 5.05 | BF146: 5.09 | BG146: NA | BH146: NA | BI146: NA | BJ146: 4.86 | BK146: 4.76 | BL146: 5.03 | BM146: 5.54 | BN146: 5.63 | BO146: NA | BP146: NA | BQ146: NA | BR146: NA | BS146: NA | BT146: NA | BU146: NA | BV146: NA | BW146: NA | BX146: NA | BY146: 5.26 | BZ146: NA | CA146: 5.28 | CB146: NA | CC146: NA | CD146: NA | CE146: 5.03 | CF146: 5.03 | CG146: 5.01 | CH146: 5.03 | CI146: NA | CJ146: NA | CK146: 5.33 | CL146: 8.36 | CM146: 11.41 | CN146: NA | CO146: 12.53 | CP146: NA | CQ146: NA | CR146: 6.578571429
A147: 2001-02-01 | B147: 6.12 | C147: 6.18 | D147: 6.68 | E147: NA | F147: 6.31 | G147: 6.44 | H147: 6.25 | I147: NA | J147: NA | K147: 6.68 | L147: 6.24 | M147: 5.89 | N147: 6.07 | O147: 6.25 | P147: 6.15 | Q147: 6.03 | R147: 5.86 | S147: 6.41 | U147: NA | V147: NA | W147: 6.16 | X147: 6.12 | Y147: 6.1 | Z147: 6.14 | AA147: NA | AB147: 6.16 | AC147: 6.36 | AD147: 6.31 | AE147: 6.59 | AF147: 6.95 | AG147: 6.19 | AH147: 6.22 | AI147: 6.42 | AJ147: 6.16 | AK147: 6.12 | AL147: 6.27 | AM147: NA | AN147: NA | AO147: NA | AP147: 6.13 | AQ147: 6.01 | AR147: NA | AS147: NA | AT147: NA | AV147: 6.08 | AW147: 6.07 | AX147: 6.02 | AY147: 5.8 | AZ147: 6.25 | BA147: 6.23 | BB147: 6.1 | BC147: 6.17 | BD147: 6.24 | BE147: 6.34 | BF147: 6.9 | BG147: NA | BH147: NA | BI147: NA | BJ147: 6.13 | BK147: 6.01 | BL147: 6.29 | BM147: 7.08 | BN147: 8.02 | BO147: NA | BP147: NA | BQ147: NA | BR147: NA | BS147: NA | BT147: NA | BU147: NA | BV147: NA | BW147: NA | BX147: NA | BY147: 6.54 | BZ147: NA | CA147: 6.46 | CB147: NA | CC147: NA | CD147: NA | CE147: 6.22 | CF147: 6.24 | CG147: NA | CH147: 6.41 | CI147: NA | CJ147: NA | CK147: NA | CL147: 10.01 | CM147: 12.31 | CN147: NA | CO147: 12.51 | CP147: NA | CQ147: NA | CR147: 10.47155172
A148: 2001-01-01 | B148: 9.83 | C148: 9.94 | D148: 10.91 | E148: NA | F148: 8.63 | G148: 10.53 | H148: 9.94 | I148: NA | J148: NA | K148: 9.81 | L148: 8.8 | M148: 9.51 | N148: 9.84 | O148: 9.93 | P148: 9.81 | Q148: 9.69 | R148: 9.59 | S148: 8.77 | U148: NA | V148: NA | W148: 9.92 | X148: 9.85 | Y148: 9.89 | Z148: 9.7 | AA148: NA | AB148: 9.75 | AC148: 10.52 | AD148: 10.6 | AE148: 8.76 | AF148: 14.2 | AG148: 9.87 | AH148: 9.93 | AI148: 8.58 | AJ148: 9.81 | AK148: 9.86 | AL148: 9.89 | AM148: NA | AN148: NA | AO148: NA | AP148: 9.82 | AQ148: 9.67 | AR148: NA | AS148: NA | AT148: NA | AV148: 9.82 | AW148: 9.8 | AX148: 9.83 | AY148: 9.62 | AZ148: 9.95 | BA148: 9.92 | BB148: 9.87 | BC148: 9.9 | BD148: 9.97 | BE148: 10.01 | BF148: 9.85 | BG148: NA | BH148: NA | BI148: NA | BJ148: 9.84 | BK148: 9.72 | BL148: 9.98 | BM148: 13.88 | BN148: 19.33 | BO148: NA | BP148: NA | BQ148: NA | BR148: NA | BS148: NA | BT148: NA | BU148: NA | BV148: NA | BW148: NA | BX148: NA | BY148: 10.92 | BZ148: NA | CA148: 10.22 | CB148: NA | CC148: NA | CD148: NA | CE148: 9.91 | CF148: 9.84 | CG148: 9.74 | CH148: 9.77 | CI148: NA | CJ148: NA | CK148: 14.34 | CL148: 14.09 | CM148: 14.69 | CN148: NA | CO148: 16.39 | CP148: NA | CQ148: NA | CR148: 6.880169492
A149: 2000-12-01 | B149: 5.91 | C149: 5.88 | D149: 6.39 | E149: NA | F149: 5.95 | G149: 6.27 | H149: 6.01 | I149: NA | J149: NA | K149: 6.27 | L149: 6 | M149: 5.72 | N149: 5.98 | O149: 6.03 | P149: 5.95 | Q149: 5.86 | R149: 5.8 | S149: 6.07 | U149: NA | V149: NA | W149: 5.86 | X149: 5.92 | Y149: 5.9 | Z149: 5.89 | AA149: NA | AB149: 5.89 | AC149: 6.01 | AD149: 6.03 | AE149: 6.01 | AF149: 13.69 | AG149: 5.9 | AH149: 5.88 | AI149: 6.14 | AJ149: 5.89 | AK149: 5.89 | AL149: 6.01 | AM149: NA | AN149: NA | AO149: NA | AP149: 5.92 | AQ149: 5.87 | AR149: NA | AS149: NA | AT149: NA | AV149: 5.91 | AW149: 5.89 | AX149: 5.86 | AY149: 5.83 | AZ149: 6.01 | BA149: 6 | BB149: 5.93 | BC149: 5.99 | BD149: 6.03 | BE149: 6.06 | BF149: 6.31 | BG149: NA | BH149: NA | BI149: NA | BJ149: 5.91 | BK149: 5.86 | BL149: 5.9 | BM149: 6.74 | BN149: 7.14 | BO149: NA | BP149: NA | BQ149: NA | BR149: NA | BS149: NA | BT149: NA | BU149: NA | BV149: NA | BW149: NA | BX149: NA | BY149: 6.13 | BZ149: NA | CA149: 6.1 | CB149: NA | CC149: NA | CD149: NA | CE149: 6.02 | CF149: 6 | CG149: 5.95 | CH149: 6.16 | CI149: NA | CJ149: NA | CK149: 14.54 | CL149: 14.2 | CM149: 14.25 | CN149: 16.16 | CO149: 14.26 | CP149: NA | CQ149: NA | CR149: 4.498448276
A150: 2000-11-01 | B150: 4.41 | C150: 4.42 | D150: 4.79 | E150: NA | F150: 4.31 | G150: 4.74 | H150: 4.49 | I150: NA | J150: NA | K150: 4.52 | L150: 4.41 | M150: 4.28 | N150: 4.46 | O150: 4.49 | P150: 4.45 | Q150: 4.36 | R150: 4.31 | S150: 4.37 | U150: NA | V150: NA | W150: 4.39 | X150: 4.43 | Y150: 4.41 | Z150: 4.38 | AA150: NA | AB150: 4.36 | AC150: 4.52 | AD150: 4.53 | AE150: 4.35 | AF150: 4.83 | AG150: 4.4 | AH150: 4.41 | AI150: 4.28 | AJ150: 4.43 | AK150: 4.39 | AL150: 4.47 | AM150: NA | AN150: NA | AO150: NA | AP150: 4.42 | AQ150: 4.37 | AR150: NA | AS150: NA | AT150: NA | AV150: 4.42 | AW150: 4.39 | AX150: 4.35 | AY150: 4.34 | AZ150: 4.5 | BA150: 4.47 | BB150: 4.42 | BC150: 4.46 | BD150: 4.51 | BE150: 4.54 | BF150: 4.46 | BG150: NA | BH150: NA | BI150: NA | BJ150: 4.42 | BK150: 4.36 | BL150: 4.43 | BM150: 4.96 | BN150: 5.1 | BO150: NA | BP150: NA | BQ150: NA | BR150: NA | BS150: NA | BT150: NA | BU150: NA | BV150: NA | BW150: NA | BX150: NA | BY150: 4.61 | BZ150: NA | CA150: 4.63 | CB150: NA | CC150: NA | CD150: NA | CE150: 4.5 | CF150: 4.46 | CG150: 4.43 | CH150: 4.5 | CI150: NA | CJ150: NA | CK150: 4.87 | CL150: 4.08 | CM150: 5.33 | CN150: NA | CO150: 5.19 | CP150: NA | CQ150: NA | CR150: 5.183220339
A151: 2000-10-01 | B151: 5.19 | C151: 5.18 | D151: 5.63 | E151: NA | F151: 4.19 | G151: 5.55 | H151: 5.25 | I151: NA | J151: NA | K151: 5.15 | L151: 4.53 | M151: 5.08 | N151: 5.22 | O151: 5.29 | P151: 5.22 | Q151: 5.14 | R151: 5.09 | S151: 4.31 | U151: NA | V151: NA | W151: 5.17 | X151: 5.24 | Y151: 5.23 | Z151: 5.16 | AA151: NA | AB151: 5.08 | AC151: 5.27 | AD151: 5.27 | AE151: 4.29 | AF151: 4.88 | AG151: 5.18 | AH151: 5.19 | AI151: 4.17 | AJ151: 5.21 | AK151: 5.19 | AL151: 5.24 | AM151: NA | AN151: NA | AO151: NA | AP151: 5.19 | AQ151: 5.15 | AR151: NA | AS151: NA | AT151: NA | AV151: 5.2 | AW151: 5.17 | AX151: 5.13 | AY151: 5.13 | AZ151: 5.27 | BA151: 5.24 | BB151: 5.2 | BC151: 5.24 | BD151: 5.28 | BE151: 5.3 | BF151: 5.17 | BG151: NA | BH151: NA | BI151: NA | BJ151: 5.2 | BK151: 5.15 | BL151: 5.19 | BM151: 5.72 | BN151: 5.76 | BO151: NA | BP151: NA | BQ151: NA | BR151: NA | BS151: NA | BT151: NA | BU151: NA | BV151: NA | BW151: NA | BX151: NA | BY151: 5.45 | BZ151: NA | CA151: 5.51 | CB151: NA | CC151: NA | CD151: NA | CE151: 5.29 | CF151: 5.3 | CG151: 5.27 | CH151: 5.14 | CI151: NA | CJ151: NA | CK151: 4.99 | CL151: 5.29 | CM151: 5.93 | CN151: 5.59 | CO151: 5.57 | CP151: NA | CQ151: NA | CR151: 4.54362069
A152: 2000-09-01 | B152: 4.52 | C152: 4.51 | D152: 4.85 | E152: NA | F152: 3.36 | G152: 4.81 | H152: 4.59 | I152: NA | J152: NA | K152: 4.5 | L152: 3.45 | M152: 4.44 | N152: 4.58 | O152: 4.61 | P152: 4.58 | Q152: 4.47 | R152: 4.41 | S152: 3.47 | U152: NA | V152: NA | W152: 4.46 | X152: 4.54 | Y152: 4.54 | Z152: 4.49 | AA152: NA | AB152: 4.44 | AC152: 4.52 | AD152: 4.51 | AE152: 3.41 | AF152: 3.45 | AG152: 4.51 | AH152: 4.49 | AI152: 3.25 | AJ152: 4.52 | AK152: 4.47 | AL152: 4.59 | AM152: NA | AN152: NA | AO152: NA | AP152: 4.52 | AQ152: 4.48 | AR152: NA | AS152: NA | AT152: NA | AV152: 4.55 | AW152: 4.52 | AX152: 4.46 | AY152: 4.46 | AZ152: 4.59 | BA152: 4.58 | BB152: 4.53 | BC152: 4.57 | BD152: 4.6 | BE152: 4.64 | BF152: 4.51 | BG152: NA | BH152: NA | BI152: NA | BJ152: 4.54 | BK152: 4.45 | BL152: 4.5 | BM152: 4.93 | BN152: 4.96 | BO152: NA | BP152: NA | BQ152: NA | BR152: NA | BS152: NA | BT152: NA | BU152: NA | BV152: NA | BW152: NA | BX152: NA | BY152: 4.69 | BZ152: NA | CA152: 4.57 | CB152: NA | CC152: NA | CD152: NA | CE152: 4.62 | CF152: 4.64 | CG152: 4.62 | CH152: 4.59 | CI152: NA | CJ152: NA | CK152: NA | CL152: 5.38 | CM152: 6.24 | CN152: 5.96 | CO152: 6.49 | CP152: NA | CQ152: NA | CR152: 3.740508475
A153: 2000-08-01 | B153: 3.73 | C153: 3.7 | D153: 4.02 | E153: NA | F153: 3.04 | G153: 3.98 | H153: 3.8 | I153: NA | J153: NA | K153: 3.77 | L153: 3.5 | M153: 3.72 | N153: 3.8 | O153: 3.84 | P153: 3.79 | Q153: 3.7 | R153: 3.65 | S153: 3.12 | U153: NA | V153: NA | W153: 3.68 | X153: 3.74 | Y153: 3.72 | Z153: 3.7 | AA153: NA | AB153: 3.66 | AC153: 3.72 | AD153: 3.72 | AE153: 3.09 | AF153: 3.04 | AG153: 3.7 | AH153: 3.7 | AI153: 2.92 | AJ153: 3.71 | AK153: 3.67 | AL153: 3.82 | AM153: NA | AN153: NA | AO153: NA | AP153: 3.74 | AQ153: 3.71 | AR153: NA | AS153: NA | AT153: NA | AV153: 3.75 | AW153: 3.74 | AX153: 3.7 | AY153: 3.69 | AZ153: 3.82 | BA153: 3.81 | BB153: 3.74 | BC153: 3.77 | BD153: 3.83 | BE153: 3.85 | BF153: 3.8 | BG153: NA | BH153: NA | BI153: NA | BJ153: 3.74 | BK153: 3.63 | BL153: 3.69 | BM153: 4.12 | BN153: 4.18 | BO153: NA | BP153: NA | BQ153: NA | BR153: NA | BS153: NA | BT153: NA | BU153: NA | BV153: NA | BW153: NA | BX153: NA | BY153: 3.89 | BZ153: NA | CA153: 3.94 | CB153: NA | CC153: NA | CD153: NA | CE153: 3.83 | CF153: 3.86 | CG153: 3.82 | CH153: 3.81 | CI153: NA | CJ153: NA | CK153: 3.17 | CL153: 3.91 | CM153: 4.41 | CN153: 4.5 | CO153: 4.49 | CP153: NA | CQ153: NA | CR153: 4.317894737
A154: 2000-07-01 | B154: 4.28 | C154: 4.2 | D154: 4.56 | E154: NA | F154: 3.86 | G154: 4.52 | H154: 4.34 | I154: NA | J154: NA | K154: 4.35 | L154: 4.12 | M154: 4.2 | N154: 4.34 | O154: 4.38 | P154: 4.33 | Q154: 4.23 | R154: 4.2 | S154: 3.95 | U154: NA | V154: NA | W154: 4.18 | X154: 4.29 | Y154: 4.28 | Z154: 4.26 | AA154: NA | AB154: 4.16 | AC154: 4.2 | AD154: 4.21 | AE154: 3.92 | AF154: 4.07 | AG154: 4.19 | AH154: 4.2 | AI154: NA | AJ154: 4.23 | AK154: 4.18 | AL154: 4.35 | AM154: NA | AN154: NA | AO154: NA | AP154: 4.29 | AQ154: 4.24 | AR154: NA | AS154: NA | AT154: NA | AV154: 4.3 | AW154: 4.27 | AX154: 4.24 | AY154: 4.23 | AZ154: 4.35 | BA154: 4.33 | BB154: 4.28 | BC154: 4.32 | BD154: 4.36 | BE154: 4.37 | BF154: 4.36 | BG154: NA | BH154: NA | BI154: NA | BJ154: 4.29 | BK154: NA | BL154: 4.2 | BM154: 4.72 | BN154: 4.93 | BO154: NA | BP154: NA | BQ154: NA | BR154: NA | BS154: NA | BT154: NA | BU154: NA | BV154: NA | BW154: NA | BX154: NA | BY154: 4.42 | BZ154: NA | CA154: 4.45 | CB154: NA | CC154: NA | CD154: NA | CE154: 4.36 | CF154: 4.38 | CG154: 4.35 | CH154: 4.27 | CI154: NA | CJ154: NA | CK154: 3.89 | CL154: 4.46 | CM154: 5.03 | CN154: 4.9 | CO154: 4.95 | CP154: NA | CQ154: NA | CR154: 4.230508475
A155: 2000-06-01 | B155: 4.3 | C155: 4.22 | D155: 4.59 | E155: NA | F155: 3.62 | G155: 4.53 | H155: 4.35 | I155: NA | J155: NA | K155: 4.1 | L155: 3.87 | M155: 4.17 | N155: 4.35 | O155: 4.39 | P155: 4.34 | Q155: 4.23 | R155: 4.18 | S155: 3.61 | U155: NA | V155: NA | W155: 4.19 | X155: 4.33 | Y155: 4.3 | Z155: 4.28 | AA155: NA | AB155: 4.12 | AC155: 4.22 | AD155: 4.22 | AE155: 3.65 | AF155: 3.64 | AG155: 4.22 | AH155: 4.21 | AI155: 3.41 | AJ155: 4.26 | AK155: 4.21 | AL155: 4.37 | AM155: NA | AN155: NA | AO155: NA | AP155: 4.32 | AQ155: 4.26 | AR155: NA | AS155: NA | AT155: NA | AV155: 4.32 | AW155: 4.31 | AX155: 4.28 | AY155: 4.25 | AZ155: 4.35 | BA155: 4.35 | BB155: 4.31 | BC155: 4.34 | BD155: 4.38 | BE155: 4.4 | BF155: 4.12 | BG155: NA | BH155: NA | BI155: NA | BJ155: 4.35 | BK155: 4.31 | BL155: 4.19 | BM155: 4.67 | BN155: 4.72 | BO155: NA | BP155: NA | BQ155: NA | BR155: NA | BS155: NA | BT155: NA | BU155: NA | BV155: NA | BW155: NA | BX155: NA | BY155: 4.43 | BZ155: NA | CA155: 4.54 | CB155: NA | CC155: NA | CD155: NA | CE155: 4.37 | CF155: 4.38 | CG155: 4.35 | CH155: 4.17 | CI155: NA | CJ155: NA | CK155: 3.68 | CL155: 3.94 | CM155: 4.46 | CN155: 4.27 | CO155: 4.3 | CP155: NA | CQ155: NA | CR155: 2.996610169
A156: 2000-05-01 | B156: 3.02 | C156: 2.94 | D156: 3.28 | E156: NA | F156: 2.61 | G156: 3.25 | H156: 3.07 | I156: NA | J156: NA | K156: 2.87 | L156: 2.78 | M156: 2.91 | N156: 3.04 | O156: 3.08 | P156: 3.05 | Q156: 2.97 | R156: 2.9 | S156: 2.74 | U156: NA | V156: NA | W156: 2.93 | X156: 3.03 | Y156: 3.01 | Z156: 2.99 | AA156: NA | AB156: 2.89 | AC156: 2.96 | AD156: 2.97 | AE156: 2.72 | AF156: 2.74 | AG156: 2.94 | AH156: 2.94 | AI156: 2.62 | AJ156: 2.99 | AK156: 2.95 | AL156: 3.07 | AM156: NA | AN156: NA | AO156: NA | AP156: 3.03 | AQ156: 3 | AR156: NA | AS156: NA | AT156: NA | AV156: 3.03 | AW156: 3.02 | AX156: 3 | AY156: 2.98 | AZ156: 3.06 | BA156: 3.06 | BB156: 3.02 | BC156: 3.05 | BD156: 3.09 | BE156: 3.1 | BF156: 2.89 | BG156: NA | BH156: NA | BI156: NA | BJ156: 3.03 | BK156: 2.99 | BL156: 2.94 | BM156: 3.38 | BN156: 3.41 | BO156: NA | BP156: NA | BQ156: NA | BR156: NA | BS156: NA | BT156: NA | BU156: NA | BV156: NA | BW156: NA | BX156: NA | BY156: 3.12 | BZ156: NA | CA156: 3.23 | CB156: NA | CC156: NA | CD156: NA | CE156: 3.08 | CF156: 3.08 | CG156: 3.03 | CH156: 2.95 | CI156: NA | CJ156: NA | CK156: 2.85 | CL156: 2.94 | CM156: 3.12 | CN156: 3.03 | CO156: 3.03 | CP156: NA | CQ156: NA | CR156: 2.83559322
A157: 2000-04-01 | B157: 2.82 | C157: 2.79 | D157: 3.06 | E157: NA | F157: 2.65 | G157: 3.01 | H157: 2.86 | I157: NA | J157: NA | K157: 2.79 | L157: 2.75 | M157: 2.73 | N157: 2.85 | O157: 2.89 | P157: 2.84 | Q157: 2.76 | R157: 2.71 | S157: 2.7 | U157: NA | V157: NA | W157: 2.77 | X157: 2.83 | Y157: 2.81 | Z157: 2.79 | AA157: NA | AB157: 2.73 | AC157: 2.8 | AD157: 2.8 | AE157: 2.69 | AF157: 2.73 | AG157: 2.79 | AH157: 2.79 | AI157: 2.62 | AJ157: 2.8 | AK157: 2.79 | AL157: 2.88 | AM157: NA | AN157: NA | AO157: NA | AP157: 2.83 | AQ157: 2.81 | AR157: NA | AS157: NA | AT157: NA | AV157: 2.82 | AW157: 2.82 | AX157: 2.81 | AY157: 2.78 | AZ157: 2.87 | BA157: 2.86 | BB157: 2.82 | BC157: 2.85 | BD157: 2.55 | BE157: 2.9 | BF157: 2.79 | BG157: NA | BH157: NA | BI157: NA | BJ157: 2.82 | BK157: 2.8 | BL157: 2.79 | BM157: 3.13 | BN157: 3.13 | BO157: NA | BP157: NA | BQ157: NA | BR157: NA | BS157: NA | BT157: NA | BU157: NA | BV157: NA | BW157: NA | BX157: NA | BY157: 2.93 | BZ157: NA | CA157: 3 | CB157: NA | CC157: NA | CD157: NA | CE157: 2.88 | CF157: 2.9 | CG157: 2.88 | CH157: 2.81 | CI157: NA | CJ157: NA | CK157: 2.78 | CL157: 2.9 | CM157: 3.17 | CN157: 3.02 | CO157: 3.02 | CP157: NA | CQ157: NA | CR157: 2.538474576
A158: 2000-03-01 | B158: 2.54 | C158: 2.49 | D158: 2.79 | E158: NA | F158: 2.31 | G158: 2.73 | H158: 2.57 | I158: NA | J158: NA | K158: 2.41 | L158: 2.37 | M158: 2.44 | N158: 2.58 | O158: 2.62 | P158: 2.57 | Q158: 2.48 | R158: 2.42 | S158: 2.35 | U158: NA | V158: NA | W158: 2.46 | X158: 2.55 | Y158: 2.53 | Z158: 2.52 | AA158: NA | AB158: 2.44 | AC158: 2.53 | AD158: 2.53 | AE158: 2.36 | AF158: 2.31 | AG158: 2.48 | AH158: 2.48 | AI158: 2.3 | AJ158: 2.52 | AK158: 2.48 | AL158: 2.61 | AM158: NA | AN158: NA | AO158: NA | AP158: 2.56 | AQ158: 2.52 | AR158: NA | AS158: NA | AT158: NA | AV158: 2.56 | AW158: 2.55 | AX158: 2.54 | AY158: 2.52 | AZ158: 2.59 | BA158: 2.58 | BB158: 2.54 | BC158: 2.57 | BD158: 2.61 | BE158: 2.63 | BF158: 2.41 | BG158: NA | BH158: NA | BI158: NA | BJ158: 2.54 | BK158: 2.51 | BL158: 2.47 | BM158: 2.95 | BN158: 3.05 | BO158: NA | BP158: NA | BQ158: NA | BR158: NA | BS158: NA | BT158: NA | BU158: NA | BV158: NA | BW158: NA | BX158: NA | BY158: 2.65 | BZ158: NA | CA158: 2.69 | CB158: NA | CC158: NA | CD158: NA | CE158: 2.61 | CF158: 2.6 | CG158: 2.56 | CH158: 2.48 | CI158: NA | CJ158: NA | CK158: 2.35 | CL158: 2.46 | CM158: 2.7 | CN158: 2.61 | CO158: 2.59 | CP158: NA | CQ158: NA | CR158: 2.587457627
A159: 2000-02-01 | B159: 2.56 | C159: 2.5 | D159: 2.91 | E159: NA | F159: 2.34 | G159: 2.76 | H159: 2.59 | I159: NA | J159: NA | K159: 2.41 | L159: 2.36 | M159: 2.43 | N159: 2.58 | O159: 2.62 | P159: 2.58 | Q159: 2.49 | R159: 2.44 | S159: 2.38 | U159: NA | V159: NA | W159: 2.47 | X159: 2.54 | Y159: 2.52 | Z159: 2.51 | AA159: NA | AB159: 2.45 | AC159: 2.57 | AD159: 2.58 | AE159: 2.37 | AF159: 2.36 | AG159: 2.49 | AH159: 2.5 | AI159: 2.33 | AJ159: 2.52 | AK159: 2.48 | AL159: 2.62 | AM159: NA | AN159: NA | AO159: NA | AP159: 2.58 | AQ159: 2.52 | AR159: NA | AS159: NA | AT159: NA | AV159: 2.58 | AW159: 2.57 | AX159: 2.54 | AY159: 2.52 | AZ159: 2.59 | BA159: 2.59 | BB159: 2.55 | BC159: 2.58 | BD159: 2.62 | BE159: 2.64 | BF159: 2.43 | BG159: NA | BH159: NA | BI159: NA | BJ159: 2.56 | BK159: 2.52 | BL159: 2.49 | BM159: 3.27 | BN159: 5.21 | BO159: NA | BP159: NA | BQ159: NA | BR159: NA | BS159: NA | BT159: NA | BU159: NA | BV159: NA | BW159: NA | BX159: NA | BY159: 2.66 | BZ159: NA | CA159: 2.64 | CB159: NA | CC159: NA | CD159: NA | CE159: 2.61 | CF159: 2.58 | CG159: 2.55 | CH159: 2.45 | CI159: NA | CJ159: NA | CK159: 2.37 | CL159: 2.48 | CM159: 2.59 | CN159: 2.56 | CO159: 2.55 | CP159: NA | CQ159: NA | CR159: 2.336101695
A160: 2000-01-01 | B160: 2.3 | C160: 2.26 | D160: 2.53 | E160: NA | F160: 2.15 | G160: 2.49 | H160: 2.32 | I160: NA | J160: NA | K160: 2.19 | L160: 2.18 | M160: 2.2 | N160: 2.31 | O160: 2.35 | P160: 2.31 | Q160: 2.23 | R160: 2.18 | S160: 2.19 | U160: NA | V160: NA | W160: 2.22 | X160: 2.28 | Y160: 2.27 | Z160: 2.26 | AA160: NA | AB160: 2.2 | AC160: 2.32 | AD160: 2.33 | AE160: 2.19 | AF160: 2.3 | AG160: 2.26 | AH160: 2.26 | AI160: 2.15 | AJ160: 2.27 | AK160: 2.25 | AL160: 2.35 | AM160: NA | AN160: NA | AO160: NA | AP160: 2.3 | AQ160: 2.26 | AR160: NA | AS160: NA | AT160: NA | AV160: 2.31 | AW160: 2.29 | AX160: 2.27 | AY160: 2.26 | AZ160: 2.33 | BA160: 2.32 | BB160: 2.28 | BC160: 2.32 | BD160: 2.63 | BE160: 2.63 | BF160: 2.18 | BG160: NA | BH160: NA | BI160: NA | BJ160: 2.3 | BK160: 2.26 | BL160: 2.25 | BM160: 2.7 | BN160: 4.01 | BO160: NA | BP160: NA | BQ160: NA | BR160: NA | BS160: NA | BT160: NA | BU160: NA | BV160: NA | BW160: NA | BX160: NA | BY160: 2.43 | BZ160: NA | CA160: 2.38 | CB160: NA | CC160: NA | CD160: NA | CE160: 2.36 | CF160: 2.34 | CG160: 2.31 | CH160: 2.23 | CI160: NA | CJ160: NA | CK160: 2.27 | CL160: 2.32 | CM160: 2.43 | CN160: 2.38 | CO160: 2.38 | CP160: NA | CQ160: NA | CR160: 2.128983051
A161: 1999-12-01 | B161: 2.07 | C161: 2.07 | D161: 2.28 | E161: NA | F161: 2.04 | G161: 2.26 | H161: 2.11 | I161: NA | J161: NA | K161: 2.08 | L161: 2.08 | M161: 1.97 | N161: 2.1 | O161: 2.14 | P161: 2.1 | Q161: 2.01 | R161: 1.97 | S161: 2.1 | U161: NA | V161: NA | W161: 2.04 | X161: 2.07 | Y161: 2.07 | Z161: 2.03 | AA161: NA | AB161: 2.04 | AC161: 2.1 | AD161: 2.11 | AE161: 2.1 | AF161: 2.28 | AG161: 2.06 | AH161: 2.06 | AI161: 1.97 | AJ161: 2.05 | AK161: 2.01 | AL161: 2.14 | AM161: NA | AN161: NA | AO161: NA | AP161: 2.07 | AQ161: 2.04 | AR161: NA | AS161: NA | AT161: NA | AV161: 2.09 | AW161: 2.07 | AX161: 2.03 | AY161: 2.02 | AZ161: 2.12 | BA161: 2.12 | BB161: 2.06 | BC161: 2.09 | BD161: 2.14 | BE161: 2.16 | BF161: 2.09 | BG161: NA | BH161: NA | BI161: NA | BJ161: 2.08 | BK161: 2.02 | BL161: 2.06 | BM161: 2.57 | BN161: 2.72 | BO161: NA | BP161: NA | BQ161: NA | BR161: NA | BS161: NA | BT161: NA | BU161: NA | BV161: NA | BW161: NA | BX161: NA | BY161: 2.19 | BZ161: NA | CA161: 2.22 | CB161: NA | CC161: NA | CD161: NA | CE161: 2.14 | CF161: 2.11 | CG161: 2.08 | CH161: 2.04 | CI161: NA | CJ161: NA | CK161: 2.18 | CL161: 2.31 | CM161: 2.52 | CN161: 2.39 | CO161: 2.37 | CP161: NA | CQ161: NA | CR161: 2.996949153
A162: 1999-11-01 | B162: 2.97 | C162: 2.95 | D162: 3.28 | E162: NA | F162: 2.83 | G162: 3.25 | H162: 3.02 | I162: NA | J162: NA | K162: 2.87 | L162: 2.84 | M162: 2.86 | N162: 2.98 | O162: 3.02 | P162: 2.98 | Q162: 2.89 | R162: 2.87 | S162: 2.86 | U162: NA | V162: NA | W162: 2.93 | X162: 2.95 | Y162: 2.96 | Z162: 2.94 | AA162: NA | AB162: 2.91 | AC162: 3.05 | AD162: 3.04 | AE162: 2.86 | AF162: 2.92 | AG162: 2.93 | AH162: 2.94 | AI162: 2.82 | AJ162: 2.96 | AK162: 2.94 | AL162: 3.02 | AM162: NA | AN162: NA | AO162: NA | AP162: 2.97 | AQ162: 2.94 | AR162: NA | AS162: NA | AT162: NA | AV162: 2.99 | AW162: 2.97 | AX162: 2.94 | AY162: 2.93 | AZ162: 3.02 | BA162: 3.01 | BB162: 2.97 | BC162: 3.01 | BD162: 3.05 | BE162: 3.06 | BF162: 2.88 | BG162: NA | BH162: NA | BI162: NA | BJ162: 2.97 | BK162: 2.93 | BL162: 2.94 | BM162: 3.43 | BN162: 3.49 | BO162: NA | BP162: NA | BQ162: NA | BR162: NA | BS162: NA | BT162: NA | BU162: NA | BV162: NA | BW162: NA | BX162: NA | BY162: 3.17 | BZ162: NA | CA162: 3.23 | CB162: NA | CC162: NA | CD162: NA | CE162: 3.06 | CF162: 3.03 | CG162: 2.99 | CH162: 2.9 | CI162: NA | CJ162: NA | CK162: 2.9 | CL162: 3 | CM162: 3.25 | CN162: 3.08 | CO162: 3.07 | CP162: NA | CQ162: NA | CR162: 2.49559322
A163: 1999-10-01 | B163: 2.47 | C163: 2.43 | D163: 2.73 | E163: NA | F163: 2.35 | G163: 2.69 | H163: 2.51 | I163: NA | J163: NA | K163: 2.42 | L163: 2.37 | M163: 2.4 | N163: 2.49 | O163: 2.53 | P163: 2.49 | Q163: 2.4 | R163: 2.36 | S163: 2.39 | U163: NA | V163: NA | W163: 2.42 | X163: 2.5 | Y163: 2.48 | Z163: 2.46 | AA163: NA | AB163: 2.38 | AC163: 2.49 | AD163: 2.47 | AE163: 2.39 | AF163: 2.39 | AG163: 2.43 | AH163: 2.43 | AI163: 2.34 | AJ163: 2.46 | AK163: 2.42 | AL163: 2.52 | AM163: NA | AN163: NA | AO163: NA | AP163: 2.47 | AQ163: 2.44 | AR163: NA | AS163: NA | AT163: NA | AV163: 2.47 | AW163: 2.46 | AX163: 2.42 | AY163: 2.43 | AZ163: 2.53 | BA163: 2.51 | BB163: 2.45 | BC163: 2.49 | BD163: 2.54 | BE163: 2.54 | BF163: 2.47 | BG163: NA | BH163: NA | BI163: NA | BJ163: 2.47 | BK163: 2.43 | BL163: 2.43 | BM163: 2.76 | BN163: 2.79 | BO163: NA | BP163: NA | BQ163: NA | BR163: NA | BS163: NA | BT163: NA | BU163: NA | BV163: NA | BW163: NA | BX163: NA | BY163: 2.61 | BZ163: NA | CA163: 2.64 | CB163: NA | CC163: NA | CD163: NA | CE163: 2.55 | CF163: 2.54 | CG163: 2.52 | CH163: 2.44 | CI163: NA | CJ163: NA | CK163: 2.43 | CL163: 2.54 | CM163: 2.84 | CN163: 2.71 | CO163: 2.71 | CP163: NA | CQ163: NA | CR163: 2.813220339
A164: 1999-09-01 | B164: 2.83 | C164: 2.77 | D164: 3.07 | E164: NA | F164: 2.52 | G164: 3.03 | H164: 2.86 | I164: NA | J164: NA | K164: 2.78 | L164: 2.63 | M164: 2.75 | N164: 2.86 | O164: 2.9 | P164: 2.86 | Q164: 2.78 | R164: 2.73 | S164: 2.56 | U164: NA | V164: NA | W164: 2.76 | X164: 2.84 | Y164: 2.83 | Z164: 2.82 | AA164: NA | AB164: 2.7 | AC164: 2.78 | AD164: 2.76 | AE164: 2.56 | AF164: 2.5 | AG164: 2.78 | AH164: 2.77 | AI164: 2.48 | AJ164: 2.82 | AK164: 2.77 | AL164: 2.87 | AM164: NA | AN164: NA | AO164: NA | AP164: 2.83 | AQ164: 2.8 | AR164: NA | AS164: NA | AT164: NA | AV164: 2.82 | AW164: 2.81 | AX164: 2.79 | AY164: 2.8 | AZ164: 2.88 | BA164: 2.87 | BB164: 2.83 | BC164: 2.86 | BD164: 2.89 | BE164: 2.9 | BF164: 2.77 | BG164: NA | BH164: NA | BI164: NA | BJ164: 2.85 | BK164: 2.81 | BL164: 2.77 | BM164: 3.12 | BN164: 3.14 | BO164: NA | BP164: NA | BQ164: NA | BR164: NA | BS164: NA | BT164: NA | BU164: NA | BV164: NA | BW164: NA | BX164: NA | BY164: 2.96 | BZ164: NA | CA164: 2.98 | CB164: NA | CC164: NA | CD164: NA | CE164: 2.9 | CF164: 2.91 | CG164: 2.89 | CH164: 2.8 | CI164: NA | CJ164: NA | CK164: 2.56 | CL164: 2.64 | CM164: 2.98 | CN164: 2.93 | CO164: 2.92 | CP164: NA | CQ164: NA | CR164: 2.52440678
A165: 1999-08-01 | B165: 2.55 | C165: 2.51 | D165: 2.8 | E165: NA | F165: 2.16 | G165: 2.78 | H165: 2.58 | I165: NA | J165: NA | K165: 2.46 | L165: 2.26 | M165: 2.46 | N165: 2.57 | O165: 2.61 | P165: 2.57 | Q165: 2.49 | R165: 2.45 | S165: 2.18 | U165: NA | V165: NA | W165: 2.5 | X165: 2.57 | Y165: 2.55 | Z165: 2.55 | AA165: NA | AB165: 2.44 | AC165: 2.53 | AD165: 2.5 | AE165: 2.18 | AF165: 2.21 | AG165: 2.51 | AH165: 2.51 | AI165: 2.12 | AJ165: 2.55 | AK165: 2.51 | AL165: 2.6 | AM165: NA | AN165: NA | AO165: NA | AP165: 2.54 | AQ165: 2.53 | AR165: NA | AS165: NA | AT165: NA | AV165: 2.57 | AW165: 2.55 | AX165: 2.53 | AY165: 2.52 | AZ165: 2.6 | BA165: 2.59 | BB165: 2.56 | BC165: 2.58 | BD165: 2.61 | BE165: 2.62 | BF165: 2.45 | BG165: NA | BH165: NA | BI165: NA | BJ165: 2.56 | BK165: 2.53 | BL165: 2.5 | BM165: 2.86 | BN165: 2.9 | BO165: NA | BP165: NA | BQ165: NA | BR165: NA | BS165: NA | BT165: NA | BU165: NA | BV165: NA | BW165: NA | BX165: NA | BY165: 2.66 | BZ165: NA | CA165: 2.7 | CB165: NA | CC165: NA | CD165: NA | CE165: 2.62 | CF165: 2.62 | CG165: 2.59 | CH165: 2.52 | CI165: NA | CJ165: NA | CK165: 2.22 | CL165: 2.3 | CM165: 2.69 | CN165: 2.58 | CO165: 2.58 | CP165: NA | CQ165: NA | CR165: 2.229491525
A166: 1999-07-01 | B166: 2.2 | C166: 2.18 | D166: 2.42 | E166: NA | F166: 1.97 | G166: 3.39 | H166: 2.24 | I166: NA | J166: NA | K166: 2.17 | L166: 2.01 | M166: 2.14 | N166: 2.24 | O166: 2.27 | P166: 2.24 | Q166: 2.16 | R166: 2.1 | S166: 2 | U166: NA | V166: NA | W166: 2.16 | X166: 2.21 | Y166: 2.22 | Z166: 2.19 | AA166: NA | AB166: 2.1 | AC166: 2.19 | AD166: 2.18 | AE166: 1.99 | AF166: 1.94 | AG166: 2.18 | AH166: 2.17 | AI166: 1.92 | AJ166: 2.21 | AK166: 2.18 | AL166: 2.26 | AM166: NA | AN166: NA | AO166: NA | AP166: 2.21 | AQ166: 2.19 | AR166: NA | AS166: NA | AT166: NA | AV166: 2.23 | AW166: 2.22 | AX166: 2.2 | AY166: 2.18 | AZ166: 2.25 | BA166: 2.24 | BB166: 2.21 | BC166: 2.24 | BD166: 2.26 | BE166: 2.27 | BF166: 2.17 | BG166: NA | BH166: NA | BI166: NA | BJ166: 2.22 | BK166: 2.2 | BL166: 2.17 | BM166: 2.49 | BN166: 2.5 | BO166: NA | BP166: NA | BQ166: NA | BR166: NA | BS166: NA | BT166: NA | BU166: NA | BV166: NA | BW166: NA | BX166: NA | BY166: 2.33 | BZ166: NA | CA166: 2.34 | CB166: NA | CC166: NA | CD166: NA | CE166: 2.28 | CF166: 2.29 | CG166: 2.27 | CH166: 2.21 | CI166: NA | CJ166: NA | CK166: 2.04 | CL166: 2.18 | CM166: 2.55 | CN166: 2.39 | CO166: 2.38 | CP166: NA | CQ166: NA | CR166: 2.148305085
A167: 1999-06-01 | B167: 2.16 | C167: 2.12 | D167: 2.35 | E167: NA | F167: 1.93 | G167: 2.35 | H167: 2.2 | I167: NA | J167: NA | K167: 2.08 | L167: 1.96 | M167: 2.1 | N167: 2.2 | O167: 2.23 | P167: 2.21 | Q167: 2.11 | R167: 2.06 | S167: 1.94 | U167: NA | V167: NA | W167: 2.11 | X167: 2.18 | Y167: 2.18 | Z167: 2.15 | AA167: NA | AB167: 2.06 | AC167: 2.14 | AD167: 2.12 | AE167: 1.94 | AF167: 1.91 | AG167: 2.13 | AH167: 2.12 | AI167: 1.85 | AJ167: 2.17 | AK167: 2.12 | AL167: 2.21 | AM167: NA | AN167: NA | AO167: NA | AP167: 2.16 | AQ167: 2.14 | AR167: NA | AS167: NA | AT167: NA | AV167: 2.18 | AW167: 2.16 | AX167: 2.15 | AY167: 2.14 | AZ167: 2.21 | BA167: 2.2 | BB167: 2.16 | BC167: 2.19 | BD167: 2.23 | BE167: 2.24 | BF167: 2.08 | BG167: NA | BH167: NA | BI167: NA | BJ167: 2.16 | BK167: 2.14 | BL167: 2.12 | BM167: 2.24 | BN167: 2.24 | BO167: NA | BP167: NA | BQ167: NA | BR167: NA | BS167: NA | BT167: NA | BU167: NA | BV167: NA | BW167: NA | BX167: NA | BY167: 2.28 | BZ167: NA | CA167: 2.31 | CB167: NA | CC167: NA | CD167: NA | CE167: 2.23 | CF167: 2.24 | CG167: 2.21 | CH167: 2.14 | CI167: NA | CJ167: NA | CK167: 1.99 | CL167: 2.1 | CM167: 2.41 | CN167: 2.21 | CO167: 2.1 | CP167: NA | CQ167: NA | CR167: 2.261525424
A168: 1999-05-01 | B168: 2.3 | C168: 2.23 | D168: 2.51 | E168: NA | F168: 1.98 | G168: 2.5 | H168: 2.33 | I168: NA | J168: NA | K168: 2.16 | L168: 2.03 | M168: 2.2 | N168: 2.3 | O168: 2.35 | P168: 2.3 | Q168: 2.24 | R168: 2.18 | S168: 1.99 | U168: NA | V168: NA | W168: 2.21 | X168: 2.3 | Y168: 2.28 | Z168: 2.28 | AA168: NA | AB168: 2.13 | AC168: 2.21 | AD168: 2.2 | AE168: 2.2 | AF168: 1.95 | AG168: 2.23 | AH168: 2.22 | AI168: 1.9 | AJ168: 2.27 | AK168: 2.22 | AL168: 2.35 | AM168: NA | AN168: NA | AO168: NA | AP168: 2.3 | AQ168: 2.28 | AR168: NA | AS168: NA | AT168: NA | AV168: 2.32 | AW168: 2.31 | AX168: 2.29 | AY168: 2.28 | AZ168: 2.35 | BA168: 2.34 | BB168: 2.29 | BC168: 2.32 | BD168: 2.36 | BE168: 2.37 | BF168: 2.16 | BG168: NA | BH168: NA | BI168: NA | BJ168: 2.3 | BK168: 2.28 | BL168: 2.22 | BM168: 2.54 | BN168: 2.56 | BO168: NA | BP168: NA | BQ168: NA | BR168: NA | BS168: NA | BT168: NA | BU168: NA | BV168: NA | BW168: NA | BX168: NA | BY168: 2.39 | BZ168: NA | CA168: 2.44 | CB168: NA | CC168: NA | CD168: NA | CE168: 2.35 | CF168: 2.35 | CG168: 2.32 | CH168: 2.22 | CI168: NA | CJ168: NA | CK168: 2 | CL168: 2.11 | CM168: 2.38 | CN168: 2.23 | CO168: 2.22 | CP168: NA | CQ168: NA | CR168: 1.790677966
A169: 1999-04-01 | B169: 1.83 | C169: 1.75 | D169: 2.09 | E169: NA | F169: 1.53 | G169: 2.05 | H169: 1.86 | I169: NA | J169: NA | K169: 1.66 | L169: 1.59 | M169: 1.74 | N169: 1.84 | O169: 1.88 | P169: 1.85 | Q169: 1.76 | R169: 1.7 | S169: 1.54 | U169: NA | V169: NA | W169: 1.74 | X169: 1.83 | Y169: 1.8 | Z169: 1.8 | AA169: NA | AB169: 1.67 | AC169: 1.76 | AD169: 1.75 | AE169: 1.54 | AF169: 1.51 | AG169: 1.76 | AH169: 1.76 | AI169: 1.43 | AJ169: 1.77 | AK169: 1.74 | AL169: 1.87 | AM169: NA | AN169: NA | AO169: NA | AP169: 1.84 | AQ169: 1.83 | AR169: NA | AS169: NA | AT169: NA | AV169: 1.86 | AW169: 1.85 | AX169: 1.81 | AY169: 1.81 | AZ169: 1.87 | BA169: 1.87 | BB169: 1.81 | BC169: 1.84 | BD169: 1.88 | BE169: 1.88 | BF169: 1.66 | BG169: NA | BH169: NA | BI169: NA | BJ169: 1.83 | BK169: 1.82 | BL169: 1.74 | BM169: 2.11 | BN169: 2.15 | BO169: NA | BP169: NA | BQ169: NA | BR169: NA | BS169: NA | BT169: NA | BU169: NA | BV169: NA | BW169: NA | BX169: NA | BY169: 1.91 | BZ169: NA | CA169: 1.98 | CB169: NA | CC169: NA | CD169: NA | CE169: 1.88 | CF169: 1.68 | CG169: 1.82 | CH169: 1.73 | CI169: NA | CJ169: NA | CK169: 1.59 | CL169: 1.64 | CM169: 1.99 | CN169: 1.79 | CO169: 1.78 | CP169: NA | CQ169: NA | CR169: 1.594067797
A170: 1999-03-01 | B170: 1.58 | C170: 1.57 | D170: 1.78 | E170: NA | F170: 1.49 | G170: 1.73 | H170: 1.6 | I170: NA | J170: NA | K170: 1.54 | L170: 1.51 | M170: 1.53 | N170: 1.59 | O170: 1.63 | P170: 1.6 | Q170: 1.52 | R170: 1.47 | S170: 1.51 | U170: NA | V170: NA | W170: 1.55 | X170: 1.58 | Y170: 1.57 | Z170: 1.56 | AA170: NA | AB170: 1.48 | AC170: 1.59 | AD170: 1.6 | AE170: 1.51 | AF170: 1.5 | AG170: 1.58 | AH170: 1.58 | AI170: 1.45 | AJ170: 1.56 | AK170: 1.54 | AL170: 1.62 | AM170: NA | AN170: NA | AO170: NA | AP170: 1.57 | AQ170: 1.56 | AR170: NA | AS170: NA | AT170: NA | AV170: 1.58 | AW170: 1.58 | AX170: 1.56 | AY170: 1.56 | AZ170: 1.62 | BA170: 1.61 | BB170: 1.58 | BC170: 1.61 | BD170: 1.63 | BE170: 1.66 | BF170: 1.57 | BG170: NA | BH170: NA | BI170: NA | BJ170: 1.56 | BK170: 1.65 | BL170: 1.57 | BM170: 1.84 | BN170: 1.69 | BO170: NA | BP170: NA | BQ170: NA | BR170: NA | BS170: NA | BT170: NA | BU170: NA | BV170: NA | BW170: NA | BX170: NA | BY170: 1.7 | BZ170: NA | CA170: 1.47 | CB170: NA | CC170: NA | CD170: NA | CE170: 1.64 | CF170: 1.65 | CG170: 1.62 | CH170: 1.57 | CI170: NA | CJ170: NA | CK170: 1.58 | CL170: 1.62 | CM170: 1.82 | CN170: 1.74 | CO170: 1.72 | CP170: NA | CQ170: NA | CR170: 1.772033898
A171: 1999-02-01 | B171: 1.75 | C171: 1.76 | D171: 1.95 | E171: NA | F171: 1.61 | G171: 1.92 | H171: 1.77 | I171: NA | J171: NA | K171: 1.66 | L171: 1.63 | M171: 1.63 | N171: 1.74 | O171: 1.77 | P171: 1.74 | Q171: 1.7 | R171: 1.63 | S171: 1.64 | U171: NA | V171: NA | W171: 1.73 | X171: 1.75 | Y171: 1.75 | Z171: 1.73 | AA171: NA | AB171: 1.72 | AC171: 1.8 | AD171: 1.8 | AE171: 1.63 | AF171: 1.77 | AG171: 1.75 | AH171: 1.76 | AI171: 1.58 | AJ171: 1.74 | AK171: 1.73 | AL171: 1.78 | AM171: NA | AN171: NA | AO171: NA | AP171: 1.75 | AQ171: 1.74 | AR171: NA | AS171: NA | AT171: NA | AV171: 1.77 | AW171: 1.75 | AX171: 1.74 | AY171: 1.74 | AZ171: 1.81 | BA171: 1.79 | BB171: 1.75 | BC171: 1.78 | BD171: 1.81 | BE171: 1.84 | BF171: 1.67 | BG171: NA | BH171: NA | BI171: NA | BJ171: 1.75 | BK171: 1.74 | BL171: 1.75 | BM171: 2.16 | BN171: 2.31 | BO171: NA | BP171: NA | BQ171: NA | BR171: NA | BS171: NA | BT171: NA | BU171: NA | BV171: NA | BW171: NA | BX171: NA | BY171: 1.89 | BZ171: NA | CA171: 1.9 | CB171: NA | CC171: NA | CD171: NA | CE171: 1.81 | CF171: 1.78 | CG171: 1.78 | CH171: 1.69 | CI171: NA | CJ171: NA | CK171: 1.69 | CL171: 1.74 | CM171: 2.02 | CN171: 1.85 | CO171: 1.83 | CP171: NA | CQ171: NA | CR171: 1.818103448
A172: 1999-01-01 | B172: 1.71 | C172: 1.78 | D172: 1.95 | E172: NA | F172: 1.75 | G172: 1.92 | H172: 1.75 | I172: NA | J172: NA | K172: 1.73 | L172: 1.72 | M172: 1.64 | N172: 1.73 | O172: 1.78 | P172: 1.73 | Q172: 1.65 | R172: 1.61 | S172: 1.8 | U172: NA | V172: NA | W172: 1.74 | X172: 1.72 | Y172: 1.74 | Z172: 1.69 | AA172: NA | AB172: 1.72 | AC172: 1.83 | AD172: 1.84 | AE172: 1.82 | AF172: 2.88 | AG172: 1.77 | AH172: 1.78 | AI172: 1.73 | AJ172: 1.74 | AK172: 1.73 | AL172: 1.76 | AM172: NA | AN172: NA | AO172: NA | AP172: 1.71 | AQ172: 1.69 | AR172: NA | AS172: NA | AT172: NA | AV172: 1.72 | AW172: 1.72 | AX172: 1.68 | AY172: 1.69 | AZ172: 1.74 | BA172: 1.74 | BB172: 1.71 | BC172: 1.74 | BD172: 1.78 | BE172: 1.81 | BF172: 1.74 | BG172: NA | BH172: NA | BI172: NA | BJ172: 1.71 | BK172: 1.69 | BL172: 1.78 | BM172: 2.19 | BN172: 2.36 | BO172: NA | BP172: NA | BQ172: NA | BR172: NA | BS172: NA | BT172: NA | BU172: NA | BV172: NA | BW172: NA | BX172: NA | BY172: 1.89 | BZ172: NA | CA172: 1.89 | CB172: NA | CC172: NA | CD172: NA | CE172: 1.8 | CF172: 1.78 | CG172: 1.77 | CH172: 1.75 | CI172: NA | CJ172: NA | CK172: NA | CL172: 2.12 | CM172: 2.39 | CN172: 2.07 | CO172: 2.05 | CP172: NA | CQ172: NA | CR172: 2.09440678
A173: 1998-12-01 | B173: 2.06 | C173: 2.06 | D173: 2.23 | E173: NA | F173: 1.96 | G173: 2.25 | H173: 2.08 | I173: NA | J173: NA | K173: 1.99 | L173: 1.96 | M173: 1.96 | N173: 2.07 | O173: 2.12 | P173: 2.07 | Q173: 2.01 | R173: 1.96 | S173: 2 | U173: NA | V173: NA | W173: 2.05 | X173: 2.08 | Y173: 2.06 | Z173: 2.02 | AA173: NA | AB173: 1.98 | AC173: 2.12 | AD173: 2.13 | AE173: 2 | AF173: 2.09 | AG173: 2.06 | AH173: 2.06 | AI173: 2 | AJ173: 2.05 | AK173: 2.01 | AL173: 2.09 | AM173: NA | AN173: NA | AO173: NA | AP173: 2.05 | AQ173: 2.02 | AR173: NA | AS173: NA | AT173: NA | AV173: 2.05 | AW173: 2.05 | AX173: 2.03 | AY173: 2.02 | AZ173: 2.09 | BA173: 2.07 | BB173: 2.04 | BC173: 2.08 | BD173: 2.11 | BE173: 2.12 | BF173: 1.99 | BG173: NA | BH173: NA | BI173: NA | BJ173: 2.05 | BK173: 2.03 | BL173: 2.05 | BM173: 2.43 | BN173: 2.5 | BO173: NA | BP173: NA | BQ173: NA | BR173: NA | BS173: NA | BT173: NA | BU173: NA | BV173: NA | BW173: NA | BX173: NA | BY173: 2.27 | BZ173: NA | CA173: 2.35 | CB173: NA | CC173: NA | CD173: NA | CE173: 2.12 | CF173: 2.08 | CG173: 2.05 | CH173: 2.01 | CI173: NA | CJ173: NA | CK173: 2.05 | CL173: 2.17 | CM173: 2.51 | CN173: 2.31 | CO173: 2.29 | CP173: NA | CQ173: NA | CR173: 1.993517241
A174: 1998-11-01 | B174: 1.91 | C174: 1.96 | D174: 2.25 | E174: NA | F174: 1.97 | G174: 2.24 | H174: 1.96 | I174: NA | J174: NA | K174: 1.92 | L174: 1.88 | M174: 1.85 | N174: 1.92 | O174: 1.99 | P174: 1.91 | Q174: 1.89 | R174: 1.84 | S174: 2.01 | U174: NA | V174: NA | W174: 1.95 | X174: 1.95 | Y174: 1.96 | Z174: 1.88 | AA174: NA | AB174: 1.86 | AC174: 2 | AD174: 2 | AE174: 2.02 | AF174: 2.14 | AG174: 1.95 | AH174: 1.95 | AI174: 1.91 | AJ174: 1.93 | AK174: 1.9 | AL174: 1.96 | AM174: NA | AN174: NA | AO174: NA | AP174: 1.93 | AQ174: 1.89 | AR174: NA | AS174: NA | AT174: NA | AV174: 1.69 | AW174: 1.93 | AX174: 1.91 | AY174: 1.92 | AZ174: 1.98 | BA174: 1.96 | BB174: 1.91 | BC174: 1.95 | BD174: 2.01 | BE174: 2.02 | BF174: 1.99 | BG174: NA | BH174: NA | BI174: NA | BJ174: 1.914 | BK174: 1.89 | BL174: 1.94 | BM174: 2.38 | BN174: 2.41 | BO174: NA | BP174: NA | BQ174: NA | BR174: NA | BS174: NA | BT174: NA | BU174: NA | BV174: NA | BW174: NA | BX174: NA | BY174: 2.16 | BZ174: NA | CA174: 2.16 | CB174: NA | CC174: NA | CD174: NA | CE174: 2 | CF174: 1.99 | CG174: 1.98 | CH174: 1.94 | CI174: NA | CJ174: NA | CK174: 2.04 | CL174: 2.22 | CM174: 2.32 | CN174: NA | CO174: 2.33 | CP174: NA | CQ174: NA | CR174: 1.943448276
A175: 1998-10-01 | B175: 1.94 | C175: 1.92 | D175: 2.22 | E175: NA | F175: 1.65 | G175: 2.2 | H175: 2.02 | I175: NA | J175: NA | K175: 1.82 | L175: 1.67 | M175: 1.88 | N175: 1.98 | O175: 2.03 | P175: 1.97 | Q175: 1.95 | R175: 1.87 | S175: 1.64 | U175: NA | V175: NA | W175: 1.9 | X175: 1.96 | Y175: 1.95 | Z175: 1.93 | AA175: NA | AB175: 1.78 | AC175: 1.92 | AD175: 1.91 | AE175: 1.65 | AF175: 1.67 | AG175: 1.93 | AH175: 1.9 | AI175: 1.64 | AJ175: 1.94 | AK175: 1.89 | AL175: 2.02 | AM175: NA | AN175: NA | AO175: NA | AP175: 1.95 | AQ175: 1.92 | AR175: NA | AS175: NA | AT175: NA | AV175: 1.98 | AW175: 1.97 | AX175: 1.95 | AY175: 1.94 | AZ175: 2.03 | BA175: 2.02 | BB175: 1.96 | BC175: 2.04 | BD175: 2.08 | BE175: 2.09 | BF175: 1.83 | BG175: NA | BH175: NA | BI175: NA | BJ175: 1.94 | BK175: 1.94 | BL175: 1.9 | BM175: 2.27 | BN175: 2.3 | BO175: NA | BP175: NA | BQ175: NA | BR175: NA | BS175: NA | BT175: NA | BU175: NA | BV175: NA | BW175: NA | BX175: NA | BY175: 2.15 | BZ175: NA | CA175: 2.15 | CB175: NA | CC175: NA | CD175: NA | CE175: 2.07 | CF175: 2.04 | CG175: 2.02 | CH175: 1.9 | CI175: NA | CJ175: NA | CK175: 1.64 | CL175: 1.82 | CM175: 2.04 | CN175: NA | CO175: 2.03 | CP175: NA | CQ175: NA | CR175: 1.599310345
A176: 1998-09-01 | B176: 1.51 | C176: 1.56 | D176: 1.79 | E176: NA | F176: 1.55 | G176: 1.77 | H176: 1.58 | I176: NA | J176: NA | K176: 1.59 | L176: 1.55 | M176: 1.53 | N176: 1.57 | O176: 1.61 | P176: 1.57 | Q176: 1.54 | R176: 1.47 | S176: 1.59 | U176: NA | V176: NA | W176: 1.56 | X176: 1.56 | Y176: 1.58 | Z176: 1.53 | AA176: NA | AB176: 1.5 | AC176: 1.57 | AD176: 1.56 | AE176: 1.57 | AF176: 1.46 | AG176: 1.58 | AH176: 1.56 | AI176: 1.53 | AJ176: 1.57 | AK176: 1.52 | AL176: 1.6 | AM176: NA | AN176: NA | AO176: NA | AP176: 1.53 | AQ176: 1.53 | AR176: NA | AS176: NA | AT176: NA | AV176: 1.56 | AW176: 1.54 | AX176: 1.54 | AY176: 1.52 | AZ176: 1.59 | BA176: 1.58 | BB176: 1.53 | BC176: 1.6 | BD176: 1.63 | BE176: 1.63 | BF176: 1.59 | BG176: NA | BH176: NA | BI176: NA | BJ176: 1.53 | BK176: 1.54 | BL176: 1.56 | BM176: 1.78 | BN176: 1.8 | BO176: NA | BP176: NA | BQ176: NA | BR176: NA | BS176: NA | BT176: NA | BU176: NA | BV176: NA | BW176: NA | BX176: NA | BY176: 1.67 | BZ176: NA | CA176: 1.67 | CB176: NA | CC176: NA | CD176: NA | CE176: 1.63 | CF176: 1.66 | CG176: 1.64 | CH176: 1.58 | CI176: NA | CJ176: NA | CK176: 1.55 | CL176: 1.78 | CM176: 1.96 | CN176: NA | CO176: 2.01 | CP176: NA | CQ176: NA | CR176: 1.89
A177: 1998-08-01 | B177: 1.83 | C177: 1.84 | D177: 2.06 | E177: NA | F177: 1.73 | G177: 2.05 | H177: 1.9 | I177: NA | J177: NA | K177: 1.9 | L177: 1.81 | M177: 1.84 | N177: 1.86 | O177: 1.92 | P177: 1.86 | Q177: 1.85 | R177: 1.79 | S177: 1.73 | U177: NA | V177: NA | W177: 1.84 | X177: 1.86 | Y177: 1.88 | Z177: 1.85 | AA177: NA | AB177: 1.79 | AC177: 1.86 | AD177: 1.84 | AE177: 1.73 | AF177: 1.57 | AG177: 1.86 | AH177: 1.84 | AI177: 1.73 | AJ177: 1.86 | AK177: 1.83 | AL177: 1.91 | AM177: NA | AN177: NA | AO177: NA | AP177: 1.85 | AQ177: 1.83 | AR177: NA | AS177: NA | AT177: NA | AV177: 1.87 | AW177: 1.86 | AX177: 1.88 | AY177: 1.85 | AZ177: 1.91 | BA177: 1.91 | BB177: 1.85 | BC177: 1.89 | BD177: 1.93 | BE177: 1.94 | BF177: 1.94 | BG177: NA | BH177: NA | BI177: NA | BJ177: 1.84 | BK177: 1.83 | BL177: 1.85 | BM177: 2.15 | BN177: 2.17 | BO177: NA | BP177: NA | BQ177: NA | BR177: NA | BS177: NA | BT177: NA | BU177: NA | BV177: NA | BW177: NA | BX177: NA | BY177: 1.98 | BZ177: NA | CA177: 1.99 | CB177: NA | CC177: NA | CD177: NA | CE177: 1.93 | CF177: 1.96 | CG177: 1.93 | CH177: 1.92 | CI177: NA | CJ177: NA | CK177: 1.74 | CL177: 2.01 | CM177: 2.3 | CN177: NA | CO177: 2.29 | CP177: NA | CQ177: NA | CR177: 2.220517241
A178: 1998-07-01 | B178: 2.27 | C178: 2.27 | D178: 2.47 | E178: NA | F178: 1.61 | G178: 2.46 | H178: 2.33 | I178: NA | J178: NA | K178: 2.18 | L178: 1.86 | M178: 2.25 | N178: 2.31 | O178: 2.36 | P178: 2.29 | Q178: 2.26 | R178: 2.2 | S178: 1.62 | U178: NA | V178: NA | W178: 2.27 | X178: 2.31 | Y178: 2.31 | Z178: 2.29 | AA178: NA | AB178: 2.15 | AC178: 2.27 | AD178: 2.26 | AE178: 1.62 | AF178: 1.45 | AG178: 2.29 | AH178: 2.27 | AI178: 1.61 | AJ178: 2.3 | AK178: 2.26 | AL178: 2.35 | AM178: NA | AN178: NA | AO178: NA | AP178: 2.29 | AQ178: 2.27 | AR178: NA | AS178: NA | AT178: NA | AV178: 2.31 | AW178: 2.3 | AX178: 2.28 | AY178: 2.28 | AZ178: 2.33 | BA178: 2.33 | BB178: 2.29 | BC178: 2.33 | BD178: 2.37 | BE178: 2.37 | BF178: 2.17 | BG178: NA | BH178: NA | BI178: NA | BJ178: 2.28 | BK178: 2.28 | BL178: 2.27 | BM178: 2.58 | BN178: 2.59 | BO178: NA | BP178: NA | BQ178: NA | BR178: NA | BS178: NA | BT178: NA | BU178: NA | BV178: NA | BW178: NA | BX178: NA | BY178: 2.42 | BZ178: NA | CA178: 2.43 | CB178: NA | CC178: NA | CD178: NA | CE178: 2.37 | CF178: 2.38 | CG178: 2.36 | CH178: 2.28 | CI178: NA | CJ178: NA | CK178: 1.63 | CL178: 1.8 | CM178: 2.23 | CN178: NA | CO178: 2.22 | CP178: NA | CQ178: NA | CR178: 1.942982456
A179: 1998-06-01 | B179: 1.95 | C179: 1.95 | D179: 2.19 | E179: NA | F179: 1.64 | G179: 2.16 | H179: 2 | I179: NA | J179: NA | K179: 1.86 | L179: 1.75 | M179: 1.93 | N179: 1.98 | O179: 2.03 | P179: 1.98 | Q179: 1.94 | R179: 1.89 | S179: 1.65 | U179: NA | V179: NA | W179: 1.94 | X179: 1.97 | Y179: 1.8 | Z179: 1.96 | AA179: NA | AB179: 1.84 | AC179: 1.93 | AD179: 1.92 | AE179: 1.64 | AF179: 1.38 | AG179: 1.95 | AH179: 1.94 | AI179: 1.62 | AJ179: 1.96 | AK179: 1.92 | AL179: 2.01 | AM179: NA | AN179: NA | AO179: NA | AP179: 1.96 | AQ179: 1.95 | AR179: NA | AS179: NA | AT179: NA | AV179: 1.98 | AW179: 1.96 | AX179: 1.95 | AY179: 1.95 | AZ179: 2 | BA179: 2 | BB179: 1.95 | BC179: 2 | BD179: 2.03 | BE179: 2.02 | BF179: 1.89 | BG179: NA | BH179: NA | BI179: NA | BJ179: 1.94 | BK179: 1.95 | BL179: 1.93 | BM179: 2.25 | BN179: 2.26 | BO179: NA | BP179: NA | BQ179: NA | BR179: NA | BS179: NA | BT179: NA | BU179: NA | BV179: NA | BW179: NA | BX179: NA | BY179: 2.13 | BZ179: NA | CA179: 2.17 | CB179: NA | CC179: NA | CD179: NA | CE179: 2.03 | CF179: 2.05 | CG179: 2.02 | CH179: 1.94 | CI179: NA | CJ179: NA | CK179: NA | CL179: 1.65 | CM179: 2.05 | CN179: NA | CO179: 2.06 | CP179: NA | CQ179: NA
A180: 1998-05-01 | B180: NA | C180: NA | D180: NA | E180: NA | F180: NA | G180: NA | H180: NA | I180: NA | J180: NA | K180: NA | L180: NA | M180: NA | N180: NA | O180: NA | P180: NA | Q180: NA | R180: NA | S180: NA | U180: NA | V180: NA | W180: NA | X180: NA | Y180: NA | Z180: NA | AA180: NA | AB180: NA | AC180: NA | AD180: NA | AE180: NA | AF180: NA | AG180: NA | AH180: NA | AI180: NA | AJ180: NA | AK180: NA | AL180: NA | AM180: NA | AN180: NA | AO180: NA | AP180: NA | AQ180: NA | AR180: NA | AS180: NA | AT180: NA | AV180: NA | AW180: NA | AX180: NA | AY180: NA | AZ180: NA | BA180: NA | BB180: NA | BC180: NA | BD180: NA | BE180: NA | BF180: NA | BG180: NA | BH180: NA | BI180: NA | BJ180: NA | BK180: NA | BL180: NA | BM180: NA | BN180: NA | BO180: NA | BP180: NA | BQ180: NA | BR180: NA | BS180: NA | BT180: NA | BU180: NA | BV180: NA | BW180: NA | BX180: NA | BY180: NA | BZ180: NA | CA180: NA | CB180: NA | CC180: NA | CD180: NA | CE180: NA | CF180: NA | CG180: NA | CH180: NA | CI180: NA | CJ180: NA | CK180: NA | CL180: NA | CM180: NA | CN180: NA | CO180: NA | CP180: NA | CQ180: NA
A181: 1998-04-01 | B181: NA | C181: NA | D181: NA | E181: NA | F181: NA | G181: NA | H181: NA | I181: NA | J181: NA | K181: NA | L181: NA | M181: NA | N181: NA | O181: NA | P181: NA | Q181: NA | R181: NA | S181: NA | U181: NA | V181: NA | W181: NA | X181: NA | Y181: NA | Z181: NA | AA181: NA | AB181: NA | AC181: NA | AD181: NA | AE181: NA | AF181: NA | AG181: NA | AH181: NA | AI181: NA | AJ181: NA | AK181: NA | AL181: NA | AM181: NA | AN181: NA | AO181: NA | AP181: NA | AQ181: NA | AR181: NA | AS181: NA | AT181: NA | AV181: NA | AW181: NA | AX181: NA | AY181: NA | AZ181: NA | BA181: NA | BB181: NA | BC181: NA | BD181: NA | BE181: NA | BF181: NA | BG181: NA | BH181: NA | BI181: NA | BJ181: NA | BK181: NA | BL181: NA | BM181: NA | BN181: NA | BO181: NA | BP181: NA | BQ181: NA | BR181: NA | BS181: NA | BT181: NA | BU181: NA | BV181: NA | BW181: NA | BX181: NA | BY181: NA | BZ181: NA | CA181: NA | CB181: NA | CC181: NA | CD181: NA | CE181: NA | CF181: NA | CG181: NA | CH181: NA | CI181: NA | CJ181: NA | CK181: NA | CL181: NA | CM181: NA | CN181: NA | CO181: NA | CP181: NA | CQ181: NA | CR181: 2.155087719
A182: 1998-03-01 | B182: 2.18 | C182: 2.15 | D182: 2.4 | E182: NA | F182: 1.88 | G182: 2.37 | H182: 2.22 | I182: NA | J182: NA | K182: 2.04 | L182: 2.01 | M182: 2.11 | N182: 2.19 | O182: 2.25 | P182: 2.19 | Q182: 2.15 | R182: 2.07 | S182: 1.88 | U182: NA | V182: NA | W182: 2.15 | X182: 2.18 | Y182: 2.19 | Z182: 2.17 | AA182: NA | AB182: 2.06 | AC182: 2.16 | AD182: 2.15 | AE182: 1.87 | AF182: 1.12 | AG182: 2.16 | AH182: 2.15 | AI182: 1.86 | AJ182: 2.16 | AK182: 2.14 | AL182: 2.23 | AM182: NA | AN182: NA | AO182: NA | AP182: 2.19 | AQ182: 2.16 | AR182: NA | AS182: NA | AT182: NA | AV182: 2.2 | AW182: 2.19 | AX182: 2.16 | AY182: 2.15 | AZ182: 2.22 | BA182: 2.23 | BB182: 2.16 | BC182: 2.22 | BD182: 2.27 | BE182: 2.3 | BF182: 2.07 | BG182: NA | BH182: NA | BI182: NA | BJ182: 2.18 | BK182: 2.17 | BL182: 2.15 | BM182: 2.47 | BN182: 2.49 | BO182: NA | BP182: NA | BQ182: NA | BR182: NA | BS182: NA | BT182: NA | BU182: NA | BV182: NA | BW182: NA | BX182: NA | BY182: 2.3 | BZ182: NA | CA182: 2.37 | CB182: NA | CC182: NA | CD182: NA | CE182: 2.26 | CF182: 2.23 | CG182: 2.19 | CH182: 2.12 | CI182: NA | CJ182: NA | CK182: NA | CL182: 1.88 | CM182: 2.32 | CN182: NA | CO182: 2.35 | CP182: NA | CQ182: NA | CR182: 1.939821429
A183: 1998-02-01 | B183: 1.91 | C183: 1.92 | D183: 2.15 | E183: NA | F183: 1.7 | G183: 2.12 | H183: 1.99 | I183: NA | J183: NA | K183: 1.84 | L183: 1.76 | M183: 1.88 | N183: 1.94 | O183: 2.02 | P183: 1.96 | Q183: 1.92 | R183: 1.82 | S183: 1.69 | U183: NA | V183: NA | W183: 1.92 | X183: 1.92 | Y183: 1.96 | Z183: 1.93 | AA183: NA | AB183: 1.86 | AC183: 1.95 | AD183: 1.96 | AE183: 1.69 | AF183: 1.43 | AG183: 1.93 | AH183: 1.93 | AI183: 1.68 | AJ183: 1.94 | AK183: 1.92 | AL183: 2.02 | AM183: NA | AN183: NA | AO183: NA | AP183: 1.93 | AQ183: 1.92 | AR183: NA | AS183: NA | AT183: NA | AV183: 1.97 | AW183: 1.94 | AX183: 1.92 | AY183: 1.92 | AZ183: 1.99 | BA183: 1.99 | BB183: 1.91 | BC183: 1.97 | BD183: 2.03 | BE183: 2.08 | BF183: 1.87 | BG183: NA | BH183: NA | BI183: NA | BJ183: 1.93 | BK183: 1.92 | BL183: 1.92 | BM183: 2.33 | BN183: 2.4 | BO183: NA | BP183: NA | BQ183: NA | BR183: NA | BS183: NA | BT183: NA | BU183: NA | BV183: NA | BW183: NA | BX183: NA | BY183: 2.1 | BZ183: NA | CA183: 2.14 | CB183: NA | CC183: NA | CD183: NA | CE183: 2.04 | CF183: 2.01 | CG183: 1.99 | CH183: 1.9 | CI183: NA | CJ183: NA | CK183: NA | CL183: 1.76 | CM183: NA | CN183: NA | CO183: 2.09 | CP183: NA | CQ183: NA
A184: 1998-01-01 | B184: NA | C184: NA | D184: NA | E184: NA | F184: NA | G184: NA | H184: NA | I184: NA | J184: NA | K184: NA | L184: NA | M184: NA | N184: NA | O184: NA | P184: NA | Q184: NA | R184: NA | S184: NA | U184: NA | V184: NA | W184: NA | X184: NA | Y184: NA | Z184: NA | AA184: NA | AB184: NA | AC184: NA | AD184: NA | AE184: NA | AF184: NA | AG184: NA | AH184: NA | AI184: NA | AJ184: NA | AK184: NA | AL184: NA | AM184: NA | AN184: NA | AO184: NA | AP184: NA | AQ184: NA | AR184: NA | AS184: NA | AT184: NA | AV184: NA | AW184: NA | AX184: NA | AY184: NA | AZ184: NA | BA184: NA | BB184: NA | BC184: NA | BD184: NA | BE184: NA | BF184: NA | BG184: NA | BH184: NA | BI184: NA | BJ184: NA | BK184: NA | BL184: NA | BM184: NA | BN184: NA | BO184: NA | BP184: NA | BQ184: NA | BR184: NA | BS184: NA | BT184: NA | BU184: NA | BV184: NA | BW184: NA | BX184: NA | BY184: NA | BZ184: NA | CA184: NA | CB184: NA | CC184: NA | CD184: NA | CE184: NA | CF184: NA | CG184: NA | CH184: NA | CI184: NA | CJ184: NA | CK184: NA | CL184: NA | CM184: NA | CN184: NA | CO184: NA | CP184: NA | CQ184: NA | CR184: 2.385882353
A185: 1997-12-01 | B185: 2.43 | C185: 2.35 | D185: 2.7 | E185: NA | F185: 1.94 | G185: 2.66 | H185: 2.5 | I185: NA | J185: NA | K185: 2.21 | L185: 2.16 | M185: 2.31 | N185: 2.45 | O185: 2.55 | P185: 2.49 | Q185: 2.47 | R185: 2.25 | S185: 1.93 | U185: NA | V185: NA | W185: 2.32 | X185: 2.37 | Y185: 2.35 | Z185: 2.35 | AA185: NA | AB185: 2.28 | AC185: 2.45 | AD185: 2.44 | AE185: 1.94 | AF185: 1.4 | AG185: 2.36 | AH185: 2.35 | AI185: 1.93 | AJ185: 2.37 | AK185: 2.32 | AL185: 2.52 | AM185: NA | AN185: NA | AO185: NA | AP185: 2.45 | AQ185: 2.36 | AR185: NA | AS185: NA | AT185: NA | AV185: 2.48 | AW185: 2.46 | AX185: 2.38 | AY185: 2.33 | AZ185: 2.47 | BA185: 2.51 | BB185: 2.4 | BC185: 2.49 | BD185: 2.54 | BE185: 2.58 | BF185: 2.2 | BG185: NA | BH185: NA | BI185: NA | BJ185: 2.44 | BK185: 2.35 | BL185: 2.37 | BM185: 3.24 | BN185: 3.29 | BO185: NA | BP185: NA | BQ185: NA | BR185: NA | BS185: NA | BT185: NA | BU185: NA | BV185: NA | BW185: NA | BX185: NA | BY185: NA | BZ185: NA | CA185: NA | CB185: NA | CC185: NA | CD185: NA | CE185: 2.55 | CF185: NA | CG185: 2.38 | CH185: 2.26 | CI185: NA | CJ185: NA | CK185: NA | CL185: NA | CM185: NA | CN185: NA | CO185: NA | CP185: NA | CQ185: NA | CR185: 3.196666667
A186: 1997-11-01 | B186: 3.18 | C186: 3.16 | D186: 3.59 | E186: NA | F186: 2.99 | G186: 3.52 | H186: 3.26 | I186: NA | J186: NA | K186: 3.18 | L186: 3.11 | M186: 3.15 | N186: 3.2 | O186: 3.26 | P186: 3.2 | Q186: 3.2 | R186: 3.04 | S186: 3 | U186: NA | V186: NA | W186: 3.12 | X186: 3.17 | Y186: 3.18 | Z186: 3.18 | AA186: NA | AB186: 3.09 | AC186: 3.29 | AD186: 3.29 | AE186: 3 | AF186: 2.7 | AG186: 3.16 | AH186: 3.16 | AI186: 2.99 | AJ186: 3.17 | AK186: 3.1 | AL186: 3.25 | AM186: NA | AN186: NA | AO186: NA | AP186: 3.2 | AQ186: 3.17 | AR186: NA | AS186: NA | AT186: NA | AV186: 3.23 | AW186: 3.21 | AX186: 3.17 | AY186: 3.16 | AZ186: 3.24 | BA186: 3.26 | BB186: 3.17 | BC186: 3.21 | BD186: 3.27 | BE186: 3.27 | BF186: 3.06 | BG186: NA | BH186: NA | BI186: NA | BJ186: 3.18 | BK186: 3.16 | BL186: 3.15 | BM186: 3.75 | BN186: 3.76 | BO186: NA | BP186: NA | BQ186: NA | BR186: NA | BS186: NA | BT186: NA | BU186: NA | BV186: NA | BW186: NA | BX186: NA | BY186: NA | BZ186: NA | CA186: NA | CB186: NA | CC186: NA | CD186: NA | CE186: 3.3 | CF186: NA | CG186: 3.11 | CH186: 3.11 | CI186: NA | CJ186: NA | CK186: NA | CL186: NA | CM186: NA | CN186: NA | CO186: NA | CP186: NA | CQ186: NA
A187: 1997-10-01 | B187: NA | C187: NA | D187: NA | E187: NA | F187: NA | G187: NA | H187: NA | I187: NA | J187: NA | K187: NA | L187: NA | M187: NA | N187: NA | O187: NA | P187: NA | Q187: NA | R187: NA | S187: NA | U187: NA | V187: NA | W187: NA | X187: NA | Y187: NA | Z187: NA | AA187: NA | AB187: NA | AC187: NA | AD187: NA | AE187: NA | AF187: NA | AG187: NA | AH187: NA | AI187: NA | AJ187: NA | AK187: NA | AL187: NA | AM187: NA | AN187: NA | AO187: NA | AP187: NA | AQ187: NA | AR187: NA | AS187: NA | AT187: NA | AV187: NA | AW187: NA | AX187: NA | AY187: NA | AZ187: NA | BA187: NA | BB187: NA | BC187: NA | BD187: NA | BE187: NA | BF187: NA | BG187: NA | BH187: NA | BI187: NA | BJ187: NA | BK187: NA | BL187: NA | BM187: NA | BN187: NA | BO187: NA | BP187: NA | BQ187: NA | BR187: NA | BS187: NA | BT187: NA | BU187: NA | BV187: NA | BW187: NA | BX187: NA | BY187: NA | BZ187: NA | CA187: NA | CB187: NA | CC187: NA | CD187: NA | CE187: NA | CF187: NA | CG187: NA | CH187: NA | CI187: NA | CJ187: NA | CK187: NA | CL187: NA | CM187: NA | CN187: NA | CO187: NA | CP187: NA | CQ187: NA
A188: 1997-09-01 | B188: NA | C188: NA | D188: NA | E188: NA | F188: NA | G188: NA | H188: NA | I188: NA | J188: NA | K188: NA | L188: NA | M188: NA | N188: NA | O188: NA | P188: NA | Q188: NA | R188: NA | S188: NA | U188: NA | V188: NA | W188: NA | X188: NA | Y188: NA | Z188: NA | AA188: NA | AB188: NA | AC188: NA | AD188: NA | AE188: NA | AF188: NA | AG188: NA | AH188: NA | AI188: NA | AJ188: NA | AK188: NA | AL188: NA | AM188: NA | AN188: NA | AO188: NA | AP188: NA | AQ188: NA | AR188: NA | AS188: NA | AT188: NA | AV188: NA | AW188: NA | AX188: NA | AY188: NA | AZ188: NA | BA188: NA | BB188: NA | BC188: NA | BD188: NA | BE188: NA | BF188: NA | BG188: NA | BH188: NA | BI188: NA | BJ188: NA | BK188: NA | BL188: NA | BM188: NA | BN188: NA | BO188: NA | BP188: NA | BQ188: NA | BR188: NA | BS188: NA | BT188: NA | BU188: NA | BV188: NA | BW188: NA | BX188: NA | BY188: NA | BZ188: NA | CA188: NA | CB188: NA | CC188: NA | CD188: NA | CE188: NA | CF188: NA | CG188: NA | CH188: NA | CI188: NA | CJ188: NA | CK188: NA | CL188: NA | CM188: NA | CN188: NA | CO188: NA | CP188: NA | CQ188: NA
A189: 1997-08-01 | B189: NA | C189: NA | D189: NA | E189: NA | F189: NA | G189: NA | H189: NA | I189: NA | J189: NA | K189: NA | L189: NA | M189: NA | N189: NA | O189: NA | P189: NA | Q189: NA | R189: NA | S189: NA | U189: NA | V189: NA | W189: NA | X189: NA | Y189: NA | Z189: NA | AA189: NA | AB189: NA | AC189: NA | AD189: NA | AE189: NA | AF189: NA | AG189: NA | AH189: NA | AI189: NA | AJ189: NA | AK189: NA | AL189: NA | AM189: NA | AN189: NA | AO189: NA | AP189: NA | AQ189: NA | AR189: NA | AS189: NA | AT189: NA | AV189: NA | AW189: NA | AX189: NA | AY189: NA | AZ189: NA | BA189: NA | BB189: NA | BC189: NA | BD189: NA | BE189: NA | BF189: NA | BG189: NA | BH189: NA | BI189: NA | BJ189: NA | BK189: NA | BL189: NA | BM189: NA | BN189: NA | BO189: NA | BP189: NA | BQ189: NA | BR189: NA | BS189: NA | BT189: NA | BU189: NA | BV189: NA | BW189: NA | BX189: NA | BY189: NA | BZ189: NA | CA189: NA | CB189: NA | CC189: NA | CD189: NA | CE189: NA | CF189: NA | CG189: NA | CH189: NA | CI189: NA | CJ189: NA | CK189: NA | CL189: NA | CM189: NA | CN189: NA | CO189: NA | CP189: NA | CQ189: NA
A190: 1997-07-01 | B190: NA | C190: NA | D190: NA | E190: NA | F190: NA | G190: NA | H190: NA | I190: NA | J190: NA | K190: NA | L190: NA | M190: NA | N190: NA | O190: NA | P190: NA | Q190: NA | R190: NA | S190: NA | U190: NA | V190: NA | W190: NA | X190: NA | Y190: NA | Z190: NA | AA190: NA | AB190: NA | AC190: NA | AD190: NA | AE190: NA | AF190: NA | AG190: NA | AH190: NA | AI190: NA | AJ190: NA | AK190: NA | AL190: NA | AM190: NA | AN190: NA | AO190: NA | AP190: NA | AQ190: NA | AR190: NA | AS190: NA | AT190: NA | AV190: NA | AW190: NA | AX190: NA | AY190: NA | AZ190: NA | BA190: NA | BB190: NA | BC190: NA | BD190: NA | BE190: NA | BF190: NA | BG190: NA | BH190: NA | BI190: NA | BJ190: NA | BK190: NA | BL190: NA | BM190: NA | BN190: NA | BO190: NA | BP190: NA | BQ190: NA | BR190: NA | BS190: NA | BT190: NA | BU190: NA | BV190: NA | BW190: NA | BX190: NA | BY190: NA | BZ190: NA | CA190: NA | CB190: NA | CC190: NA | CD190: NA | CE190: NA | CF190: NA | CG190: NA | CH190: NA | CI190: NA | CJ190: NA | CK190: NA | CL190: NA | CM190: NA | CN190: NA | CO190: NA | CP190: NA | CQ190: NA | CR190: 2.151764706
A191: 1997-06-01 | B191: 2.24 | C191: 2.13 | D191: 2.46 | E191: NA | F191: 1.46 | G191: 2.46 | H191: 2.27 | I191: NA | J191: NA | K191: 2.07 | L191: 2.02 | M191: 2.17 | N191: 2.21 | O191: 2.3 | P191: 2.25 | Q191: 2.26 | R191: 2.17 | S191: 1.47 | U191: NA | V191: NA | W191: 2.13 | X191: 2.23 | Y191: 2.24 | Z191: 2.22 | AA191: NA | AB191: 2.04 | AC191: 2.11 | AD191: 2.1 | AE191: 1.48 | AF191: 1.38 | AG191: 2.14 | AH191: 2.13 | AI191: 1.45 | AJ191: 2.19 | AK191: 2.15 | AL191: 2.28 | AM191: NA | AN191: NA | AO191: NA | AP191: 2.24 | AQ191: 2.23 | AR191: NA | AS191: NA | AT191: NA | AV191: 2.24 | AW191: 2.23 | AX191: 2.2 | AY191: 2.21 | AZ191: 2.3 | BA191: 2.31 | BB191: 2.2 | BC191: 2.25 | BD191: 2.3 | BE191: 2.31 | BF191: 2.05 | BG191: NA | BH191: NA | BI191: NA | BJ191: 2.24 | BK191: 2.22 | BL191: 2.11 | BM191: 2.57 | BN191: 2.59 | BO191: NA | BP191: NA | BQ191: NA | BR191: NA | BS191: NA | BT191: NA | BU191: NA | BV191: NA | BW191: NA | BX191: NA | BY191: NA | BZ191: NA | CA191: NA | CB191: NA | CC191: NA | CD191: NA | CE191: 2.31 | CF191: NA | CG191: 2.27 | CH191: 2.15 | CI191: NA | CJ191: NA | CK191: NA | CL191: NA | CM191: NA | CN191: NA | CO191: NA | CP191: NA | CQ191: NA
A192: 1997-05-01 | B192: NA | C192: NA | D192: NA | E192: NA | F192: NA | G192: NA | H192: NA | I192: NA | J192: NA | K192: NA | L192: NA | M192: NA | N192: NA | O192: NA | P192: NA | Q192: NA | R192: NA | S192: NA | U192: NA | V192: NA | W192: NA | X192: NA | Y192: NA | Z192: NA | AA192: NA | AB192: NA | AC192: NA | AD192: NA | AE192: NA | AF192: NA | AG192: NA | AH192: NA | AI192: NA | AJ192: NA | AK192: NA | AL192: NA | AM192: NA | AN192: NA | AO192: NA | AP192: NA | AQ192: NA | AR192: NA | AS192: NA | AT192: NA | AV192: NA | AW192: NA | AX192: NA | AY192: NA | AZ192: NA | BA192: NA | BB192: NA | BC192: NA | BD192: NA | BE192: NA | BF192: NA | BG192: NA | BH192: NA | BI192: NA | BJ192: NA | BK192: NA | BL192: NA | BM192: NA | BN192: NA | BO192: NA | BP192: NA | BQ192: NA | BR192: NA | BS192: NA | BT192: NA | BU192: NA | BV192: NA | BW192: NA | BX192: NA | BY192: NA | BZ192: NA | CA192: NA | CB192: NA | CC192: NA | CD192: NA | CE192: NA | CF192: NA | CG192: NA | CH192: NA | CI192: NA | CJ192: NA | CK192: NA | CL192: NA | CM192: NA | CN192: NA | CO192: NA | CP192: NA | CQ192: NA
A193: 1997-04-01 | B193: NA | C193: NA | D193: NA | E193: NA | F193: NA | G193: NA | H193: NA | I193: NA | J193: NA | K193: NA | L193: NA | M193: NA | N193: NA | O193: NA | P193: NA | Q193: NA | R193: NA | S193: NA | U193: NA | V193: NA | W193: NA | X193: NA | Y193: NA | Z193: NA | AA193: NA | AB193: NA | AC193: NA | AD193: NA | AE193: NA | AF193: NA | AG193: NA | AH193: NA | AI193: NA | AJ193: NA | AK193: NA | AL193: NA | AM193: NA | AN193: NA | AO193: NA | AP193: NA | AQ193: NA | AR193: NA | AS193: NA | AT193: NA | AV193: NA | AW193: NA | AX193: NA | AY193: NA | AZ193: NA | BA193: NA | BB193: NA | BC193: NA | BD193: NA | BE193: NA | BF193: NA | BG193: NA | BH193: NA | BI193: NA | BJ193: NA | BK193: NA | BL193: NA | BM193: NA | BN193: NA | BO193: NA | BP193: NA | BQ193: NA | BR193: NA | BS193: NA | BT193: NA | BU193: NA | BV193: NA | BW193: NA | BX193: NA | BY193: NA | BZ193: NA | CA193: NA | CB193: NA | CC193: NA | CD193: NA | CE193: NA | CF193: NA | CG193: NA | CH193: NA | CI193: NA | CJ193: NA | CK193: NA | CL193: NA | CM193: NA | CN193: NA | CO193: NA | CP193: NA | CQ193: NA
A194: 1997-03-01 | B194: NA | C194: NA | D194: NA | E194: NA | F194: NA | G194: NA | H194: NA | I194: NA | J194: NA | K194: NA | L194: NA | M194: NA | N194: NA | O194: NA | P194: NA | Q194: NA | R194: NA | S194: NA | U194: NA | V194: NA | W194: NA | X194: NA | Y194: NA | Z194: NA | AA194: NA | AB194: NA | AC194: NA | AD194: NA | AE194: NA | AF194: NA | AG194: NA | AH194: NA | AI194: NA | AJ194: NA | AK194: NA | AL194: NA | AM194: NA | AN194: NA | AO194: NA | AP194: NA | AQ194: NA | AR194: NA | AS194: NA | AT194: NA | AV194: NA | AW194: NA | AX194: NA | AY194: NA | AZ194: NA | BA194: NA | BB194: NA | BC194: NA | BD194: NA | BE194: NA | BF194: NA | BG194: NA | BH194: NA | BI194: NA | BJ194: NA | BK194: NA | BL194: NA | BM194: NA | BN194: NA | BO194: NA | BP194: NA | BQ194: NA | BR194: NA | BS194: NA | BT194: NA | BU194: NA | BV194: NA | BW194: NA | BX194: NA | BY194: NA | BZ194: NA | CA194: NA | CB194: NA | CC194: NA | CD194: NA | CE194: NA | CF194: NA | CG194: NA | CH194: NA | CI194: NA | CJ194: NA | CK194: NA | CL194: NA | CM194: NA | CN194: NA | CO194: NA | CP194: NA | CQ194: NA
A195: 1997-02-01 | B195: NA | C195: NA | D195: NA | E195: NA | F195: NA | G195: NA | H195: NA | I195: NA | J195: NA | K195: NA | L195: NA | M195: NA | N195: NA | O195: NA | P195: NA | Q195: NA | R195: NA | S195: NA | U195: NA | V195: NA | W195: NA | X195: NA | Y195: NA | Z195: NA | AA195: NA | AB195: NA | AC195: NA | AD195: NA | AE195: NA | AF195: NA | AG195: NA | AH195: NA | AI195: NA | AJ195: NA | AK195: NA | AL195: NA | AM195: NA | AN195: NA | AO195: NA | AP195: NA | AQ195: NA | AR195: NA | AS195: NA | AT195: NA | AV195: NA | AW195: NA | AX195: NA | AY195: NA | AZ195: NA | BA195: NA | BB195: NA | BC195: NA | BD195: NA | BE195: NA | BF195: NA | BG195: NA | BH195: NA | BI195: NA | BJ195: NA | BK195: NA | BL195: NA | BM195: NA | BN195: NA | BO195: NA | BP195: NA | BQ195: NA | BR195: NA | BS195: NA | BT195: NA | BU195: NA | BV195: NA | BW195: NA | BX195: NA | BY195: NA | BZ195: NA | CA195: NA | CB195: NA | CC195: NA | CD195: NA | CE195: NA | CF195: NA | CG195: NA | CH195: NA | CI195: NA | CJ195: NA | CK195: NA | CL195: NA | CM195: NA | CN195: NA | CO195: NA | CP195: NA | CQ195: NA
A196: 1997-01-01 | B196: NA | C196: NA | D196: NA | E196: NA | F196: NA | G196: NA | H196: NA | I196: NA | J196: NA | K196: NA | L196: NA | M196: NA | N196: NA | O196: NA | P196: NA | Q196: NA | R196: NA | S196: NA | U196: NA | V196: NA | W196: NA | X196: NA | Y196: NA | Z196: NA | AA196: NA | AB196: NA | AC196: NA | AD196: NA | AE196: NA | AF196: NA | AG196: NA | AH196: NA | AI196: NA | AJ196: NA | AK196: NA | AL196: NA | AM196: NA | AN196: NA | AO196: NA | AP196: NA | AQ196: NA | AR196: NA | AS196: NA | AT196: NA | AV196: NA | AW196: NA | AX196: NA | AY196: NA | AZ196: NA | BA196: NA | BB196: NA | BC196: NA | BD196: NA | BE196: NA | BF196: NA | BG196: NA | BH196: NA | BI196: NA | BJ196: NA | BK196: NA | BL196: NA | BM196: NA | BN196: NA | BO196: NA | BP196: NA | BQ196: NA | BR196: NA | BS196: NA | BT196: NA | BU196: NA | BV196: NA | BW196: NA | BX196: NA | BY196: NA | BZ196: NA | CA196: NA | CB196: NA | CC196: NA | CD196: NA | CE196: NA | CF196: NA | CG196: NA | CH196: NA | CI196: NA | CJ196: NA | CK196: NA | CL196: NA | CM196: NA | CN196: NA | CO196: NA | CP196: NA | CQ196: NA | CR196: 3.763
A197: 1996-12-01 | B197: 3.74 | C197: 3.6 | D197: 4.5 | E197: NA | F197: 3.5 | G197: 4.23 | H197: 3.82 | I197: NA | J197: NA | K197: 3.59 | L197: 3.55 | M197: 3.55 | N197: 3.72 | O197: 3.85 | P197: 3.81 | Q197: 3.82 | R197: 3.59 | S197: 3.48 | U197: NA | V197: NA | W197: 3.62 | X197: 3.72 | Y197: 3.69 | Z197: 3.66 | AA197: NA | AB197: 3.52 | AC197: 3.62 | AD197: 3.61 | AE197: 3.52 | AF197: 3.55 | AG197: 3.61 | AH197: 3.61 | AI197: 3.66 | AJ197: 3.61 | AK197: 3.55 | AL197: 3.84 | AM197: NA | AN197: NA | AO197: NA | AP197: 3.73 | AQ197: 3.68 | AR197: NA | AS197: NA | AT197: NA | AV197: 3.83 | AW197: 3.81 | AX197: 3.69 | AY197: 3.68 | AZ197: 3.81 | BA197: 3.84 | BB197: 3.68 | BC197: 3.77 | BD197: 3.82 | BE197: 3.84 | BF197: 3.5 | BG197: NA | BH197: NA | BI197: NA | BJ197: 3.74 | BK197: 3.68 | BL197: 3.68 | BM197: 4.98 | BN197: 5.14 | BO197: NA | BP197: NA | BQ197: NA | BR197: NA | BS197: NA | BT197: NA | BU197: NA | BV197: NA | BW197: NA | BX197: NA | BY197: NA | BZ197: NA | CA197: NA | CB197: NA | CC197: NA | CD197: NA | CE197: 3.9 | CF197: NA | CG197: NA | CH197: 3.61 | CI197: NA | CJ197: NA | CK197: NA | CL197: NA | CM197: NA | CN197: NA | CO197: NA | CP197: NA | CQ197: NA
A198: 1996-11-01 | B198: NA | C198: NA | D198: NA | E198: NA | F198: NA | G198: NA | H198: NA | I198: NA | J198: NA | K198: NA | L198: NA | M198: NA | N198: NA | O198: NA | P198: NA | Q198: NA | R198: NA | S198: NA | U198: NA | V198: NA | W198: NA | X198: NA | Y198: NA | Z198: NA | AA198: NA | AB198: NA | AC198: NA | AD198: NA | AE198: NA | AF198: NA | AG198: NA | AH198: NA | AI198: NA | AJ198: NA | AK198: NA | AL198: NA | AM198: NA | AN198: NA | AO198: NA | AP198: NA | AQ198: NA | AR198: NA | AS198: NA | AT198: NA | AV198: NA | AW198: NA | AX198: NA | AY198: NA | AZ198: NA | BA198: NA | BB198: NA | BC198: NA | BD198: NA | BE198: NA | BF198: NA | BG198: NA | BH198: NA | BI198: NA | BJ198: NA | BK198: NA | BL198: NA | BM198: NA | BN198: NA | BO198: NA | BP198: NA | BQ198: NA | BR198: NA | BS198: NA | BT198: NA | BU198: NA | BV198: NA | BW198: NA | BX198: NA | BY198: NA | BZ198: NA | CA198: NA | CB198: NA | CC198: NA | CD198: NA | CE198: NA | CF198: NA | CG198: NA | CH198: NA | CI198: NA | CJ198: NA | CK198: NA | CL198: NA | CM198: NA | CN198: NA | CO198: NA | CP198: NA | CQ198: NA
A199: 1996-10-01 | B199: NA | C199: NA | D199: NA | E199: NA | F199: NA | G199: NA | H199: NA | I199: NA | J199: NA | K199: NA | L199: NA | M199: NA | N199: NA | O199: NA | P199: NA | Q199: NA | R199: NA | S199: NA | U199: NA | V199: NA | W199: NA | X199: NA | Y199: NA | Z199: NA | AA199: NA | AB199: NA | AC199: NA | AD199: NA | AE199: NA | AF199: NA | AG199: NA | AH199: NA | AI199: NA | AJ199: NA | AK199: NA | AL199: NA | AM199: NA | AN199: NA | AO199: NA | AP199: NA | AQ199: NA | AR199: NA | AS199: NA | AT199: NA | AV199: NA | AW199: NA | AX199: NA | AY199: NA | AZ199: NA | BA199: NA | BB199: NA | BC199: NA | BD199: NA | BE199: NA | BF199: NA | BG199: NA | BH199: NA | BI199: NA | BJ199: NA | BK199: NA | BL199: NA | BM199: NA | BN199: NA | BO199: NA | BP199: NA | BQ199: NA | BR199: NA | BS199: NA | BT199: NA | BU199: NA | BV199: NA | BW199: NA | BX199: NA | BY199: NA | BZ199: NA | CA199: NA | CB199: NA | CC199: NA | CD199: NA | CE199: NA | CF199: NA | CG199: NA | CH199: NA | CI199: NA | CJ199: NA | CK199: NA | CL199: NA | CM199: NA | CN199: NA | CO199: NA | CP199: NA | CQ199: NA
A200: 1996-09-01 | B200: NA | C200: NA | D200: NA | E200: NA | F200: NA | G200: NA | H200: NA | I200: NA | J200: NA | K200: NA | L200: NA | M200: NA | N200: NA | O200: NA | P200: NA | Q200: NA | R200: NA | S200: NA | U200: NA | V200: NA | W200: NA | X200: NA | Y200: NA | Z200: NA | AA200: NA | AB200: NA | AC200: NA | AD200: NA | AE200: NA | AF200: NA | AG200: NA | AH200: NA | AI200: NA | AJ200: NA | AK200: NA | AL200: NA | AM200: NA | AN200: NA | AO200: NA | AP200: NA | AQ200: NA | AR200: NA | AS200: NA | AT200: NA | AV200: NA | AW200: NA | AX200: NA | AY200: NA | AZ200: NA | BA200: NA | BB200: NA | BC200: NA | BD200: NA | BE200: NA | BF200: NA | BG200: NA | BH200: NA | BI200: NA | BJ200: NA | BK200: NA | BL200: NA | BM200: NA | BN200: NA | BO200: NA | BP200: NA | BQ200: NA | BR200: NA | BS200: NA | BT200: NA | BU200: NA | BV200: NA | BW200: NA | BX200: NA | BY200: NA | BZ200: NA | CA200: NA | CB200: NA | CC200: NA | CD200: NA | CE200: NA | CF200: NA | CG200: NA | CH200: NA | CI200: NA | CJ200: NA | CK200: NA | CL200: NA | CM200: NA | CN200: NA | CO200: NA | CP200: NA | CQ200: NA | CR200: 2.1218
A201: 1996-08-01 | B201: 2.22 | C201: 2.14 | D201: 2.5 | E201: NA | F201: 1.21 | G201: 2.45 | H201: 2.27 | I201: NA | J201: NA | K201: 2.07 | L201: 2 | M201: 2.16 | N201: 2.25 | O201: 2.32 | P201: 2.3 | Q201: 2.23 | R201: 2.19 | S201: 1.23 | U201: NA | V201: NA | W201: 2.14 | X201: 2.22 | Y201: 2.23 | Z201: 2.23 | AA201: NA | AB201: 2.03 | AC201: 2.08 | AD201: 2.07 | AE201: 1.23 | AF201: 1.01 | AG201: 2.17 | AH201: 2.13 | AI201: 1.19 | AJ201: 2.25 | AK201: 2.16 | AL201: 2.26 | AM201: NA | AN201: NA | AO201: NA | AP201: 2.22 | AQ201: 2.19 | AR201: NA | AS201: NA | AT201: NA | AV201: 2.25 | AW201: 2.22 | AX201: 2.19 | AY201: 2.2 | AZ201: 2.28 | BA201: 2.3 | BB201: 2.22 | BC201: 2.27 | BD201: 2.3 | BE201: 2.34 | BF201: 2.01 | BG201: NA | BH201: NA | BI201: NA | BJ201: 2.26 | BK201: 2.21 | BL201: 2.14 | BM201: 2.55 | BN201: 2.58 | BO201: NA | BP201: NA | BQ201: NA | BR201: NA | BS201: NA | BT201: NA | BU201: NA | BV201: NA | BW201: NA | BX201: NA | BY201: NA | BZ201: NA | CA201: NA | CB201: NA | CC201: NA | CD201: NA | CE201: 2.3 | CF201: NA | CG201: NA | CH201: 2.12 | CI201: NA | CJ201: NA | CK201: NA | CL201: NA | CM201: NA | CN201: NA | CO201: NA | CP201: NA | CQ201: NA | CR201: 2.3226
... 117 more rows

Sheet Supply
A1: Orlando
A2: Company | B2: City | C2: State | D2: Plant Type | E2: Latitude | F2: Longitude | G2: Region # | H2: Status
A3: Utilities Board of Trussville | B3: Birmingham | C3: AL | D3: Active Peakshaver | E3: 33.585554 | F3: -86.576626 | G3: South | H3: Contracted
A4: Alagasco | B4: Anderson | C4: AL | D4: Satellite Peakshaver | E4: 35610 | G4: South | H4: Potential
A5: Energen East Lauderdale | B5: East Lauderdale | C5: AL | D5: Satellite Peakshaver | E5: 35634 | G5: South | H5: Potential
A6: Alagasco | B6: Double Springs | C6: AL | D6: Satellite Peakshaver | E6: 35553 | G6: South | H6: Potential
A7: Energen Coosada Alabama Peakshaving plant | B7: Coosada | C7: AL | D7: Active Peakshaver | E7: 32.4961667 | F7: -86.3072917 | G7: South | H7: Potential
A8: Energen Pinson | B8: Pinson | C8: AL | D8: Active Peakshaver | E8: 33.6464333 | F8: -86.7302639 | G8: South | H8: Potential
A9: Utilities Board of Trussville | B9: Trussville | C9: AL | D9: Active Peakshaver | E9: 33.58555 | F9: -86.5766306 | G9: South | H9: Contracted
A10: Associated Natural Gas | B10: Blytheville | C10: AR | D10: Active Peakshaver | E10: 35.9821333 | F10: -89.7277056 | G10: South | H10: Potential
A11: ALT | B11: Topock | C11: AZ | D11: Production Plant | E11: 34.726104 | F11: -114.463462 | G11: West | H11: Contracted
A12: DGS Ehrenberg | B12: Blythe | C12: AZ | D12: Production Plant | E12: 33.59609 | F12: -114.52906 | G12: West | H12: Potential
A13: San Diego Gas & Electric | B13: Borrego Springs | C13: CA | D13: Satellite Peakshaver | E13: 92004 | G13: West | H13: Potential
A14: Clean Energy | B14: Boron | C14: CA | D14: Production Plant | E14: 35.034497 | F14: -117.712166 | G14: West | H14: Potential
A15: Quadren Cryogenics Plant | B15: Sacremento | C15: CA | D15: Nitrogen Rejection Unit | E15: 38.908395 | F15: -121.662269 | G15: West | H15: Potential
A16: Bowerman Liquefied Landgas | B16: Irvine | C16: CA | D16: Biofuel Landfill LNG | E16: 33.715482 | F16: -117.710594 | G16: West | H16: Potential
A17: Kiefer Road Liquefied Landgas | B17: Sacremento | C17: CA | D17: Biofuel Landfill LNG | E17: 38.520599 | F17: -121.191212 | G17: West | H17: Potential
A18: Linde & Waste Management | B18: Livermore | C18: CA | D18: Biofuel Landfill LNG | E18: 37.749529 | F18: -121.649623 | G18: West | H18: Potential
A19: DCP Midstream | B19: Cheyenne Wells | C19: CO | D19: Helium Plant | E19: 38.798928 | F19: -102.393851 | G19: West | H19: Potential
A20: Williams Energy | B20: Durango | C20: CO | D20: Nitrogen Rejection Unit | E20: 37.144222 | F20: -107.78449 | G20: West | H20: Potential
A21: Southern Connecticult Gas Milford | B21: Milford | C21: CT | D21: Satellite Peakshaver | E21: 6460 | G21: Northeast | H21: Potential
A22: CT.Dept.ofPublicUtilities | B22: Norwich | C22: CT | D22: Satellite Peakshaver | E22: 6360 | G22: Northeast | H22: Potential
A23: Southern Connecticult Gas Milford(Energy East) | B23: Milford | C23: CT | D23: Active Peakshaver | E23: 41.1883528 | F23: -73.0989111 | G23: Northeast | H23: Potential
A24: Connecticut Natural Gas Corp./LNG | B24: Rocky Hill | C24: CT | D24: Active Peakshaver | E24: 41.63525 | F24: -72.674025 | G24: Northeast | H24: Potential
A25: Northeast Utilities | B25: Waterbury | C25: CT | D25: Active Peakshaver | E25: 41.533362 | F25: -73.039245 | G25: Northeast | H25: Potential
A26: Conectiv Power Delivery | B26: Wilmington | C26: DE | D26: Active Peakshaver | E26: 39.7257639 | F26: -75.5658278 | G26: Northeast | H26: Potential
A27: AGL Cherokee LNG Plant | B27: Ball Ground | C27: GA | D27: Active Peakshaver | E27: 34.2795556 | F27: -84.3650861 | G27: South | H27: Potential
A28: Austell Natural Gas | B28: Austel | C28: GA | D28: Satellite Peakshaver | E28: 30106 | G28: South | H28: Potential
A29: El Paso | B29: Savannah | C29: GA | D29: Import Terminal | E29: 32.084969 | F29: -80.99465 | G29: South | H29: Potential
A30: Atmos Energy Corporation | B30: Columbus | C30: GA | D30: Active Peakshaver | E30: 32.4482889 | F30: -84.9838528 | G30: South | H30: Contracted
A31: AGL Resources Macon | B31: Macon | C31: GA | D31: Active Peakshaver | E31: 32.8904028 | F31: -83.5163444 | G31: South | H31: Potential
A32: AGL Resources Riverdale | B32: Riverdale | C32: GA | D32: Active Peakshaver | E32: 33.539892 | F32: -84.411631 | G32: South | H32: Potential
A33: Mid-American Energy | B33: Bettendorf | C33: IA | D33: Active Peakshaver | E33: 41.5231889 | F33: -90.4883417 | G33: Midwest | H33: Potential
A34: Mid-American Energy | B34: Des Moines | C34: IA | D34: Active Peakshaver | E34: 41.6485028 | F34: -93.5942806 | G34: Midwest | H34: Potential
A35: Northern Natural Gas Company | B35: Garner | C35: IA | D35: Active Peakshaver | E35: 43.1164194 | F35: -93.5409222 | G35: Midwest | H35: Potential
A36: Mid-American Energy | B36: Waterloo | C36: IA | D36: Active Peakshaver | E36: 42.4377472 | F36: -92.4225056 | G36: Midwest | H36: Potential
A37: Intermountain Gas | B37: Nampa | C37: ID | D37: Active Peakshaver | E37: 43.6426889 | F37: -116.5079472 | G37: West | H37: Potential
A38: Peoples Gas Light & Coke | B38: Fisher | C38: IL | D38: Active Peakshaver | E38: 40.2860639 | F38: -88.4164194 | G38: Midwest | H38: Potential
A39: Citizens Gas & Coke Utility | B39: Beech Grove | C39: IN | D39: Active Peakshaver | E39: 39.7172917 | F39: -86.0675278 | G39: Midwest | H39: Contracted
A40: Citizens Gas & Coke Utility | B40: Indianapolis | C40: IN | D40: Active Peakshaver | E40: 39.7167778 | F40: -86.0672111 | G40: Midwest | H40: Contracted
A41: Kokomo Gas & Fuel Co. | B41: Kokomo | C41: IN | D41: Active Peakshaver | E41: 40.4060944 | F41: -86.10045 | G41: Midwest | H41: Potential
A42: NIPSCO (Northern Indiana Public Service Company | B42: La Porte | C42: IN | D42: Active Peakshaver | E42: 41.7220278 | F42: -86.7370694 | G42: Midwest | H42: Potential
A43: Air Products Helium, INC | B43: Liberal | C43: KS | D43: Helium Plant | E43: 37.15851 | F43: -100.763891 | G43: Midwest | H43: Potential
A44: BP America Production Company | B44: Ulysses | C44: KS | D44: Helium Plant | E44: 37.558757 | F44: -101.122797 | G44: Midwest | H44: Potential
A45: Pioneer Natural Resources | B45: Ulysses | C45: KS | D45: Nitrogen Rejection Unit | E45: 37.400327 | F45: -101.029101 | G45: Midwest | H45: Potential
A46: Sempra | B46: Hackberry | C46: LA | D46: Import Terminal | E46: 30.034953 | F46: -93.334811 | G46: South | H46: Potential
A47: Panhandle Energy | B47: Lake Charles | C47: LA | D47: Import Terminal | E47: 30.110302 | F47: -93.286246 | G47: South | H47: Potential
A48: Cheniere Energy | B48: Cameron Parish | C48: LA | D48: Import Terminal | E48: 29.748865 | F48: -93.871219 | G48: South | H48: Potential
A49: Hopkinton MA LNG Facility | B49: Acushnet | C49: MA | D49: Satellite Peakshaver | E49: 2743 | G49: Northeast | H49: Potential
A50: Keyspan Energy | B50: Dorchester | C50: MA | D50: Active Peakshaver | E50: 42.3010833 | F50: -71.0453278 | G50: Northeast | H50: Potential
A51: Essex Count Gas Compnay | B51: Haverhill | C51: MA | D51: Active Peakshaver | E51: 42.808901 | F51: -71.085941 | G51: Northeast | H51: Potential
A52: Berkshire Gas Co. | B52: Whately | C52: MA | D52: Satellite Peakshaver | E52: 1093 | G52: Northeast | H52: Potential
A53: Boston Gas | B53: Salem | C53: MA | D53: Satellite Peakshaver | E53: 1970 | G53: Northeast | H53: Potential
A54: Colonial Gas Company | B54: South Yarmouth | C54: MA | D54: Satellite Peakshaver | E54: 2664 | G54: Northeast | H54: Potential
A55: Colonial Gas Company | B55: Wareham | C55: MA | D55: Satellite Peakshaver | E55: 2571 | G55: Northeast | H55: Potential
A56: Colonial Gas Company | B56: Westford | C56: MA | D56: Satellite Peakshaver | E56: 1886 | G56: Northeast | H56: Potential
A57: Bay State Gas | B57: Easton | C57: MA | D57: Satellite Peakshaver | E57: 2334 | G57: Northeast | H57: Potential
A58: Bay State Gas | B58: Lawrence | C58: MA | D58: Satellite Peakshaver | E58: 1840 | G58: Northeast | H58: Potential
A59: Bay State Gas | B59: Marshfield | C59: MA | D59: Satellite Peakshaver | E59: 2050 | G59: Northeast | H59: Potential
A60: Fall River Gas | B60: FallRiver | C60: MA | D60: Satellite Peakshaver | E60: 2720 | G60: Northeast | H60: Potential
A61: Fitchburg Gas & Electric Light Company | B61: Westminster | C61: MA | D61: Satellite Peakshaver | E61: 1441 | G61: Northeast | H61: Potential
A62: City of Holyoke, Gas Electric Dept. | B62: Holyoke | C62: MA | D62: Satellite Peakshaver | E62: 1040 | G62: Northeast | H62: Potential
A63: Westfield Gas & Electric Light Dept. | B63: Westfield | C63: MA | D63: Satellite Peakshaver | E63: 1085 | G63: Northeast | H63: Potential
A64: GDF Suez (Distrigas) | B64: Everett | C64: MA | D64: Import Terminal | E64: 42.392352 | F64: -71.059062 | G64: Northeast | H64: Potential
A65: Excelerate Energy, LLC | B65: Massachusetts Bay | C65: MA | D65: Import Terminal | E65: 2045 | G65: Northeast | H65: Potential
A66: Bay State Gas | B66: Ludlow | C66: MA | D66: Active Peakshaver | E66: 42.1559722 | F66: -72.4141278 | G66: Northeast | H66: Potential
A67: Boston Gas | B67: Lynn | C67: MA | D67: Active Peakshaver | E67: 42.4538361 | F67: -70.9506639 | G67: Northeast | H67: Potential
A68: Middleboro Gas & Electric | B68: Middleboro | C68: MA | D68: Satellite Peakshaver | E68: 2349 | G68: Northeast | H68: Potential
A69: Keyspan Energy | B69: Tewksbury | C69: MA | D69: Active Peakshaver | E69: 42.5985333 | F69: -71.256625 | G69: Northeast | H69: Potential
A70: Hopkinton MA LNG Facility | B70: Hopkinton | C70: MA | D70: Active Peakshaver | E70: 42.2454667 | F70: -71.5199806 | G70: Northeast | H70: Potential
A71: BG&E | B71: Baltimore | C71: MD | D71: Active Peakshaver | E71: 39.2692667 | F71: -76.619125 | G71: Northeast | H71: Potential
A72: BG&E | B72: Westminster | C72: MD | D72: Satellite Peakshaver | E72: 21157 | G72: Northeast | H72: Potential
A73: Dominion (Cove Point) | B73: Lusby | C73: MD | D73: Import Terminal | E73: 38.389456 | F73: -76.411729 | G73: Northeast | H73: Potential
A74: Northern Utilities Inc. | B74: Lewiston | C74: ME | D74: Satellite Peakshaver | E74: 4240 | G74: Northeast | H74: Potential
A75: Centerpoint Energy | B75: Burnsville | C75: MN | D75: Active Peakshaver | E75: 44.79364 | F75: -93.263495 | G75: Midwest | H75: Contracted
A76: Xcel Energy (Wescott Plant) | B76: Inver Grove Heights | C76: MN | D76: Active Peakshaver | E76: 44.8005639 | F76: -93.1000111 | G76: Midwest | H76: Potential
A77: Northern Natural Gas | B77: Wrenshall | C77: MN | D77: Active Peakshaver | E77: 46.6046222 | F77: -92.3908806 | G77: Midwest | H77: Potential
A78: El Paso | B78: Pascagoula | C78: MS | D78: Import Terminal | E78: 30.322146 | F78: -88.504716 | G78: South | H78: Potential
A79: Energy West | B79: W. Yellostone | C79: MT | D79: Satellite Peakshaver | E79: 59758 | G79: West | H79: Potential
A80: Public Service Co. of N. C. | B80: Cary | C80: NC | D80: Active Peakshaver | E80: 35.7925417 | F80: -78.7543944 | G80: South | H80: Potential
A81: Piedmont Natural Gas | B81: Charlotte | C81: NC | D81: Active Peakshaver | E81: 35.3771417 | F81: -80.8896389 | G81: South | H81: Potential
A82: North Carolina Natural Gas (Bentonville) | B82: Four Oaks | C82: NC | D82: Active Peakshaver | E82: 35.3309194 | F82: -78.263918 | G82: South | H82: Potential
A83: Pine Needle Operating Company (Stokesdale) | B83: Greensboro | C83: NC | D83: Active Peakshaver | E83: 36.212706 | F83: -79.967968 | G83: South | H83: Potential
A84: Greenville Utilities Comission | B84: Greenville | C84: NC | D84: Satellite Peakshaver | E84: 27833 | G84: South | H84: Potential
A85: Metropolitan Utilities Dist. | B85: Omaha | C85: NE | D85: Active Peakshaver | E85: 41.312275 | F85: -96.097425 | G85: Midwest | H85: Potential
A86: EnergyNorth Natural Gas, Inc. | B86: Hampton | C86: NH | D86: Satellite Peakshaver | E86: 3842 | G86: Northeast | H86: Potential
A87: EnergyNorth Natural Gas, Inc. | B87: Concord | C87: NH | D87: Satellite Peakshaver | E87: 3301 | G87: Northeast | H87: Potential
A88: EnergyNorth Natural Gas, Inc. | B88: Manchester | C88: NH | D88: Satellite Peakshaver | E88: 3101 | G88: Northeast | H88: Potential
A89: EnergyNorth Natural Gas, Inc. | B89: Tilton | C89: NH | D89: Satellite Peakshaver | E89: 3276 | G89: Northeast | H89: Potential
A90: Transcontinental Gas | B90: Carlstadt | C90: NJ | D90: Active Peakshaver | E90: 40.8117806 | F90: -74.0505028 | G90: Northeast | H90: Potential
A91: Elizabethtown Gas Company | B91: Elizabeth | C91: NJ | D91: Satellite Peakshaver | E91: 7201 | G91: Northeast | H91: Potential
A92: New Jersey Natural Gas Company | B92: Howell | C92: NJ | D92: Satellite Peakshaver | E92: 7731 | G92: Northeast | H92: Potential
A93: New Jersey Natural Gas Company | B93: Manahawkin | C93: NJ | D93: Satellite Peakshaver | E93: 8050 | G93: Northeast | H93: Potential
A94: Public Service Electric & Gas Company | B94: Burlington | C94: NJ | D94: Satellite Peakshaver | E94: 8016 | G94: Northeast | H94: Potential
A95: South Jersey Gas Company | B95: McKee City | C95: NJ | D95: Satellite Peakshaver | E95: 8232 | G95: Northeast | H95: Potential
A96: Paiute Pipeline | B96: Lovelock | C96: NV | D96: Active Peakshaver | E96: 40.2136417 | F96: -118.5672917 | G96: West | H96: Potential
A97: Consolidated Edison | B97: Astoria | C97: NY | D97: Active Peakshaver | E97: 40.7846139 | F97: -73.9009028 | G97: Northeast | H97: Potential
A98: Keyspan Energy Brooklyn | B98: Brooklyn | C98: NY | D98: Active Peakshaver | E98: 40.7233167 | F98: -73.9301389 | G98: Northeast | H98: Potential
A99: Long Island Lighting | B99: Holbrook | C99: NY | D99: Active Peakshaver | E99: 11741 | G99: Northeast | H99: Potential
A100: Holtsville LNG Plant | B100: Holtsville | C100: NY | D100: Active Peakshaver | E100: 40.8148056 | F100: -73.0665194 | G100: Northeast | H100: Potential
A101: Northwest Natural Gas | B101: Newport | C101: OR | D101: Active Peakshaver | E101: 44.6235472 | F101: -124.02695 | G101: West | H101: Potential
A102: Northwest Natural Gas | B102: Portland | C102: OR | D102: Active Peakshaver | E102: 45.6242333 | F102: -122.7853278 | G102: West | H102: Potential
A103: Philadelphia Gas Works | B103: Philadelphia | C103: PA | D103: Active Peakshaver | E103: 39.9827694 | F103: -75.085725 | G103: Northeast | H103: Potential
A104: Philadelphia Gas Works | B104: Philadelphia | C104: PA | D104: Satellite Peakshaver | E104: 19101 | G104: Northeast | H104: Potential
A105: UGI Corporation (Reading) | B105: Reading | C105: PA | D105: Active Peakshaver | E105: 40.42295 | F105: -75.9255806 | G105: Northeast | H105: Potential
A106: PECO Energy Co. | B106: West Conshohocken | C106: PA | D106: Active Peakshaver | E106: 40.0740333 | F106: -75.3185806 | G106: Northeast | H106: Potential
A107: Valley Gas Company | B107: Cumberland | C107: RI | D107: Satellite Peakshaver | E107: 2864 | G107: Northeast | H107: Potential
A108: Providence Gas Company | B108: Exeter | C108: RI | D108: Satellite Peakshaver | E108: 2822 | G108: Northeast | H108: Potential
A109: Algonquin Gas Transmission Company | B109: Providence | C109: RI | D109: Satellite Peakshaver | E109: 2901 | G109: Northeast | H109: Potential
A110: South Carolina Pipeline | B110: Goose Creek | C110: SC | D110: Active Peakshaver | E110: 33.0237889 | F110: -79.9328306 | G110: South | H110: Potential
A111: South Carolina Pipeline | B111: Salley | C111: SC | D111: Satellite Peakshaver | E111: 29137 | G111: South | H111: Potential
A112: Fort Hill Natural Gas | B112: Easley | C112: SC | D112: Satellite Peakshaver | E112: 29640 | G112: South | H112: Potential
A113: Memphis LG&W | B113: Arlington | C113: TN | D113: Active Peakshaver | E113: 35.3285389 | F113: -89.6923417 | G113: South | H113: Potential
A114: Memphis LG&W | B114: Capleville | C114: TN | D114: Active Peakshaver | E114: 35.000504 | F114: -89.89662 | G114: South | H114: Potential
A115: AGL Chattanooga Gas TN Peak Shaver/Marlboro Enterprises Inc | B115: Chattanooga | C115: TN | D115: Active Peakshaver | E115: 35.1097028 | F115: -85.2417972 | G115: South | H115: Potential
A116: Duke Energy Kingsport (Fordtown) | B116: Kingsport | C116: TN | D116: Active Peakshaver | E116: 36.4427528 | F116: -82.523725 | G116: South | H116: Potential
A117: Piedmont Natural Gas/Nashville Gas Company | B117: Nashville | C117: TN | D117: Active Peakshaver | E117: 36.170083 | F117: -86.774951 | G117: South | H117: Potential
A118: Clean Energy | B118: Willis | C118: TX | D118: Production Plant | E118: 30.442786 | F118: -95.522784 | G118: South | H118: Potential
A119: BP America Production Company | B119: Sunray | C119: TX | D119: Helium Plant | E119: 35.954074 | F119: -101.879162 | G119: South | H119: Potential
A120: Air Products Helium, INC | B120: Gruver | C120: TX | D120: Helium Plant | E120: 36.493483 | F120: -101.465893 | G120: South | H120: Potential
A121: Freeport LNG | B121: Quintana | C121: TX | D121: Import Terminal | E121: 28.930366 | F121: -95.315902 | G121: South | H121: Potential
A122: Golden Pass LNG | B122: Sabine Pass | C122: TX | D122: Import Terminal | E122: 29.761969 | F122: -93.918234 | G122: South | H122: Potential
A123: Prometheus Energy | B123: Moab Utah | C123: UT | D123: Production Plant | E123: 38.163274 | F123: -109.27642 | G123: West | H123: Contracted
A124: Imsamet, Inc. | B124: Wendover | C124: UT | D124: Active Peakshaver | E124: 84083 | G124: West | H124: Potential
A125: Columbia Gas | B125: Chesapeake | C125: VA | D125: Active Peakshaver | E125: 36.7684944 | F125: -76.3008056 | G125: South | H125: Potential
A126: Roanoke Gas | B126: Roanoke | C126: VA | D126: Active Peakshaver | E126: 37.379509 | F126: -79.912343 | G126: South | H126: Potential
A127: Commonwealth Gas Services Inc. | B127: Madison Heights | C127: VA | D127: Satellite Peakshaver | E127: 24572 | G127: South | H127: Potential
A128: Northwest Pipeline | B128: Plymouth | C128: WA | D128: Active Peakshaver | E128: 45.9313639 | F128: -119.4113444 | G128: West | H128: Potential
A129: Xcel Energy | B129: Eau Claire | C129: WI | D129: Active Peakshaver | E129: 44.8314139 | F129: -91.4458639 | G129: Midwest | H129: Potential
A130: Wisconson Electric Power Company | B130: Oak Creek | C130: WI | D130: Active Peakshaver | E130: 42.850899 | F130: -87.842286 | G130: Midwest | H130: Potential
A131: Pudget Sound Energy | B131: Gig Harbor | C131: WA | D131: Satellite Peakshaver | E131: 47.344098 | F131: -122.612068 | G131: West | H131: Potential
A132: Xcel Energy Wescott Plant | B132: La Crosse | C132: WI | D132: Satellite Peakshaver | E132: 54601 | G132: Midwest | H132: Potential
A133: Wisconson Gas Company | B133: Rice Lake | C133: WI | D133: Satellite Peakshaver | E133: 54868 | G133: Midwest | H133: Potential
A134: Amoco Production Company (Painter) | B134: Evanston | C134: WY | D134: Nitrogen Rejection Unit | E134: 41.317375 | F134: -110.854925 | G134: West | H134: Potential
A135: Lower Valley Power & Light | B135: Afton | C135: WY | D135: Satellite Peakshaver | E135: 83110 | G135: West | H135: Potential
A136: Lower Valley Power & Light | B136: Jackson | C136: WY | D136: Satellite Peakshaver | E136: 83001 | G136: West | H136: Potential
A137: ExxonMobil (Shute Creek) | B137: La Barge, WY | C137: WY | D137: Nitrogen Rejection Unit | E137: 41.884102 | F137: -110.08685 | G137: West | H137: Potential

Sheet Orlando
A1: Supply Origin | B1: Orlando
A2: Latitude | B2: 28.5383355 | D2: Closest Supply Point
A3: Longitude | B3: -81.3792365 | D3: AGL Resources Macon, Macon
A4: Active Peakshaver
D6: Plant Type | E6: Latitude | F6: Longitude | G6: Region | H6: Status | I6: Hours by Road | J6: Distance
A7: Roanoke Gas | B7: Roanoke | C7: VA | D7: Active Peakshaver | E7: 37.379509 | F7: -79.912343 | G7: South | H7: Potential | I7: 10 hours 25 mins | J7: 721
A8: Columbia Gas | B8: Chesapeake | C8: VA | D8: Active Peakshaver | E8: 36.7684944 | F8: -76.3008056 | G8: South | H8: Potential | I8: 10 hours 56 mins | J8: 752
A9: Piedmont Natural Gas/Nashville Gas Company | B9: Nashville | C9: TN | D9: Active Peakshaver | E9: 36.170083 | F9: -86.774951 | G9: South | H9: Potential | I9: 9 hours 47 mins | J9: 686
A10: Duke Energy Kingsport (Fordtown) | B10: Kingsport | C10: TN | D10: Active Peakshaver | E10: 36.4427528 | F10: -82.523725 | G10: South | H10: Potential | I10: 9 hours 31 mins | J10: 656
A11: AGL Chattanooga Gas TN Peak Shaver/Marlboro Enterprises Inc | B11: Chattanooga | C11: TN | D11: Active Peakshaver | E11: 35.1097028 | F11: -85.2417972 | G11: South | H11: Potential | I11: 7 hours 56 mins | J11: 558
A12: Memphis LG&W | B12: Capleville | C12: TN | D12: Active Peakshaver | E12: 35.000504 | F12: -89.89662 | G12: South | H12: Potential | I12: 11 hours 37 mins | J12: 804
A13: Memphis LG&W | B13: Arlington | C13: TN | D13: Active Peakshaver | E13: 35.3285389 | F13: -89.6923417 | G13: South | H13: Potential | I13: 12 hours 14 mins | J13: 823
A14: South Carolina Pipeline | B14: Goose Creek | C14: SC | D14: Active Peakshaver | E14: 33.0237889 | F14: -79.9328306 | G14: South | H14: Potential | I14: 6 hours 14 mins | J14: 418
A15: Pine Needle Operating Company (Stokesdale) | B15: Greensboro | C15: NC | D15: Active Peakshaver | E15: 36.212706 | F15: -79.967968 | G15: South | H15: Potential | I15: 9 hours 9 mins | J15: 622
A16: North Carolina Natural Gas (Bentonville) | B16: Four Oaks | C16: NC | D16: Active Peakshaver | E16: 35.3309194 | F16: -78.263918 | G16: South | H16: Potential | I16: 8 hours 21 mins | J16: 576
A17: Piedmont Natural Gas | B17: Charlotte | C17: NC | D17: Active Peakshaver | E17: 35.3771417 | F17: -80.8896389 | G17: South | H17: Potential | I17: 7 hours 46 mins | J17: 536
A18: Public Service Co. of N. C. | B18: Cary | C18: NC | D18: Active Peakshaver | E18: 35.7925417 | F18: -78.7543944 | G18: South | H18: Potential | I18: 8 hours 35 mins | J18: 602
A19: AGL Resources Riverdale | B19: Riverdale | C19: GA | D19: Active Peakshaver | E19: 33.539892 | F19: -84.411631 | G19: South | H19: Potential | I19: 6 hours 13 mins | J19: 431
A20: AGL Resources Macon | B20: Macon | C20: GA | D20: Active Peakshaver | E20: 32.8904028 | F20: -83.5163444 | G20: South | H20: Potential | I20: 5 hours 22 mins | J20: 371
A21: AGL Cherokee LNG Plant | B21: Ball Ground | C21: GA | D21: Active Peakshaver | E21: 34.2795556 | F21: -84.3650861 | G21: South | H21: Potential | I21: 7 hours 2 mins | J21: 487
A22: Associated Natural Gas | B22: Blytheville | C22: AR | D22: Active Peakshaver | E22: 35.9821333 | F22: -89.7277056 | G22: South | H22: Potential | I22: 12 hours 59 mins | J22: 889
A23: Energen Pinson | B23: Pinson | C23: AL | D23: Active Peakshaver | E23: 33.6464333 | F23: -86.7302639 | G23: South | H23: Potential | I23: 8 hours 31 mins | J23: 586
A24: Energen Coosada Alabama Peakshaving plant | B24: Coosada | C24: AL | D24: Active Peakshaver | E24: 32.4961667 | F24: -86.3072917 | G24: South | H24: Potential | I24: 7 hours 32 mins | J24: 465

Sheet DV-IDENTITY-0 (hidden)
